Workbook

Sheet Liste (hidden)
A1: Période arrêté | B1: 202105 | F1: Agences supprimées automatiquement des requêtes du reporting ce mois-ci. Liste ci-contre mise à jour. | P1: =+LEFT(RIGHT(RIGHT(LEFT(CELL("nomfichier",A1),FIND("]",CELL("nomfichier",A1),1)-1),FIND("]",CELL("nomfichier",A1),1)-FIND("[",CELL("nomfichier",A1),1)-1),11),6) -> 202105
B4: AIX EN OTHE | C4: 10583 | F4: 5705 | G4: EXPERTS CREDIT IMMO | J4: 61 | K4: HAGUENAU MARXENHOUSE | N4: A voir avec Guillaume
B5: ALTKIRCH | C5: 189 | F5: 51390 | G5: FERE CHAMPENOISE | J5: 36 | K5: HOENHEIM RIED
B6: ARCIS SUR AUBE | C6: 10530 | F6: 57613 | G6: SARRALBE | J6: 151 | K6: TURCKHEIM
B7: ARS SUR MOSELLE | C7: 57105
B8: AUDUN LE TICHE | C8: 57113 | F8: ATTENTION :
B9: AY CHAMPAGNE | C9: 51367 | F9: 1/ Revoir la requête en excluant ces agences
B10: BACCARAT | C10: 54116 | F10: 2/ Revoir les liaisons dans l'onglet "Rapport 5" car des lignes ont été supprimées à la main.
B11: BAR LE DUC | C11: 55151
B12: BAR SUR AUBE | C12: 10550
B13: BAR SUR SEINE | C13: 10556
B14: BARR | C14: 113 | F14: Agences supprimées en 202102
B15: BAYON | C15: 54161 | F15: EDS | G15: PDV | H15: Agence Multisite | I15: Territoire | J15: Région | K15: Type de site | L15: Situation au 31/12/20
B16: BEHREN LES FORBACH | C16: 57163 | F16: 65 | G16: WEITBRUCH | I16: HAGUENAU | J16: BAS RHIN | K16: Rattaché | L16: Fermée | M16: Ok Fb remises commerciales
B17: BENFELD | C17: 111 | F17: 8814 | G17: VRIGNE AUX BOIS | I17: CHARLEVILLE MEZIERES | J17: MARNE ARDENNES | K17: Autonome | L17: Fermée | M17: Ok Fb remises commerciales
B18: BETHENY | C18: 51340 | F18: 54431 | G18: LUNEVILLE CHATEAU | I18: NANCY | J18: MEURTHE ET MOSELLE MEUSE | K18: Autonome | L18: Fermée | M18: Ok Fb remises commerciales
B19: BETSCHDORF | C19: 76 | F19: 93 | G19: MARMOUTIER | I19: HAGUENAU | J19: BAS RHIN | K19: Rattaché | L19: Fermée | M19: Ok Fb remises commerciales
B20: BISCHHEIM | C20: 28 | F20: 187 | G20: HUNINGUE | I20: MULHOUSE | J20: HAUT RHIN | K20: Rattaché | L20: Fermée | M20: Ok Fb remises commerciales
B21: BISCHWILLER | C21: 57 | F21: 88346 | G21: GRANGES AUMONTZEY | I21: SAINT DIE | J21: VOSGES | K21: Autonome | L21: Fermée | M21: Ok Fb remises commerciales
B22: BITCHE | C22: 57165 | F22: 57345 | G22: GROSBLIEDERSTROFF | I22: MOSELLE EST | J22: MOSELLE | K22: Autonome | L22: Fermée | M22: Ok Fb remises commerciales
B23: BLAINVILLE | C23: 54166 | F23: 110 | G23: SELESTAT OUEST | I23: SELESTAT | J23: BAS RHIN | K23: Autonome | L23: Fermée | M23: Ok Fb remises commerciales
B24: BLAMONT | C24: 54171 | F24: 57353 | G24: HOMBOURG HAUT | I24: MOSELLE EST | J24: MOSELLE | K24: Autonome | L24: Fermée | M24: Ok Fb remises commerciales
B25: BOULAY | C25: 57178 | F25: 59 | G25: HERRLISHEIM | I25: HAGUENAU | J25: BAS RHIN | K25: Rattaché | L25: Fermée | M25: Ok Fb remises commerciales
B26: BOURBONNE LES BAINS | C26: 10560 | F26: 134 | G26: COLMAR SAINT JOSEPH | I26: COLMAR | J26: HAUT RHIN | K26: Autonome | L26: Fermée | M26: Ok Fb remises commerciales
B27: BOUSSE | C27: 57180 | F27: 133 | G27: COLMAR VAUBAN | I27: COLMAR | J27: HAUT RHIN | K27: Autonome | L27: Fermée | M27: Ok Fb remises commerciales
B28: BOUXWILLER | C28: 82 | F28: 169 | G28: MULHOUSE ROOSEVELT | I28: MULHOUSE | J28: HAUT RHIN | K28: Autonome | L28: Fermée | M28: Ok Fb remises commerciales
B29: BOUZONVILLE | C29: 57182 | F29: 86 | G29: WINGEN SUR MODER | I29: HAGUENAU | J29: BAS RHIN | K29: Rattaché | L29: Fermée | M29: Ok Fb remises commerciales
B30: BRIENNE LE CHATEAU | C30: 10551 | F30: 167 | G30: LIEPVRE | I30: COLMAR | J30: HAUT RHIN | K30: Rattaché | L30: Fermée | M30: Ok Fb remises commerciales
B31: BRIEY | C31: 54184 | F31: 57634 | G31: THIONVILLE LA MILLIAIRE | I31: MOSELLE NORD | J31: MOSELLE | K31: Autonome | L31: Fermée | M31: Ok Fb remises commerciales
B32: BRUMATH | C32: 30 | F32: 154 | G32: LAPOUTROIE | I32: COLMAR | J32: HAUT RHIN | K32: Rattaché | L32: Fermée | M32: Ok Fb remises commerciales
B33: BRUNSTATT | C33: 186 | F33: 89 | G33: DIEMERINGEN | I33: HAGUENAU | J33: BAS RHIN | K33: Rattaché | L33: Fermée | M33: Ok Fb remises commerciales
B34: BRUYERES | C34: 88186 | F34: 78 | G34: LAUTERBOURG | I34: HAGUENAU | J34: BAS RHIN | K34: Rattaché | L34: Fermée | M34: Ok Fb remises commerciales
B35: CARIGNAN | C35: 8815 | F35: 13 | G35: ILLKIRCH NORD | I35: SELESTAT | J35: BAS RHIN | K35: Rattaché | L35: Fermée | M35: Ok Fb remises commerciales
B36: CATTENOM | C36: 57192 | F36: 14 | G36: OSTWALD | I36: SELESTAT | J36: BAS RHIN | K36: Rattaché | L36: Fermée | M36: Ok Fb remises commerciales
B37: CERNAY | C37: 195
B38: CHALIGNY NEUVES MAISONS | C38: 54506
B39: CHALINDREY | C39: 10558
B40: CHALONS ROOSEVELT | C40: 51110 | F40: 2021-05-17
B41: CHALONS VIVIERS | C41: 51101 | F41: Supression manuelle eds 171 Mulhouse Sauvage
B42: CHAMPIGNEULLES | C42: 54196 | F42: Ressorti dans la requête, pour une raison inconnu car tout à zéro.
B43: CHANTRAINE | C43: 88201
B44: CHARLEVILLE JEAN JAURES | C44: 8801
B45: CHARLEVILLE MEZIERES | C45: 8822 | F45: 2021-06-21
B46: CHARLEVILLE MOHON | C46: 8817 | F46: Supression manuelle eds 171 Mulhouse Sauvage
B47: CHARLEVILLE NEVERS | C47: 8802 | F47: Ressorti dans la requête, pour une raison inconnu car tout à zéro.
B48: CHARMES | C48: 88206
B49: CHATEAU SALINS | C49: 57210
B50: CHATENOIS | C50: 108 | F50: Agences supprimées en 202102
B51: CHAUMONT HOTEL DE VILLE | C51: 10566 | F51: EDS | G51: PDV | H51: Agence Multisite | I51: Territoire | J51: Région
B52: CHAUMONT REPUBLIQUE | C52: 10590 | F52: 50 | G52: STRASBOURG GARE | H52: STRASBOURG HALLES | I52: STRASBOURG | J52: BAS RHIN
B53: CLOUANGE | C53: 57224 | F53: 64 | G53: HAGUENAU MUSAU | H53: HAGUENAU HOUBLON | I53: HAGUENAU | J53: BAS RHIN
B54: COLMAR MARAICHERS | C54: 132 | F54: 10539 | G54: CHATEAUVILLAIN | H54: CHAUMONT HOTEL DE VILLE | I54: CHAUMONT | J54: AUBE HAUTE MARNE
B55: COLMAR REPUBLIQUE | C55: 130 | F55: 54466 | G55: NANCY PLATEAU DE HAYE | H55: NANCY PLATEAU DE HAYE | I55: PONT A MOUSSON | J55: MEURTHE ET MOSELLE MEUSE
B56: COLMAR SAINTE MARIE | C56: 135 | F56: 88216 | G56: CHATENOIS VOSGES | H56: CHATENOIS VOSGES | I56: EPINAL | J56: VOSGES
B57: COMMERCY | C57: 55231
B58: CORNIMONT LA BRESSE | C58: 88246
B59: CREUTZWALD | C59: 57250
B60: DAMERY | C60: 51369
B61: DANNEMARIE | C61: 193
B62: DARNEY | C62: 88256
B63: DIEULOUARD | C63: 54257
B64: DIEUZE | C64: 57258
B65: DOCELLES | C65: 88261
B66: DOMBASLE SUR MEURTHE | C66: 54266
B67: DORMANS | C67: 51365
B68: DRUSENHEIM | C68: 58
B69: ECKBOLSHEIM | C69: 40
B70: ELOYES | C70: 88281
B71: ENSISHEIM | C71: 162
B72: EPERNAY | C72: 51370
B73: EPINAL ARISTIDE BRIAND | C73: 88286
B74: EPINAL AVRINSART | C74: 88291
B75: EPINAL LEOPOLD BOURG | C75: 88288
B76: ERSTEIN | C76: 104
B77: ESPACE MESANGE | C77: 18
B78: ESSEY LES NANCY | C78: 54296
B79: ETAIN | C79: 55298
B80: EXPERTS DIRECT | C80: 5800
B81: FAGNIERES LECLERC | C81: 51103
B82: FAMECK | C82: 57303
B83: FAULQUEMONT | C83: 57305
B84: FEGERSHEIM | C84: 8
B85: FERRETTE | C85: 191
B86: FISMES | C86: 51314
B87: FLORANGE | C87: 57306
B88: FONTOY | C88: 57307
B89: FORBACH CENTRALE | C89: 57308
B90: FRAIZE | C90: 88316
B91: FROUARD | C91: 54321
B92: GERARDMER | C92: 88326
B93: GIVET | C93: 8839
B94: GOLBEY | C94: 88336
B95: GUEBWILLER | C95: 147
B96: GUENANGE | C96: 57347
B97: GUNDERSHOFFEN | C97: 70
B98: HAGONDANGE | C98: 57348
B99: HAGUENAU HOUBLON | C99: 60
B100: HAYANGE | C100: 57350
B101: HETTANGE GRANDE | C101: 57352
B102: HOCHFELDEN | C102: 92
B103: HOERDT | C103: 41
B104: HORBOURG WIHR | C104: 141
B105: ILLKIRCH CENTRE | C105: 7
B106: ILLZACH | C106: 184
B107: INGERSHEIM | C107: 139
B108: INGWILLER | C108: 85
B109: JARNY | C109: 54355
B110: JARVILLE LA MALGRANGE | C110: 54356
B111: JOEUF | C111: 54357
B112: JOINVILLE | C112: 51154
B113: KAYSERSBERG | C113: 152
B114: LA CHAPELLE ST LUC | C114: 10523
B115: LA WANTZENAU | C115: 33
B116: LANGRES | C116: 10541
B117: LAXOU ARISTIDE BRIAND | C117: 54381
B118: LAXOU SAPINIERE | C118: 54376
B119: LE THILLOT | C119: 88386
B120: LE VAL D AJOL | C120: 88396
B121: LIGNY EN BARROIS | C121: 55406
B122: LINGOLSHEIM | C122: 15
B123: LONGUYON | C123: 54412
B124: LONGWY BAS | C124: 54413
B125: LONGWY HAUT | C125: 54414
B126: LUDRES | C126: 54416
B127: LUNEVILLE CARNOT | C127: 54426
B128: MAIZIERES LES METZ | C128: 57432
B129: MARANGE SILVANGE | C129: 57433
B130: MARCKOLSHEIM | C130: 109
B131: MARLENHEIM | C131: 129
B132: MARLY | C132: 57434
B133: MASEVAUX | C133: 196
B134: MERLEBACH | C134: 57435
B135: METZ CATHEDRALE | C135: 57436
B136: METZ MOZART | C136: 57440
B137: METZ PLAPPEVILLE | C137: 57441
B138: METZ POMPIDOU | C138: 57439
B139: METZ REPUBLIQUE | C139: 57443
B140: METZ SAINT LIVIER | C140: 57445
B141: METZ SAINT LOUIS | C141: 57446
B142: METZ SAINT MAXIMIN | C142: 57447
B143: METZ SARRE | C143: 57437
B144: METZERVISSE | C144: 57449
B145: MIRECOURT | C145: 88451
B146: MOLSHEIM | C146: 116
B147: MON AGENCE | C147: 17
B148: MON BANQUIER EN LIGNE | C148: 57880
B149: MONTIGNY LES METZ | C149: 57453
B150: MONTMEDY | C150: 55456
B151: MONTMIRAIL | C151: 51330
B152: MORHANGE | C152: 57458
B153: MOULINS LES METZ | C153: 57459
B154: MOURMELON LE GRAND | C154: 51115
B155: MOUZON | C155: 8819
B156: MOYENMOUTIER | C156: 88461
B157: MULHOUSE DORNACH | C157: 174
B158: MULHOUSE REUNION | C158: 170
B159: MUNDOLSHEIM | C159: 37
B160: MUNSTER | C160: 143
B161: MUNTZENHEIM | C161: 159
B162: MUTZIG | C162: 126
B163: NANCY ARTEM | C163: 54476
B164: NANCY JEAN JAURES | C164: 54471
B165: NANCY PLACE DOMBASLE | C165: 54481
B166: NANCY POINT CENTRAL | C166: 54486
B167: NANCY SAINT SEBASTIEN | C167: 54491
B168: NANCY TROIS MAISONS | C168: 54496
B169: NEUF BRISACH | C169: 157
B170: NEUFCHATEAU | C170: 88501
B171: NEUNKIRCH | C171: 57503
B172: NIEDERBRONN LES BAINS | C172: 66
B173: NILVANGE | C173: 57508
B174: NOGENT | C174: 10582
B175: NOGENT SUR SEINE | C175: 10570
B176: NOMEXY | C176: 88511
B177: OBERHAUSBERGEN | C177: 38
B178: OBERNAI | C178: 119
B179: ORBEY | C179: 148
B180: PAGNY SUR MOSELLE | C180: 54516
B181: PFAFFENHOFFEN | C181: 67
B182: PFASTATT | C182: 188
B183: PHALSBOURG | C183: 57523
B184: PIENNES | C184: 54525
B185: PIERRY LECLERC | C185: 51361
B186: POMPEY | C186: 54531
B187: PONT A MOUSSON BREUIL | C187: 54533
B188: PONT A MOUSSON CENTRALE | C188: 54535
B189: PULVERSHEIM | C189: 163
B190: PUTTELANGE AUX LACS | C190: 57543
B191: RAMBERVILLERS | C191: 88551
B192: RAON L ETAPE | C192: 88556
B193: REICHSHOFFEN | C193: 68
B194: REICHSTETT | C194: 39
B195: REIMS CENTRE VILLE | C195: 51350
B196: REIMS CHATILLONS | C196: 51310
B197: REIMS EUROPE | C197: 51309
B198: REIMS HIPPODROME | C198: 51305
B199: REIMS HOTEL DE VILLE | C199: 51301
B200: REIMS JEAN JAURES | C200: 51341
B201: REIMS SAINT MARCEAUX | C201: 51306
B202: REIMS SAINT REMI | C202: 51349
... 112 more rows

Sheet Remises libres (hidden)
A2: ='[1]Remises libres'!A2 -> Code Structure Domiciliation | B2: ='[1]Remises libres'!B2 -> DOM Desg Cour Eds | C2: ='[1]Remises libres'!C2 -> DOM Idnt Extr Eds Niv5 | D2: ='[1]Remises libres'!D2 -> DOM Desg Cour Eds Niv5 | E2: ='[1]Remises libres'!E2 -> DOM Idnt Extr Eds Niv6 | F2: ='[1]Remises libres'!F2 -> DOM Desg Cour Eds Niv6 | G2: ='[1]Remises libres'!G2 -> DOM Idnt Extr Eds Niv7 | H2: ='[1]Remises libres'!H2 -> DOM Desg Cour Eds Niv7 | I2: ='[1]Remises libres'!I2 -> Mt Remises
A3: ='[1]Remises libres'!A3 -> 6 | B3: ='[1]Remises libres'!B3 -> STRASBOURG NEUDORF | C3: ='[1]Remises libres'!C3 -> 4006 | D3: ='[1]Remises libres'!D3 -> STRASBOURG NEUDORF | E3: ='[1]Remises libres'!E3 -> 5006 | F3: ='[1]Remises libres'!F3 -> STRASBOURG | G3: ='[1]Remises libres'!G3 -> 262 | H3: ='[1]Remises libres'!H3 -> BAS RHIN | I3: ='[1]Remises libres'!I3 -> 1964.06
A4: ='[1]Remises libres'!A4 -> 7 | B4: ='[1]Remises libres'!B4 -> ILLKIRCH CENTRE | C4: ='[1]Remises libres'!C4 -> 4007 | D4: ='[1]Remises libres'!D4 -> ILLKIRCH CENTRE | E4: ='[1]Remises libres'!E4 -> 5101 | F4: ='[1]Remises libres'!F4 -> SELESTAT | G4: ='[1]Remises libres'!G4 -> 262 | H4: ='[1]Remises libres'!H4 -> BAS RHIN | I4: ='[1]Remises libres'!I4 -> 837.88
A5: ='[1]Remises libres'!A5 -> 8 | B5: ='[1]Remises libres'!B5 -> FEGERSHEIM | C5: ='[1]Remises libres'!C5 -> 4008 | D5: ='[1]Remises libres'!D5 -> FEGERSHEIM | E5: ='[1]Remises libres'!E5 -> 5101 | F5: ='[1]Remises libres'!F5 -> SELESTAT | G5: ='[1]Remises libres'!G5 -> 262 | H5: ='[1]Remises libres'!H5 -> BAS RHIN | I5: ='[1]Remises libres'!I5 -> 574.04
A6: ='[1]Remises libres'!A6 -> 10 | B6: ='[1]Remises libres'!B6 -> STRASBOURG MEINAU | C6: ='[1]Remises libres'!C6 -> 4010 | D6: ='[1]Remises libres'!D6 -> STRASBOURG MEINAU | E6: ='[1]Remises libres'!E6 -> 5006 | F6: ='[1]Remises libres'!F6 -> STRASBOURG | G6: ='[1]Remises libres'!G6 -> 262 | H6: ='[1]Remises libres'!H6 -> BAS RHIN | I6: ='[1]Remises libres'!I6 -> 1371.28
A7: ='[1]Remises libres'!A7 -> 12 | B7: ='[1]Remises libres'!B7 -> STRASBOURG STOCKFELD | C7: ='[1]Remises libres'!C7 -> 4006 | D7: ='[1]Remises libres'!D7 -> STRASBOURG NEUDORF | E7: ='[1]Remises libres'!E7 -> 5006 | F7: ='[1]Remises libres'!F7 -> STRASBOURG | G7: ='[1]Remises libres'!G7 -> 262 | H7: ='[1]Remises libres'!H7 -> BAS RHIN | I7: ='[1]Remises libres'!I7 -> 502.34
A8: ='[1]Remises libres'!A8 -> 14 | B8: ='[1]Remises libres'!B8 -> OSTWALD | C8: ='[1]Remises libres'!C8 -> 4015 | D8: ='[1]Remises libres'!D8 -> LINGOLSHEIM | E8: ='[1]Remises libres'!E8 -> 5101 | F8: ='[1]Remises libres'!F8 -> SELESTAT | G8: ='[1]Remises libres'!G8 -> 262 | H8: ='[1]Remises libres'!H8 -> BAS RHIN | I8: ='[1]Remises libres'!I8 -> 0
A9: ='[1]Remises libres'!A9 -> 15 | B9: ='[1]Remises libres'!B9 -> LINGOLSHEIM | C9: ='[1]Remises libres'!C9 -> 4015 | D9: ='[1]Remises libres'!D9 -> LINGOLSHEIM | E9: ='[1]Remises libres'!E9 -> 5101 | F9: ='[1]Remises libres'!F9 -> SELESTAT | G9: ='[1]Remises libres'!G9 -> 262 | H9: ='[1]Remises libres'!H9 -> BAS RHIN | I9: ='[1]Remises libres'!I9 -> 131.02
A10: ='[1]Remises libres'!A10 -> 17 | B10: ='[1]Remises libres'!B10 -> MON AGENCE | C10: ='[1]Remises libres'!C10 -> 4017 | D10: ='[1]Remises libres'!D10 -> MON AGENCE | E10: ='[1]Remises libres'!E10 -> 5017 | F10: ='[1]Remises libres'!F10 -> MON AGENCE | G10: ='[1]Remises libres'!G10 -> 269 | H10: ='[1]Remises libres'!H10 -> BANQUE DIGITALE | I10: ='[1]Remises libres'!I10 -> 1880.21
A11: ='[1]Remises libres'!A11 -> 18 | B11: ='[1]Remises libres'!B11 -> ESPACE MESANGE | C11: ='[1]Remises libres'!C11 -> 4043 | D11: ='[1]Remises libres'!D11 -> STRASBOURG HALLES | E11: ='[1]Remises libres'!E11 -> 5006 | F11: ='[1]Remises libres'!F11 -> STRASBOURG | G11: ='[1]Remises libres'!G11 -> 262 | H11: ='[1]Remises libres'!H11 -> BAS RHIN | I11: ='[1]Remises libres'!I11 -> 2411.07
A12: ='[1]Remises libres'!A12 -> 19 | B12: ='[1]Remises libres'!B12 -> STRASBOURG ANVERS | C12: ='[1]Remises libres'!C12 -> 4019 | D12: ='[1]Remises libres'!D12 -> STRASBOURG ANVERS | E12: ='[1]Remises libres'!E12 -> 5006 | F12: ='[1]Remises libres'!F12 -> STRASBOURG | G12: ='[1]Remises libres'!G12 -> 262 | H12: ='[1]Remises libres'!H12 -> BAS RHIN | I12: ='[1]Remises libres'!I12 -> 3868.39
A13: ='[1]Remises libres'!A13 -> 20 | B13: ='[1]Remises libres'!B13 -> STRASBOURG ROBERTSAU | C13: ='[1]Remises libres'!C13 -> 4020 | D13: ='[1]Remises libres'!D13 -> STRASBOURG ROBERTSAU | E13: ='[1]Remises libres'!E13 -> 5006 | F13: ='[1]Remises libres'!F13 -> STRASBOURG | G13: ='[1]Remises libres'!G13 -> 262 | H13: ='[1]Remises libres'!H13 -> BAS RHIN | I13: ='[1]Remises libres'!I13 -> 2617.26
A14: ='[1]Remises libres'!A14 -> 23 | B14: ='[1]Remises libres'!B14 -> STRASBOURG VOSGES | C14: ='[1]Remises libres'!C14 -> 4023 | D14: ='[1]Remises libres'!D14 -> STRASBOURG VOSGES | E14: ='[1]Remises libres'!E14 -> 5006 | F14: ='[1]Remises libres'!F14 -> STRASBOURG | G14: ='[1]Remises libres'!G14 -> 262 | H14: ='[1]Remises libres'!H14 -> BAS RHIN | I14: ='[1]Remises libres'!I14 -> 523.14
A15: ='[1]Remises libres'!A15 -> 24 | B15: ='[1]Remises libres'!B15 -> STRASBOURG AUSTERLITZ | C15: ='[1]Remises libres'!C15 -> 4024 | D15: ='[1]Remises libres'!D15 -> STRASBOURG AUSTERLITZ | E15: ='[1]Remises libres'!E15 -> 5006 | F15: ='[1]Remises libres'!F15 -> STRASBOURG | G15: ='[1]Remises libres'!G15 -> 262 | H15: ='[1]Remises libres'!H15 -> BAS RHIN | I15: ='[1]Remises libres'!I15 -> 2047.09
A16: ='[1]Remises libres'!A16 -> 25 | B16: ='[1]Remises libres'!B16 -> STRASBOURG ESPLANADE | C16: ='[1]Remises libres'!C16 -> 4026 | D16: ='[1]Remises libres'!D16 -> STRASBOURG DANUBE | E16: ='[1]Remises libres'!E16 -> 5006 | F16: ='[1]Remises libres'!F16 -> STRASBOURG | G16: ='[1]Remises libres'!G16 -> 262 | H16: ='[1]Remises libres'!H16 -> BAS RHIN | I16: ='[1]Remises libres'!I16 -> 2004.74
A17: ='[1]Remises libres'!A17 -> 26 | B17: ='[1]Remises libres'!B17 -> STRASBOURG DANUBE | C17: ='[1]Remises libres'!C17 -> 4026 | D17: ='[1]Remises libres'!D17 -> STRASBOURG DANUBE | E17: ='[1]Remises libres'!E17 -> 5006 | F17: ='[1]Remises libres'!F17 -> STRASBOURG | G17: ='[1]Remises libres'!G17 -> 262 | H17: ='[1]Remises libres'!H17 -> BAS RHIN | I17: ='[1]Remises libres'!I17 -> 839.48
A18: ='[1]Remises libres'!A18 -> 27 | B18: ='[1]Remises libres'!B18 -> SCHILTIGHEIM CENTRE | C18: ='[1]Remises libres'!C18 -> 4027 | D18: ='[1]Remises libres'!D18 -> SCHILTIGHEIM CENTRE | E18: ='[1]Remises libres'!E18 -> 5006 | F18: ='[1]Remises libres'!F18 -> STRASBOURG | G18: ='[1]Remises libres'!G18 -> 262 | H18: ='[1]Remises libres'!H18 -> BAS RHIN | I18: ='[1]Remises libres'!I18 -> 1521.96
A19: ='[1]Remises libres'!A19 -> 28 | B19: ='[1]Remises libres'!B19 -> BISCHHEIM | C19: ='[1]Remises libres'!C19 -> 4028 | D19: ='[1]Remises libres'!D19 -> BISCHHEIM | E19: ='[1]Remises libres'!E19 -> 5006 | F19: ='[1]Remises libres'!F19 -> STRASBOURG | G19: ='[1]Remises libres'!G19 -> 262 | H19: ='[1]Remises libres'!H19 -> BAS RHIN | I19: ='[1]Remises libres'!I19 -> 1212.34
A20: ='[1]Remises libres'!A20 -> 29 | B20: ='[1]Remises libres'!B20 -> SCHILTIGHEIM KLEBER | C20: ='[1]Remises libres'!C20 -> 4029 | D20: ='[1]Remises libres'!D20 -> SCHILTIGHEIM KLEBER | E20: ='[1]Remises libres'!E20 -> 5006 | F20: ='[1]Remises libres'!F20 -> STRASBOURG | G20: ='[1]Remises libres'!G20 -> 262 | H20: ='[1]Remises libres'!H20 -> BAS RHIN | I20: ='[1]Remises libres'!I20 -> 1761.77
A21: ='[1]Remises libres'!A21 -> 30 | B21: ='[1]Remises libres'!B21 -> BRUMATH | C21: ='[1]Remises libres'!C21 -> 4030 | D21: ='[1]Remises libres'!D21 -> BRUMATH | E21: ='[1]Remises libres'!E21 -> 5060 | F21: ='[1]Remises libres'!F21 -> HAGUENAU | G21: ='[1]Remises libres'!G21 -> 262 | H21: ='[1]Remises libres'!H21 -> BAS RHIN | I21: ='[1]Remises libres'!I21 -> 1738.61
A22: ='[1]Remises libres'!A22 -> 31 | B22: ='[1]Remises libres'!B22 -> TRUCHTERSHEIM | C22: ='[1]Remises libres'!C22 -> 4031 | D22: ='[1]Remises libres'!D22 -> TRUCHTERSHEIM | E22: ='[1]Remises libres'!E22 -> 5060 | F22: ='[1]Remises libres'!F22 -> HAGUENAU | G22: ='[1]Remises libres'!G22 -> 262 | H22: ='[1]Remises libres'!H22 -> BAS RHIN | I22: ='[1]Remises libres'!I22 -> 815
A23: ='[1]Remises libres'!A23 -> 33 | B23: ='[1]Remises libres'!B23 -> LA WANTZENAU | C23: ='[1]Remises libres'!C23 -> 4020 | D23: ='[1]Remises libres'!D23 -> STRASBOURG ROBERTSAU | E23: ='[1]Remises libres'!E23 -> 5006 | F23: ='[1]Remises libres'!F23 -> STRASBOURG | G23: ='[1]Remises libres'!G23 -> 262 | H23: ='[1]Remises libres'!H23 -> BAS RHIN | I23: ='[1]Remises libres'!I23 -> 811.14
A24: ='[1]Remises libres'!A24 -> 34 | B24: ='[1]Remises libres'!B24 -> VENDENHEIM | C24: ='[1]Remises libres'!C24 -> 4037 | D24: ='[1]Remises libres'!D24 -> MUNDOLSHEIM | E24: ='[1]Remises libres'!E24 -> 5006 | F24: ='[1]Remises libres'!F24 -> STRASBOURG | G24: ='[1]Remises libres'!G24 -> 262 | H24: ='[1]Remises libres'!H24 -> BAS RHIN | I24: ='[1]Remises libres'!I24 -> 1734.82
A25: ='[1]Remises libres'!A25 -> 37 | B25: ='[1]Remises libres'!B25 -> MUNDOLSHEIM | C25: ='[1]Remises libres'!C25 -> 4037 | D25: ='[1]Remises libres'!D25 -> MUNDOLSHEIM | E25: ='[1]Remises libres'!E25 -> 5006 | F25: ='[1]Remises libres'!F25 -> STRASBOURG | G25: ='[1]Remises libres'!G25 -> 262 | H25: ='[1]Remises libres'!H25 -> BAS RHIN | I25: ='[1]Remises libres'!I25 -> 845.87
A26: ='[1]Remises libres'!A26 -> 38 | B26: ='[1]Remises libres'!B26 -> OBERHAUSBERGEN | C26: ='[1]Remises libres'!C26 -> 4038 | D26: ='[1]Remises libres'!D26 -> OBERHAUSBERGEN | E26: ='[1]Remises libres'!E26 -> 5006 | F26: ='[1]Remises libres'!F26 -> STRASBOURG | G26: ='[1]Remises libres'!G26 -> 262 | H26: ='[1]Remises libres'!H26 -> BAS RHIN | I26: ='[1]Remises libres'!I26 -> 688
A27: ='[1]Remises libres'!A27 -> 39 | B27: ='[1]Remises libres'!B27 -> REICHSTETT | C27: ='[1]Remises libres'!C27 -> 4039 | D27: ='[1]Remises libres'!D27 -> REICHSTETT | E27: ='[1]Remises libres'!E27 -> 5006 | F27: ='[1]Remises libres'!F27 -> STRASBOURG | G27: ='[1]Remises libres'!G27 -> 262 | H27: ='[1]Remises libres'!H27 -> BAS RHIN | I27: ='[1]Remises libres'!I27 -> 638.27
A28: ='[1]Remises libres'!A28 -> 40 | B28: ='[1]Remises libres'!B28 -> ECKBOLSHEIM | C28: ='[1]Remises libres'!C28 -> 4038 | D28: ='[1]Remises libres'!D28 -> OBERHAUSBERGEN | E28: ='[1]Remises libres'!E28 -> 5006 | F28: ='[1]Remises libres'!F28 -> STRASBOURG | G28: ='[1]Remises libres'!G28 -> 262 | H28: ='[1]Remises libres'!H28 -> BAS RHIN | I28: ='[1]Remises libres'!I28 -> 478.07
A29: ='[1]Remises libres'!A29 -> 41 | B29: ='[1]Remises libres'!B29 -> HOERDT | C29: ='[1]Remises libres'!C29 -> 4041 | D29: ='[1]Remises libres'!D29 -> HOERDT | E29: ='[1]Remises libres'!E29 -> 5060 | F29: ='[1]Remises libres'!F29 -> HAGUENAU | G29: ='[1]Remises libres'!G29 -> 262 | H29: ='[1]Remises libres'!H29 -> BAS RHIN | I29: ='[1]Remises libres'!I29 -> 1233.18
A30: ='[1]Remises libres'!A30 -> 43 | B30: ='[1]Remises libres'!B30 -> STRASBOURG HALLES | C30: ='[1]Remises libres'!C30 -> 4043 | D30: ='[1]Remises libres'!D30 -> STRASBOURG HALLES | E30: ='[1]Remises libres'!E30 -> 5006 | F30: ='[1]Remises libres'!F30 -> STRASBOURG | G30: ='[1]Remises libres'!G30 -> 262 | H30: ='[1]Remises libres'!H30 -> BAS RHIN | I30: ='[1]Remises libres'!I30 -> 3089.56
A31: ='[1]Remises libres'!A31 -> 45 | B31: ='[1]Remises libres'!B31 -> STRASBOURG FRANCS BOURGEOIS | C31: ='[1]Remises libres'!C31 -> 4045 | D31: ='[1]Remises libres'!D31 -> STRASBOURG FRANCS BOURGEOIS | E31: ='[1]Remises libres'!E31 -> 5006 | F31: ='[1]Remises libres'!F31 -> STRASBOURG | G31: ='[1]Remises libres'!G31 -> 262 | H31: ='[1]Remises libres'!H31 -> BAS RHIN | I31: ='[1]Remises libres'!I31 -> 3203.25
A32: ='[1]Remises libres'!A32 -> 47 | B32: ='[1]Remises libres'!B32 -> STRASBOURG CRONENBOURG | C32: ='[1]Remises libres'!C32 -> 4047 | D32: ='[1]Remises libres'!D32 -> STRASBOURG CRONENBOURG | E32: ='[1]Remises libres'!E32 -> 5006 | F32: ='[1]Remises libres'!F32 -> STRASBOURG | G32: ='[1]Remises libres'!G32 -> 262 | H32: ='[1]Remises libres'!H32 -> BAS RHIN | I32: ='[1]Remises libres'!I32 -> 2762.27
A33: ='[1]Remises libres'!A33 -> 48 | B33: ='[1]Remises libres'!B33 -> STRASBOURG KOENIGSHOFFEN | C33: ='[1]Remises libres'!C33 -> 4048 | D33: ='[1]Remises libres'!D33 -> STRASBOURG KOENIGSHOFFEN | E33: ='[1]Remises libres'!E33 -> 5006 | F33: ='[1]Remises libres'!F33 -> STRASBOURG | G33: ='[1]Remises libres'!G33 -> 262 | H33: ='[1]Remises libres'!H33 -> BAS RHIN | I33: ='[1]Remises libres'!I33 -> 821
A34: ='[1]Remises libres'!A34 -> 54 | B34: ='[1]Remises libres'!B34 -> STRASBOURG MONTAGNE VERTE | C34: ='[1]Remises libres'!C34 -> 4054 | D34: ='[1]Remises libres'!D34 -> STRASBOURG MONTAGNE VERTE | E34: ='[1]Remises libres'!E34 -> 5006 | F34: ='[1]Remises libres'!F34 -> STRASBOURG | G34: ='[1]Remises libres'!G34 -> 262 | H34: ='[1]Remises libres'!H34 -> BAS RHIN | I34: ='[1]Remises libres'!I34 -> 1230.93
A35: ='[1]Remises libres'!A35 -> 57 | B35: ='[1]Remises libres'!B35 -> BISCHWILLER | C35: ='[1]Remises libres'!C35 -> 4057 | D35: ='[1]Remises libres'!D35 -> BISCHWILLER | E35: ='[1]Remises libres'!E35 -> 5060 | F35: ='[1]Remises libres'!F35 -> HAGUENAU | G35: ='[1]Remises libres'!G35 -> 262 | H35: ='[1]Remises libres'!H35 -> BAS RHIN | I35: ='[1]Remises libres'!I35 -> 1890.08
A36: ='[1]Remises libres'!A36 -> 58 | B36: ='[1]Remises libres'!B36 -> DRUSENHEIM | C36: ='[1]Remises libres'!C36 -> 4057 | D36: ='[1]Remises libres'!D36 -> BISCHWILLER | E36: ='[1]Remises libres'!E36 -> 5060 | F36: ='[1]Remises libres'!F36 -> HAGUENAU | G36: ='[1]Remises libres'!G36 -> 262 | H36: ='[1]Remises libres'!H36 -> BAS RHIN | I36: ='[1]Remises libres'!I36 -> 506.23
A37: ='[1]Remises libres'!A37 -> 60 | B37: ='[1]Remises libres'!B37 -> HAGUENAU HOUBLON | C37: ='[1]Remises libres'!C37 -> 4060 | D37: ='[1]Remises libres'!D37 -> HAGUENAU HOUBLON | E37: ='[1]Remises libres'!E37 -> 5060 | F37: ='[1]Remises libres'!F37 -> HAGUENAU | G37: ='[1]Remises libres'!G37 -> 262 | H37: ='[1]Remises libres'!H37 -> BAS RHIN | I37: ='[1]Remises libres'!I37 -> 2898.19
A38: ='[1]Remises libres'!A38 -> 66 | B38: ='[1]Remises libres'!B38 -> NIEDERBRONN LES BAINS | C38: ='[1]Remises libres'!C38 -> 4066 | D38: ='[1]Remises libres'!D38 -> NIEDERBRONN LES BAINS | E38: ='[1]Remises libres'!E38 -> 5060 | F38: ='[1]Remises libres'!F38 -> HAGUENAU | G38: ='[1]Remises libres'!G38 -> 262 | H38: ='[1]Remises libres'!H38 -> BAS RHIN | I38: ='[1]Remises libres'!I38 -> 241.87
A39: ='[1]Remises libres'!A39 -> 67 | B39: ='[1]Remises libres'!B39 -> PFAFFENHOFFEN | C39: ='[1]Remises libres'!C39 -> 4067 | D39: ='[1]Remises libres'!D39 -> PFAFFENHOFFEN | E39: ='[1]Remises libres'!E39 -> 5060 | F39: ='[1]Remises libres'!F39 -> HAGUENAU | G39: ='[1]Remises libres'!G39 -> 262 | H39: ='[1]Remises libres'!H39 -> BAS RHIN | I39: ='[1]Remises libres'!I39 -> 1345
A40: ='[1]Remises libres'!A40 -> 68 | B40: ='[1]Remises libres'!B40 -> REICHSHOFFEN | C40: ='[1]Remises libres'!C40 -> 4066 | D40: ='[1]Remises libres'!D40 -> NIEDERBRONN LES BAINS | E40: ='[1]Remises libres'!E40 -> 5060 | F40: ='[1]Remises libres'!F40 -> HAGUENAU | G40: ='[1]Remises libres'!G40 -> 262 | H40: ='[1]Remises libres'!H40 -> BAS RHIN | I40: ='[1]Remises libres'!I40 -> 348.15
A41: ='[1]Remises libres'!A41 -> 70 | B41: ='[1]Remises libres'!B41 -> GUNDERSHOFFEN | C41: ='[1]Remises libres'!C41 -> 4066 | D41: ='[1]Remises libres'!D41 -> NIEDERBRONN LES BAINS | E41: ='[1]Remises libres'!E41 -> 5060 | F41: ='[1]Remises libres'!F41 -> HAGUENAU | G41: ='[1]Remises libres'!G41 -> 262 | H41: ='[1]Remises libres'!H41 -> BAS RHIN | I41: ='[1]Remises libres'!I41 -> 291.5
A42: ='[1]Remises libres'!A42 -> 71 | B42: ='[1]Remises libres'!B42 -> WISSEMBOURG | C42: ='[1]Remises libres'!C42 -> 4071 | D42: ='[1]Remises libres'!D42 -> WISSEMBOURG | E42: ='[1]Remises libres'!E42 -> 5060 | F42: ='[1]Remises libres'!F42 -> HAGUENAU | G42: ='[1]Remises libres'!G42 -> 262 | H42: ='[1]Remises libres'!H42 -> BAS RHIN | I42: ='[1]Remises libres'!I42 -> 1951.49
A43: ='[1]Remises libres'!A43 -> 73 | B43: ='[1]Remises libres'!B43 -> SCHWEIGHOUSE SUR MODER | C43: ='[1]Remises libres'!C43 -> 4060 | D43: ='[1]Remises libres'!D43 -> HAGUENAU HOUBLON | E43: ='[1]Remises libres'!E43 -> 5060 | F43: ='[1]Remises libres'!F43 -> HAGUENAU | G43: ='[1]Remises libres'!G43 -> 262 | H43: ='[1]Remises libres'!H43 -> BAS RHIN | I43: ='[1]Remises libres'!I43 -> 1165.11
A44: ='[1]Remises libres'!A44 -> 74 | B44: ='[1]Remises libres'!B44 -> SOUFFLENHEIM | C44: ='[1]Remises libres'!C44 -> 4057 | D44: ='[1]Remises libres'!D44 -> BISCHWILLER | E44: ='[1]Remises libres'!E44 -> 5060 | F44: ='[1]Remises libres'!F44 -> HAGUENAU | G44: ='[1]Remises libres'!G44 -> 262 | H44: ='[1]Remises libres'!H44 -> BAS RHIN | I44: ='[1]Remises libres'!I44 -> 74.22
A45: ='[1]Remises libres'!A45 -> 76 | B45: ='[1]Remises libres'!B45 -> BETSCHDORF | C45: ='[1]Remises libres'!C45 -> 4071 | D45: ='[1]Remises libres'!D45 -> WISSEMBOURG | E45: ='[1]Remises libres'!E45 -> 5060 | F45: ='[1]Remises libres'!F45 -> HAGUENAU | G45: ='[1]Remises libres'!G45 -> 262 | H45: ='[1]Remises libres'!H45 -> BAS RHIN | I45: ='[1]Remises libres'!I45 -> 222.26
A46: ='[1]Remises libres'!A46 -> 77 | B46: ='[1]Remises libres'!B46 -> SELTZ | C46: ='[1]Remises libres'!C46 -> 4071 | D46: ='[1]Remises libres'!D46 -> WISSEMBOURG | E46: ='[1]Remises libres'!E46 -> 5060 | F46: ='[1]Remises libres'!F46 -> HAGUENAU | G46: ='[1]Remises libres'!G46 -> 262 | H46: ='[1]Remises libres'!H46 -> BAS RHIN | I46: ='[1]Remises libres'!I46 -> 1182.4
A47: ='[1]Remises libres'!A47 -> 79 | B47: ='[1]Remises libres'!B47 -> SOULTZ SOUS FORETS | C47: ='[1]Remises libres'!C47 -> 4079 | D47: ='[1]Remises libres'!D47 -> SOULTZ SOUS FORETS | E47: ='[1]Remises libres'!E47 -> 5060 | F47: ='[1]Remises libres'!F47 -> HAGUENAU | G47: ='[1]Remises libres'!G47 -> 262 | H47: ='[1]Remises libres'!H47 -> BAS RHIN | I47: ='[1]Remises libres'!I47 -> 942.64
A48: ='[1]Remises libres'!A48 -> 80 | B48: ='[1]Remises libres'!B48 -> WOERTH | C48: ='[1]Remises libres'!C48 -> 4080 | D48: ='[1]Remises libres'!D48 -> WOERTH | E48: ='[1]Remises libres'!E48 -> 5060 | F48: ='[1]Remises libres'!F48 -> HAGUENAU | G48: ='[1]Remises libres'!G48 -> 262 | H48: ='[1]Remises libres'!H48 -> BAS RHIN | I48: ='[1]Remises libres'!I48 -> 90.29
A49: ='[1]Remises libres'!A49 -> 82 | B49: ='[1]Remises libres'!B49 -> BOUXWILLER | C49: ='[1]Remises libres'!C49 -> 4082 | D49: ='[1]Remises libres'!D49 -> BOUXWILLER | E49: ='[1]Remises libres'!E49 -> 5060 | F49: ='[1]Remises libres'!F49 -> HAGUENAU | G49: ='[1]Remises libres'!G49 -> 262 | H49: ='[1]Remises libres'!H49 -> BAS RHIN | I49: ='[1]Remises libres'!I49 -> 1811.07
A50: ='[1]Remises libres'!A50 -> 85 | B50: ='[1]Remises libres'!B50 -> INGWILLER | C50: ='[1]Remises libres'!C50 -> 4085 | D50: ='[1]Remises libres'!D50 -> INGWILLER | E50: ='[1]Remises libres'!E50 -> 5060 | F50: ='[1]Remises libres'!F50 -> HAGUENAU | G50: ='[1]Remises libres'!G50 -> 262 | H50: ='[1]Remises libres'!H50 -> BAS RHIN | I50: ='[1]Remises libres'!I50 -> 1516.64
A51: ='[1]Remises libres'!A51 -> 86 | B51: ='[1]Remises libres'!B51 -> WINGEN SUR MODER | C51: ='[1]Remises libres'!C51 -> 4085 | D51: ='[1]Remises libres'!D51 -> INGWILLER | E51: ='[1]Remises libres'!E51 -> 5060 | F51: ='[1]Remises libres'!F51 -> HAGUENAU | G51: ='[1]Remises libres'!G51 -> 262 | H51: ='[1]Remises libres'!H51 -> BAS RHIN | I51: ='[1]Remises libres'!I51 -> 0
A52: ='[1]Remises libres'!A52 -> 87 | B52: ='[1]Remises libres'!B52 -> SAVERNE | C52: ='[1]Remises libres'!C52 -> 4087 | D52: ='[1]Remises libres'!D52 -> SAVERNE | E52: ='[1]Remises libres'!E52 -> 5060 | F52: ='[1]Remises libres'!F52 -> HAGUENAU | G52: ='[1]Remises libres'!G52 -> 262 | H52: ='[1]Remises libres'!H52 -> BAS RHIN | I52: ='[1]Remises libres'!I52 -> 8249.26
A53: ='[1]Remises libres'!A53 -> 92 | B53: ='[1]Remises libres'!B53 -> HOCHFELDEN | C53: ='[1]Remises libres'!C53 -> 4092 | D53: ='[1]Remises libres'!D53 -> HOCHFELDEN | E53: ='[1]Remises libres'!E53 -> 5060 | F53: ='[1]Remises libres'!F53 -> HAGUENAU | G53: ='[1]Remises libres'!G53 -> 262 | H53: ='[1]Remises libres'!H53 -> BAS RHIN | I53: ='[1]Remises libres'!I53 -> 307.67
A54: ='[1]Remises libres'!A54 -> 93 | B54: ='[1]Remises libres'!B54 -> MARMOUTIER | C54: ='[1]Remises libres'!C54 -> 4087 | D54: ='[1]Remises libres'!D54 -> SAVERNE | E54: ='[1]Remises libres'!E54 -> 5060 | F54: ='[1]Remises libres'!F54 -> HAGUENAU | G54: ='[1]Remises libres'!G54 -> 262 | H54: ='[1]Remises libres'!H54 -> BAS RHIN | I54: ='[1]Remises libres'!I54 -> 0
A55: ='[1]Remises libres'!A55 -> 95 | B55: ='[1]Remises libres'!B55 -> SARRE UNION | C55: ='[1]Remises libres'!C55 -> 4095 | D55: ='[1]Remises libres'!D55 -> SARRE UNION | E55: ='[1]Remises libres'!E55 -> 5060 | F55: ='[1]Remises libres'!F55 -> HAGUENAU | G55: ='[1]Remises libres'!G55 -> 262 | H55: ='[1]Remises libres'!H55 -> BAS RHIN | I55: ='[1]Remises libres'!I55 -> 698.63
A56: ='[1]Remises libres'!A56 -> 101 | B56: ='[1]Remises libres'!B56 -> SELESTAT CENTRE | C56: ='[1]Remises libres'!C56 -> 4101 | D56: ='[1]Remises libres'!D56 -> SELESTAT CENTRE | E56: ='[1]Remises libres'!E56 -> 5101 | F56: ='[1]Remises libres'!F56 -> SELESTAT | G56: ='[1]Remises libres'!G56 -> 262 | H56: ='[1]Remises libres'!H56 -> BAS RHIN | I56: ='[1]Remises libres'!I56 -> 1075.78
A57: ='[1]Remises libres'!A57 -> 104 | B57: ='[1]Remises libres'!B57 -> ERSTEIN | C57: ='[1]Remises libres'!C57 -> 4104 | D57: ='[1]Remises libres'!D57 -> ERSTEIN | E57: ='[1]Remises libres'!E57 -> 5101 | F57: ='[1]Remises libres'!F57 -> SELESTAT | G57: ='[1]Remises libres'!G57 -> 262 | H57: ='[1]Remises libres'!H57 -> BAS RHIN | I57: ='[1]Remises libres'!I57 -> 770.44
A58: ='[1]Remises libres'!A58 -> 107 | B58: ='[1]Remises libres'!B58 -> VILLE | C58: ='[1]Remises libres'!C58 -> 4107 | D58: ='[1]Remises libres'!D58 -> VILLE | E58: ='[1]Remises libres'!E58 -> 5101 | F58: ='[1]Remises libres'!F58 -> SELESTAT | G58: ='[1]Remises libres'!G58 -> 262 | H58: ='[1]Remises libres'!H58 -> BAS RHIN | I58: ='[1]Remises libres'!I58 -> 249.6
A59: ='[1]Remises libres'!A59 -> 108 | B59: ='[1]Remises libres'!B59 -> CHATENOIS | C59: ='[1]Remises libres'!C59 -> 4101 | D59: ='[1]Remises libres'!D59 -> SELESTAT CENTRE | E59: ='[1]Remises libres'!E59 -> 5101 | F59: ='[1]Remises libres'!F59 -> SELESTAT | G59: ='[1]Remises libres'!G59 -> 262 | H59: ='[1]Remises libres'!H59 -> BAS RHIN | I59: ='[1]Remises libres'!I59 -> 266.53
A60: ='[1]Remises libres'!A60 -> 109 | B60: ='[1]Remises libres'!B60 -> MARCKOLSHEIM | C60: ='[1]Remises libres'!C60 -> 4109 | D60: ='[1]Remises libres'!D60 -> MARCKOLSHEIM | E60: ='[1]Remises libres'!E60 -> 5101 | F60: ='[1]Remises libres'!F60 -> SELESTAT | G60: ='[1]Remises libres'!G60 -> 262 | H60: ='[1]Remises libres'!H60 -> BAS RHIN | I60: ='[1]Remises libres'!I60 -> 1669.36
A61: ='[1]Remises libres'!A61 -> 111 | B61: ='[1]Remises libres'!B61 -> BENFELD | C61: ='[1]Remises libres'!C61 -> 4111 | D61: ='[1]Remises libres'!D61 -> BENFELD | E61: ='[1]Remises libres'!E61 -> 5101 | F61: ='[1]Remises libres'!F61 -> SELESTAT | G61: ='[1]Remises libres'!G61 -> 262 | H61: ='[1]Remises libres'!H61 -> BAS RHIN | I61: ='[1]Remises libres'!I61 -> 1395.6
A62: ='[1]Remises libres'!A62 -> 113 | B62: ='[1]Remises libres'!B62 -> BARR | C62: ='[1]Remises libres'!C62 -> 4113 | D62: ='[1]Remises libres'!D62 -> BARR | E62: ='[1]Remises libres'!E62 -> 5101 | F62: ='[1]Remises libres'!F62 -> SELESTAT | G62: ='[1]Remises libres'!G62 -> 262 | H62: ='[1]Remises libres'!H62 -> BAS RHIN | I62: ='[1]Remises libres'!I62 -> 50
A63: ='[1]Remises libres'!A63 -> 116 | B63: ='[1]Remises libres'!B63 -> MOLSHEIM | C63: ='[1]Remises libres'!C63 -> 4116 | D63: ='[1]Remises libres'!D63 -> MOLSHEIM | E63: ='[1]Remises libres'!E63 -> 5101 | F63: ='[1]Remises libres'!F63 -> SELESTAT | G63: ='[1]Remises libres'!G63 -> 262 | H63: ='[1]Remises libres'!H63 -> BAS RHIN | I63: ='[1]Remises libres'!I63 -> 1478.31
A64: ='[1]Remises libres'!A64 -> 119 | B64: ='[1]Remises libres'!B64 -> OBERNAI | C64: ='[1]Remises libres'!C64 -> 4119 | D64: ='[1]Remises libres'!D64 -> OBERNAI | E64: ='[1]Remises libres'!E64 -> 5101 | F64: ='[1]Remises libres'!F64 -> SELESTAT | G64: ='[1]Remises libres'!G64 -> 262 | H64: ='[1]Remises libres'!H64 -> BAS RHIN | I64: ='[1]Remises libres'!I64 -> 554.74
A65: ='[1]Remises libres'!A65 -> 120 | B65: ='[1]Remises libres'!B65 -> WASSELONNE | C65: ='[1]Remises libres'!C65 -> 4120 | D65: ='[1]Remises libres'!D65 -> WASSELONNE | E65: ='[1]Remises libres'!E65 -> 5101 | F65: ='[1]Remises libres'!F65 -> SELESTAT | G65: ='[1]Remises libres'!G65 -> 262 | H65: ='[1]Remises libres'!H65 -> BAS RHIN | I65: ='[1]Remises libres'!I65 -> 1273.21
A66: ='[1]Remises libres'!A66 -> 121 | B66: ='[1]Remises libres'!B66 -> SCHIRMECK | C66: ='[1]Remises libres'!C66 -> 4121 | D66: ='[1]Remises libres'!D66 -> SCHIRMECK | E66: ='[1]Remises libres'!E66 -> 5101 | F66: ='[1]Remises libres'!F66 -> SELESTAT | G66: ='[1]Remises libres'!G66 -> 262 | H66: ='[1]Remises libres'!H66 -> BAS RHIN | I66: ='[1]Remises libres'!I66 -> 585.67
A67: ='[1]Remises libres'!A67 -> 126 | B67: ='[1]Remises libres'!B67 -> MUTZIG | C67: ='[1]Remises libres'!C67 -> 4126 | D67: ='[1]Remises libres'!D67 -> MUTZIG | E67: ='[1]Remises libres'!E67 -> 5101 | F67: ='[1]Remises libres'!F67 -> SELESTAT | G67: ='[1]Remises libres'!G67 -> 262 | H67: ='[1]Remises libres'!H67 -> BAS RHIN | I67: ='[1]Remises libres'!I67 -> 574.26
A68: ='[1]Remises libres'!A68 -> 127 | B68: ='[1]Remises libres'!B68 -> ROSHEIM | C68: ='[1]Remises libres'!C68 -> 4127 | D68: ='[1]Remises libres'!D68 -> ROSHEIM | E68: ='[1]Remises libres'!E68 -> 5101 | F68: ='[1]Remises libres'!F68 -> SELESTAT | G68: ='[1]Remises libres'!G68 -> 262 | H68: ='[1]Remises libres'!H68 -> BAS RHIN | I68: ='[1]Remises libres'!I68 -> 426
A69: ='[1]Remises libres'!A69 -> 129 | B69: ='[1]Remises libres'!B69 -> MARLENHEIM | C69: ='[1]Remises libres'!C69 -> 4120 | D69: ='[1]Remises libres'!D69 -> WASSELONNE | E69: ='[1]Remises libres'!E69 -> 5101 | F69: ='[1]Remises libres'!F69 -> SELESTAT | G69: ='[1]Remises libres'!G69 -> 262 | H69: ='[1]Remises libres'!H69 -> BAS RHIN | I69: ='[1]Remises libres'!I69 -> 170.97
A70: ='[1]Remises libres'!A70 -> 130 | B70: ='[1]Remises libres'!B70 -> COLMAR REPUBLIQUE | C70: ='[1]Remises libres'!C70 -> 4130 | D70: ='[1]Remises libres'!D70 -> COLMAR REPUBLIQUE | E70: ='[1]Remises libres'!E70 -> 5130 | F70: ='[1]Remises libres'!F70 -> COLMAR | G70: ='[1]Remises libres'!G70 -> 264 | H70: ='[1]Remises libres'!H70 -> HAUT RHIN | I70: ='[1]Remises libres'!I70 -> 4349.08
A71: ='[1]Remises libres'!A71 -> 132 | B71: ='[1]Remises libres'!B71 -> COLMAR MARAICHERS | C71: ='[1]Remises libres'!C71 -> 4132 | D71: ='[1]Remises libres'!D71 -> COLMAR MARAICHERS | E71: ='[1]Remises libres'!E71 -> 5130 | F71: ='[1]Remises libres'!F71 -> COLMAR | G71: ='[1]Remises libres'!G71 -> 264 | H71: ='[1]Remises libres'!H71 -> HAUT RHIN | I71: ='[1]Remises libres'!I71 -> 747.38
A72: ='[1]Remises libres'!A72 -> 133 | B72: ='[1]Remises libres'!B72 -> COLMAR VAUBAN | C72: ='[1]Remises libres'!C72 -> 4133 | D72: ='[1]Remises libres'!D72 -> COLMAR VAUBAN | E72: ='[1]Remises libres'!E72 -> 5130 | F72: ='[1]Remises libres'!F72 -> COLMAR | G72: ='[1]Remises libres'!G72 -> 264 | H72: ='[1]Remises libres'!H72 -> HAUT RHIN | I72: ='[1]Remises libres'!I72 -> 0
A73: ='[1]Remises libres'!A73 -> 134 | B73: ='[1]Remises libres'!B73 -> COLMAR SAINT JOSEPH | C73: ='[1]Remises libres'!C73 -> 4134 | D73: ='[1]Remises libres'!D73 -> COLMAR SAINT JOSEPH | E73: ='[1]Remises libres'!E73 -> 5130 | F73: ='[1]Remises libres'!F73 -> COLMAR | G73: ='[1]Remises libres'!G73 -> 264 | H73: ='[1]Remises libres'!H73 -> HAUT RHIN | I73: ='[1]Remises libres'!I73 -> 0
A74: ='[1]Remises libres'!A74 -> 135 | B74: ='[1]Remises libres'!B74 -> COLMAR SAINTE MARIE | C74: ='[1]Remises libres'!C74 -> 4135 | D74: ='[1]Remises libres'!D74 -> COLMAR SAINTE MARIE | E74: ='[1]Remises libres'!E74 -> 5130 | F74: ='[1]Remises libres'!F74 -> COLMAR | G74: ='[1]Remises libres'!G74 -> 264 | H74: ='[1]Remises libres'!H74 -> HAUT RHIN | I74: ='[1]Remises libres'!I74 -> 1791.32
A75: ='[1]Remises libres'!A75 -> 139 | B75: ='[1]Remises libres'!B75 -> INGERSHEIM | C75: ='[1]Remises libres'!C75 -> 4139 | D75: ='[1]Remises libres'!D75 -> INGERSHEIM | E75: ='[1]Remises libres'!E75 -> 5130 | F75: ='[1]Remises libres'!F75 -> COLMAR | G75: ='[1]Remises libres'!G75 -> 264 | H75: ='[1]Remises libres'!H75 -> HAUT RHIN | I75: ='[1]Remises libres'!I75 -> 1663.98
A76: ='[1]Remises libres'!A76 -> 140 | B76: ='[1]Remises libres'!B76 -> WINTZENHEIM | C76: ='[1]Remises libres'!C76 -> 4139 | D76: ='[1]Remises libres'!D76 -> INGERSHEIM | E76: ='[1]Remises libres'!E76 -> 5130 | F76: ='[1]Remises libres'!F76 -> COLMAR | G76: ='[1]Remises libres'!G76 -> 264 | H76: ='[1]Remises libres'!H76 -> HAUT RHIN | I76: ='[1]Remises libres'!I76 -> 311.01
A77: ='[1]Remises libres'!A77 -> 141 | B77: ='[1]Remises libres'!B77 -> HORBOURG WIHR | C77: ='[1]Remises libres'!C77 -> 4141 | D77: ='[1]Remises libres'!D77 -> HORBOURG WIHR | E77: ='[1]Remises libres'!E77 -> 5130 | F77: ='[1]Remises libres'!F77 -> COLMAR | G77: ='[1]Remises libres'!G77 -> 264 | H77: ='[1]Remises libres'!H77 -> HAUT RHIN | I77: ='[1]Remises libres'!I77 -> 3926.31
A78: ='[1]Remises libres'!A78 -> 143 | B78: ='[1]Remises libres'!B78 -> MUNSTER | C78: ='[1]Remises libres'!C78 -> 4143 | D78: ='[1]Remises libres'!D78 -> MUNSTER | E78: ='[1]Remises libres'!E78 -> 5130 | F78: ='[1]Remises libres'!F78 -> COLMAR | G78: ='[1]Remises libres'!G78 -> 264 | H78: ='[1]Remises libres'!H78 -> HAUT RHIN | I78: ='[1]Remises libres'!I78 -> 1485.25
A79: ='[1]Remises libres'!A79 -> 144 | B79: ='[1]Remises libres'!B79 -> RIBEAUVILLE | C79: ='[1]Remises libres'!C79 -> 4144 | D79: ='[1]Remises libres'!D79 -> RIBEAUVILLE | E79: ='[1]Remises libres'!E79 -> 5130 | F79: ='[1]Remises libres'!F79 -> COLMAR | G79: ='[1]Remises libres'!G79 -> 264 | H79: ='[1]Remises libres'!H79 -> HAUT RHIN | I79: ='[1]Remises libres'!I79 -> 12.29
A80: ='[1]Remises libres'!A80 -> 147 | B80: ='[1]Remises libres'!B80 -> GUEBWILLER | C80: ='[1]Remises libres'!C80 -> 4147 | D80: ='[1]Remises libres'!D80 -> GUEBWILLER | E80: ='[1]Remises libres'!E80 -> 5130 | F80: ='[1]Remises libres'!F80 -> COLMAR | G80: ='[1]Remises libres'!G80 -> 264 | H80: ='[1]Remises libres'!H80 -> HAUT RHIN | I80: ='[1]Remises libres'!I80 -> 880.77
A81: ='[1]Remises libres'!A81 -> 148 | B81: ='[1]Remises libres'!B81 -> ORBEY | C81: ='[1]Remises libres'!C81 -> 4148 | D81: ='[1]Remises libres'!D81 -> ORBEY | E81: ='[1]Remises libres'!E81 -> 5130 | F81: ='[1]Remises libres'!F81 -> COLMAR | G81: ='[1]Remises libres'!G81 -> 264 | H81: ='[1]Remises libres'!H81 -> HAUT RHIN | I81: ='[1]Remises libres'!I81 -> 676.26
A82: ='[1]Remises libres'!A82 -> 152 | B82: ='[1]Remises libres'!B82 -> KAYSERSBERG | C82: ='[1]Remises libres'!C82 -> 4148 | D82: ='[1]Remises libres'!D82 -> ORBEY | E82: ='[1]Remises libres'!E82 -> 5130 | F82: ='[1]Remises libres'!F82 -> COLMAR | G82: ='[1]Remises libres'!G82 -> 264 | H82: ='[1]Remises libres'!H82 -> HAUT RHIN | I82: ='[1]Remises libres'!I82 -> 209.41
A83: ='[1]Remises libres'!A83 -> 153 | B83: ='[1]Remises libres'!B83 -> ROUFFACH | C83: ='[1]Remises libres'!C83 -> 4153 | D83: ='[1]Remises libres'!D83 -> ROUFFACH | E83: ='[1]Remises libres'!E83 -> 5130 | F83: ='[1]Remises libres'!F83 -> COLMAR | G83: ='[1]Remises libres'!G83 -> 264 | H83: ='[1]Remises libres'!H83 -> HAUT RHIN | I83: ='[1]Remises libres'!I83 -> 958.15
A84: ='[1]Remises libres'!A84 -> 156 | B84: ='[1]Remises libres'!B84 -> SOULTZMATT | C84: ='[1]Remises libres'!C84 -> 4153 | D84: ='[1]Remises libres'!D84 -> ROUFFACH | E84: ='[1]Remises libres'!E84 -> 5130 | F84: ='[1]Remises libres'!F84 -> COLMAR | G84: ='[1]Remises libres'!G84 -> 264 | H84: ='[1]Remises libres'!H84 -> HAUT RHIN | I84: ='[1]Remises libres'!I84 -> 133
A85: ='[1]Remises libres'!A85 -> 157 | B85: ='[1]Remises libres'!B85 -> NEUF BRISACH | C85: ='[1]Remises libres'!C85 -> 4157 | D85: ='[1]Remises libres'!D85 -> NEUF BRISACH | E85: ='[1]Remises libres'!E85 -> 5130 | F85: ='[1]Remises libres'!F85 -> COLMAR | G85: ='[1]Remises libres'!G85 -> 264 | H85: ='[1]Remises libres'!H85 -> HAUT RHIN | I85: ='[1]Remises libres'!I85 -> 1328.51
A86: ='[1]Remises libres'!A86 -> 159 | B86: ='[1]Remises libres'!B86 -> MUNTZENHEIM | C86: ='[1]Remises libres'!C86 -> 4141 | D86: ='[1]Remises libres'!D86 -> HORBOURG WIHR | E86: ='[1]Remises libres'!E86 -> 5130 | F86: ='[1]Remises libres'!F86 -> COLMAR | G86: ='[1]Remises libres'!G86 -> 264 | H86: ='[1]Remises libres'!H86 -> HAUT RHIN | I86: ='[1]Remises libres'!I86 -> 1998.16
A87: ='[1]Remises libres'!A87 -> 160 | B87: ='[1]Remises libres'!B87 -> SOULTZ | C87: ='[1]Remises libres'!C87 -> 4147 | D87: ='[1]Remises libres'!D87 -> GUEBWILLER | E87: ='[1]Remises libres'!E87 -> 5130 | F87: ='[1]Remises libres'!F87 -> COLMAR | G87: ='[1]Remises libres'!G87 -> 264 | H87: ='[1]Remises libres'!H87 -> HAUT RHIN | I87: ='[1]Remises libres'!I87 -> 974.22
A88: ='[1]Remises libres'!A88 -> 162 | B88: ='[1]Remises libres'!B88 -> ENSISHEIM | C88: ='[1]Remises libres'!C88 -> 4162 | D88: ='[1]Remises libres'!D88 -> ENSISHEIM | E88: ='[1]Remises libres'!E88 -> 5130 | F88: ='[1]Remises libres'!F88 -> COLMAR | G88: ='[1]Remises libres'!G88 -> 264 | H88: ='[1]Remises libres'!H88 -> HAUT RHIN | I88: ='[1]Remises libres'!I88 -> 868.72
A89: ='[1]Remises libres'!A89 -> 163 | B89: ='[1]Remises libres'!B89 -> PULVERSHEIM | C89: ='[1]Remises libres'!C89 -> 4162 | D89: ='[1]Remises libres'!D89 -> ENSISHEIM | E89: ='[1]Remises libres'!E89 -> 5130 | F89: ='[1]Remises libres'!F89 -> COLMAR | G89: ='[1]Remises libres'!G89 -> 264 | H89: ='[1]Remises libres'!H89 -> HAUT RHIN | I89: ='[1]Remises libres'!I89 -> 0.14
A90: ='[1]Remises libres'!A90 -> 164 | B90: ='[1]Remises libres'!B90 -> SAINTE MARIE AUX MINES | C90: ='[1]Remises libres'!C90 -> 4164 | D90: ='[1]Remises libres'!D90 -> SAINTE MARIE AUX MINES | E90: ='[1]Remises libres'!E90 -> 5130 | F90: ='[1]Remises libres'!F90 -> COLMAR | G90: ='[1]Remises libres'!G90 -> 264 | H90: ='[1]Remises libres'!H90 -> HAUT RHIN | I90: ='[1]Remises libres'!I90 -> 1625.61
A91: ='[1]Remises libres'!A91 -> 170 | B91: ='[1]Remises libres'!B91 -> MULHOUSE REUNION | C91: ='[1]Remises libres'!C91 -> 4170 | D91: ='[1]Remises libres'!D91 -> MULHOUSE REUNION | E91: ='[1]Remises libres'!E91 -> 5169 | F91: ='[1]Remises libres'!F91 -> MULHOUSE | G91: ='[1]Remises libres'!G91 -> 264 | H91: ='[1]Remises libres'!H91 -> HAUT RHIN | I91: ='[1]Remises libres'!I91 -> 3250.46
A92: ='[1]Remises libres'!A93 -> 174 | B92: ='[1]Remises libres'!B93 -> MULHOUSE DORNACH | C92: ='[1]Remises libres'!C93 -> 4174 | D92: ='[1]Remises libres'!D93 -> MULHOUSE DORNACH | E92: ='[1]Remises libres'!E93 -> 5169 | F92: ='[1]Remises libres'!F93 -> MULHOUSE | G92: ='[1]Remises libres'!G93 -> 264 | H92: ='[1]Remises libres'!H93 -> HAUT RHIN | I92: ='[1]Remises libres'!I93 -> 1200.79
A93: ='[1]Remises libres'!A94 -> 178 | B93: ='[1]Remises libres'!B94 -> SAINT LOUIS | C93: ='[1]Remises libres'!C94 -> 4178 | D93: ='[1]Remises libres'!D94 -> SAINT LOUIS | E93: ='[1]Remises libres'!E94 -> 5169 | F93: ='[1]Remises libres'!F94 -> MULHOUSE | G93: ='[1]Remises libres'!G94 -> 264 | H93: ='[1]Remises libres'!H94 -> HAUT RHIN | I93: ='[1]Remises libres'!I94 -> 1438.72
A94: ='[1]Remises libres'!A96 -> 180 | B94: ='[1]Remises libres'!B96 -> RIEDISHEIM | C94: ='[1]Remises libres'!C96 -> 4180 | D94: ='[1]Remises libres'!D96 -> RIEDISHEIM | E94: ='[1]Remises libres'!E96 -> 5169 | F94: ='[1]Remises libres'!F96 -> MULHOUSE | G94: ='[1]Remises libres'!G96 -> 264 | H94: ='[1]Remises libres'!H96 -> HAUT RHIN | I94: ='[1]Remises libres'!I96 -> 1254.3
A95: ='[1]Remises libres'!A97 -> 181 | B95: ='[1]Remises libres'!B97 -> WITTELSHEIM | C95: ='[1]Remises libres'!C97 -> 4181 | D95: ='[1]Remises libres'!D97 -> WITTELSHEIM | E95: ='[1]Remises libres'!E97 -> 5169 | F95: ='[1]Remises libres'!F97 -> MULHOUSE | G95: ='[1]Remises libres'!G97 -> 264 | H95: ='[1]Remises libres'!H97 -> HAUT RHIN | I95: ='[1]Remises libres'!I97 -> 0
A96: ='[1]Remises libres'!A98 -> 183 | B96: ='[1]Remises libres'!B98 -> WITTENHEIM | C96: ='[1]Remises libres'!C98 -> 4183 | D96: ='[1]Remises libres'!D98 -> WITTENHEIM | E96: ='[1]Remises libres'!E98 -> 5169 | F96: ='[1]Remises libres'!F98 -> MULHOUSE | G96: ='[1]Remises libres'!G98 -> 264 | H96: ='[1]Remises libres'!H98 -> HAUT RHIN | I96: ='[1]Remises libres'!I98 -> 217.2
A97: ='[1]Remises libres'!A99 -> 184 | B97: ='[1]Remises libres'!B99 -> ILLZACH | C97: ='[1]Remises libres'!C99 -> 4183 | D97: ='[1]Remises libres'!D99 -> WITTENHEIM | E97: ='[1]Remises libres'!E99 -> 5169 | F97: ='[1]Remises libres'!F99 -> MULHOUSE | G97: ='[1]Remises libres'!G99 -> 264 | H97: ='[1]Remises libres'!H99 -> HAUT RHIN | I97: ='[1]Remises libres'!I99 -> 163
A98: ='[1]Remises libres'!A100 -> 185 | B98: ='[1]Remises libres'!B100 -> RIXHEIM | C98: ='[1]Remises libres'!C100 -> 4185 | D98: ='[1]Remises libres'!D100 -> RIXHEIM | E98: ='[1]Remises libres'!E100 -> 5169 | F98: ='[1]Remises libres'!F100 -> MULHOUSE | G98: ='[1]Remises libres'!G100 -> 264 | H98: ='[1]Remises libres'!H100 -> HAUT RHIN | I98: ='[1]Remises libres'!I100 -> 5144.49
A99: ='[1]Remises libres'!A101 -> 186 | B99: ='[1]Remises libres'!B101 -> BRUNSTATT | C99: ='[1]Remises libres'!C101 -> 4174 | D99: ='[1]Remises libres'!D101 -> MULHOUSE DORNACH | E99: ='[1]Remises libres'!E101 -> 5169 | F99: ='[1]Remises libres'!F101 -> MULHOUSE | G99: ='[1]Remises libres'!G101 -> 264 | H99: ='[1]Remises libres'!H101 -> HAUT RHIN | I99: ='[1]Remises libres'!I101 -> 741.87
A100: ='[1]Remises libres'!A102 -> 188 | B100: ='[1]Remises libres'!B102 -> PFASTATT | C100: ='[1]Remises libres'!C102 -> 4188 | D100: ='[1]Remises libres'!D102 -> PFASTATT | E100: ='[1]Remises libres'!E102 -> 5169 | F100: ='[1]Remises libres'!F102 -> MULHOUSE | G100: ='[1]Remises libres'!G102 -> 264 | H100: ='[1]Remises libres'!H102 -> HAUT RHIN | I100: ='[1]Remises libres'!I102 -> 1535
A101: ='[1]Remises libres'!A103 -> 189 | B101: ='[1]Remises libres'!B103 -> ALTKIRCH | C101: ='[1]Remises libres'!C103 -> 4189 | D101: ='[1]Remises libres'!D103 -> ALTKIRCH | E101: ='[1]Remises libres'!E103 -> 5169 | F101: ='[1]Remises libres'!F103 -> MULHOUSE | G101: ='[1]Remises libres'!G103 -> 264 | H101: ='[1]Remises libres'!H103 -> HAUT RHIN | I101: ='[1]Remises libres'!I103 -> 1974.49
A102: ='[1]Remises libres'!A104 -> 191 | B102: ='[1]Remises libres'!B104 -> FERRETTE | C102: ='[1]Remises libres'!C104 -> 4189 | D102: ='[1]Remises libres'!D104 -> ALTKIRCH | E102: ='[1]Remises libres'!E104 -> 5169 | F102: ='[1]Remises libres'!F104 -> MULHOUSE | G102: ='[1]Remises libres'!G104 -> 264 | H102: ='[1]Remises libres'!H104 -> HAUT RHIN | I102: ='[1]Remises libres'!I104 -> 57.26
A103: ='[1]Remises libres'!A105 -> 192 | B103: ='[1]Remises libres'!B105 -> SEPPOIS LE BAS | C103: ='[1]Remises libres'!C105 -> 4189 | D103: ='[1]Remises libres'!D105 -> ALTKIRCH | E103: ='[1]Remises libres'!E105 -> 5169 | F103: ='[1]Remises libres'!F105 -> MULHOUSE | G103: ='[1]Remises libres'!G105 -> 264 | H103: ='[1]Remises libres'!H105 -> HAUT RHIN | I103: ='[1]Remises libres'!I105 -> 20.4
A104: ='[1]Remises libres'!A106 -> 193 | B104: ='[1]Remises libres'!B106 -> DANNEMARIE | C104: ='[1]Remises libres'!C106 -> 4189 | D104: ='[1]Remises libres'!D106 -> ALTKIRCH | E104: ='[1]Remises libres'!E106 -> 5169 | F104: ='[1]Remises libres'!F106 -> MULHOUSE | G104: ='[1]Remises libres'!G106 -> 264 | H104: ='[1]Remises libres'!H106 -> HAUT RHIN | I104: ='[1]Remises libres'!I106 -> 1908.05
A105: ='[1]Remises libres'!A107 -> 194 | B105: ='[1]Remises libres'!B107 -> THANN | C105: ='[1]Remises libres'!C107 -> 4194 | D105: ='[1]Remises libres'!D107 -> THANN | E105: ='[1]Remises libres'!E107 -> 5169 | F105: ='[1]Remises libres'!F107 -> MULHOUSE | G105: ='[1]Remises libres'!G107 -> 264 | H105: ='[1]Remises libres'!H107 -> HAUT RHIN | I105: ='[1]Remises libres'!I107 -> 1137.13
A106: ='[1]Remises libres'!A108 -> 195 | B106: ='[1]Remises libres'!B108 -> CERNAY | C106: ='[1]Remises libres'!C108 -> 4195 | D106: ='[1]Remises libres'!D108 -> CERNAY | E106: ='[1]Remises libres'!E108 -> 5169 | F106: ='[1]Remises libres'!F108 -> MULHOUSE | G106: ='[1]Remises libres'!G108 -> 264 | H106: ='[1]Remises libres'!H108 -> HAUT RHIN | I106: ='[1]Remises libres'!I108 -> 601.07
A107: ='[1]Remises libres'!A109 -> 196 | B107: ='[1]Remises libres'!B109 -> MASEVAUX | C107: ='[1]Remises libres'!C109 -> 4194 | D107: ='[1]Remises libres'!D109 -> THANN | E107: ='[1]Remises libres'!E109 -> 5169 | F107: ='[1]Remises libres'!F109 -> MULHOUSE | G107: ='[1]Remises libres'!G109 -> 264 | H107: ='[1]Remises libres'!H109 -> HAUT RHIN | I107: ='[1]Remises libres'!I109 -> 296
A108: ='[1]Remises libres'!A110 -> 198 | B108: ='[1]Remises libres'!B110 -> SAINT AMARIN | C108: ='[1]Remises libres'!C110 -> 4194 | D108: ='[1]Remises libres'!D110 -> THANN | E108: ='[1]Remises libres'!E110 -> 5169 | F108: ='[1]Remises libres'!F110 -> MULHOUSE | G108: ='[1]Remises libres'!G110 -> 264 | H108: ='[1]Remises libres'!H110 -> HAUT RHIN | I108: ='[1]Remises libres'!I110 -> 296.01
A109: ='[1]Remises libres'!A111 -> 5800 | B109: ='[1]Remises libres'!B111 -> EXPERTS DIRECT | C109: ='[1]Remises libres'!C111 -> 405800 | D109: ='[1]Remises libres'!D111 -> EXPERTS DIRECT | E109: ='[1]Remises libres'!E111 -> 5800 | F109: ='[1]Remises libres'!F111 -> EXPERTS DIRECT | G109: ='[1]Remises libres'!G111 -> 269 | H109: ='[1]Remises libres'!H111 -> BANQUE DIGITALE | I109: ='[1]Remises libres'!I111 -> 285.27
A110: ='[1]Remises libres'!A112 -> 8801 | B110: ='[1]Remises libres'!B112 -> CHARLEVILLE JEAN JAURES | C110: ='[1]Remises libres'!C112 -> 408801 | D110: ='[1]Remises libres'!D112 -> CHARLEVILLE JEAN JAURES | E110: ='[1]Remises libres'!E112 -> 2 | F110: ='[1]Remises libres'!F112 -> CHARLEVILLE MEZIERES | G110: ='[1]Remises libres'!G112 -> 30 | H110: ='[1]Remises libres'!H112 -> MARNE ARDENNES | I110: ='[1]Remises libres'!I112 -> 2083.09
A111: ='[1]Remises libres'!A113 -> 8802 | B111: ='[1]Remises libres'!B113 -> CHARLEVILLE NEVERS | C111: ='[1]Remises libres'!C113 -> 508802 | D111: ='[1]Remises libres'!D113 -> CHARLEVILLE NEVERS | E111: ='[1]Remises libres'!E113 -> 2 | F111: ='[1]Remises libres'!F113 -> CHARLEVILLE MEZIERES | G111: ='[1]Remises libres'!G113 -> 30 | H111: ='[1]Remises libres'!H113 -> MARNE ARDENNES | I111: ='[1]Remises libres'!I113 -> 282.5
A112: ='[1]Remises libres'!A114 -> 8806 | B112: ='[1]Remises libres'!B114 -> SEDAN | C112: ='[1]Remises libres'!C114 -> 408806 | D112: ='[1]Remises libres'!D114 -> SEDAN | E112: ='[1]Remises libres'!E114 -> 2 | F112: ='[1]Remises libres'!F114 -> CHARLEVILLE MEZIERES | G112: ='[1]Remises libres'!G114 -> 30 | H112: ='[1]Remises libres'!H114 -> MARNE ARDENNES | I112: ='[1]Remises libres'!I114 -> 1059.8
A113: ='[1]Remises libres'!A115 -> 8815 | B113: ='[1]Remises libres'!B115 -> CARIGNAN | C113: ='[1]Remises libres'!C115 -> 508815 | D113: ='[1]Remises libres'!D115 -> CARIGNAN | E113: ='[1]Remises libres'!E115 -> 2 | F113: ='[1]Remises libres'!F115 -> CHARLEVILLE MEZIERES | G113: ='[1]Remises libres'!G115 -> 30 | H113: ='[1]Remises libres'!H115 -> MARNE ARDENNES | I113: ='[1]Remises libres'!I115 -> 680
A114: ='[1]Remises libres'!A116 -> 8817 | B114: ='[1]Remises libres'!B116 -> CHARLEVILLE MOHON | C114: ='[1]Remises libres'!C116 -> 508817 | D114: ='[1]Remises libres'!D116 -> CHARLEVILLE MOHON | E114: ='[1]Remises libres'!E116 -> 2 | F114: ='[1]Remises libres'!F116 -> CHARLEVILLE MEZIERES | G114: ='[1]Remises libres'!G116 -> 30 | H114: ='[1]Remises libres'!H116 -> MARNE ARDENNES | I114: ='[1]Remises libres'!I116 -> 155.57
A115: ='[1]Remises libres'!A117 -> 8819 | B115: ='[1]Remises libres'!B117 -> MOUZON | C115: ='[1]Remises libres'!C117 -> 508819 | D115: ='[1]Remises libres'!D117 -> MOUZON | E115: ='[1]Remises libres'!E117 -> 2 | F115: ='[1]Remises libres'!F117 -> CHARLEVILLE MEZIERES | G115: ='[1]Remises libres'!G117 -> 30 | H115: ='[1]Remises libres'!H117 -> MARNE ARDENNES | I115: ='[1]Remises libres'!I117 -> 90
A116: ='[1]Remises libres'!A118 -> 8820 | B116: ='[1]Remises libres'!B118 -> VOUZIERS | C116: ='[1]Remises libres'!C118 -> 508820 | D116: ='[1]Remises libres'!D118 -> VOUZIERS | E116: ='[1]Remises libres'!E118 -> 2 | F116: ='[1]Remises libres'!F118 -> CHARLEVILLE MEZIERES | G116: ='[1]Remises libres'!G118 -> 30 | H116: ='[1]Remises libres'!H118 -> MARNE ARDENNES | I116: ='[1]Remises libres'!I118 -> 872.21
A117: ='[1]Remises libres'!A119 -> 8822 | B117: ='[1]Remises libres'!B119 -> CHARLEVILLE MEZIERES | C117: ='[1]Remises libres'!C119 -> 408822 | D117: ='[1]Remises libres'!D119 -> CHARLEVILLE MEZIERES | E117: ='[1]Remises libres'!E119 -> 2 | F117: ='[1]Remises libres'!F119 -> CHARLEVILLE MEZIERES | G117: ='[1]Remises libres'!G119 -> 30 | H117: ='[1]Remises libres'!H119 -> MARNE ARDENNES | I117: ='[1]Remises libres'!I119 -> 1559.21
A118: ='[1]Remises libres'!A120 -> 8833 | B118: ='[1]Remises libres'!B120 -> VILLERS SEMEUSE CORA | C118: ='[1]Remises libres'!C120 -> 508833 | D118: ='[1]Remises libres'!D120 -> VILLERS SEMEUSE CORA | E118: ='[1]Remises libres'!E120 -> 2 | F118: ='[1]Remises libres'!F120 -> CHARLEVILLE MEZIERES | G118: ='[1]Remises libres'!G120 -> 30 | H118: ='[1]Remises libres'!H120 -> MARNE ARDENNES | I118: ='[1]Remises libres'!I120 -> 188.5
A119: ='[1]Remises libres'!A121 -> 8839 | B119: ='[1]Remises libres'!B121 -> GIVET | C119: ='[1]Remises libres'!C121 -> 508839 | D119: ='[1]Remises libres'!D121 -> GIVET | E119: ='[1]Remises libres'!E121 -> 2 | F119: ='[1]Remises libres'!F121 -> CHARLEVILLE MEZIERES | G119: ='[1]Remises libres'!G121 -> 30 | H119: ='[1]Remises libres'!H121 -> MARNE ARDENNES | I119: ='[1]Remises libres'!I121 -> 0
A120: ='[1]Remises libres'!A122 -> 8840 | B120: ='[1]Remises libres'!B122 -> RETHEL | C120: ='[1]Remises libres'!C122 -> 408840 | D120: ='[1]Remises libres'!D122 -> RETHEL | E120: ='[1]Remises libres'!E122 -> 2 | F120: ='[1]Remises libres'!F122 -> CHARLEVILLE MEZIERES | G120: ='[1]Remises libres'!G122 -> 30 | H120: ='[1]Remises libres'!H122 -> MARNE ARDENNES | I120: ='[1]Remises libres'!I122 -> 443.73
A121: ='[1]Remises libres'!A123 -> 8860 | B121: ='[1]Remises libres'!B123 -> ROCROI | C121: ='[1]Remises libres'!C123 -> 508860 | D121: ='[1]Remises libres'!D123 -> ROCROI | E121: ='[1]Remises libres'!E123 -> 2 | F121: ='[1]Remises libres'!F123 -> CHARLEVILLE MEZIERES | G121: ='[1]Remises libres'!G123 -> 30 | H121: ='[1]Remises libres'!H123 -> MARNE ARDENNES | I121: ='[1]Remises libres'!I123 -> 74.79
A122: ='[1]Remises libres'!A124 -> 8862 | B122: ='[1]Remises libres'!B124 -> REVIN | C122: ='[1]Remises libres'!C124 -> 408862 | D122: ='[1]Remises libres'!D124 -> REVIN | E122: ='[1]Remises libres'!E124 -> 2 | F122: ='[1]Remises libres'!F124 -> CHARLEVILLE MEZIERES | G122: ='[1]Remises libres'!G124 -> 30 | H122: ='[1]Remises libres'!H124 -> MARNE ARDENNES | I122: ='[1]Remises libres'!I124 -> 455.58
A123: ='[1]Remises libres'!A125 -> 10510 | B123: ='[1]Remises libres'!B125 -> TROYES GAMBETTA | C123: ='[1]Remises libres'!C125 -> 410510 | D123: ='[1]Remises libres'!D125 -> TROYES GAMBETTA | E123: ='[1]Remises libres'!E125 -> 14 | F123: ='[1]Remises libres'!F125 -> TROYES | G123: ='[1]Remises libres'!G125 -> 50 | H123: ='[1]Remises libres'!H125 -> AUBE HAUTE MARNE | I123: ='[1]Remises libres'!I125 -> 2507.79
A124: ='[1]Remises libres'!A126 -> 10511 | B124: ='[1]Remises libres'!B126 -> TROYES BROSSOLETTE | C124: ='[1]Remises libres'!C126 -> 510511 | D124: ='[1]Remises libres'!D126 -> TROYES BROSSOLETTE | E124: ='[1]Remises libres'!E126 -> 14 | F124: ='[1]Remises libres'!F126 -> TROYES | G124: ='[1]Remises libres'!G126 -> 50 | H124: ='[1]Remises libres'!H126 -> AUBE HAUTE MARNE | I124: ='[1]Remises libres'!I126 -> 145.5
A125: ='[1]Remises libres'!A127 -> 10512 | B125: ='[1]Remises libres'!B127 -> TROYES ZOLA | C125: ='[1]Remises libres'!C127 -> 410512 | D125: ='[1]Remises libres'!D127 -> TROYES ZOLA | E125: ='[1]Remises libres'!E127 -> 14 | F125: ='[1]Remises libres'!F127 -> TROYES | G125: ='[1]Remises libres'!G127 -> 50 | H125: ='[1]Remises libres'!H127 -> AUBE HAUTE MARNE | I125: ='[1]Remises libres'!I127 -> 220.07
A126: ='[1]Remises libres'!A128 -> 10513 | B126: ='[1]Remises libres'!B128 -> TROYES 1ER MAI | C126: ='[1]Remises libres'!C128 -> 510513 | D126: ='[1]Remises libres'!D128 -> TROYES 1ER MAI | E126: ='[1]Remises libres'!E128 -> 14 | F126: ='[1]Remises libres'!F128 -> TROYES | G126: ='[1]Remises libres'!G128 -> 50 | H126: ='[1]Remises libres'!H128 -> AUBE HAUTE MARNE | I126: ='[1]Remises libres'!I128 -> 232.6
A127: ='[1]Remises libres'!A129 -> 10520 | B127: ='[1]Remises libres'!B129 -> SAINT ANDRE LES VERGERS | C127: ='[1]Remises libres'!C129 -> 510520 | D127: ='[1]Remises libres'!D129 -> SAINT ANDRE LES VERGERS | E127: ='[1]Remises libres'!E129 -> 14 | F127: ='[1]Remises libres'!F129 -> TROYES | G127: ='[1]Remises libres'!G129 -> 50 | H127: ='[1]Remises libres'!H129 -> AUBE HAUTE MARNE | I127: ='[1]Remises libres'!I129 -> 921.01
A128: ='[1]Remises libres'!A130 -> 10521 | B128: ='[1]Remises libres'!B130 -> SAINTE SAVINE | C128: ='[1]Remises libres'!C130 -> 410521 | D128: ='[1]Remises libres'!D130 -> SAINTE SAVINE | E128: ='[1]Remises libres'!E130 -> 14 | F128: ='[1]Remises libres'!F130 -> TROYES | G128: ='[1]Remises libres'!G130 -> 50 | H128: ='[1]Remises libres'!H130 -> AUBE HAUTE MARNE | I128: ='[1]Remises libres'!I130 -> 763.33
A129: ='[1]Remises libres'!A131 -> 10522 | B129: ='[1]Remises libres'!B131 -> TROYES CHARTREUX | C129: ='[1]Remises libres'!C131 -> 510522 | D129: ='[1]Remises libres'!D131 -> TROYES CHARTREUX | E129: ='[1]Remises libres'!E131 -> 14 | F129: ='[1]Remises libres'!F131 -> TROYES | G129: ='[1]Remises libres'!G131 -> 50 | H129: ='[1]Remises libres'!H131 -> AUBE HAUTE MARNE | I129: ='[1]Remises libres'!I131 -> 329
A130: ='[1]Remises libres'!A132 -> 10523 | B130: ='[1]Remises libres'!B132 -> LA CHAPELLE ST LUC | C130: ='[1]Remises libres'!C132 -> 510523 | D130: ='[1]Remises libres'!D132 -> LA CHAPELLE ST LUC | E130: ='[1]Remises libres'!E132 -> 14 | F130: ='[1]Remises libres'!F132 -> TROYES | G130: ='[1]Remises libres'!G132 -> 50 | H130: ='[1]Remises libres'!H132 -> AUBE HAUTE MARNE | I130: ='[1]Remises libres'!I132 -> 530.5
A131: ='[1]Remises libres'!A133 -> 10524 | B131: ='[1]Remises libres'!B133 -> SAINT JULIEN LES VILLAS | C131: ='[1]Remises libres'!C133 -> 410524 | D131: ='[1]Remises libres'!D133 -> SAINT JULIEN LES VILLAS | E131: ='[1]Remises libres'!E133 -> 14 | F131: ='[1]Remises libres'!F133 -> TROYES | G131: ='[1]Remises libres'!G133 -> 50 | H131: ='[1]Remises libres'!H133 -> AUBE HAUTE MARNE | I131: ='[1]Remises libres'!I133 -> 3813.07
A132: ='[1]Remises libres'!A134 -> 10530 | B132: ='[1]Remises libres'!B134 -> ARCIS SUR AUBE | C132: ='[1]Remises libres'!C134 -> 510530 | D132: ='[1]Remises libres'!D134 -> ARCIS SUR AUBE | E132: ='[1]Remises libres'!E134 -> 14 | F132: ='[1]Remises libres'!F134 -> TROYES | G132: ='[1]Remises libres'!G134 -> 50 | H132: ='[1]Remises libres'!H134 -> AUBE HAUTE MARNE | I132: ='[1]Remises libres'!I134 -> 424.26
A133: ='[1]Remises libres'!A135 -> 10541 | B133: ='[1]Remises libres'!B135 -> LANGRES | C133: ='[1]Remises libres'!C135 -> 410541 | D133: ='[1]Remises libres'!D135 -> LANGRES | E133: ='[1]Remises libres'!E135 -> 21 | F133: ='[1]Remises libres'!F135 -> CHAUMONT | G133: ='[1]Remises libres'!G135 -> 50 | H133: ='[1]Remises libres'!H135 -> AUBE HAUTE MARNE | I133: ='[1]Remises libres'!I135 -> 194.5
A134: ='[1]Remises libres'!A136 -> 10550 | B134: ='[1]Remises libres'!B136 -> BAR SUR AUBE | C134: ='[1]Remises libres'!C136 -> 410550 | D134: ='[1]Remises libres'!D136 -> BAR SUR AUBE | E134: ='[1]Remises libres'!E136 -> 14 | F134: ='[1]Remises libres'!F136 -> TROYES | G134: ='[1]Remises libres'!G136 -> 50 | H134: ='[1]Remises libres'!H136 -> AUBE HAUTE MARNE | I134: ='[1]Remises libres'!I136 -> 932
A135: ='[1]Remises libres'!A137 -> 10551 | B135: ='[1]Remises libres'!B137 -> BRIENNE LE CHATEAU | C135: ='[1]Remises libres'!C137 -> 410550 | D135: ='[1]Remises libres'!D137 -> BAR SUR AUBE | E135: ='[1]Remises libres'!E137 -> 14 | F135: ='[1]Remises libres'!F137 -> TROYES | G135: ='[1]Remises libres'!G137 -> 50 | H135: ='[1]Remises libres'!H137 -> AUBE HAUTE MARNE | I135: ='[1]Remises libres'!I137 -> 171.01
A136: ='[1]Remises libres'!A138 -> 10556 | B136: ='[1]Remises libres'!B138 -> BAR SUR SEINE | C136: ='[1]Remises libres'!C138 -> 510556 | D136: ='[1]Remises libres'!D138 -> BAR SUR SEINE | E136: ='[1]Remises libres'!E138 -> 14 | F136: ='[1]Remises libres'!F138 -> TROYES | G136: ='[1]Remises libres'!G138 -> 50 | H136: ='[1]Remises libres'!H138 -> AUBE HAUTE MARNE | I136: ='[1]Remises libres'!I138 -> 830.33
A137: ='[1]Remises libres'!A139 -> 10558 | B137: ='[1]Remises libres'!B139 -> CHALINDREY | C137: ='[1]Remises libres'!C139 -> 410541 | D137: ='[1]Remises libres'!D139 -> LANGRES | E137: ='[1]Remises libres'!E139 -> 21 | F137: ='[1]Remises libres'!F139 -> CHAUMONT | G137: ='[1]Remises libres'!G139 -> 50 | H137: ='[1]Remises libres'!H139 -> AUBE HAUTE MARNE | I137: ='[1]Remises libres'!I139 -> 350.06
A138: ='[1]Remises libres'!A140 -> 10560 | B138: ='[1]Remises libres'!B140 -> BOURBONNE LES BAINS | C138: ='[1]Remises libres'!C140 -> 410560 | D138: ='[1]Remises libres'!D140 -> BOURBONNE LES BAINS | E138: ='[1]Remises libres'!E140 -> 21 | F138: ='[1]Remises libres'!F140 -> CHAUMONT | G138: ='[1]Remises libres'!G140 -> 50 | H138: ='[1]Remises libres'!H140 -> AUBE HAUTE MARNE | I138: ='[1]Remises libres'!I140 -> 0
A139: ='[1]Remises libres'!A141 -> 10566 | B139: ='[1]Remises libres'!B141 -> CHAUMONT HOTEL DE VILLE | C139: ='[1]Remises libres'!C141 -> 410566 | D139: ='[1]Remises libres'!D141 -> CHAUMONT HOTEL DE VILLE | E139: ='[1]Remises libres'!E141 -> 21 | F139: ='[1]Remises libres'!F141 -> CHAUMONT | G139: ='[1]Remises libres'!G141 -> 50 | H139: ='[1]Remises libres'!H141 -> AUBE HAUTE MARNE | I139: ='[1]Remises libres'!I141 -> 1101.23
A140: ='[1]Remises libres'!A142 -> 10570 | B140: ='[1]Remises libres'!B142 -> NOGENT SUR SEINE | C140: ='[1]Remises libres'!C142 -> 510570 | D140: ='[1]Remises libres'!D142 -> NOGENT SUR SEINE | E140: ='[1]Remises libres'!E142 -> 14 | F140: ='[1]Remises libres'!F142 -> TROYES | G140: ='[1]Remises libres'!G142 -> 50 | H140: ='[1]Remises libres'!H142 -> AUBE HAUTE MARNE | I140: ='[1]Remises libres'!I142 -> 155
A141: ='[1]Remises libres'!A143 -> 10571 | B141: ='[1]Remises libres'!B143 -> ROMILLY SUR SEINE | C141: ='[1]Remises libres'!C143 -> 410571 | D141: ='[1]Remises libres'!D143 -> ROMILLY SUR SEINE | E141: ='[1]Remises libres'!E143 -> 14 | F141: ='[1]Remises libres'!F143 -> TROYES | G141: ='[1]Remises libres'!G143 -> 50 | H141: ='[1]Remises libres'!H143 -> AUBE HAUTE MARNE | I141: ='[1]Remises libres'!I143 -> 437.71
A142: ='[1]Remises libres'!A144 -> 10582 | B142: ='[1]Remises libres'!B144 -> NOGENT | C142: ='[1]Remises libres'!C144 -> 510590 | D142: ='[1]Remises libres'!D144 -> CHAUMONT REPUBLIQUE | E142: ='[1]Remises libres'!E144 -> 21 | F142: ='[1]Remises libres'!F144 -> CHAUMONT | G142: ='[1]Remises libres'!G144 -> 50 | H142: ='[1]Remises libres'!H144 -> AUBE HAUTE MARNE | I142: ='[1]Remises libres'!I144 -> 187.15
A143: ='[1]Remises libres'!A145 -> 10583 | B143: ='[1]Remises libres'!B145 -> AIX EN OTHE | C143: ='[1]Remises libres'!C145 -> 510523 | D143: ='[1]Remises libres'!D145 -> LA CHAPELLE ST LUC | E143: ='[1]Remises libres'!E145 -> 14 | F143: ='[1]Remises libres'!F145 -> TROYES | G143: ='[1]Remises libres'!G145 -> 50 | H143: ='[1]Remises libres'!H145 -> AUBE HAUTE MARNE | I143: ='[1]Remises libres'!I145 -> 0
A144: ='[1]Remises libres'!A146 -> 10590 | B144: ='[1]Remises libres'!B146 -> CHAUMONT REPUBLIQUE | C144: ='[1]Remises libres'!C146 -> 510590 | D144: ='[1]Remises libres'!D146 -> CHAUMONT REPUBLIQUE | E144: ='[1]Remises libres'!E146 -> 21 | F144: ='[1]Remises libres'!F146 -> CHAUMONT | G144: ='[1]Remises libres'!G146 -> 50 | H144: ='[1]Remises libres'!H146 -> AUBE HAUTE MARNE | I144: ='[1]Remises libres'!I146 -> 1752.61
A145: ='[1]Remises libres'!A147 -> 51101 | B145: ='[1]Remises libres'!B147 -> CHALONS VIVIERS | C145: ='[1]Remises libres'!C147 -> 451101 | D145: ='[1]Remises libres'!D147 -> CHALONS VIVIERS | E145: ='[1]Remises libres'!E147 -> 6 | F145: ='[1]Remises libres'!F147 -> CHALONS EN CHAMPAGNE | G145: ='[1]Remises libres'!G147 -> 30 | H145: ='[1]Remises libres'!H147 -> MARNE ARDENNES | I145: ='[1]Remises libres'!I147 -> 1319.03
A146: ='[1]Remises libres'!A148 -> 51103 | B146: ='[1]Remises libres'!B148 -> FAGNIERES LECLERC | C146: ='[1]Remises libres'!C148 -> 551103 | D146: ='[1]Remises libres'!D148 -> FAGNIERES LECLERC | E146: ='[1]Remises libres'!E148 -> 6 | F146: ='[1]Remises libres'!F148 -> CHALONS EN CHAMPAGNE | G146: ='[1]Remises libres'!G148 -> 30 | H146: ='[1]Remises libres'!H148 -> MARNE ARDENNES | I146: ='[1]Remises libres'!I148 -> 1982.83
A147: ='[1]Remises libres'!A149 -> 51110 | B147: ='[1]Remises libres'!B149 -> CHALONS ROOSEVELT | C147: ='[1]Remises libres'!C149 -> 551110 | D147: ='[1]Remises libres'!D149 -> CHALONS ROOSEVELT | E147: ='[1]Remises libres'!E149 -> 6 | F147: ='[1]Remises libres'!F149 -> CHALONS EN CHAMPAGNE | G147: ='[1]Remises libres'!G149 -> 30 | H147: ='[1]Remises libres'!H149 -> MARNE ARDENNES | I147: ='[1]Remises libres'!I149 -> 155
A148: ='[1]Remises libres'!A150 -> 51114 | B148: ='[1]Remises libres'!B150 -> SUIPPES | C148: ='[1]Remises libres'!C150 -> 451115 | D148: ='[1]Remises libres'!D150 -> MOURMELON LE GRAND | E148: ='[1]Remises libres'!E150 -> 6 | F148: ='[1]Remises libres'!F150 -> CHALONS EN CHAMPAGNE | G148: ='[1]Remises libres'!G150 -> 30 | H148: ='[1]Remises libres'!H150 -> MARNE ARDENNES | I148: ='[1]Remises libres'!I150 -> 303.5
A149: ='[1]Remises libres'!A151 -> 51115 | B149: ='[1]Remises libres'!B151 -> MOURMELON LE GRAND | C149: ='[1]Remises libres'!C151 -> 451115 | D149: ='[1]Remises libres'!D151 -> MOURMELON LE GRAND | E149: ='[1]Remises libres'!E151 -> 6 | F149: ='[1]Remises libres'!F151 -> CHALONS EN CHAMPAGNE | G149: ='[1]Remises libres'!G151 -> 30 | H149: ='[1]Remises libres'!H151 -> MARNE ARDENNES | I149: ='[1]Remises libres'!I151 -> 0
A150: ='[1]Remises libres'!A152 -> 51120 | B150: ='[1]Remises libres'!B152 -> SARRY | C150: ='[1]Remises libres'!C152 -> 451120 | D150: ='[1]Remises libres'!D152 -> SARRY | E150: ='[1]Remises libres'!E152 -> 6 | F150: ='[1]Remises libres'!F152 -> CHALONS EN CHAMPAGNE | G150: ='[1]Remises libres'!G152 -> 30 | H150: ='[1]Remises libres'!H152 -> MARNE ARDENNES | I150: ='[1]Remises libres'!I152 -> 240
A151: ='[1]Remises libres'!A153 -> 51128 | B151: ='[1]Remises libres'!B153 -> SAINTE MENEHOULD | C151: ='[1]Remises libres'!C153 -> 551128 | D151: ='[1]Remises libres'!D153 -> SAINTE MENEHOULD | E151: ='[1]Remises libres'!E153 -> 6 | F151: ='[1]Remises libres'!F153 -> CHALONS EN CHAMPAGNE | G151: ='[1]Remises libres'!G153 -> 30 | H151: ='[1]Remises libres'!H153 -> MARNE ARDENNES | I151: ='[1]Remises libres'!I153 -> 70.37
A152: ='[1]Remises libres'!A154 -> 51151 | B152: ='[1]Remises libres'!B154 -> WASSY | C152: ='[1]Remises libres'!C154 -> 451151 | D152: ='[1]Remises libres'!D154 -> WASSY | E152: ='[1]Remises libres'!E154 -> 21 | F152: ='[1]Remises libres'!F154 -> CHAUMONT | G152: ='[1]Remises libres'!G154 -> 50 | H152: ='[1]Remises libres'!H154 -> AUBE HAUTE MARNE | I152: ='[1]Remises libres'!I154 -> 619.48
A153: ='[1]Remises libres'!A155 -> 51154 | B153: ='[1]Remises libres'!B155 -> JOINVILLE | C153: ='[1]Remises libres'!C155 -> 451154 | D153: ='[1]Remises libres'!D155 -> JOINVILLE | E153: ='[1]Remises libres'!E155 -> 21 | F153: ='[1]Remises libres'!F155 -> CHAUMONT | G153: ='[1]Remises libres'!G155 -> 50 | H153: ='[1]Remises libres'!H155 -> AUBE HAUTE MARNE | I153: ='[1]Remises libres'!I155 -> 244.9
A154: ='[1]Remises libres'!A156 -> 51156 | B154: ='[1]Remises libres'!B156 -> SAINT DIZIER CENTRE | C154: ='[1]Remises libres'!C156 -> 451156 | D154: ='[1]Remises libres'!D156 -> SAINT DIZIER CENTRE | E154: ='[1]Remises libres'!E156 -> 21 | F154: ='[1]Remises libres'!F156 -> CHAUMONT | G154: ='[1]Remises libres'!G156 -> 50 | H154: ='[1]Remises libres'!H156 -> AUBE HAUTE MARNE | I154: ='[1]Remises libres'!I156 -> 1737.15
A155: ='[1]Remises libres'!A157 -> 51157 | B155: ='[1]Remises libres'!B157 -> SAINT DIZIER EUROPE | C155: ='[1]Remises libres'!C157 -> 451156 | D155: ='[1]Remises libres'!D157 -> SAINT DIZIER CENTRE | E155: ='[1]Remises libres'!E157 -> 21 | F155: ='[1]Remises libres'!F157 -> CHAUMONT | G155: ='[1]Remises libres'!G157 -> 50 | H155: ='[1]Remises libres'!H157 -> AUBE HAUTE MARNE | I155: ='[1]Remises libres'!I157 -> 889.4
A156: ='[1]Remises libres'!A158 -> 51166 | B156: ='[1]Remises libres'!B158 -> VITRY LE FRANCOIS | C156: ='[1]Remises libres'!C158 -> 451166 | D156: ='[1]Remises libres'!D158 -> VITRY LE FRANCOIS | E156: ='[1]Remises libres'!E158 -> 6 | F156: ='[1]Remises libres'!F158 -> CHALONS EN CHAMPAGNE | G156: ='[1]Remises libres'!G158 -> 30 | H156: ='[1]Remises libres'!H158 -> MARNE ARDENNES | I156: ='[1]Remises libres'!I158 -> 416.5
A157: ='[1]Remises libres'!A159 -> 51301 | B157: ='[1]Remises libres'!B159 -> REIMS HOTEL DE VILLE | C157: ='[1]Remises libres'!C159 -> 451301 | D157: ='[1]Remises libres'!D159 -> REIMS HOTEL DE VILLE | E157: ='[1]Remises libres'!E159 -> 11 | F157: ='[1]Remises libres'!F159 -> REIMS | G157: ='[1]Remises libres'!G159 -> 30 | H157: ='[1]Remises libres'!H159 -> MARNE ARDENNES | I157: ='[1]Remises libres'!I159 -> 919.78
A158: ='[1]Remises libres'!A160 -> 51305 | B158: ='[1]Remises libres'!B160 -> REIMS HIPPODROME | C158: ='[1]Remises libres'!C160 -> 551305 | D158: ='[1]Remises libres'!D160 -> REIMS HIPPODROME | E158: ='[1]Remises libres'!E160 -> 11 | F158: ='[1]Remises libres'!F160 -> REIMS | G158: ='[1]Remises libres'!G160 -> 30 | H158: ='[1]Remises libres'!H160 -> MARNE ARDENNES | I158: ='[1]Remises libres'!I160 -> 4739.4
A159: ='[1]Remises libres'!A161 -> 51306 | B159: ='[1]Remises libres'!B161 -> REIMS SAINT MARCEAUX | C159: ='[1]Remises libres'!C161 -> 551306 | D159: ='[1]Remises libres'!D161 -> REIMS SAINT MARCEAUX | E159: ='[1]Remises libres'!E161 -> 11 | F159: ='[1]Remises libres'!F161 -> REIMS | G159: ='[1]Remises libres'!G161 -> 30 | H159: ='[1]Remises libres'!H161 -> MARNE ARDENNES | I159: ='[1]Remises libres'!I161 -> 2633.94
A160: ='[1]Remises libres'!A162 -> 51307 | B160: ='[1]Remises libres'!B162 -> REIMS SAINTE ANNE | C160: ='[1]Remises libres'!C162 -> 551307 | D160: ='[1]Remises libres'!D162 -> REIMS SAINTE ANNE | E160: ='[1]Remises libres'!E162 -> 11 | F160: ='[1]Remises libres'!F162 -> REIMS | G160: ='[1]Remises libres'!G162 -> 30 | H160: ='[1]Remises libres'!H162 -> MARNE ARDENNES | I160: ='[1]Remises libres'!I162 -> 96.85
A161: ='[1]Remises libres'!A163 -> 51308 | B161: ='[1]Remises libres'!B163 -> REIMS SAINT THOMAS | C161: ='[1]Remises libres'!C163 -> 451308 | D161: ='[1]Remises libres'!D163 -> REIMS SAINT THOMAS | E161: ='[1]Remises libres'!E163 -> 11 | F161: ='[1]Remises libres'!F163 -> REIMS | G161: ='[1]Remises libres'!G163 -> 30 | H161: ='[1]Remises libres'!H163 -> MARNE ARDENNES | I161: ='[1]Remises libres'!I163 -> 1592.55
A162: ='[1]Remises libres'!A164 -> 51309 | B162: ='[1]Remises libres'!B164 -> REIMS EUROPE | C162: ='[1]Remises libres'!C164 -> 551309 | D162: ='[1]Remises libres'!D164 -> REIMS EUROPE | E162: ='[1]Remises libres'!E164 -> 11 | F162: ='[1]Remises libres'!F164 -> REIMS | G162: ='[1]Remises libres'!G164 -> 30 | H162: ='[1]Remises libres'!H164 -> MARNE ARDENNES | I162: ='[1]Remises libres'!I164 -> 1017.03
A163: ='[1]Remises libres'!A165 -> 51310 | B163: ='[1]Remises libres'!B165 -> REIMS CHATILLONS | C163: ='[1]Remises libres'!C165 -> 551310 | D163: ='[1]Remises libres'!D165 -> REIMS CHATILLONS | E163: ='[1]Remises libres'!E165 -> 11 | F163: ='[1]Remises libres'!F165 -> REIMS | G163: ='[1]Remises libres'!G165 -> 30 | H163: ='[1]Remises libres'!H165 -> MARNE ARDENNES | I163: ='[1]Remises libres'!I165 -> 468.14
A164: ='[1]Remises libres'!A166 -> 51314 | B164: ='[1]Remises libres'!B166 -> FISMES | C164: ='[1]Remises libres'!C166 -> 551314 | D164: ='[1]Remises libres'!D166 -> FISMES | E164: ='[1]Remises libres'!E166 -> 11 | F164: ='[1]Remises libres'!F166 -> REIMS | G164: ='[1]Remises libres'!G166 -> 30 | H164: ='[1]Remises libres'!H166 -> MARNE ARDENNES | I164: ='[1]Remises libres'!I166 -> 90
A165: ='[1]Remises libres'!A167 -> 51318 | B165: ='[1]Remises libres'!B167 -> VERZY | C165: ='[1]Remises libres'!C167 -> 451370 | D165: ='[1]Remises libres'!D167 -> EPERNAY | E165: ='[1]Remises libres'!E167 -> 11 | F165: ='[1]Remises libres'!F167 -> REIMS | G165: ='[1]Remises libres'!G167 -> 30 | H165: ='[1]Remises libres'!H167 -> MARNE ARDENNES | I165: ='[1]Remises libres'!I167 -> 13.33
A166: ='[1]Remises libres'!A168 -> 51330 | B166: ='[1]Remises libres'!B168 -> MONTMIRAIL | C166: ='[1]Remises libres'!C168 -> 551330 | D166: ='[1]Remises libres'!D168 -> MONTMIRAIL | E166: ='[1]Remises libres'!E168 -> 6 | F166: ='[1]Remises libres'!F168 -> CHALONS EN CHAMPAGNE | G166: ='[1]Remises libres'!G168 -> 30 | H166: ='[1]Remises libres'!H168 -> MARNE ARDENNES | I166: ='[1]Remises libres'!I168 -> 54.97
A167: ='[1]Remises libres'!A169 -> 51336 | B167: ='[1]Remises libres'!B169 -> TINQUEUX | C167: ='[1]Remises libres'!C169 -> 451336 | D167: ='[1]Remises libres'!D169 -> TINQUEUX | E167: ='[1]Remises libres'!E169 -> 11 | F167: ='[1]Remises libres'!F169 -> REIMS | G167: ='[1]Remises libres'!G169 -> 30 | H167: ='[1]Remises libres'!H169 -> MARNE ARDENNES | I167: ='[1]Remises libres'!I169 -> 797.69
A168: ='[1]Remises libres'!A170 -> 51340 | B168: ='[1]Remises libres'!B170 -> BETHENY | C168: ='[1]Remises libres'!C170 -> 551340 | D168: ='[1]Remises libres'!D170 -> BETHENY | E168: ='[1]Remises libres'!E170 -> 11 | F168: ='[1]Remises libres'!F170 -> REIMS | G168: ='[1]Remises libres'!G170 -> 30 | H168: ='[1]Remises libres'!H170 -> MARNE ARDENNES | I168: ='[1]Remises libres'!I170 -> 953.6
A169: ='[1]Remises libres'!A171 -> 51341 | B169: ='[1]Remises libres'!B171 -> REIMS JEAN JAURES | C169: ='[1]Remises libres'!C171 -> 551341 | D169: ='[1]Remises libres'!D171 -> REIMS JEAN JAURES | E169: ='[1]Remises libres'!E171 -> 11 | F169: ='[1]Remises libres'!F171 -> REIMS | G169: ='[1]Remises libres'!G171 -> 30 | H169: ='[1]Remises libres'!H171 -> MARNE ARDENNES | I169: ='[1]Remises libres'!I171 -> 93.47
A170: ='[1]Remises libres'!A172 -> 51349 | B170: ='[1]Remises libres'!B172 -> REIMS SAINT REMI | C170: ='[1]Remises libres'!C172 -> 551349 | D170: ='[1]Remises libres'!D172 -> REIMS SAINT REMI | E170: ='[1]Remises libres'!E172 -> 11 | F170: ='[1]Remises libres'!F172 -> REIMS | G170: ='[1]Remises libres'!G172 -> 30 | H170: ='[1]Remises libres'!H172 -> MARNE ARDENNES | I170: ='[1]Remises libres'!I172 -> 485.67
A171: ='[1]Remises libres'!A173 -> 51350 | B171: ='[1]Remises libres'!B173 -> REIMS CENTRE VILLE | C171: ='[1]Remises libres'!C173 -> 451350 | D171: ='[1]Remises libres'!D173 -> REIMS CENTRE VILLE | E171: ='[1]Remises libres'!E173 -> 11 | F171: ='[1]Remises libres'!F173 -> REIMS | G171: ='[1]Remises libres'!G173 -> 30 | H171: ='[1]Remises libres'!H173 -> MARNE ARDENNES | I171: ='[1]Remises libres'!I173 -> 1461.62
A172: ='[1]Remises libres'!A174 -> 51354 | B172: ='[1]Remises libres'!B174 -> VERTUS | C172: ='[1]Remises libres'!C174 -> 551354 | D172: ='[1]Remises libres'!D174 -> VERTUS | E172: ='[1]Remises libres'!E174 -> 6 | F172: ='[1]Remises libres'!F174 -> CHALONS EN CHAMPAGNE | G172: ='[1]Remises libres'!G174 -> 30 | H172: ='[1]Remises libres'!H174 -> MARNE ARDENNES | I172: ='[1]Remises libres'!I174 -> 1151.23
A173: ='[1]Remises libres'!A175 -> 51361 | B173: ='[1]Remises libres'!B175 -> PIERRY LECLERC | C173: ='[1]Remises libres'!C175 -> 451361 | D173: ='[1]Remises libres'!D175 -> PIERRY LECLERC | E173: ='[1]Remises libres'!E175 -> 11 | F173: ='[1]Remises libres'!F175 -> REIMS | G173: ='[1]Remises libres'!G175 -> 30 | H173: ='[1]Remises libres'!H175 -> MARNE ARDENNES | I173: ='[1]Remises libres'!I175 -> 350
A174: ='[1]Remises libres'!A176 -> 51365 | B174: ='[1]Remises libres'!B176 -> DORMANS | C174: ='[1]Remises libres'!C176 -> 551365 | D174: ='[1]Remises libres'!D176 -> DORMANS | E174: ='[1]Remises libres'!E176 -> 11 | F174: ='[1]Remises libres'!F176 -> REIMS | G174: ='[1]Remises libres'!G176 -> 30 | H174: ='[1]Remises libres'!H176 -> MARNE ARDENNES | I174: ='[1]Remises libres'!I176 -> 0
A175: ='[1]Remises libres'!A177 -> 51367 | B175: ='[1]Remises libres'!B177 -> AY CHAMPAGNE | C175: ='[1]Remises libres'!C177 -> 551367 | D175: ='[1]Remises libres'!D177 -> AY CHAMPAGNE | E175: ='[1]Remises libres'!E177 -> 11 | F175: ='[1]Remises libres'!F177 -> REIMS | G175: ='[1]Remises libres'!G177 -> 30 | H175: ='[1]Remises libres'!H177 -> MARNE ARDENNES | I175: ='[1]Remises libres'!I177 -> 0
A176: ='[1]Remises libres'!A178 -> 51369 | B176: ='[1]Remises libres'!B178 -> DAMERY | C176: ='[1]Remises libres'!C178 -> 551369 | D176: ='[1]Remises libres'!D178 -> DAMERY | E176: ='[1]Remises libres'!E178 -> 11 | F176: ='[1]Remises libres'!F178 -> REIMS | G176: ='[1]Remises libres'!G178 -> 30 | H176: ='[1]Remises libres'!H178 -> MARNE ARDENNES | I176: ='[1]Remises libres'!I178 -> 749
A177: ='[1]Remises libres'!A179 -> 51370 | B177: ='[1]Remises libres'!B179 -> EPERNAY | C177: ='[1]Remises libres'!C179 -> 451370 | D177: ='[1]Remises libres'!D179 -> EPERNAY | E177: ='[1]Remises libres'!E179 -> 11 | F177: ='[1]Remises libres'!F179 -> REIMS | G177: ='[1]Remises libres'!G179 -> 30 | H177: ='[1]Remises libres'!H179 -> MARNE ARDENNES | I177: ='[1]Remises libres'!I179 -> 1177.6
A178: ='[1]Remises libres'!A180 -> 51381 | B178: ='[1]Remises libres'!B180 -> SEZANNE | C178: ='[1]Remises libres'!C180 -> 451381 | D178: ='[1]Remises libres'!D180 -> SEZANNE | E178: ='[1]Remises libres'!E180 -> 6 | F178: ='[1]Remises libres'!F180 -> CHALONS EN CHAMPAGNE | G178: ='[1]Remises libres'!G180 -> 30 | H178: ='[1]Remises libres'!H180 -> MARNE ARDENNES | I178: ='[1]Remises libres'!I180 -> 552.81
A179: ='[1]Remises libres'!A181 -> 54116 | B179: ='[1]Remises libres'!B181 -> BACCARAT | C179: ='[1]Remises libres'!C181 -> 554116 | D179: ='[1]Remises libres'!D181 -> BACCARAT | E179: ='[1]Remises libres'!E181 -> 26 | F179: ='[1]Remises libres'!F181 -> NANCY | G179: ='[1]Remises libres'!G181 -> 110 | H179: ='[1]Remises libres'!H181 -> MEURTHE ET MOSELLE MEUSE | I179: ='[1]Remises libres'!I181 -> 228
A180: ='[1]Remises libres'!A182 -> 54161 | B180: ='[1]Remises libres'!B182 -> BAYON | C180: ='[1]Remises libres'!C182 -> 554166 | D180: ='[1]Remises libres'!D182 -> BLAINVILLE | E180: ='[1]Remises libres'!E182 -> 26 | F180: ='[1]Remises libres'!F182 -> NANCY | G180: ='[1]Remises libres'!G182 -> 110 | H180: ='[1]Remises libres'!H182 -> MEURTHE ET MOSELLE MEUSE | I180: ='[1]Remises libres'!I182 -> 0.01
A181: ='[1]Remises libres'!A183 -> 54166 | B181: ='[1]Remises libres'!B183 -> BLAINVILLE | C181: ='[1]Remises libres'!C183 -> 554166 | D181: ='[1]Remises libres'!D183 -> BLAINVILLE | E181: ='[1]Remises libres'!E183 -> 26 | F181: ='[1]Remises libres'!F183 -> NANCY | G181: ='[1]Remises libres'!G183 -> 110 | H181: ='[1]Remises libres'!H183 -> MEURTHE ET MOSELLE MEUSE | I181: ='[1]Remises libres'!I183 -> 793.97
A182: ='[1]Remises libres'!A184 -> 54171 | B182: ='[1]Remises libres'!B184 -> BLAMONT | C182: ='[1]Remises libres'!C184 -> 454171 | D182: ='[1]Remises libres'!D184 -> BLAMONT | E182: ='[1]Remises libres'!E184 -> 26 | F182: ='[1]Remises libres'!F184 -> NANCY | G182: ='[1]Remises libres'!G184 -> 110 | H182: ='[1]Remises libres'!H184 -> MEURTHE ET MOSELLE MEUSE | I182: ='[1]Remises libres'!I184 -> 100
A183: ='[1]Remises libres'!A185 -> 54184 | B183: ='[1]Remises libres'!B185 -> BRIEY | C183: ='[1]Remises libres'!C185 -> 554184 | D183: ='[1]Remises libres'!D185 -> BRIEY | E183: ='[1]Remises libres'!E185 -> 27 | F183: ='[1]Remises libres'!F185 -> PONT A MOUSSON | G183: ='[1]Remises libres'!G185 -> 110 | H183: ='[1]Remises libres'!H185 -> MEURTHE ET MOSELLE MEUSE | I183: ='[1]Remises libres'!I185 -> 185.64
A184: ='[1]Remises libres'!A186 -> 54196 | B184: ='[1]Remises libres'!B186 -> CHAMPIGNEULLES | C184: ='[1]Remises libres'!C186 -> 554196 | D184: ='[1]Remises libres'!D186 -> CHAMPIGNEULLES | E184: ='[1]Remises libres'!E186 -> 27 | F184: ='[1]Remises libres'!F186 -> PONT A MOUSSON | G184: ='[1]Remises libres'!G186 -> 110 | H184: ='[1]Remises libres'!H186 -> MEURTHE ET MOSELLE MEUSE | I184: ='[1]Remises libres'!I186 -> 0
A185: ='[1]Remises libres'!A187 -> 54257 | B185: ='[1]Remises libres'!B187 -> DIEULOUARD | C185: ='[1]Remises libres'!C187 -> 554257 | D185: ='[1]Remises libres'!D187 -> DIEULOUARD | E185: ='[1]Remises libres'!E187 -> 27 | F185: ='[1]Remises libres'!F187 -> PONT A MOUSSON | G185: ='[1]Remises libres'!G187 -> 110 | H185: ='[1]Remises libres'!H187 -> MEURTHE ET MOSELLE MEUSE | I185: ='[1]Remises libres'!I187 -> 300
A186: ='[1]Remises libres'!A188 -> 54266 | B186: ='[1]Remises libres'!B188 -> DOMBASLE SUR MEURTHE | C186: ='[1]Remises libres'!C188 -> 554266 | D186: ='[1]Remises libres'!D188 -> DOMBASLE SUR MEURTHE | E186: ='[1]Remises libres'!E188 -> 26 | F186: ='[1]Remises libres'!F188 -> NANCY | G186: ='[1]Remises libres'!G188 -> 110 | H186: ='[1]Remises libres'!H188 -> MEURTHE ET MOSELLE MEUSE | I186: ='[1]Remises libres'!I188 -> 161.96
A187: ='[1]Remises libres'!A189 -> 54296 | B187: ='[1]Remises libres'!B189 -> ESSEY LES NANCY | C187: ='[1]Remises libres'!C189 -> 554296 | D187: ='[1]Remises libres'!D189 -> ESSEY LES NANCY | E187: ='[1]Remises libres'!E189 -> 26 | F187: ='[1]Remises libres'!F189 -> NANCY | G187: ='[1]Remises libres'!G189 -> 110 | H187: ='[1]Remises libres'!H189 -> MEURTHE ET MOSELLE MEUSE | I187: ='[1]Remises libres'!I189 -> 347.31
A188: ='[1]Remises libres'!A190 -> 54321 | B188: ='[1]Remises libres'!B190 -> FROUARD | C188: ='[1]Remises libres'!C190 -> 554321 | D188: ='[1]Remises libres'!D190 -> FROUARD | E188: ='[1]Remises libres'!E190 -> 27 | F188: ='[1]Remises libres'!F190 -> PONT A MOUSSON | G188: ='[1]Remises libres'!G190 -> 110 | H188: ='[1]Remises libres'!H190 -> MEURTHE ET MOSELLE MEUSE | I188: ='[1]Remises libres'!I190 -> 0
A189: ='[1]Remises libres'!A191 -> 54355 | B189: ='[1]Remises libres'!B191 -> JARNY | C189: ='[1]Remises libres'!C191 -> 454355 | D189: ='[1]Remises libres'!D191 -> JARNY | E189: ='[1]Remises libres'!E191 -> 27 | F189: ='[1]Remises libres'!F191 -> PONT A MOUSSON | G189: ='[1]Remises libres'!G191 -> 110 | H189: ='[1]Remises libres'!H191 -> MEURTHE ET MOSELLE MEUSE | I189: ='[1]Remises libres'!I191 -> 1556.9
A190: ='[1]Remises libres'!A192 -> 54356 | B190: ='[1]Remises libres'!B192 -> JARVILLE LA MALGRANGE | C190: ='[1]Remises libres'!C192 -> 554356 | D190: ='[1]Remises libres'!D192 -> JARVILLE LA MALGRANGE | E190: ='[1]Remises libres'!E192 -> 26 | F190: ='[1]Remises libres'!F192 -> NANCY | G190: ='[1]Remises libres'!G192 -> 110 | H190: ='[1]Remises libres'!H192 -> MEURTHE ET MOSELLE MEUSE | I190: ='[1]Remises libres'!I192 -> 207.42
A191: ='[1]Remises libres'!A193 -> 54357 | B191: ='[1]Remises libres'!B193 -> JOEUF | C191: ='[1]Remises libres'!C193 -> 554357 | D191: ='[1]Remises libres'!D193 -> JOEUF | E191: ='[1]Remises libres'!E193 -> 27 | F191: ='[1]Remises libres'!F193 -> PONT A MOUSSON | G191: ='[1]Remises libres'!G193 -> 110 | H191: ='[1]Remises libres'!H193 -> MEURTHE ET MOSELLE MEUSE | I191: ='[1]Remises libres'!I193 -> 50.07
A192: ='[1]Remises libres'!A194 -> 54376 | B192: ='[1]Remises libres'!B194 -> LAXOU BOUFFLERS | C192: ='[1]Remises libres'!C194 -> 554376 | D192: ='[1]Remises libres'!D194 -> LAXOU BOUFFLERS | E192: ='[1]Remises libres'!E194 -> 27 | F192: ='[1]Remises libres'!F194 -> PONT A MOUSSON | G192: ='[1]Remises libres'!G194 -> 110 | H192: ='[1]Remises libres'!H194 -> MEURTHE ET MOSELLE MEUSE | I192: ='[1]Remises libres'!I194 -> 300
A193: ='[1]Remises libres'!A195 -> 54381 | B193: ='[1]Remises libres'!B195 -> LAXOU ARISTIDE BRIAND | C193: ='[1]Remises libres'!C195 -> 554381 | D193: ='[1]Remises libres'!D195 -> LAXOU ARISTIDE BRIAND | E193: ='[1]Remises libres'!E195 -> 27 | F193: ='[1]Remises libres'!F195 -> PONT A MOUSSON | G193: ='[1]Remises libres'!G195 -> 110 | H193: ='[1]Remises libres'!H195 -> MEURTHE ET MOSELLE MEUSE | I193: ='[1]Remises libres'!I195 -> 792.76
A194: ='[1]Remises libres'!A196 -> 54412 | B194: ='[1]Remises libres'!B196 -> LONGUYON | C194: ='[1]Remises libres'!C196 -> 554412 | D194: ='[1]Remises libres'!D196 -> LONGUYON | E194: ='[1]Remises libres'!E196 -> 31 | F194: ='[1]Remises libres'!F196 -> VERDUN | G194: ='[1]Remises libres'!G196 -> 110 | H194: ='[1]Remises libres'!H196 -> MEURTHE ET MOSELLE MEUSE | I194: ='[1]Remises libres'!I196 -> 0
A195: ='[1]Remises libres'!A197 -> 54413 | B195: ='[1]Remises libres'!B197 -> LONGWY BAS | C195: ='[1]Remises libres'!C197 -> 554413 | D195: ='[1]Remises libres'!D197 -> LONGWY BAS | E195: ='[1]Remises libres'!E197 -> 31 | F195: ='[1]Remises libres'!F197 -> VERDUN | G195: ='[1]Remises libres'!G197 -> 110 | H195: ='[1]Remises libres'!H197 -> MEURTHE ET MOSELLE MEUSE | I195: ='[1]Remises libres'!I197 -> 258.42
A196: ='[1]Remises libres'!A198 -> 54414 | B196: ='[1]Remises libres'!B198 -> LONGWY HAUT | C196: ='[1]Remises libres'!C198 -> 454414 | D196: ='[1]Remises libres'!D198 -> LONGWY HAUT | E196: ='[1]Remises libres'!E198 -> 31 | F196: ='[1]Remises libres'!F198 -> VERDUN | G196: ='[1]Remises libres'!G198 -> 110 | H196: ='[1]Remises libres'!H198 -> MEURTHE ET MOSELLE MEUSE | I196: ='[1]Remises libres'!I198 -> 829.2
A197: ='[1]Remises libres'!A199 -> 54416 | B197: ='[1]Remises libres'!B199 -> LUDRES | C197: ='[1]Remises libres'!C199 -> 554416 | D197: ='[1]Remises libres'!D199 -> LUDRES | E197: ='[1]Remises libres'!E199 -> 27 | F197: ='[1]Remises libres'!F199 -> PONT A MOUSSON | G197: ='[1]Remises libres'!G199 -> 110 | H197: ='[1]Remises libres'!H199 -> MEURTHE ET MOSELLE MEUSE | I197: ='[1]Remises libres'!I199 -> 324.09
A198: ='[1]Remises libres'!A200 -> 54426 | B198: ='[1]Remises libres'!B200 -> LUNEVILLE CARNOT | C198: ='[1]Remises libres'!C200 -> 454426 | D198: ='[1]Remises libres'!D200 -> LUNEVILLE CARNOT | E198: ='[1]Remises libres'!E200 -> 26 | F198: ='[1]Remises libres'!F200 -> NANCY | G198: ='[1]Remises libres'!G200 -> 110 | H198: ='[1]Remises libres'!H200 -> MEURTHE ET MOSELLE MEUSE | I198: ='[1]Remises libres'!I200 -> 2222.96
A199: ='[1]Remises libres'!A201 -> 54431 | B199: ='[1]Remises libres'!B201 -> LUNEVILLE CHATEAU | C199: ='[1]Remises libres'!C201 -> 554431 | D199: ='[1]Remises libres'!D201 -> LUNEVILLE CHATEAU | E199: ='[1]Remises libres'!E201 -> 26 | F199: ='[1]Remises libres'!F201 -> NANCY | G199: ='[1]Remises libres'!G201 -> 110 | H199: ='[1]Remises libres'!H201 -> MEURTHE ET MOSELLE MEUSE | I199: ='[1]Remises libres'!I201 -> 0
A200: ='[1]Remises libres'!A202 -> 54471 | B200: ='[1]Remises libres'!B202 -> NANCY JEAN JAURES | C200: ='[1]Remises libres'!C202 -> 554491 | D200: ='[1]Remises libres'!D202 -> NANCY SAINT SEBASTIEN | E200: ='[1]Remises libres'!E202 -> 26 | F200: ='[1]Remises libres'!F202 -> NANCY | G200: ='[1]Remises libres'!G202 -> 110 | H200: ='[1]Remises libres'!H202 -> MEURTHE ET MOSELLE MEUSE | I200: ='[1]Remises libres'!I202 -> 55.18
A201: ='[1]Remises libres'!A203 -> 54476 | B201: ='[1]Remises libres'!B203 -> NANCY ARTEM | C201: ='[1]Remises libres'!C203 -> 554476 | D201: ='[1]Remises libres'!D203 -> NANCY ARTEM | E201: ='[1]Remises libres'!E203 -> 26 | F201: ='[1]Remises libres'!F203 -> NANCY | G201: ='[1]Remises libres'!G203 -> 110 | H201: ='[1]Remises libres'!H203 -> MEURTHE ET MOSELLE MEUSE | I201: ='[1]Remises libres'!I203 -> 865.06
... 125 more rows

Sheet Rapport 5 (hidden)
AD1: 30 | AI1: 35 | AN1: 40 | AS1: 45 | AX1: 50 | BC1: 55 | BH1: 60 | BM1: 65 | BR1: 70
I2: ='[1]Rapport 5'!I2 -> AGIOS | K2: ='[1]Rapport 5'!K2 -> ASSURANCE RISQUES | M2: ='[1]Rapport 5'!M2 -> BANCARISATION ET GESTION COURANTE | O2: ='[1]Rapport 5'!O2 -> CREDITS | Q2: ='[1]Rapport 5'!Q2 -> INTERETS CREDITS CT ET MLT | S2: ='[1]Rapport 5'!S2 -> OPERATIONS INTERNATIONALES | U2: ='[1]Rapport 5'!U2 -> SERVICES CLIENTELES DIVERS | W2: ='[1]Rapport 5'!W2 -> TITRES | Y2: Total facturé | Z2: Total remisé | AA2: Taux de remise total | AB2: Classt Taux total | AC2: Calcul Décile total | AD2: Décile total | AE2: Agios remisés | AF2: Taux de remise Agios | AG2: Classt Taux Agios | AH2: Calcul Décile Agios | AI2: Décile Agios | AJ2: Assurances remisées | AK2: Taux de remise Assurances | AL2: Classt Taux Assurances | AM2: Calcul Décile Assurances | AN2: Décile Assurances | AO2: Banca et gestion courante remisées | AP2: Taux de remise Banca et gestion courante | AQ2: Classt Taux Banca et gestion courante | AR2: Calcul Décile Banca et gestion courante | AS2: Décile Banca et gestion courante | AT2: Crédits remisées | AU2: Taux de remise Crédits | AV2: Classt Taux Crédits | AW2: Calcul Décile Crédits | AX2: Décile Crédits | AY2: Intérets crédits remisées | AZ2: Taux de remise Intérets crédits | BA2: Classt Taux Intérets crédits | BB2: Calcul Décile Intérets crédits | BC2: Décile Intérets crédits | BD2: Opérations internationales remisées | BE2: Taux de remise Opérations internationales | BF2: Classt Taux Opérations internationales | BG2: Calcul Décile Opérations internationales | BH2: Décile Opérations internationales | BI2: Services clientèles divers remisées | BJ2: Taux de remise Services clientèles divers | BK2: Classt Taux Services clientèles divers | BL2: Calcul Décile Services clientèles divers | BM2: Décile Services clientèles divers | BN2: Titres remisées | BO2: Taux de remise Titres | BP2: Classt Taux Titres | BQ2: Calcul Décile Titres | BR2: Décile Titres
A3: ='[1]Rapport 5'!A3 -> 6 | B3: ='[1]Rapport 5'!B3 -> STRASBOURG NEUDORF | C3: ='[1]Rapport 5'!C3 -> 4006 | D3: ='[1]Rapport 5'!D3 -> STRASBOURG NEUDORF | E3: ='[1]Rapport 5'!E3 -> 5006 | F3: ='[1]Rapport 5'!F3 -> STRASBOURG | G3: ='[1]Rapport 5'!G3 -> 262 | H3: ='[1]Rapport 5'!H3 -> BAS RHIN | I3: ='[1]Rapport 5'!I3 -> 7559.12 | J3: ='[1]Rapport 5'!J3 -> 673.97 | K3: ='[1]Rapport 5'!K3 -> 0 | L3: ='[1]Rapport 5'!L3 -> 0 | M3: ='[1]Rapport 5'!M3 -> 223174.35 | N3: ='[1]Rapport 5'!N3 -> 8435.86 | O3: ='[1]Rapport 5'!O3 -> 3838.5 | P3: ='[1]Rapport 5'!P3 -> 241 | Q3: ='[1]Rapport 5'!Q3 -> 0 | R3: ='[1]Rapport 5'!R3 -> 0 | S3: ='[1]Rapport 5'!S3 -> 708.8 | T3: ='[1]Rapport 5'!T3 -> 0 | U3: ='[1]Rapport 5'!U3 -> 24159.4 | V3: ='[1]Rapport 5'!V3 -> 2059.83 | W3: ='[1]Rapport 5'!W3 -> 9939.21 | X3: ='[1]Rapport 5'!X3 -> 185.83 | Y3: =+I3+K3+M3+O3+Q3+S3+U3+W3 -> 269,379 | Z3: =+J3+L3+N3+P3+R3+T3+V3+X3 -> 11,596 | AA3: =+Z3/Y3 -> 4.3% | AB3: =RANK(AA3,$AA$3:$AA$320,1) -> 209 | AC3: =1+(AB3/COUNT($AB$3:AB$320)*10) -> 7.572327044 | AD3: =+IF(INT(AC3)=11,10,INT(AC3)) -> 7 | AE3: =+J3 -> 674 | AF3: =+IF(ISERROR(AE3/I3),0,AE3/I3) -> 8.9% | AG3: =RANK(AF3,$AF$3:$AF$320,1) -> 264 | AH3: =1+(AG3/COUNT($AG$3:$AG$320)*10) -> 9.301886792 | AI3: =+IF(INT(AH3)=11,10,INT(AH3)) -> 9 | AJ3: =+L3 -> 0 | AK3: =+IF(ISERROR(IF(AJ3=0,0,AJ3/K3)),1,IF(AJ3=0,0,AJ3/K3)) -> 0.0% | AL3: =RANK(AK3,$AK$3:$AK$320,1) -> 1 | AM3: =1+(AL3/COUNT($AL$3:$AL$320)*10) -> 1.031446541 | AN3: =+IF(INT(AM3)=11,10,INT(AM3)) -> 1 | AO3: =+N3 -> 8,436 | AP3: =+IF(ISERROR(IF(AO3=0,0,AO3/M3)),1,IF(AO3=0,0,AO3/M3)) -> 3.8% | AQ3: =RANK(AP3,$AP$3:$AP$320,1) -> 227 | AR3: =1+(AQ3/COUNT($AQ$3:$AQ$320)*10) -> 8.13836478 | AS3: =+IF(INT(AR3)=11,10,INT(AR3)) -> 8 | AT3: =+P3 -> 241 | AU3: =+IF(ISERROR(IF(AT3=0,0,AT3/O3)),1,IF(AT3=0,0,AT3/O3)) -> 6.3% | AV3: =RANK(AU3,$AU$3:$AU$320,1) -> 211 | AW3: =1+(AV3/COUNT($AV$3:$AV$320)*10) -> 7.635220126 | AX3: =+IF(INT(AW3)=11,10,INT(AW3)) -> 7 | AY3: =+R3 -> 0 | AZ3: =+IF(ISERROR(IF(AY3=0,0,AY3/T3)),1,IF(AY3=0,0,AY3/T3)) -> 0.0% | BA3: =RANK(AZ3,$AZ$3:$AZ$320,1) -> 1 | BB3: =1+(BA3/COUNT($BA$3:$BA$320)*10) -> 1.031446541 | BC3: =+IF(INT(BB3)=11,10,INT(BB3)) -> 1 | BD3: =+T3 -> 0 | BE3: =+IF(ISERROR(IF(BD3=0,0,BD3/S3)),1,IF(BD3=0,0,BD3/S3)) -> 0.0% | BF3: =RANK(BE3,$BE$3:$BE$320,1) -> 1 | BG3: =1+(BF3/COUNT($BF$3:$BF$320)*10) -> 1.031446541 | BH3: =+IF(INT(BG3)=11,10,INT(BG3)) -> 1 | BI3: =+V3 -> 2,060 | BJ3: =+IF(ISERROR(IF(BI3=0,0,BI3/U3)),1,IF(BI3=0,0,BI3/U3)) -> 8.5% | BK3: =RANK(BJ3,$BJ$3:$BJ$320,1) -> 132 | BL3: =1+(BK3/COUNT($BK$3:$BK$320)*10) -> 5.150943396 | BM3: =+IF(INT(BL3)=11,10,INT(BL3)) -> 5 | BN3: =+X3 -> 186 | BO3: =+IF(ISERROR(IF(BN3=0,0,BN3/W3)),1,IF(BN3=0,0,BN3/W3)) -> 1.9% | BP3: =RANK(BO3,$BO$3:$BO$320,1) -> 107 | BQ3: =1+(BP3/COUNT($BP$3:$BP$320)*10) -> 4.364779874 | BR3: =+IF(INT(BQ3)=11,10,INT(BQ3)) -> 4 | BT3: 6 | BU3: =+BT3-A3 -> 0
A4: ='[1]Rapport 5'!A4 -> 7 | B4: ='[1]Rapport 5'!B4 -> ILLKIRCH CENTRE | C4: ='[1]Rapport 5'!C4 -> 4007 | D4: ='[1]Rapport 5'!D4 -> ILLKIRCH CENTRE | E4: ='[1]Rapport 5'!E4 -> 5101 | F4: ='[1]Rapport 5'!F4 -> SELESTAT | G4: ='[1]Rapport 5'!G4 -> 262 | H4: ='[1]Rapport 5'!H4 -> BAS RHIN | I4: ='[1]Rapport 5'!I4 -> 7607.47 | J4: ='[1]Rapport 5'!J4 -> 1047.71 | K4: ='[1]Rapport 5'!K4 -> 0 | L4: ='[1]Rapport 5'!L4 -> 0 | M4: ='[1]Rapport 5'!M4 -> 258697.41 | N4: ='[1]Rapport 5'!N4 -> 11835.08 | O4: ='[1]Rapport 5'!O4 -> 13575 | P4: ='[1]Rapport 5'!P4 -> 1181 | Q4: ='[1]Rapport 5'!Q4 -> 1170.96 | R4: ='[1]Rapport 5'!R4 -> 0 | S4: ='[1]Rapport 5'!S4 -> 640 | T4: ='[1]Rapport 5'!T4 -> 39 | U4: ='[1]Rapport 5'!U4 -> 24905.64 | V4: ='[1]Rapport 5'!V4 -> 1064.16 | W4: ='[1]Rapport 5'!W4 -> 18577.45 | X4: ='[1]Rapport 5'!X4 -> 907.17 | Y4: =+I4+K4+M4+O4+Q4+S4+U4+W4 -> 325,174 | Z4: =+J4+L4+N4+P4+R4+T4+V4+X4 -> 16,074 | AA4: =+Z4/Y4 -> 4.9% | AB4: 255 | AC4: =1+(AB4/COUNT($AB$3:AB$320)*10) -> 9.018867925 | AD4: =+IF(INT(AC4)=11,10,INT(AC4)) -> 9 | AE4: =+J4 -> 1,048 | AF4: =+IF(ISERROR(AE4/I4),0,AE4/I4) -> 13.8% | AG4: 300 | AH4: 10.43396226 | AI4: =+IF(INT(AH4)=11,10,INT(AH4)) -> 10 | AJ4: =+L4 -> 0 | AK4: =+IF(ISERROR(IF(AJ4=0,0,AJ4/K4)),1,IF(AJ4=0,0,AJ4/K4)) -> 0.0% | AL4: 1 | AM4: 1.031446541 | AN4: =+IF(INT(AM4)=11,10,INT(AM4)) -> 1 | AO4: =+N4 -> 11,835 | AP4: =+IF(ISERROR(IF(AO4=0,0,AO4/M4)),1,IF(AO4=0,0,AO4/M4)) -> 4.6% | AQ4: 279 | AR4: 9.773584906 | AS4: =+IF(INT(AR4)=11,10,INT(AR4)) -> 9 | AT4: =+P4 -> 1,181 | AU4: =+IF(ISERROR(IF(AT4=0,0,AT4/O4)),1,IF(AT4=0,0,AT4/O4)) -> 8.7% | AV4: 237 | AW4: 8.452830189 | AX4: =+IF(INT(AW4)=11,10,INT(AW4)) -> 8 | AY4: =+R4 -> 0 | AZ4: =+IF(ISERROR(IF(AY4=0,0,AY4/T4)),1,IF(AY4=0,0,AY4/T4)) -> 0.0% | BA4: 1 | BB4: 1.031446541 | BC4: =+IF(INT(BB4)=11,10,INT(BB4)) -> 1 | BD4: =+T4 -> 39 | BE4: =+IF(ISERROR(IF(BD4=0,0,BD4/S4)),1,IF(BD4=0,0,BD4/S4)) -> 6.1% | BF4: 262 | BG4: 9.238993711 | BH4: =+IF(INT(BG4)=11,10,INT(BG4)) -> 9 | BI4: =+V4 -> 1,064 | BJ4: =+IF(ISERROR(IF(BI4=0,0,BI4/U4)),1,IF(BI4=0,0,BI4/U4)) -> 4.3% | BK4: 57 | BL4: 2.79245283 | BM4: =+IF(INT(BL4)=11,10,INT(BL4)) -> 2 | BN4: =+X4 -> 907 | BO4: =+IF(ISERROR(IF(BN4=0,0,BN4/W4)),1,IF(BN4=0,0,BN4/W4)) -> 4.9% | BP4: 223 | BQ4: 8.012578616 | BR4: =+IF(INT(BQ4)=11,10,INT(BQ4)) -> 8 | BT4: 7 | BU4: =+BT4-A4 -> 0
A5: ='[1]Rapport 5'!A5 -> 8 | B5: ='[1]Rapport 5'!B5 -> FEGERSHEIM | C5: ='[1]Rapport 5'!C5 -> 4008 | D5: ='[1]Rapport 5'!D5 -> FEGERSHEIM | E5: ='[1]Rapport 5'!E5 -> 5101 | F5: ='[1]Rapport 5'!F5 -> SELESTAT | G5: ='[1]Rapport 5'!G5 -> 262 | H5: ='[1]Rapport 5'!H5 -> BAS RHIN | I5: ='[1]Rapport 5'!I5 -> 2967.16 | J5: ='[1]Rapport 5'!J5 -> 317.27 | K5: ='[1]Rapport 5'!K5 -> 0 | L5: ='[1]Rapport 5'!L5 -> 0 | M5: ='[1]Rapport 5'!M5 -> 98941.98 | N5: ='[1]Rapport 5'!N5 -> 4132.36 | O5: ='[1]Rapport 5'!O5 -> 2748 | P5: ='[1]Rapport 5'!P5 -> 42.5 | Q5: ='[1]Rapport 5'!Q5 -> 0 | R5: ='[1]Rapport 5'!R5 -> 0 | S5: ='[1]Rapport 5'!S5 -> 181 | T5: ='[1]Rapport 5'!T5 -> 0 | U5: ='[1]Rapport 5'!U5 -> 5656 | V5: ='[1]Rapport 5'!V5 -> 806.75 | W5: ='[1]Rapport 5'!W5 -> 5401.29 | X5: ='[1]Rapport 5'!X5 -> 215.65 | Y5: 115,895 | Z5: 5,515 | AA5: 4.8% | AB5: 245 | AC5: =1+(AB5/COUNT($AB$3:AB$320)*10) -> 8.704402516 | AD5: 8 | AE5: =+J5 -> 317 | AF5: 10.7% | AG5: 279 | AH5: 9.773584906 | AI5: =+IF(INT(AH5)=11,10,INT(AH5)) -> 9 | AJ5: 0 | AK5: 0.0% | AL5: 1 | AM5: 1.031446541 | AN5: 1 | AO5: 4,132 | AP5: 4.2% | AQ5: 259 | AR5: 9.144654088 | AS5: 9 | AT5: =+P5 -> 43 | AU5: =+IF(ISERROR(IF(AT5=0,0,AT5/O5)),1,IF(AT5=0,0,AT5/O5)) -> 1.5% | AV5: 102 | AW5: 4.20754717 | AX5: =+IF(INT(AW5)=11,10,INT(AW5)) -> 4 | AY5: =+R5 -> 0 | AZ5: =+IF(ISERROR(IF(AY5=0,0,AY5/T5)),1,IF(AY5=0,0,AY5/T5)) -> 0.0% | BA5: 1 | BB5: 1.031446541 | BC5: =+IF(INT(BB5)=11,10,INT(BB5)) -> 1 | BD5: =+T5 -> 0 | BE5: =+IF(ISERROR(IF(BD5=0,0,BD5/S5)),1,IF(BD5=0,0,BD5/S5)) -> 0.0% | BF5: 1 | BG5: 1.031446541 | BH5: =+IF(INT(BG5)=11,10,INT(BG5)) -> 1 | BI5: =+V5 -> 807 | BJ5: =+IF(ISERROR(IF(BI5=0,0,BI5/U5)),1,IF(BI5=0,0,BI5/U5)) -> 14.3% | BK5: 217 | BL5: 7.823899371 | BM5: =+IF(INT(BL5)=11,10,INT(BL5)) -> 7 | BN5: =+X5 -> 216 | BO5: =+IF(ISERROR(IF(BN5=0,0,BN5/W5)),1,IF(BN5=0,0,BN5/W5)) -> 4.0% | BP5: 200 | BQ5: 7.289308176 | BR5: =+IF(INT(BQ5)=11,10,INT(BQ5)) -> 7 | BT5: 8 | BU5: 0
A6: ='[1]Rapport 5'!A6 -> 10 | B6: ='[1]Rapport 5'!B6 -> STRASBOURG MEINAU | C6: ='[1]Rapport 5'!C6 -> 4010 | D6: ='[1]Rapport 5'!D6 -> STRASBOURG MEINAU | E6: ='[1]Rapport 5'!E6 -> 5006 | F6: ='[1]Rapport 5'!F6 -> STRASBOURG | G6: ='[1]Rapport 5'!G6 -> 262 | H6: ='[1]Rapport 5'!H6 -> BAS RHIN | I6: ='[1]Rapport 5'!I6 -> 4157.32 | J6: ='[1]Rapport 5'!J6 -> 229.59 | K6: ='[1]Rapport 5'!K6 -> 0 | L6: ='[1]Rapport 5'!L6 -> 0 | M6: ='[1]Rapport 5'!M6 -> 118510.99 | N6: ='[1]Rapport 5'!N6 -> 5012.74 | O6: ='[1]Rapport 5'!O6 -> 2767 | P6: ='[1]Rapport 5'!P6 -> 397.8 | Q6: ='[1]Rapport 5'!Q6 -> 0 | R6: ='[1]Rapport 5'!R6 -> 0 | S6: ='[1]Rapport 5'!S6 -> 234.41 | T6: ='[1]Rapport 5'!T6 -> 0 | U6: ='[1]Rapport 5'!U6 -> 10293.14 | V6: ='[1]Rapport 5'!V6 -> 973.15 | W6: ='[1]Rapport 5'!W6 -> 4513.69 | X6: ='[1]Rapport 5'!X6 -> 56 | Y6: 140,477 | Z6: 6,669 | AA6: 4.7% | AB6: 244 | AC6: =1+(AB6/COUNT($AB$3:AB$320)*10) -> 8.672955975 | AD6: 8 | AE6: 230 | AF6: 5.5% | AG6: 216 | AH6: 7.79245283 | AI6: 7 | AJ6: 0 | AK6: 0.0% | AL6: 1 | AM6: 1.031446541 | AN6: 1 | AO6: 5,013 | AP6: 4.2% | AQ6: 261 | AR6: 9.20754717 | AS6: 9 | AT6: 398 | AU6: 14.4% | AV6: 279 | AW6: 9.773584906 | AX6: 9 | AY6: 0 | AZ6: 0.0% | BA6: 1 | BB6: 1.031446541 | BC6: 1 | BD6: 0 | BE6: 0.0% | BF6: 1 | BG6: 1.031446541 | BH6: 1 | BI6: 973 | BJ6: 9.5% | BK6: 145 | BL6: 5.559748428 | BM6: 5 | BN6: 56 | BO6: 1.2% | BP6: 73 | BQ6: 3.295597484 | BR6: 3 | BT6: 10 | BU6: 0
A7: ='[1]Rapport 5'!A7 -> 12 | B7: ='[1]Rapport 5'!B7 -> STRASBOURG STOCKFELD | C7: ='[1]Rapport 5'!C7 -> 4006 | D7: ='[1]Rapport 5'!D7 -> STRASBOURG NEUDORF | E7: ='[1]Rapport 5'!E7 -> 5006 | F7: ='[1]Rapport 5'!F7 -> STRASBOURG | G7: ='[1]Rapport 5'!G7 -> 262 | H7: ='[1]Rapport 5'!H7 -> BAS RHIN | I7: ='[1]Rapport 5'!I7 -> 2217.89 | J7: ='[1]Rapport 5'!J7 -> 100.98 | K7: ='[1]Rapport 5'!K7 -> 0 | L7: ='[1]Rapport 5'!L7 -> 0 | M7: ='[1]Rapport 5'!M7 -> 86362.81 | N7: ='[1]Rapport 5'!N7 -> 2647.69 | O7: ='[1]Rapport 5'!O7 -> 1386.5 | P7: ='[1]Rapport 5'!P7 -> 100 | Q7: ='[1]Rapport 5'!Q7 -> 0 | R7: ='[1]Rapport 5'!R7 -> 0 | S7: ='[1]Rapport 5'!S7 -> 231 | T7: ='[1]Rapport 5'!T7 -> 0 | U7: ='[1]Rapport 5'!U7 -> 3474.96 | V7: ='[1]Rapport 5'!V7 -> 675.64 | W7: ='[1]Rapport 5'!W7 -> 2482.11 | X7: ='[1]Rapport 5'!X7 -> 41 | Y7: 96,155 | Z7: 3,565 | AA7: 3.7% | AB7: 150 | AC7: =1+(AB7/COUNT($AB$3:AB$320)*10) -> 5.716981132 | AD7: 5 | AE7: 101 | AF7: 4.6% | AG7: 189 | AH7: 6.943396226 | AI7: 6 | AJ7: 0 | AK7: 0.0% | AL7: 1 | AM7: 1.031446541 | AN7: 1 | AO7: 2,648 | AP7: 3.1% | AQ7: 168 | AR7: 6.283018868 | AS7: 6 | AT7: 100 | AU7: 7.2% | AV7: 222 | AW7: 7.981132075 | AX7: 7 | AY7: 0 | AZ7: 0.0% | BA7: 1 | BB7: 1.031446541 | BC7: 1 | BD7: 0 | BE7: 0.0% | BF7: 1 | BG7: 1.031446541 | BH7: 1 | BI7: 676 | BJ7: 19.4% | BK7: 257 | BL7: 9.081761006 | BM7: 9 | BN7: 41 | BO7: 1.7% | BP7: 97 | BQ7: 4.050314465 | BR7: 4 | BT7: 12 | BU7: 0
A8: ='[1]Rapport 5'!A8 -> 14 | B8: ='[1]Rapport 5'!B8 -> OSTWALD | C8: ='[1]Rapport 5'!C8 -> 4015 | D8: ='[1]Rapport 5'!D8 -> LINGOLSHEIM | E8: ='[1]Rapport 5'!E8 -> 5101 | F8: ='[1]Rapport 5'!F8 -> SELESTAT | G8: ='[1]Rapport 5'!G8 -> 262 | H8: ='[1]Rapport 5'!H8 -> BAS RHIN | I8: ='[1]Rapport 5'!I8 -> 0 | J8: ='[1]Rapport 5'!J8 -> 0 | K8: ='[1]Rapport 5'!K8 -> 0 | L8: ='[1]Rapport 5'!L8 -> 0 | M8: ='[1]Rapport 5'!M8 -> 48.4 | N8: ='[1]Rapport 5'!N8 -> 0 | O8: ='[1]Rapport 5'!O8 -> 0 | P8: ='[1]Rapport 5'!P8 -> 0 | Q8: ='[1]Rapport 5'!Q8 -> 0 | R8: ='[1]Rapport 5'!R8 -> 0 | S8: ='[1]Rapport 5'!S8 -> 0 | T8: ='[1]Rapport 5'!T8 -> 0 | U8: ='[1]Rapport 5'!U8 -> 0 | V8: ='[1]Rapport 5'!V8 -> 0 | W8: ='[1]Rapport 5'!W8 -> 0 | X8: ='[1]Rapport 5'!X8 -> 0 | Y8: 48 | Z8: 0 | AA8: 0.0% | AB8: 1 | AC8: =1+(AB8/COUNT($AB$3:AB$320)*10) -> 1.031446541 | AD8: 1 | AE8: 0 | AF8: 0.0% | AG8: 1 | AH8: 1.031446541 | AI8: 1 | AJ8: 0 | AK8: 0.0% | AL8: 1 | AM8: 1.031446541 | AN8: 1 | AO8: 0 | AP8: 0.0% | AQ8: 1 | AR8: 1.031446541 | AS8: 1 | AT8: 0 | AU8: 0.0% | AV8: 1 | AW8: 1.031446541 | AX8: 1 | AY8: 0 | AZ8: 0.0% | BA8: 1 | BB8: 1.031446541 | BC8: 1 | BD8: 0 | BE8: 0.0% | BF8: 1 | BG8: 1.031446541 | BH8: 1 | BI8: 0 | BJ8: 0.0% | BK8: 1 | BL8: 1.031446541 | BM8: 1 | BN8: 0 | BO8: 0.0% | BP8: 1 | BQ8: 1.031446541 | BR8: 1 | BT8: 13 | BU8: -1
A9: ='[1]Rapport 5'!A9 -> 15 | B9: ='[1]Rapport 5'!B9 -> LINGOLSHEIM | C9: ='[1]Rapport 5'!C9 -> 4015 | D9: ='[1]Rapport 5'!D9 -> LINGOLSHEIM | E9: ='[1]Rapport 5'!E9 -> 5101 | F9: ='[1]Rapport 5'!F9 -> SELESTAT | G9: ='[1]Rapport 5'!G9 -> 262 | H9: ='[1]Rapport 5'!H9 -> BAS RHIN | I9: ='[1]Rapport 5'!I9 -> 5366.66 | J9: ='[1]Rapport 5'!J9 -> 242.77 | K9: ='[1]Rapport 5'!K9 -> 0 | L9: ='[1]Rapport 5'!L9 -> 0 | M9: ='[1]Rapport 5'!M9 -> 153104.53 | N9: ='[1]Rapport 5'!N9 -> 5176.51 | O9: ='[1]Rapport 5'!O9 -> 5011.5 | P9: ='[1]Rapport 5'!P9 -> 307 | Q9: ='[1]Rapport 5'!Q9 -> 0 | R9: ='[1]Rapport 5'!R9 -> 0 | S9: ='[1]Rapport 5'!S9 -> 300 | T9: ='[1]Rapport 5'!T9 -> 18 | U9: ='[1]Rapport 5'!U9 -> 10780.84 | V9: ='[1]Rapport 5'!V9 -> 553.37 | W9: ='[1]Rapport 5'!W9 -> 6152.41 | X9: ='[1]Rapport 5'!X9 -> 268.71 | Y9: 180,716 | Z9: 6,566 | AA9: 3.6% | AB9: 142 | AC9: =1+(AB9/COUNT($AB$3:AB$320)*10) -> 5.465408805 | AD9: 5 | AE9: 243 | AF9: 4.5% | AG9: 184 | AH9: 6.786163522 | AI9: 6 | AJ9: 0 | AK9: 0.0% | AL9: 1 | AM9: 1.031446541 | AN9: 1 | AO9: 5,177 | AP9: 3.4% | AQ9: 198 | AR9: 7.226415094 | AS9: 7 | AT9: 307 | AU9: 6.1% | AV9: 209 | AW9: 7.572327044 | AX9: 7 | AY9: 0 | AZ9: 0.0% | BA9: 1 | BB9: 1.031446541 | BC9: 1 | BD9: 18 | BE9: 6.0% | BF9: 261 | BG9: 9.20754717 | BH9: 9 | BI9: 553 | BJ9: 5.1% | BK9: 73 | BL9: 3.295597484 | BM9: 3 | BN9: 269 | BO9: 4.4% | BP9: 210 | BQ9: 7.603773585 | BR9: 7 | BT9: 14 | BU9: -1
A10: ='[1]Rapport 5'!A10 -> 17 | B10: ='[1]Rapport 5'!B10 -> MON AGENCE | C10: ='[1]Rapport 5'!C10 -> 4017 | D10: ='[1]Rapport 5'!D10 -> MON AGENCE | E10: ='[1]Rapport 5'!E10 -> 5017 | F10: ='[1]Rapport 5'!F10 -> MON AGENCE | G10: ='[1]Rapport 5'!G10 -> 269 | H10: ='[1]Rapport 5'!H10 -> BANQUE DIGITALE | I10: ='[1]Rapport 5'!I10 -> 23337.72 | J10: ='[1]Rapport 5'!J10 -> 168.54 | K10: ='[1]Rapport 5'!K10 -> 0 | L10: ='[1]Rapport 5'!L10 -> 0 | M10: ='[1]Rapport 5'!M10 -> 193884.5 | N10: ='[1]Rapport 5'!N10 -> 4513.1 | O10: ='[1]Rapport 5'!O10 -> 63.3 | P10: ='[1]Rapport 5'!P10 -> 765.5 | Q10: ='[1]Rapport 5'!Q10 -> 0 | R10: ='[1]Rapport 5'!R10 -> 0 | S10: ='[1]Rapport 5'!S10 -> 194 | T10: ='[1]Rapport 5'!T10 -> 53.3 | U10: ='[1]Rapport 5'!U10 -> 8632.65 | V10: ='[1]Rapport 5'!V10 -> 796.78 | W10: ='[1]Rapport 5'!W10 -> 20044.84 | X10: ='[1]Rapport 5'!X10 -> 365.56 | Y10: 246,157 | Z10: 6,663 | AA10: 2.7% | AB10: 54 | AC10: =1+(AB10/COUNT($AB$3:AB$320)*10) -> 2.698113208 | AD10: 2 | AE10: 169 | AF10: 0.7% | AG10: 12 | AH10: 1.377358491 | AI10: 1 | AJ10: 0 | AK10: 0.0% | AL10: 1 | AM10: 1.031446541 | AN10: 1 | AO10: 4,513 | AP10: 2.3% | AQ10: 80 | AR10: 3.51572327 | AS10: 3 | AT10: 766 | AU10: 1209.3% | AV10: 318 | AW10: 11 | AX10: 10 | AY10: 0 | AZ10: 0.0% | BA10: 1 | BB10: 1.031446541 | BC10: 1 | BD10: 53 | BE10: 27.5% | BF10: 305 | BG10: 10.59119497 | BH10: 10 | BI10: 797 | BJ10: 9.2% | BK10: 142 | BL10: 5.465408805 | BM10: 5 | BN10: 366 | BO10: 1.8% | BP10: 104 | BQ10: 4.270440252 | BR10: 4 | BT10: 15 | BU10: -2
A11: ='[1]Rapport 5'!A11 -> 18 | B11: ='[1]Rapport 5'!B11 -> ESPACE MESANGE | C11: ='[1]Rapport 5'!C11 -> 4043 | D11: ='[1]Rapport 5'!D11 -> STRASBOURG HALLES | E11: ='[1]Rapport 5'!E11 -> 5006 | F11: ='[1]Rapport 5'!F11 -> STRASBOURG | G11: ='[1]Rapport 5'!G11 -> 262 | H11: ='[1]Rapport 5'!H11 -> BAS RHIN | I11: ='[1]Rapport 5'!I11 -> 11670.21 | J11: ='[1]Rapport 5'!J11 -> 1519.72 | K11: ='[1]Rapport 5'!K11 -> 0 | L11: ='[1]Rapport 5'!L11 -> 0 | M11: ='[1]Rapport 5'!M11 -> 92325.25 | N11: ='[1]Rapport 5'!N11 -> 3604.75 | O11: ='[1]Rapport 5'!O11 -> 10587 | P11: ='[1]Rapport 5'!P11 -> 1189 | Q11: ='[1]Rapport 5'!Q11 -> 667.3 | R11: ='[1]Rapport 5'!R11 -> 0 | S11: ='[1]Rapport 5'!S11 -> 547.7 | T11: ='[1]Rapport 5'!T11 -> 0 | U11: ='[1]Rapport 5'!U11 -> 3489.23 | V11: ='[1]Rapport 5'!V11 -> 4.04 | W11: ='[1]Rapport 5'!W11 -> 3947.06 | X11: ='[1]Rapport 5'!X11 -> 0 | Y11: 123,234 | Z11: 6,318 | AA11: 5.1% | AB11: 264 | AC11: =1+(AB11/COUNT($AB$3:AB$320)*10) -> 9.301886792 | AD11: 9 | AE11: =+J11 -> 1,520 | AF11: 13.0% | AG11: 297 | AH11: 10.33962264 | AI11: 10 | AJ11: 0 | AK11: 0.0% | AL11: 1 | AM11: 1.031446541 | AN11: 1 | AO11: 0 | AP11: 0.0% | AQ11: 1 | AR11: 1.031446541 | AS11: 1 | AT11: 1,189 | AU11: 11.2% | AV11: 256 | AW11: 9.050314465 | AX11: 9 | AY11: 0 | AZ11: 0.0% | BA11: 1 | BB11: 1.031446541 | BC11: 1 | BD11: 0 | BE11: 0.0% | BF11: 1 | BG11: 1.031446541 | BH11: 1 | BI11: 4 | BJ11: 0.1% | BK11: 14 | BL11: 1.440251572 | BM11: 1 | BN11: 0 | BO11: 0.0% | BP11: 1 | BQ11: 1.031446541 | BR11: 1 | BT11: 17 | BU11: -1
A12: ='[1]Rapport 5'!A12 -> 19 | B12: ='[1]Rapport 5'!B12 -> STRASBOURG ANVERS | C12: ='[1]Rapport 5'!C12 -> 4019 | D12: ='[1]Rapport 5'!D12 -> STRASBOURG ANVERS | E12: ='[1]Rapport 5'!E12 -> 5006 | F12: ='[1]Rapport 5'!F12 -> STRASBOURG | G12: ='[1]Rapport 5'!G12 -> 262 | H12: ='[1]Rapport 5'!H12 -> BAS RHIN | I12: ='[1]Rapport 5'!I12 -> 4332.87 | J12: ='[1]Rapport 5'!J12 -> 971.6 | K12: ='[1]Rapport 5'!K12 -> 0 | L12: ='[1]Rapport 5'!L12 -> 0 | M12: ='[1]Rapport 5'!M12 -> 174197.37 | N12: ='[1]Rapport 5'!N12 -> 10166.36 | O12: ='[1]Rapport 5'!O12 -> 6772 | P12: ='[1]Rapport 5'!P12 -> 1223 | Q12: ='[1]Rapport 5'!Q12 -> 0 | R12: ='[1]Rapport 5'!R12 -> 0 | S12: ='[1]Rapport 5'!S12 -> 965 | T12: ='[1]Rapport 5'!T12 -> 83 | U12: ='[1]Rapport 5'!U12 -> 13405.98 | V12: ='[1]Rapport 5'!V12 -> 761.14 | W12: ='[1]Rapport 5'!W12 -> 12107.65 | X12: ='[1]Rapport 5'!X12 -> 678.1 | Y12: 211,781 | Z12: 13,883 | AA12: 6.6% | AB12: 303 | AC12: =1+(AB12/COUNT($AB$3:AB$320)*10) -> 10.52830189 | AD12: 10 | AE12: 972 | AF12: 22.4% | AG12: 311 | AH12: 10.77987421 | AI12: 10 | AJ12: 0 | AK12: 0.0% | AL12: 1 | AM12: 1.031446541 | AN12: 1 | AO12: 10,166 | AP12: 5.8% | AQ12: 308 | AR12: 10.68553459 | AS12: 10 | AT12: 1,223 | AU12: 18.1% | AV12: 294 | AW12: 10.24528302 | AX12: 10 | AY12: 0 | AZ12: 0.0% | BA12: 1 | BB12: 1.031446541 | BC12: 1 | BD12: 83 | BE12: 8.6% | BF12: 271 | BG12: 9.522012579 | BH12: 9 | BI12: 761 | BJ12: 5.7% | BK12: 81 | BL12: 3.547169811 | BM12: 3 | BN12: 678 | BO12: 5.6% | BP12: 242 | BQ12: 8.610062893 | BR12: 8 | BT12: 18 | BU12: -1
A13: ='[1]Rapport 5'!A13 -> 20 | B13: ='[1]Rapport 5'!B13 -> STRASBOURG ROBERTSAU | C13: ='[1]Rapport 5'!C13 -> 4020 | D13: ='[1]Rapport 5'!D13 -> STRASBOURG ROBERTSAU | E13: ='[1]Rapport 5'!E13 -> 5006 | F13: ='[1]Rapport 5'!F13 -> STRASBOURG | G13: ='[1]Rapport 5'!G13 -> 262 | H13: ='[1]Rapport 5'!H13 -> BAS RHIN | I13: ='[1]Rapport 5'!I13 -> 4076.97 | J13: ='[1]Rapport 5'!J13 -> 307.36 | K13: ='[1]Rapport 5'!K13 -> 0 | L13: ='[1]Rapport 5'!L13 -> 0 | M13: ='[1]Rapport 5'!M13 -> 153947.29 | N13: ='[1]Rapport 5'!N13 -> 5290.88 | O13: ='[1]Rapport 5'!O13 -> 3421 | P13: ='[1]Rapport 5'!P13 -> 807.92 | Q13: ='[1]Rapport 5'!Q13 -> 0 | R13: ='[1]Rapport 5'!R13 -> 0 | S13: ='[1]Rapport 5'!S13 -> 2984.85 | T13: ='[1]Rapport 5'!T13 -> 0 | U13: ='[1]Rapport 5'!U13 -> 10731.37 | V13: ='[1]Rapport 5'!V13 -> 2146.03 | W13: ='[1]Rapport 5'!W13 -> 8422.16 | X13: ='[1]Rapport 5'!X13 -> 612.97 | Y13: 183,584 | Z13: 9,165 | AA13: 5.0% | AB13: 257 | AC13: =1+(AB13/COUNT($AB$3:AB$320)*10) -> 9.081761006 | AD13: 9 | AE13: 307 | AF13: 7.5% | AG13: 249 | AH13: 8.830188679 | AI13: 8 | AJ13: 0 | AK13: 0.0% | AL13: 1 | AM13: 1.031446541 | AN13: 1 | AO13: 5,291 | AP13: 3.4% | AQ13: 204 | AR13: 7.41509434 | AS13: 7 | AT13: 808 | AU13: 23.6% | AV13: 305 | AW13: 10.59119497 | AX13: 10 | AY13: 0 | AZ13: 0.0% | BA13: 1 | BB13: 1.031446541 | BC13: 1 | BD13: 0 | BE13: 0.0% | BF13: 1 | BG13: 1.031446541 | BH13: 1 | BI13: 2,146 | BJ13: 20.0% | BK13: 263 | BL13: 9.270440252 | BM13: 9 | BN13: 613 | BO13: 7.3% | BP13: 266 | BQ13: 9.364779874 | BR13: 9 | BT13: 19 | BU13: -1
A14: ='[1]Rapport 5'!A14 -> 23 | B14: ='[1]Rapport 5'!B14 -> STRASBOURG VOSGES | C14: ='[1]Rapport 5'!C14 -> 4023 | D14: ='[1]Rapport 5'!D14 -> STRASBOURG VOSGES | E14: ='[1]Rapport 5'!E14 -> 5006 | F14: ='[1]Rapport 5'!F14 -> STRASBOURG | G14: ='[1]Rapport 5'!G14 -> 262 | H14: ='[1]Rapport 5'!H14 -> BAS RHIN | I14: ='[1]Rapport 5'!I14 -> 2200.99 | J14: ='[1]Rapport 5'!J14 -> 258.24 | K14: ='[1]Rapport 5'!K14 -> 0 | L14: ='[1]Rapport 5'!L14 -> 0 | M14: ='[1]Rapport 5'!M14 -> 102137.75 | N14: ='[1]Rapport 5'!N14 -> 3760.01 | O14: ='[1]Rapport 5'!O14 -> 2586 | P14: ='[1]Rapport 5'!P14 -> 338 | Q14: ='[1]Rapport 5'!Q14 -> 0 | R14: ='[1]Rapport 5'!R14 -> 0 | S14: ='[1]Rapport 5'!S14 -> 777 | T14: ='[1]Rapport 5'!T14 -> 0 | U14: ='[1]Rapport 5'!U14 -> 8876.7 | V14: ='[1]Rapport 5'!V14 -> 925.71 | W14: ='[1]Rapport 5'!W14 -> 7622.83 | X14: ='[1]Rapport 5'!X14 -> 449.9 | Y14: 124,201 | Z14: 5,732 | AA14: 4.6% | AB14: 235 | AC14: =1+(AB14/COUNT($AB$3:AB$320)*10) -> 8.389937107 | AD14: 8 | AE14: 258 | AF14: 11.7% | AG14: 290 | AH14: 10.11949686 | AI14: 10 | AJ14: 0 | AK14: 0.0% | AL14: 1 | AM14: 1.031446541 | AN14: 1 | AO14: 3,760 | AP14: 3.7% | AQ14: 219 | AR14: 7.886792453 | AS14: 7 | AT14: 338 | AU14: 13.1% | AV14: 270 | AW14: 9.490566038 | AX14: 9 | AY14: 0 | AZ14: 0.0% | BA14: 1 | BB14: 1.031446541 | BC14: 1 | BD14: 0 | BE14: 0.0% | BF14: 1 | BG14: 1.031446541 | BH14: 1 | BI14: 926 | BJ14: 10.4% | BK14: 163 | BL14: 6.125786164 | BM14: 6 | BN14: 450 | BO14: 5.9% | BP14: 245 | BQ14: 8.704402516 | BR14: 8 | BT14: 20 | BU14: -3
A15: ='[1]Rapport 5'!A15 -> 24 | B15: ='[1]Rapport 5'!B15 -> STRASBOURG AUSTERLITZ | C15: ='[1]Rapport 5'!C15 -> 4024 | D15: ='[1]Rapport 5'!D15 -> STRASBOURG AUSTERLITZ | E15: ='[1]Rapport 5'!E15 -> 5006 | F15: ='[1]Rapport 5'!F15 -> STRASBOURG | G15: ='[1]Rapport 5'!G15 -> 262 | H15: ='[1]Rapport 5'!H15 -> BAS RHIN | I15: ='[1]Rapport 5'!I15 -> 2946.31 | J15: ='[1]Rapport 5'!J15 -> 1009.85 | K15: ='[1]Rapport 5'!K15 -> 0 | L15: ='[1]Rapport 5'!L15 -> 86.69 | M15: ='[1]Rapport 5'!M15 -> 102034.28 | N15: ='[1]Rapport 5'!N15 -> 2327.13 | O15: ='[1]Rapport 5'!O15 -> 4082 | P15: ='[1]Rapport 5'!P15 -> 170 | Q15: ='[1]Rapport 5'!Q15 -> 0 | R15: ='[1]Rapport 5'!R15 -> 0 | S15: ='[1]Rapport 5'!S15 -> 213 | T15: ='[1]Rapport 5'!T15 -> 26 | U15: ='[1]Rapport 5'!U15 -> 4434.82 | V15: ='[1]Rapport 5'!V15 -> 194.43 | W15: ='[1]Rapport 5'!W15 -> 3509.19 | X15: ='[1]Rapport 5'!X15 -> 1210.99 | Y15: 117,220 | Z15: 5,025 | AA15: 4.3% | AB15: 208 | AC15: =1+(AB15/COUNT($AB$3:AB$320)*10) -> 7.540880503 | AD15: 7 | AE15: 1,010 | AF15: 34.3% | AG15: 315 | AH15: 10.90566038 | AI15: 10 | AJ15: 87 | AK15: 100.0% | AL15: 291 | AM15: 10.1509434 | AN15: 10 | AO15: 2,327 | AP15: 2.3% | AQ15: 76 | AR15: 3.389937107 | AS15: 3 | AT15: 170 | AU15: 4.2% | AV15: 171 | AW15: 6.377358491 | AX15: 6 | AY15: 0 | AZ15: 0.0% | BA15: 1 | BB15: 1.031446541 | BC15: 1 | BD15: 26 | BE15: 12.2% | BF15: 283 | BG15: 9.899371069 | BH15: 9 | BI15: 194 | BJ15: 4.4% | BK15: 58 | BL15: 2.823899371 | BM15: 2 | BN15: 1,211 | BO15: 34.5% | BP15: 318 | BQ15: 11 | BR15: 10 | BT15: 23 | BU15: -1
A16: ='[1]Rapport 5'!A16 -> 25 | B16: ='[1]Rapport 5'!B16 -> STRASBOURG ESPLANADE | C16: ='[1]Rapport 5'!C16 -> 4026 | D16: ='[1]Rapport 5'!D16 -> STRASBOURG DANUBE | E16: ='[1]Rapport 5'!E16 -> 5006 | F16: ='[1]Rapport 5'!F16 -> STRASBOURG | G16: ='[1]Rapport 5'!G16 -> 262 | H16: ='[1]Rapport 5'!H16 -> BAS RHIN | I16: ='[1]Rapport 5'!I16 -> 5911.25 | J16: ='[1]Rapport 5'!J16 -> 582.26 | K16: ='[1]Rapport 5'!K16 -> 0 | L16: ='[1]Rapport 5'!L16 -> 0 | M16: ='[1]Rapport 5'!M16 -> 96996.71 | N16: ='[1]Rapport 5'!N16 -> 3306.99 | O16: ='[1]Rapport 5'!O16 -> 2448 | P16: ='[1]Rapport 5'!P16 -> 152.5 | Q16: ='[1]Rapport 5'!Q16 -> 0 | R16: ='[1]Rapport 5'!R16 -> 0 | S16: ='[1]Rapport 5'!S16 -> 261 | T16: ='[1]Rapport 5'!T16 -> 0 | U16: ='[1]Rapport 5'!U16 -> 5537.86 | V16: ='[1]Rapport 5'!V16 -> 1231.33 | W16: ='[1]Rapport 5'!W16 -> 5353.49 | X16: ='[1]Rapport 5'!X16 -> 209.58 | Y16: 116,508 | Z16: 5,483 | AA16: 4.7% | AB16: 241 | AC16: =1+(AB16/COUNT($AB$3:AB$320)*10) -> 8.578616352 | AD16: 8 | AE16: 582 | AF16: 9.9% | AG16: 274 | AH16: 9.616352201 | AI16: 9 | AJ16: 0 | AK16: 0.0% | AL16: 1 | AM16: 1.031446541 | AN16: 1 | AO16: 3,307 | AP16: 3.4% | AQ16: 202 | AR16: 7.352201258 | AS16: 7 | AT16: 153 | AU16: 6.2% | AV16: 210 | AW16: 7.603773585 | AX16: 7 | AY16: 0 | AZ16: 0.0% | BA16: 1 | BB16: 1.031446541 | BC16: 1 | BD16: 0 | BE16: 0.0% | BF16: 1 | BG16: 1.031446541 | BH16: 1 | BI16: 1,231 | BJ16: 22.2% | BK16: 277 | BL16: 9.710691824 | BM16: 9 | BN16: 210 | BO16: 3.9% | BP16: 199 | BQ16: 7.257861635 | BR16: 7 | BT16: 24 | BU16: -1
A17: ='[1]Rapport 5'!A17 -> 26 | B17: ='[1]Rapport 5'!B17 -> STRASBOURG DANUBE | C17: ='[1]Rapport 5'!C17 -> 4026 | D17: ='[1]Rapport 5'!D17 -> STRASBOURG DANUBE | E17: ='[1]Rapport 5'!E17 -> 5006 | F17: ='[1]Rapport 5'!F17 -> STRASBOURG | G17: ='[1]Rapport 5'!G17 -> 262 | H17: ='[1]Rapport 5'!H17 -> BAS RHIN | I17: ='[1]Rapport 5'!I17 -> 2718.33 | J17: ='[1]Rapport 5'!J17 -> 311.91 | K17: ='[1]Rapport 5'!K17 -> 0 | L17: ='[1]Rapport 5'!L17 -> 32.92 | M17: ='[1]Rapport 5'!M17 -> 83251.36 | N17: ='[1]Rapport 5'!N17 -> 4278 | O17: ='[1]Rapport 5'!O17 -> 2186 | P17: ='[1]Rapport 5'!P17 -> 355 | Q17: ='[1]Rapport 5'!Q17 -> 0 | R17: ='[1]Rapport 5'!R17 -> 0 | S17: ='[1]Rapport 5'!S17 -> 300 | T17: ='[1]Rapport 5'!T17 -> 0 | U17: ='[1]Rapport 5'!U17 -> 7339.63 | V17: ='[1]Rapport 5'!V17 -> 273.07 | W17: ='[1]Rapport 5'!W17 -> 3685.48 | X17: ='[1]Rapport 5'!X17 -> 462.29 | Y17: 99,481 | Z17: 5,713 | AA17: 5.7% | AB17: 288 | AC17: =1+(AB17/COUNT($AB$3:AB$320)*10) -> 10.05660377 | AD17: 10 | AE17: 312 | AF17: 11.5% | AG17: 289 | AH17: 10.08805031 | AI17: 10 | AJ17: 33 | AK17: 100.0% | AL17: 291 | AM17: 10.1509434 | AN17: 10 | AO17: 4,278 | AP17: 5.1% | AQ17: 298 | AR17: 10.37106918 | AS17: 10 | AT17: 355 | AU17: 16.2% | AV17: 291 | AW17: 10.1509434 | AX17: 10 | AY17: 0 | AZ17: 0.0% | BA17: 1 | BB17: 1.031446541 | BC17: 1 | BD17: 0 | BE17: 0.0% | BF17: 1 | BG17: 1.031446541 | BH17: 1 | BI17: 273 | BJ17: 3.7% | BK17: 52 | BL17: 2.635220126 | BM17: 2 | BN17: 462 | BO17: 12.5% | BP17: 299 | BQ17: 10.40251572 | BR17: 10 | BT17: 25 | BU17: -1
A18: ='[1]Rapport 5'!A18 -> 27 | B18: ='[1]Rapport 5'!B18 -> SCHILTIGHEIM CENTRE | C18: ='[1]Rapport 5'!C18 -> 4027 | D18: ='[1]Rapport 5'!D18 -> SCHILTIGHEIM CENTRE | E18: ='[1]Rapport 5'!E18 -> 5006 | F18: ='[1]Rapport 5'!F18 -> STRASBOURG | G18: ='[1]Rapport 5'!G18 -> 262 | H18: ='[1]Rapport 5'!H18 -> BAS RHIN | I18: ='[1]Rapport 5'!I18 -> 4676.52 | J18: ='[1]Rapport 5'!J18 -> 280.16 | K18: ='[1]Rapport 5'!K18 -> 0 | L18: ='[1]Rapport 5'!L18 -> 0 | M18: ='[1]Rapport 5'!M18 -> 173171.32 | N18: ='[1]Rapport 5'!N18 -> 6935.12 | O18: ='[1]Rapport 5'!O18 -> 3812 | P18: ='[1]Rapport 5'!P18 -> 511 | Q18: ='[1]Rapport 5'!Q18 -> 462.51 | R18: ='[1]Rapport 5'!R18 -> 0 | S18: ='[1]Rapport 5'!S18 -> 759.59 | T18: ='[1]Rapport 5'!T18 -> 26 | U18: ='[1]Rapport 5'!U18 -> 11344.12 | V18: ='[1]Rapport 5'!V18 -> 764.8 | W18: ='[1]Rapport 5'!W18 -> 4719.61 | X18: ='[1]Rapport 5'!X18 -> 0 | Y18: 198,946 | Z18: 8,517 | AA18: 4.3% | AB18: 206 | AC18: =1+(AB18/COUNT($AB$3:AB$320)*10) -> 7.477987421 | AD18: 7 | AE18: 280 | AF18: 6.0% | AG18: 228 | AH18: 8.169811321 | AI18: 8 | AJ18: 0 | AK18: 0.0% | AL18: 1 | AM18: 1.031446541 | AN18: 1 | AO18: 6,935 | AP18: 4.0% | AQ18: 247 | AR18: 8.767295597 | AS18: 8 | AT18: 511 | AU18: 13.4% | AV18: 271 | AW18: 9.522012579 | AX18: 9 | AY18: 0 | AZ18: 0.0% | BA18: 1 | BB18: 1.031446541 | BC18: 1 | BD18: 26 | BE18: 3.4% | BF18: 246 | BG18: 8.735849057 | BH18: 8 | BI18: 765 | BJ18: 6.7% | BK18: 104 | BL18: 4.270440252 | BM18: 4 | BN18: 0 | BO18: 0.0% | BP18: 1 | BQ18: 1.031446541 | BR18: 1 | BT18: 26 | BU18: -1
A19: ='[1]Rapport 5'!A19 -> 28 | B19: ='[1]Rapport 5'!B19 -> BISCHHEIM | C19: ='[1]Rapport 5'!C19 -> 4028 | D19: ='[1]Rapport 5'!D19 -> BISCHHEIM | E19: ='[1]Rapport 5'!E19 -> 5006 | F19: ='[1]Rapport 5'!F19 -> STRASBOURG | G19: ='[1]Rapport 5'!G19 -> 262 | H19: ='[1]Rapport 5'!H19 -> BAS RHIN | I19: ='[1]Rapport 5'!I19 -> 4232.77 | J19: ='[1]Rapport 5'!J19 -> 185.28 | K19: ='[1]Rapport 5'!K19 -> 0 | L19: ='[1]Rapport 5'!L19 -> 0 | M19: ='[1]Rapport 5'!M19 -> 140108.84 | N19: ='[1]Rapport 5'!N19 -> 3295.37 | O19: ='[1]Rapport 5'!O19 -> 3017.5 | P19: ='[1]Rapport 5'!P19 -> 446 | Q19: ='[1]Rapport 5'!Q19 -> 0 | R19: ='[1]Rapport 5'!R19 -> 0 | S19: ='[1]Rapport 5'!S19 -> 334 | T19: ='[1]Rapport 5'!T19 -> 31 | U19: ='[1]Rapport 5'!U19 -> 9882.32 | V19: ='[1]Rapport 5'!V19 -> 1330.85 | W19: ='[1]Rapport 5'!W19 -> 8083.19 | X19: ='[1]Rapport 5'!X19 -> 188.61 | Y19: 165,659 | Z19: 5,477 | AA19: 3.3% | AB19: 101 | AC19: =1+(AB19/COUNT($AB$3:AB$320)*10) -> 4.176100629 | AD19: 4 | AE19: 185 | AF19: 4.4% | AG19: 179 | AH19: 6.628930818 | AI19: 6 | AJ19: 0 | AK19: 0.0% | AL19: 1 | AM19: 1.031446541 | AN19: 1 | AO19: 3,295 | AP19: 2.4% | AQ19: 86 | AR19: 3.704402516 | AS19: 3 | AT19: 446 | AU19: 14.8% | AV19: 282 | AW19: 9.867924528 | AX19: 9 | AY19: 0 | AZ19: 0.0% | BA19: 1 | BB19: 1.031446541 | BC19: 1 | BD19: 31 | BE19: 9.3% | BF19: 274 | BG19: 9.616352201 | BH19: 9 | BI19: 1,331 | BJ19: 13.5% | BK19: 202 | BL19: 7.352201258 | BM19: 7 | BN19: 189 | BO19: 2.3% | BP19: 124 | BQ19: 4.899371069 | BR19: 4 | BT19: 27 | BU19: -1
A20: ='[1]Rapport 5'!A20 -> 29 | B20: ='[1]Rapport 5'!B20 -> SCHILTIGHEIM KLEBER | C20: ='[1]Rapport 5'!C20 -> 4029 | D20: ='[1]Rapport 5'!D20 -> SCHILTIGHEIM KLEBER | E20: ='[1]Rapport 5'!E20 -> 5006 | F20: ='[1]Rapport 5'!F20 -> STRASBOURG | G20: ='[1]Rapport 5'!G20 -> 262 | H20: ='[1]Rapport 5'!H20 -> BAS RHIN | I20: ='[1]Rapport 5'!I20 -> 2855.71 | J20: ='[1]Rapport 5'!J20 -> 213.32 | K20: ='[1]Rapport 5'!K20 -> 0 | L20: ='[1]Rapport 5'!L20 -> 0 | M20: ='[1]Rapport 5'!M20 -> 97100.4 | N20: ='[1]Rapport 5'!N20 -> 5577.69 | O20: ='[1]Rapport 5'!O20 -> 2748 | P20: ='[1]Rapport 5'!P20 -> 90 | Q20: ='[1]Rapport 5'!Q20 -> 0 | R20: ='[1]Rapport 5'!R20 -> 0 | S20: ='[1]Rapport 5'!S20 -> 320 | T20: ='[1]Rapport 5'!T20 -> 13 | U20: ='[1]Rapport 5'!U20 -> 5174.38 | V20: ='[1]Rapport 5'!V20 -> 95 | W20: ='[1]Rapport 5'!W20 -> 2554.87 | X20: ='[1]Rapport 5'!X20 -> 60.63 | Y20: 110,753 | Z20: 6,050 | AA20: 5.5% | AB20: 274 | AC20: =1+(AB20/COUNT($AB$3:AB$320)*10) -> 9.616352201 | AD20: 9 | AE20: 213 | AF20: 7.5% | AG20: 248 | AH20: 8.798742138 | AI20: 8 | AJ20: 0 | AK20: 0.0% | AL20: 1 | AM20: 1.031446541 | AN20: 1 | AO20: 5,578 | AP20: 5.7% | AQ20: 306 | AR20: 10.62264151 | AS20: 10 | AT20: 90 | AU20: 3.3% | AV20: 149 | AW20: 5.685534591 | AX20: 5 | AY20: 0 | AZ20: 0.0% | BA20: 1 | BB20: 1.031446541 | BC20: 1 | BD20: 13 | BE20: 4.1% | BF20: 251 | BG20: 8.893081761 | BH20: 8 | BI20: 95 | BJ20: 1.8% | BK20: 28 | BL20: 1.880503145 | BM20: 1 | BN20: 61 | BO20: 2.4% | BP20: 126 | BQ20: 4.962264151 | BR20: 4 | BT20: 28 | BU20: -1
A21: ='[1]Rapport 5'!A21 -> 30 | B21: ='[1]Rapport 5'!B21 -> BRUMATH | C21: ='[1]Rapport 5'!C21 -> 4030 | D21: ='[1]Rapport 5'!D21 -> BRUMATH | E21: ='[1]Rapport 5'!E21 -> 5060 | F21: ='[1]Rapport 5'!F21 -> HAGUENAU | G21: ='[1]Rapport 5'!G21 -> 262 | H21: ='[1]Rapport 5'!H21 -> BAS RHIN | I21: ='[1]Rapport 5'!I21 -> 5182.33 | J21: ='[1]Rapport 5'!J21 -> 593.54 | K21: ='[1]Rapport 5'!K21 -> 0 | L21: ='[1]Rapport 5'!L21 -> 285 | M21: ='[1]Rapport 5'!M21 -> 206254.32 | N21: ='[1]Rapport 5'!N21 -> 7920.68 | O21: ='[1]Rapport 5'!O21 -> 10056 | P21: ='[1]Rapport 5'!P21 -> 484.46 | Q21: ='[1]Rapport 5'!Q21 -> 0 | R21: ='[1]Rapport 5'!R21 -> 0 | S21: ='[1]Rapport 5'!S21 -> 449.39 | T21: ='[1]Rapport 5'!T21 -> 0 | U21: ='[1]Rapport 5'!U21 -> 13921.91 | V21: ='[1]Rapport 5'!V21 -> 2373.86 | W21: ='[1]Rapport 5'!W21 -> 9368.76 | X21: ='[1]Rapport 5'!X21 -> 1106.72 | Y21: 245,233 | Z21: 12,764 | AA21: 5.2% | AB21: 267 | AC21: =1+(AB21/COUNT($AB$3:AB$320)*10) -> 9.396226415 | AD21: 9 | AE21: 594 | AF21: 11.5% | AG21: 288 | AH21: 10.05660377 | AI21: 10 | AJ21: 285 | AK21: 100.0% | AL21: 291 | AM21: 10.1509434 | AN21: 10 | AO21: 7,921 | AP21: 3.8% | AQ21: 231 | AR21: 8.264150943 | AS21: 8 | AT21: 484 | AU21: 4.8% | AV21: 185 | AW21: 6.817610063 | AX21: 6 | AY21: 0 | AZ21: 0.0% | BA21: 1 | BB21: 1.031446541 | BC21: 1 | BD21: 0 | BE21: 0.0% | BF21: 1 | BG21: 1.031446541 | BH21: 1 | BI21: 2,374 | BJ21: 17.1% | BK21: 244 | BL21: 8.672955975 | BM21: 8 | BN21: 1,107 | BO21: 11.8% | BP21: 294 | BQ21: 10.24528302 | BR21: 10 | BT21: 29 | BU21: -1
A22: ='[1]Rapport 5'!A22 -> 31 | B22: ='[1]Rapport 5'!B22 -> TRUCHTERSHEIM | C22: ='[1]Rapport 5'!C22 -> 4031 | D22: ='[1]Rapport 5'!D22 -> TRUCHTERSHEIM | E22: ='[1]Rapport 5'!E22 -> 5060 | F22: ='[1]Rapport 5'!F22 -> HAGUENAU | G22: ='[1]Rapport 5'!G22 -> 262 | H22: ='[1]Rapport 5'!H22 -> BAS RHIN | I22: ='[1]Rapport 5'!I22 -> 3282.55 | J22: ='[1]Rapport 5'!J22 -> 120.9 | K22: ='[1]Rapport 5'!K22 -> 0 | L22: ='[1]Rapport 5'!L22 -> 0 | M22: ='[1]Rapport 5'!M22 -> 95638.76 | N22: ='[1]Rapport 5'!N22 -> 5461.87 | O22: ='[1]Rapport 5'!O22 -> 2358.5 | P22: ='[1]Rapport 5'!P22 -> 519.5 | Q22: ='[1]Rapport 5'!Q22 -> 0 | R22: ='[1]Rapport 5'!R22 -> 0 | S22: ='[1]Rapport 5'!S22 -> 101 | T22: ='[1]Rapport 5'!T22 -> 44 | U22: ='[1]Rapport 5'!U22 -> 3796.72 | V22: ='[1]Rapport 5'!V22 -> 117.69 | W22: ='[1]Rapport 5'!W22 -> 5320.35 | X22: ='[1]Rapport 5'!X22 -> 69.8 | Y22: 110,498 | Z22: 6,334 | AA22: 5.7% | AB22: 286 | AC22: =1+(AB22/COUNT($AB$3:AB$320)*10) -> 9.993710692 | AD22: 9 | AE22: 121 | AF22: 3.7% | AG22: 146 | AH22: 5.591194969 | AI22: 5 | AJ22: 0 | AK22: 0.0% | AL22: 1 | AM22: 1.031446541 | AN22: 1 | AO22: 5,462 | AP22: 5.7% | AQ22: 303 | AR22: 10.52830189 | AS22: 10 | AT22: 520 | AU22: 22.0% | AV22: 303 | AW22: 10.52830189 | AX22: 10 | AY22: 0 | AZ22: 0.0% | BA22: 1 | BB22: 1.031446541 | BC22: 1 | BD22: 44 | BE22: 43.6% | BF22: 313 | BG22: 10.8427673 | BH22: 10 | BI22: 118 | BJ22: 3.1% | BK22: 39 | BL22: 2.226415094 | BM22: 2 | BN22: 70 | BO22: 1.3% | BP22: 77 | BQ22: 3.421383648 | BR22: 3 | BT22: 30 | BU22: -1
A23: ='[1]Rapport 5'!A23 -> 33 | B23: ='[1]Rapport 5'!B23 -> LA WANTZENAU | C23: ='[1]Rapport 5'!C23 -> 4020 | D23: ='[1]Rapport 5'!D23 -> STRASBOURG ROBERTSAU | E23: ='[1]Rapport 5'!E23 -> 5006 | F23: ='[1]Rapport 5'!F23 -> STRASBOURG | G23: ='[1]Rapport 5'!G23 -> 262 | H23: ='[1]Rapport 5'!H23 -> BAS RHIN | I23: ='[1]Rapport 5'!I23 -> 2145.45 | J23: ='[1]Rapport 5'!J23 -> 716.57 | K23: ='[1]Rapport 5'!K23 -> 0 | L23: ='[1]Rapport 5'!L23 -> 0 | M23: ='[1]Rapport 5'!M23 -> 73807.66 | N23: ='[1]Rapport 5'!N23 -> 2151.84 | O23: ='[1]Rapport 5'!O23 -> 2163.5 | P23: ='[1]Rapport 5'!P23 -> 200 | Q23: ='[1]Rapport 5'!Q23 -> 0 | R23: ='[1]Rapport 5'!R23 -> 0 | S23: ='[1]Rapport 5'!S23 -> 226.22 | T23: ='[1]Rapport 5'!T23 -> 0 | U23: ='[1]Rapport 5'!U23 -> 2878.84 | V23: ='[1]Rapport 5'!V23 -> 214 | W23: ='[1]Rapport 5'!W23 -> 4191.33 | X23: ='[1]Rapport 5'!X23 -> 67.2 | Y23: 85,413 | Z23: 3,350 | AA23: 3.9% | AB23: 177 | AC23: =1+(AB23/COUNT($AB$3:AB$320)*10) -> 6.566037736 | AD23: 6 | AE23: 717 | AF23: 33.4% | AG23: 312 | AH23: 10.81132075 | AI23: 10 | AJ23: 0 | AK23: 0.0% | AL23: 1 | AM23: 1.031446541 | AN23: 1 | AO23: 2,152 | AP23: 2.9% | AQ23: 156 | AR23: 5.905660377 | AS23: 5 | AT23: 200 | AU23: 9.2% | AV23: 244 | AW23: 8.672955975 | AX23: 8 | AY23: 0 | AZ23: 0.0% | BA23: 1 | BB23: 1.031446541 | BC23: 1 | BD23: 0 | BE23: 0.0% | BF23: 1 | BG23: 1.031446541 | BH23: 1 | BI23: 214 | BJ23: 7.4% | BK23: 118 | BL23: 4.710691824 | BM23: 4 | BN23: 67 | BO23: 1.6% | BP23: 94 | BQ23: 3.955974843 | BR23: 3 | BT23: 31 | BU23: -2
A24: ='[1]Rapport 5'!A24 -> 34 | B24: ='[1]Rapport 5'!B24 -> VENDENHEIM | C24: ='[1]Rapport 5'!C24 -> 4037 | D24: ='[1]Rapport 5'!D24 -> MUNDOLSHEIM | E24: ='[1]Rapport 5'!E24 -> 5006 | F24: ='[1]Rapport 5'!F24 -> STRASBOURG | G24: ='[1]Rapport 5'!G24 -> 262 | H24: ='[1]Rapport 5'!H24 -> BAS RHIN | I24: ='[1]Rapport 5'!I24 -> 2319.48 | J24: ='[1]Rapport 5'!J24 -> 488.91 | K24: ='[1]Rapport 5'!K24 -> 0 | L24: ='[1]Rapport 5'!L24 -> 0 | M24: ='[1]Rapport 5'!M24 -> 64421.44 | N24: ='[1]Rapport 5'!N24 -> 2373.69 | O24: ='[1]Rapport 5'!O24 -> 672 | P24: ='[1]Rapport 5'!P24 -> 200 | Q24: ='[1]Rapport 5'!Q24 -> 0 | R24: ='[1]Rapport 5'!R24 -> 0 | S24: ='[1]Rapport 5'!S24 -> 114 | T24: ='[1]Rapport 5'!T24 -> 0 | U24: ='[1]Rapport 5'!U24 -> 3471.91 | V24: ='[1]Rapport 5'!V24 -> 1112.55 | W24: ='[1]Rapport 5'!W24 -> 3406.93 | X24: ='[1]Rapport 5'!X24 -> 56 | Y24: 74,406 | Z24: 4,231 | AA24: 5.7% | AB24: 285 | AC24: =1+(AB24/COUNT($AB$3:AB$320)*10) -> 9.962264151 | AD24: 9 | AE24: 489 | AF24: 21.1% | AG24: 310 | AH24: 10.74842767 | AI24: 10 | AJ24: 0 | AK24: 0.0% | AL24: 1 | AM24: 1.031446541 | AN24: 1 | AO24: 2,374 | AP24: 3.7% | AQ24: 220 | AR24: 7.918238994 | AS24: 7 | AT24: 200 | AU24: 29.8% | AV24: 312 | AW24: 10.81132075 | AX24: 10 | AY24: 0 | AZ24: 0.0% | BA24: 1 | BB24: 1.031446541 | BC24: 1 | BD24: 0 | BE24: 0.0% | BF24: 1 | BG24: 1.031446541 | BH24: 1 | BI24: 1,113 | BJ24: 32.0% | BK24: 304 | BL24: 10.55974843 | BM24: 10 | BN24: 56 | BO24: 1.6% | BP24: 96 | BQ24: 4.018867925 | BR24: 4 | BT24: 33 | BU24: -1
A25: ='[1]Rapport 5'!A25 -> 37 | B25: ='[1]Rapport 5'!B25 -> MUNDOLSHEIM | C25: ='[1]Rapport 5'!C25 -> 4037 | D25: ='[1]Rapport 5'!D25 -> MUNDOLSHEIM | E25: ='[1]Rapport 5'!E25 -> 5006 | F25: ='[1]Rapport 5'!F25 -> STRASBOURG | G25: ='[1]Rapport 5'!G25 -> 262 | H25: ='[1]Rapport 5'!H25 -> BAS RHIN | I25: ='[1]Rapport 5'!I25 -> 2385.41 | J25: ='[1]Rapport 5'!J25 -> 136.66 | K25: ='[1]Rapport 5'!K25 -> 0 | L25: ='[1]Rapport 5'!L25 -> 0 | M25: ='[1]Rapport 5'!M25 -> 86741.23 | N25: ='[1]Rapport 5'!N25 -> 3024.8 | O25: ='[1]Rapport 5'!O25 -> 2868 | P25: ='[1]Rapport 5'!P25 -> 126 | Q25: ='[1]Rapport 5'!Q25 -> 0 | R25: ='[1]Rapport 5'!R25 -> 0 | S25: ='[1]Rapport 5'!S25 -> 88 | T25: ='[1]Rapport 5'!T25 -> 13 | U25: ='[1]Rapport 5'!U25 -> 3748.77 | V25: ='[1]Rapport 5'!V25 -> 514.41 | W25: ='[1]Rapport 5'!W25 -> 4129.41 | X25: ='[1]Rapport 5'!X25 -> 116.7 | Y25: 99,961 | Z25: 3,932 | AA25: 3.9% | AB25: 179 | AC25: =1+(AB25/COUNT($AB$3:AB$320)*10) -> 6.628930818 | AD25: 6 | AE25: 137 | AF25: 5.7% | AG25: 221 | AH25: 7.949685535 | AI25: 7 | AJ25: 0 | AK25: 0.0% | AL25: 1 | AM25: 1.031446541 | AN25: 1 | AO25: 3,025 | AP25: 3.5% | AQ25: 210 | AR25: 7.603773585 | AS25: 7 | AT25: 126 | AU25: 4.4% | AV25: 176 | AW25: 6.534591195 | AX25: 6 | AY25: 0 | AZ25: 0.0% | BA25: 1 | BB25: 1.031446541 | BC25: 1 | BD25: 13 | BE25: 14.8% | BF25: 288 | BG25: 10.05660377 | BH25: 10 | BI25: 514 | BJ25: 13.7% | BK25: 210 | BL25: 7.603773585 | BM25: 7 | BN25: 117 | BO25: 2.8% | BP25: 153 | BQ25: 5.811320755 | BR25: 5 | BT25: 34 | BU25: -3
A26: ='[1]Rapport 5'!A26 -> 38 | B26: ='[1]Rapport 5'!B26 -> OBERHAUSBERGEN | C26: ='[1]Rapport 5'!C26 -> 4038 | D26: ='[1]Rapport 5'!D26 -> OBERHAUSBERGEN | E26: ='[1]Rapport 5'!E26 -> 5006 | F26: ='[1]Rapport 5'!F26 -> STRASBOURG | G26: ='[1]Rapport 5'!G26 -> 262 | H26: ='[1]Rapport 5'!H26 -> BAS RHIN | I26: ='[1]Rapport 5'!I26 -> 4790.6 | J26: ='[1]Rapport 5'!J26 -> 180.09 | K26: ='[1]Rapport 5'!K26 -> 0 | L26: ='[1]Rapport 5'!L26 -> 0 | M26: ='[1]Rapport 5'!M26 -> 134903.47 | N26: ='[1]Rapport 5'!N26 -> 6501.82 | O26: ='[1]Rapport 5'!O26 -> 3653.5 | P26: ='[1]Rapport 5'!P26 -> 588 | Q26: ='[1]Rapport 5'!Q26 -> 0 | R26: ='[1]Rapport 5'!R26 -> 0 | S26: ='[1]Rapport 5'!S26 -> 528.13 | T26: ='[1]Rapport 5'!T26 -> 0 | U26: ='[1]Rapport 5'!U26 -> 8045.29 | V26: ='[1]Rapport 5'!V26 -> 310.25 | W26: ='[1]Rapport 5'!W26 -> 7598.23 | X26: ='[1]Rapport 5'!X26 -> 792.06 | Y26: 159,519 | Z26: 8,372 | AA26: 5.2% | AB26: 269 | AC26: =1+(AB26/COUNT($AB$3:AB$320)*10) -> 9.459119497 | AD26: 9 | AE26: 180 | AF26: 3.8% | AG26: 154 | AH26: 5.842767296 | AI26: 5 | AJ26: 0 | AK26: 0.0% | AL26: 1 | AM26: 1.031446541 | AN26: 1 | AO26: 6,502 | AP26: 4.8% | AQ26: 286 | AR26: 9.993710692 | AS26: 9 | AT26: 588 | AU26: 16.1% | AV26: 290 | AW26: 10.11949686 | AX26: 10 | AY26: 0 | AZ26: 0.0% | BA26: 1 | BB26: 1.031446541 | BC26: 1 | BD26: 0 | BE26: 0.0% | BF26: 1 | BG26: 1.031446541 | BH26: 1 | BI26: 310 | BJ26: 3.9% | BK26: 54 | BL26: 2.698113208 | BM26: 2 | BN26: 792 | BO26: 10.4% | BP26: 291 | BQ26: 10.1509434 | BR26: 10 | BT26: 37 | BU26: -1
A27: ='[1]Rapport 5'!A27 -> 39 | B27: ='[1]Rapport 5'!B27 -> REICHSTETT | C27: ='[1]Rapport 5'!C27 -> 4039 | D27: ='[1]Rapport 5'!D27 -> REICHSTETT | E27: ='[1]Rapport 5'!E27 -> 5006 | F27: ='[1]Rapport 5'!F27 -> STRASBOURG | G27: ='[1]Rapport 5'!G27 -> 262 | H27: ='[1]Rapport 5'!H27 -> BAS RHIN | I27: ='[1]Rapport 5'!I27 -> 1772.56 | J27: ='[1]Rapport 5'!J27 -> 140.15 | K27: ='[1]Rapport 5'!K27 -> 0 | L27: ='[1]Rapport 5'!L27 -> 0 | M27: ='[1]Rapport 5'!M27 -> 52919.75 | N27: ='[1]Rapport 5'!N27 -> 2973.63 | O27: ='[1]Rapport 5'!O27 -> 1578 | P27: ='[1]Rapport 5'!P27 -> 121.15 | Q27: ='[1]Rapport 5'!Q27 -> 0 | R27: ='[1]Rapport 5'!R27 -> 0 | S27: ='[1]Rapport 5'!S27 -> 13 | T27: ='[1]Rapport 5'!T27 -> 0 | U27: ='[1]Rapport 5'!U27 -> 3903.02 | V27: ='[1]Rapport 5'!V27 -> 816.53 | W27: ='[1]Rapport 5'!W27 -> 2242.68 | X27: ='[1]Rapport 5'!X27 -> 28 | Y27: 62,429 | Z27: 4,079 | AA27: 6.5% | AB27: 302 | AC27: =1+(AB27/COUNT($AB$3:AB$320)*10) -> 10.49685535 | AD27: 10 | AE27: 140 | AF27: 7.9% | AG27: 254 | AH27: 8.987421384 | AI27: 8 | AJ27: 0 | AK27: 0.0% | AL27: 1 | AM27: 1.031446541 | AN27: 1 | AO27: 2,974 | AP27: 5.6% | AQ27: 302 | AR27: 10.49685535 | AS27: 10 | AT27: 121 | AU27: 7.7% | AV27: 228 | AW27: 8.169811321 | AX27: 8 | AY27: 0 | AZ27: 0.0% | BA27: 1 | BB27: 1.031446541 | BC27: 1 | BD27: 0 | BE27: 0.0% | BF27: 1 | BG27: 1.031446541 | BH27: 1 | BI27: 817 | BJ27: 20.9% | BK27: 271 | BL27: 9.522012579 | BM27: 9 | BN27: 28 | BO27: 1.2% | BP27: 76 | BQ27: 3.389937107 | BR27: 3 | BT27: 38 | BU27: -1
A28: ='[1]Rapport 5'!A28 -> 40 | B28: ='[1]Rapport 5'!B28 -> ECKBOLSHEIM | C28: ='[1]Rapport 5'!C28 -> 4038 | D28: ='[1]Rapport 5'!D28 -> OBERHAUSBERGEN | E28: ='[1]Rapport 5'!E28 -> 5006 | F28: ='[1]Rapport 5'!F28 -> STRASBOURG | G28: ='[1]Rapport 5'!G28 -> 262 | H28: ='[1]Rapport 5'!H28 -> BAS RHIN | I28: ='[1]Rapport 5'!I28 -> 2236.68 | J28: ='[1]Rapport 5'!J28 -> 395.13 | K28: ='[1]Rapport 5'!K28 -> 0 | L28: ='[1]Rapport 5'!L28 -> 80 | M28: ='[1]Rapport 5'!M28 -> 67361.42 | N28: ='[1]Rapport 5'!N28 -> 3299.79 | O28: ='[1]Rapport 5'!O28 -> 1702.5 | P28: ='[1]Rapport 5'!P28 -> 486.94 | Q28: ='[1]Rapport 5'!Q28 -> 0 | R28: ='[1]Rapport 5'!R28 -> 0 | S28: ='[1]Rapport 5'!S28 -> 212 | T28: ='[1]Rapport 5'!T28 -> 0 | U28: ='[1]Rapport 5'!U28 -> 3065.93 | V28: ='[1]Rapport 5'!V28 -> 310.7 | W28: ='[1]Rapport 5'!W28 -> 3486.95 | X28: ='[1]Rapport 5'!X28 -> 28 | Y28: 78,065 | Z28: 4,601 | AA28: 5.9% | AB28: 292 | AC28: =1+(AB28/COUNT($AB$3:AB$320)*10) -> 10.18238994 | AD28: 10 | AE28: 395 | AF28: 17.7% | AG28: 306 | AH28: 10.62264151 | AI28: 10 | AJ28: 80 | AK28: 100.0% | AL28: 291 | AM28: 10.1509434 | AN28: 10 | AO28: 3,300 | AP28: 4.9% | AQ28: 290 | AR28: 10.11949686 | AS28: 10 | AT28: 487 | AU28: 28.6% | AV28: 311 | AW28: 10.77987421 | AX28: 10 | AY28: 0 | AZ28: 0.0% | BA28: 1 | BB28: 1.031446541 | BC28: 1 | BD28: 0 | BE28: 0.0% | BF28: 1 | BG28: 1.031446541 | BH28: 1 | BI28: 311 | BJ28: 10.1% | BK28: 156 | BL28: 5.905660377 | BM28: 5 | BN28: 28 | BO28: 0.8% | BP28: 50 | BQ28: 2.572327044 | BR28: 2 | BT28: 39 | BU28: -1
A29: ='[1]Rapport 5'!A29 -> 41 | B29: ='[1]Rapport 5'!B29 -> HOERDT | C29: ='[1]Rapport 5'!C29 -> 4041 | D29: ='[1]Rapport 5'!D29 -> HOERDT | E29: ='[1]Rapport 5'!E29 -> 5060 | F29: ='[1]Rapport 5'!F29 -> HAGUENAU | G29: ='[1]Rapport 5'!G29 -> 262 | H29: ='[1]Rapport 5'!H29 -> BAS RHIN | I29: ='[1]Rapport 5'!I29 -> 4190.98 | J29: ='[1]Rapport 5'!J29 -> 64.85 | K29: ='[1]Rapport 5'!K29 -> 0 | L29: ='[1]Rapport 5'!L29 -> 131.5 | M29: ='[1]Rapport 5'!M29 -> 69728.04 | N29: ='[1]Rapport 5'!N29 -> 1783.81 | O29: ='[1]Rapport 5'!O29 -> 3113.5 | P29: ='[1]Rapport 5'!P29 -> 219 | Q29: ='[1]Rapport 5'!Q29 -> 0 | R29: ='[1]Rapport 5'!R29 -> 0 | S29: ='[1]Rapport 5'!S29 -> 126.06 | T29: ='[1]Rapport 5'!T29 -> 0 | U29: ='[1]Rapport 5'!U29 -> 2967.27 | V29: ='[1]Rapport 5'!V29 -> 495.07 | W29: ='[1]Rapport 5'!W29 -> 3523.64 | X29: ='[1]Rapport 5'!X29 -> 190.63 | Y29: 83,649 | Z29: 2,885 | AA29: 3.4% | AB29: 116 | AC29: =1+(AB29/COUNT($AB$3:AB$320)*10) -> 4.647798742 | AD29: 4 | AE29: 65 | AF29: 1.5% | AG29: 37 | AH29: 2.163522013 | AI29: 2 | AJ29: 132 | AK29: 100.0% | AL29: 291 | AM29: 10.1509434 | AN29: 10 | AO29: 1,784 | AP29: 2.6% | AQ29: 109 | AR29: 4.427672956 | AS29: 4 | AT29: 219 | AU29: 7.0% | AV29: 218 | AW29: 7.855345912 | AX29: 7 | AY29: 0 | AZ29: 0.0% | BA29: 1 | BB29: 1.031446541 | BC29: 1 | BD29: 0 | BE29: 0.0% | BF29: 1 | BG29: 1.031446541 | BH29: 1 | BI29: 495 | BJ29: 16.7% | BK29: 242 | BL29: 8.610062893 | BM29: 8 | BN29: 191 | BO29: 5.4% | BP29: 238 | BQ29: 8.48427673 | BR29: 8 | BT29: 40 | BU29: -1
A30: ='[1]Rapport 5'!A30 -> 43 | B30: ='[1]Rapport 5'!B30 -> STRASBOURG HALLES | C30: ='[1]Rapport 5'!C30 -> 4043 | D30: ='[1]Rapport 5'!D30 -> STRASBOURG HALLES | E30: ='[1]Rapport 5'!E30 -> 5006 | F30: ='[1]Rapport 5'!F30 -> STRASBOURG | G30: ='[1]Rapport 5'!G30 -> 262 | H30: ='[1]Rapport 5'!H30 -> BAS RHIN | I30: ='[1]Rapport 5'!I30 -> 6725.52 | J30: ='[1]Rapport 5'!J30 -> 1290.72 | K30: ='[1]Rapport 5'!K30 -> 0 | L30: ='[1]Rapport 5'!L30 -> 0 | M30: ='[1]Rapport 5'!M30 -> 264654.85 | N30: ='[1]Rapport 5'!N30 -> 19402.27 | O30: ='[1]Rapport 5'!O30 -> 7412 | P30: ='[1]Rapport 5'!P30 -> 725 | Q30: ='[1]Rapport 5'!Q30 -> 0 | R30: ='[1]Rapport 5'!R30 -> 0 | S30: ='[1]Rapport 5'!S30 -> 620 | T30: ='[1]Rapport 5'!T30 -> 44 | U30: ='[1]Rapport 5'!U30 -> 26011.97 | V30: ='[1]Rapport 5'!V30 -> 951.64 | W30: ='[1]Rapport 5'!W30 -> 10431.08 | X30: ='[1]Rapport 5'!X30 -> 454.86 | Y30: 315,855 | Z30: 22,868 | AA30: 7.2% | AB30: 311 | AC30: =1+(AB30/COUNT($AB$3:AB$320)*10) -> 10.77987421 | AD30: 10 | AE30: 1,291 | AF30: 19.2% | AG30: 307 | AH30: 10.65408805 | AI30: 10 | AJ30: 0 | AK30: 0.0% | AL30: 1 | AM30: 1.031446541 | AN30: 1 | AO30: 19,402 | AP30: 7.3% | AQ30: 317 | AR30: 10.96855346 | AS30: 10 | AT30: 725 | AU30: 9.8% | AV30: 248 | AW30: 8.798742138 | AX30: 8 | AY30: 0 | AZ30: 0.0% | BA30: 1 | BB30: 1.031446541 | BC30: 1 | BD30: 44 | BE30: 7.1% | BF30: 266 | BG30: 9.364779874 | BH30: 9 | BI30: 952 | BJ30: 3.7% | BK30: 50 | BL30: 2.572327044 | BM30: 2 | BN30: 455 | BO30: 4.4% | BP30: 208 | BQ30: 7.540880503 | BR30: 7 | BT30: 41 | BU30: -2
A31: ='[1]Rapport 5'!A31 -> 45 | B31: ='[1]Rapport 5'!B31 -> STRASBOURG FRANCS BOURGEOIS | C31: ='[1]Rapport 5'!C31 -> 4045 | D31: ='[1]Rapport 5'!D31 -> STRASBOURG FRANCS BOURGEOIS | E31: ='[1]Rapport 5'!E31 -> 5006 | F31: ='[1]Rapport 5'!F31 -> STRASBOURG | G31: ='[1]Rapport 5'!G31 -> 262 | H31: ='[1]Rapport 5'!H31 -> BAS RHIN | I31: ='[1]Rapport 5'!I31 -> 3745.38 | J31: ='[1]Rapport 5'!J31 -> 578.5 | K31: ='[1]Rapport 5'!K31 -> 0 | L31: ='[1]Rapport 5'!L31 -> 282.33 | M31: ='[1]Rapport 5'!M31 -> 206773.31 | N31: ='[1]Rapport 5'!N31 -> 5363.59 | O31: ='[1]Rapport 5'!O31 -> 6991.3 | P31: ='[1]Rapport 5'!P31 -> 789.63 | Q31: ='[1]Rapport 5'!Q31 -> 73.08 | R31: ='[1]Rapport 5'!R31 -> 0 | S31: ='[1]Rapport 5'!S31 -> 1036.2 | T31: ='[1]Rapport 5'!T31 -> 0 | U31: ='[1]Rapport 5'!U31 -> 12232.4 | V31: ='[1]Rapport 5'!V31 -> 399.68 | W31: ='[1]Rapport 5'!W31 -> 9348.68 | X31: ='[1]Rapport 5'!X31 -> 356.14 | Y31: 240,200 | Z31: 7,770 | AA31: 3.2% | AB31: 92 | AC31: =1+(AB31/COUNT($AB$3:AB$320)*10) -> 3.893081761 | AD31: 3 | AE31: 579 | AF31: 15.4% | AG31: 302 | AH31: 10.49685535 | AI31: 10 | AJ31: 282 | AK31: 100.0% | AL31: 291 | AM31: 10.1509434 | AN31: 10 | AO31: 5,364 | AP31: 2.6% | AQ31: 112 | AR31: 4.522012579 | AS31: 4 | AT31: 790 | AU31: 11.3% | AV31: 258 | AW31: 9.113207547 | AX31: 9 | AY31: 0 | AZ31: 0.0% | BA31: 1 | BB31: 1.031446541 | BC31: 1 | BD31: 0 | BE31: 0.0% | BF31: 1 | BG31: 1.031446541 | BH31: 1 | BI31: 400 | BJ31: 3.3% | BK31: 42 | BL31: 2.320754717 | BM31: 2 | BN31: 356 | BO31: 3.8% | BP31: 194 | BQ31: 7.100628931 | BR31: 7 | BT31: 43 | BU31: -2
A32: ='[1]Rapport 5'!A32 -> 47 | B32: ='[1]Rapport 5'!B32 -> STRASBOURG CRONENBOURG | C32: ='[1]Rapport 5'!C32 -> 4047 | D32: ='[1]Rapport 5'!D32 -> STRASBOURG CRONENBOURG | E32: ='[1]Rapport 5'!E32 -> 5006 | F32: ='[1]Rapport 5'!F32 -> STRASBOURG | G32: ='[1]Rapport 5'!G32 -> 262 | H32: ='[1]Rapport 5'!H32 -> BAS RHIN | I32: ='[1]Rapport 5'!I32 -> 6433.94 | J32: ='[1]Rapport 5'!J32 -> 238.81 | K32: ='[1]Rapport 5'!K32 -> 0 | L32: ='[1]Rapport 5'!L32 -> 472.88 | M32: ='[1]Rapport 5'!M32 -> 223595.87 | N32: ='[1]Rapport 5'!N32 -> 8124.3 | O32: ='[1]Rapport 5'!O32 -> 3326 | P32: ='[1]Rapport 5'!P32 -> 719 | Q32: ='[1]Rapport 5'!Q32 -> 0 | R32: ='[1]Rapport 5'!R32 -> 0 | S32: ='[1]Rapport 5'!S32 -> 990.07 | T32: ='[1]Rapport 5'!T32 -> 0 | U32: ='[1]Rapport 5'!U32 -> 15587.43 | V32: ='[1]Rapport 5'!V32 -> 1721.93 | W32: ='[1]Rapport 5'!W32 -> 6475.12 | X32: ='[1]Rapport 5'!X32 -> 286.5 | Y32: 256,408 | Z32: 11,563 | AA32: 4.5% | AB32: 223 | AC32: =1+(AB32/COUNT($AB$3:AB$320)*10) -> 8.012578616 | AD32: 8 | AE32: 239 | AF32: 3.7% | AG32: 149 | AH32: 5.685534591 | AI32: 5 | AJ32: 473 | AK32: 100.0% | AL32: 291 | AM32: 10.1509434 | AN32: 10 | AO32: 8,124 | AP32: 3.6% | AQ32: 216 | AR32: 7.79245283 | AS32: 7 | AT32: 719 | AU32: 21.6% | AV32: 301 | AW32: 10.46540881 | AX32: 10 | AY32: 0 | AZ32: 0.0% | BA32: 1 | BB32: 1.031446541 | BC32: 1 | BD32: 0 | BE32: 0.0% | BF32: 1 | BG32: 1.031446541 | BH32: 1 | BI32: 1,722 | BJ32: 11.0% | BK32: 176 | BL32: 6.534591195 | BM32: 6 | BN32: 287 | BO32: 4.4% | BP32: 213 | BQ32: 7.698113208 | BR32: 7 | BT32: 45 | BU32: -2
A33: ='[1]Rapport 5'!A33 -> 48 | B33: ='[1]Rapport 5'!B33 -> STRASBOURG KOENIGSHOFFEN | C33: ='[1]Rapport 5'!C33 -> 4048 | D33: ='[1]Rapport 5'!D33 -> STRASBOURG KOENIGSHOFFEN | E33: ='[1]Rapport 5'!E33 -> 5006 | F33: ='[1]Rapport 5'!F33 -> STRASBOURG | G33: ='[1]Rapport 5'!G33 -> 262 | H33: ='[1]Rapport 5'!H33 -> BAS RHIN | I33: ='[1]Rapport 5'!I33 -> 3260.7 | J33: ='[1]Rapport 5'!J33 -> 30.58 | K33: ='[1]Rapport 5'!K33 -> 0 | L33: ='[1]Rapport 5'!L33 -> 0 | M33: ='[1]Rapport 5'!M33 -> 109932.06 | N33: ='[1]Rapport 5'!N33 -> 2223.14 | O33: ='[1]Rapport 5'!O33 -> 2930 | P33: ='[1]Rapport 5'!P33 -> 250 | Q33: ='[1]Rapport 5'!Q33 -> 0 | R33: ='[1]Rapport 5'!R33 -> 0 | S33: ='[1]Rapport 5'!S33 -> 234 | T33: ='[1]Rapport 5'!T33 -> 0 | U33: ='[1]Rapport 5'!U33 -> 9280.59 | V33: ='[1]Rapport 5'!V33 -> 1751.4 | W33: ='[1]Rapport 5'!W33 -> 3559.68 | X33: ='[1]Rapport 5'!X33 -> 37.3 | Y33: 129,197 | Z33: 4,292 | AA33: 3.3% | AB33: 102 | AC33: =1+(AB33/COUNT($AB$3:AB$320)*10) -> 4.20754717 | AD33: 4 | AE33: 31 | AF33: 0.9% | AG33: 23 | AH33: 1.72327044 | AI33: 1 | AJ33: 0 | AK33: 0.0% | AL33: 1 | AM33: 1.031446541 | AN33: 1 | AO33: 2,223 | AP33: 2.0% | AQ33: 62 | AR33: 2.949685535 | AS33: 2 | AT33: 250 | AU33: 8.5% | AV33: 236 | AW33: 8.421383648 | AX33: 8 | AY33: 0 | AZ33: 0.0% | BA33: 1 | BB33: 1.031446541 | BC33: 1 | BD33: 0 | BE33: 0.0% | BF33: 1 | BG33: 1.031446541 | BH33: 1 | BI33: 1,751 | BJ33: 18.9% | BK33: 256 | BL33: 9.050314465 | BM33: 9 | BN33: 37 | BO33: 1.0% | BP33: 65 | BQ33: 3.044025157 | BR33: 3 | BT33: 47 | BU33: -1
A34: ='[1]Rapport 5'!A34 -> 54 | B34: ='[1]Rapport 5'!B34 -> STRASBOURG MONTAGNE VERTE | C34: ='[1]Rapport 5'!C34 -> 4054 | D34: ='[1]Rapport 5'!D34 -> STRASBOURG MONTAGNE VERTE | E34: ='[1]Rapport 5'!E34 -> 5006 | F34: ='[1]Rapport 5'!F34 -> STRASBOURG | G34: ='[1]Rapport 5'!G34 -> 262 | H34: ='[1]Rapport 5'!H34 -> BAS RHIN | I34: ='[1]Rapport 5'!I34 -> 5358.73 | J34: ='[1]Rapport 5'!J34 -> 233.98 | K34: ='[1]Rapport 5'!K34 -> 0 | L34: ='[1]Rapport 5'!L34 -> 0 | M34: ='[1]Rapport 5'!M34 -> 131396.96 | N34: ='[1]Rapport 5'!N34 -> 2676.91 | O34: ='[1]Rapport 5'!O34 -> 4955.5 | P34: ='[1]Rapport 5'!P34 -> 159 | Q34: ='[1]Rapport 5'!Q34 -> 0 | R34: ='[1]Rapport 5'!R34 -> 0 | S34: ='[1]Rapport 5'!S34 -> 688 | T34: ='[1]Rapport 5'!T34 -> 0 | U34: ='[1]Rapport 5'!U34 -> 9900.51 | V34: ='[1]Rapport 5'!V34 -> 944.02 | W34: ='[1]Rapport 5'!W34 -> 5388.77 | X34: ='[1]Rapport 5'!X34 -> 10.85 | Y34: 157,688 | Z34: 4,025 | AA34: 2.6% | AB34: 51 | AC34: =1+(AB34/COUNT($AB$3:AB$320)*10) -> 2.603773585 | AD34: 2 | AE34: =+J34 -> 234 | AF34: 4.4% | AG34: 178 | AH34: 6.597484277 | AI34: 6 | AJ34: 0 | AK34: 0.0% | AL34: 1 | AM34: 1.031446541 | AN34: 1 | AO34: 2,677 | AP34: 2.0% | AQ34: 64 | AR34: 3.012578616 | AS34: 3 | AT34: 159 | AU34: 3.2% | AV34: 144 | AW34: 5.528301887 | AX34: 5 | AY34: 0 | AZ34: 0.0% | BA34: 1 | BB34: 1.031446541 | BC34: 1 | BD34: 0 | BE34: 0.0% | BF34: 1 | BG34: 1.031446541 | BH34: 1 | BI34: 944 | BJ34: 9.5% | BK34: 146 | BL34: 5.591194969 | BM34: 5 | BN34: 11 | BO34: 0.2% | BP34: 24 | BQ34: 1.754716981 | BR34: 1 | BT34: 48 | BU34: -6
A35: ='[1]Rapport 5'!A35 -> 57 | B35: ='[1]Rapport 5'!B35 -> BISCHWILLER | C35: ='[1]Rapport 5'!C35 -> 4057 | D35: ='[1]Rapport 5'!D35 -> BISCHWILLER | E35: ='[1]Rapport 5'!E35 -> 5060 | F35: ='[1]Rapport 5'!F35 -> HAGUENAU | G35: ='[1]Rapport 5'!G35 -> 262 | H35: ='[1]Rapport 5'!H35 -> BAS RHIN | I35: ='[1]Rapport 5'!I35 -> 2756.48 | J35: ='[1]Rapport 5'!J35 -> 545.37 | K35: ='[1]Rapport 5'!K35 -> 0 | L35: ='[1]Rapport 5'!L35 -> 65.86 | M35: ='[1]Rapport 5'!M35 -> 119816.49 | N35: ='[1]Rapport 5'!N35 -> 2025.18 | O35: ='[1]Rapport 5'!O35 -> 6010.5 | P35: ='[1]Rapport 5'!P35 -> 1130 | Q35: ='[1]Rapport 5'!Q35 -> 0 | R35: ='[1]Rapport 5'!R35 -> 0 | S35: ='[1]Rapport 5'!S35 -> 127 | T35: ='[1]Rapport 5'!T35 -> 0 | U35: ='[1]Rapport 5'!U35 -> 10707.97 | V35: ='[1]Rapport 5'!V35 -> 647.73 | W35: ='[1]Rapport 5'!W35 -> 4928.69 | X35: ='[1]Rapport 5'!X35 -> 77.5 | Y35: 144,347 | Z35: 4,492 | AA35: 3.1% | AB35: 85 | AC35: =1+(AB35/COUNT($AB$3:AB$320)*10) -> 3.672955975 | AD35: 3 | AE35: 545 | AF35: 19.8% | AG35: 308 | AH35: 10.68553459 | AI35: 10 | AJ35: 66 | AK35: 100.0% | AL35: 291 | AM35: 10.1509434 | AN35: 10 | AO35: 2,025 | AP35: 1.7% | AQ35: 39 | AR35: 2.226415094 | AS35: 2 | AT35: 1,130 | AU35: 18.8% | AV35: 296 | AW35: 10.3081761 | AX35: 10 | AY35: 0 | AZ35: 0.0% | BA35: 1 | BB35: 1.031446541 | BC35: 1 | BD35: 0 | BE35: 0.0% | BF35: 1 | BG35: 1.031446541 | BH35: 1 | BI35: 648 | BJ35: 6.0% | BK35: 91 | BL35: 3.86163522 | BM35: 3 | BN35: 78 | BO35: 1.6% | BP35: 92 | BQ35: 3.893081761 | BR35: 3 | BT35: 50 | BU35: -7
A36: ='[1]Rapport 5'!A36 -> 58 | B36: ='[1]Rapport 5'!B36 -> DRUSENHEIM | C36: ='[1]Rapport 5'!C36 -> 4057 | D36: ='[1]Rapport 5'!D36 -> BISCHWILLER | E36: ='[1]Rapport 5'!E36 -> 5060 | F36: ='[1]Rapport 5'!F36 -> HAGUENAU | G36: ='[1]Rapport 5'!G36 -> 262 | H36: ='[1]Rapport 5'!H36 -> BAS RHIN | I36: ='[1]Rapport 5'!I36 -> 1527.7 | J36: ='[1]Rapport 5'!J36 -> 523.25 | K36: ='[1]Rapport 5'!K36 -> 0 | L36: ='[1]Rapport 5'!L36 -> 0 | M36: ='[1]Rapport 5'!M36 -> 59326.45 | N36: ='[1]Rapport 5'!N36 -> 1139.28 | O36: ='[1]Rapport 5'!O36 -> 4202.5 | P36: ='[1]Rapport 5'!P36 -> 100 | Q36: ='[1]Rapport 5'!Q36 -> 0 | R36: ='[1]Rapport 5'!R36 -> 0 | S36: ='[1]Rapport 5'!S36 -> 119 | T36: ='[1]Rapport 5'!T36 -> 26 | U36: ='[1]Rapport 5'!U36 -> 2562.62 | V36: ='[1]Rapport 5'!V36 -> 186.5 | W36: ='[1]Rapport 5'!W36 -> 2441.67 | X36: ='[1]Rapport 5'!X36 -> 363.64 | Y36: 70,180 | Z36: 2,339 | AA36: 3.3% | AB36: 105 | AC36: =1+(AB36/COUNT($AB$3:AB$320)*10) -> 4.301886792 | AD36: 4 | AE36: 523 | AF36: 34.3% | AG36: 314 | AH36: 10.87421384 | AI36: 10 | AJ36: 0 | AK36: 0.0% | AL36: 1 | AM36: 1.031446541 | AN36: 1 | AO36: 1,139 | AP36: 1.9% | AQ36: 53 | AR36: 2.666666667 | AS36: 2 | AT36: 100 | AU36: 2.4% | AV36: 125 | AW36: 4.93081761 | AX36: 4 | AY36: 0 | AZ36: 0.0% | BA36: 1 | BB36: 1.031446541 | BC36: 1 | BD36: 26 | BE36: 21.8% | BF36: 296 | BG36: 10.3081761 | BH36: 10 | BI36: 187 | BJ36: 7.3% | BK36: 111 | BL36: 4.490566038 | BM36: 4 | BN36: 364 | BO36: 14.9% | BP36: 308 | BQ36: 10.68553459 | BR36: 10 | BT36: 54 | BU36: -4
A37: ='[1]Rapport 5'!A37 -> 60 | B37: ='[1]Rapport 5'!B37 -> HAGUENAU HOUBLON | C37: ='[1]Rapport 5'!C37 -> 4060 | D37: ='[1]Rapport 5'!D37 -> HAGUENAU HOUBLON | E37: ='[1]Rapport 5'!E37 -> 5060 | F37: ='[1]Rapport 5'!F37 -> HAGUENAU | G37: ='[1]Rapport 5'!G37 -> 262 | H37: ='[1]Rapport 5'!H37 -> BAS RHIN | I37: ='[1]Rapport 5'!I37 -> 6797.05 | J37: ='[1]Rapport 5'!J37 -> 557.94 | K37: ='[1]Rapport 5'!K37 -> 0 | L37: ='[1]Rapport 5'!L37 -> 0 | M37: ='[1]Rapport 5'!M37 -> 279773.28 | N37: ='[1]Rapport 5'!N37 -> 6722.33 | O37: ='[1]Rapport 5'!O37 -> 13073 | P37: ='[1]Rapport 5'!P37 -> 1807.48 | Q37: ='[1]Rapport 5'!Q37 -> 0 | R37: ='[1]Rapport 5'!R37 -> 0 | S37: ='[1]Rapport 5'!S37 -> 1100.27 | T37: ='[1]Rapport 5'!T37 -> 0 | U37: ='[1]Rapport 5'!U37 -> 20670.48 | V37: ='[1]Rapport 5'!V37 -> 2679.85 | W37: ='[1]Rapport 5'!W37 -> 11116.26 | X37: ='[1]Rapport 5'!X37 -> 488.97 | Y37: 332,530 | Z37: 12,257 | AA37: 3.7% | AB37: 147 | AC37: =1+(AB37/COUNT($AB$3:AB$320)*10) -> 5.622641509 | AD37: 5 | AE37: 558 | AF37: 8.2% | AG37: 261 | AH37: 9.20754717 | AI37: 9 | AJ37: 0 | AK37: 0.0% | AL37: 1 | AM37: 1.031446541 | AN37: 1 | AO37: 6,722 | AP37: 2.4% | AQ37: 91 | AR37: 3.86163522 | AS37: 3 | AT37: 1,807 | AU37: 13.8% | AV37: 275 | AW37: 9.647798742 | AX37: 9 | AY37: 0 | AZ37: 0.0% | BA37: 1 | BB37: 1.031446541 | BC37: 1 | BD37: 0 | BE37: 0.0% | BF37: 1 | BG37: 1.031446541 | BH37: 1 | BI37: 2,680 | BJ37: 13.0% | BK37: 197 | BL37: 7.194968553 | BM37: 7 | BN37: 489 | BO37: 4.4% | BP37: 211 | BQ37: 7.635220126 | BR37: 7 | BT37: 57 | BU37: -3
A38: ='[1]Rapport 5'!A38 -> 66 | B38: ='[1]Rapport 5'!B38 -> NIEDERBRONN LES BAINS | C38: ='[1]Rapport 5'!C38 -> 4066 | D38: ='[1]Rapport 5'!D38 -> NIEDERBRONN LES BAINS | E38: ='[1]Rapport 5'!E38 -> 5060 | F38: ='[1]Rapport 5'!F38 -> HAGUENAU | G38: ='[1]Rapport 5'!G38 -> 262 | H38: ='[1]Rapport 5'!H38 -> BAS RHIN | I38: ='[1]Rapport 5'!I38 -> 1687.53 | J38: ='[1]Rapport 5'!J38 -> 45.39 | K38: ='[1]Rapport 5'!K38 -> 0 | L38: ='[1]Rapport 5'!L38 -> 0 | M38: ='[1]Rapport 5'!M38 -> 58952.17 | N38: ='[1]Rapport 5'!N38 -> 1652.77 | O38: ='[1]Rapport 5'!O38 -> 2115 | P38: ='[1]Rapport 5'!P38 -> 0 | Q38: ='[1]Rapport 5'!Q38 -> 0 | R38: ='[1]Rapport 5'!R38 -> 0 | S38: ='[1]Rapport 5'!S38 -> 186 | T38: ='[1]Rapport 5'!T38 -> 0 | U38: ='[1]Rapport 5'!U38 -> 5104.45 | V38: ='[1]Rapport 5'!V38 -> 889.11 | W38: ='[1]Rapport 5'!W38 -> 4400.1 | X38: ='[1]Rapport 5'!X38 -> 535.27 | Y38: 72,445 | Z38: 3,123 | AA38: 4.3% | AB38: 212 | AC38: =1+(AB38/COUNT($AB$3:AB$320)*10) -> 7.666666667 | AD38: 7 | AE38: 45 | AF38: 2.7% | AG38: 93 | AH38: 3.924528302 | AI38: 3 | AJ38: 0 | AK38: 0.0% | AL38: 1 | AM38: 1.031446541 | AN38: 1 | AO38: 1,653 | AP38: 2.8% | AQ38: 138 | AR38: 5.339622642 | AS38: 5 | AT38: 0 | AU38: 0.0% | AV38: 1 | AW38: 1.031446541 | AX38: 1 | AY38: 0 | AZ38: 0.0% | BA38: 1 | BB38: 1.031446541 | BC38: 1 | BD38: 0 | BE38: 0.0% | BF38: 1 | BG38: 1.031446541 | BH38: 1 | BI38: 889 | BJ38: 17.4% | BK38: 246 | BL38: 8.735849057 | BM38: 8 | BN38: 535 | BO38: 12.2% | BP38: 295 | BQ38: 10.27672956 | BR38: 10 | BT38: 58 | BU38: -8
A39: ='[1]Rapport 5'!A39 -> 67 | B39: ='[1]Rapport 5'!B39 -> PFAFFENHOFFEN | C39: ='[1]Rapport 5'!C39 -> 4067 | D39: ='[1]Rapport 5'!D39 -> PFAFFENHOFFEN | E39: ='[1]Rapport 5'!E39 -> 5060 | F39: ='[1]Rapport 5'!F39 -> HAGUENAU | G39: ='[1]Rapport 5'!G39 -> 262 | H39: ='[1]Rapport 5'!H39 -> BAS RHIN | I39: ='[1]Rapport 5'!I39 -> 2918.26 | J39: ='[1]Rapport 5'!J39 -> 196.58 | K39: ='[1]Rapport 5'!K39 -> 0 | L39: ='[1]Rapport 5'!L39 -> 0 | M39: ='[1]Rapport 5'!M39 -> 101386.45 | N39: ='[1]Rapport 5'!N39 -> 3510.09 | O39: ='[1]Rapport 5'!O39 -> 4236 | P39: ='[1]Rapport 5'!P39 -> 238 | Q39: ='[1]Rapport 5'!Q39 -> 0 | R39: ='[1]Rapport 5'!R39 -> 0 | S39: ='[1]Rapport 5'!S39 -> 130 | T39: ='[1]Rapport 5'!T39 -> 13 | U39: ='[1]Rapport 5'!U39 -> 7223.28 | V39: ='[1]Rapport 5'!V39 -> 1553.49 | W39: ='[1]Rapport 5'!W39 -> 4282.08 | X39: ='[1]Rapport 5'!X39 -> 60 | Y39: 120,176 | Z39: 5,571 | AA39: 4.6% | AB39: 239 | AC39: =1+(AB39/COUNT($AB$3:AB$320)*10) -> 8.51572327 | AD39: 8 | AE39: 197 | AF39: 6.7% | AG39: 240 | AH39: 8.547169811 | AI39: 8 | AJ39: 0 | AK39: 0.0% | AL39: 1 | AM39: 1.031446541 | AN39: 1 | AO39: 3,510 | AP39: 3.5% | AQ39: 206 | AR39: 7.477987421 | AS39: 7 | AT39: 238 | AU39: 5.6% | AV39: 198 | AW39: 7.226415094 | AX39: 7 | AY39: 0 | AZ39: 0.0% | BA39: 1 | BB39: 1.031446541 | BC39: 1 | BD39: 13 | BE39: 10.0% | BF39: 278 | BG39: 9.742138365 | BH39: 9 | BI39: 1,553 | BJ39: 21.5% | BK39: 274 | BL39: 9.616352201 | BM39: 9 | BN39: 60 | BO39: 1.4% | BP39: 84 | BQ39: 3.641509434 | BR39: 3 | BT39: 59 | BU39: -8
A40: ='[1]Rapport 5'!A40 -> 68 | B40: ='[1]Rapport 5'!B40 -> REICHSHOFFEN | C40: ='[1]Rapport 5'!C40 -> 4066 | D40: ='[1]Rapport 5'!D40 -> NIEDERBRONN LES BAINS | E40: ='[1]Rapport 5'!E40 -> 5060 | F40: ='[1]Rapport 5'!F40 -> HAGUENAU | G40: ='[1]Rapport 5'!G40 -> 262 | H40: ='[1]Rapport 5'!H40 -> BAS RHIN | I40: ='[1]Rapport 5'!I40 -> 2399.86 | J40: ='[1]Rapport 5'!J40 -> 59.21 | K40: ='[1]Rapport 5'!K40 -> 0 | L40: ='[1]Rapport 5'!L40 -> 50 | M40: ='[1]Rapport 5'!M40 -> 59319.59 | N40: ='[1]Rapport 5'!N40 -> 1368.47 | O40: ='[1]Rapport 5'!O40 -> 2664.5 | P40: ='[1]Rapport 5'!P40 -> 0 | Q40: ='[1]Rapport 5'!Q40 -> 0 | R40: ='[1]Rapport 5'!R40 -> 0 | S40: ='[1]Rapport 5'!S40 -> 403 | T40: ='[1]Rapport 5'!T40 -> 0 | U40: ='[1]Rapport 5'!U40 -> 4552.74 | V40: ='[1]Rapport 5'!V40 -> 1073.38 | W40: ='[1]Rapport 5'!W40 -> 2777.65 | X40: ='[1]Rapport 5'!X40 -> 51.3 | Y40: 72,117 | Z40: 2,602 | AA40: 3.6% | AB40: 138 | AC40: =1+(AB40/COUNT($AB$3:AB$320)*10) -> 5.339622642 | AD40: 5 | AE40: 59 | AF40: 2.5% | AG40: 81 | AH40: 3.547169811 | AI40: 3 | AJ40: 50 | AK40: 100.0% | AL40: 291 | AM40: 10.1509434 | AN40: 10 | AO40: 1,368 | AP40: 2.3% | AQ40: 79 | AR40: 3.48427673 | AS40: 3 | AT40: 0 | AU40: 0.0% | AV40: 1 | AW40: 1.031446541 | AX40: 1 | AY40: 0 | AZ40: 0.0% | BA40: 1 | BB40: 1.031446541 | BC40: 1 | BD40: 0 | BE40: 0.0% | BF40: 1 | BG40: 1.031446541 | BH40: 1 | BI40: 1,073 | BJ40: 23.6% | BK40: 284 | BL40: 9.93081761 | BM40: 9 | BN40: 51 | BO40: 1.8% | BP40: 106 | BQ40: 4.333333333 | BR40: 4 | BT40: 60 | BU40: -8
A41: ='[1]Rapport 5'!A41 -> 70 | B41: ='[1]Rapport 5'!B41 -> GUNDERSHOFFEN | C41: ='[1]Rapport 5'!C41 -> 4066 | D41: ='[1]Rapport 5'!D41 -> NIEDERBRONN LES BAINS | E41: ='[1]Rapport 5'!E41 -> 5060 | F41: ='[1]Rapport 5'!F41 -> HAGUENAU | G41: ='[1]Rapport 5'!G41 -> 262 | H41: ='[1]Rapport 5'!H41 -> BAS RHIN | I41: ='[1]Rapport 5'!I41 -> 1543.54 | J41: ='[1]Rapport 5'!J41 -> 243.71 | K41: ='[1]Rapport 5'!K41 -> 0 | L41: ='[1]Rapport 5'!L41 -> 52.2 | M41: ='[1]Rapport 5'!M41 -> 51817.69 | N41: ='[1]Rapport 5'!N41 -> 2006.3 | O41: ='[1]Rapport 5'!O41 -> 2719.5 | P41: ='[1]Rapport 5'!P41 -> 0 | Q41: ='[1]Rapport 5'!Q41 -> 245.83 | R41: ='[1]Rapport 5'!R41 -> 0 | S41: ='[1]Rapport 5'!S41 -> 13 | T41: ='[1]Rapport 5'!T41 -> 0 | U41: ='[1]Rapport 5'!U41 -> 3075.39 | V41: ='[1]Rapport 5'!V41 -> 176.88 | W41: ='[1]Rapport 5'!W41 -> 2301.87 | X41: ='[1]Rapport 5'!X41 -> 180.36 | Y41: 61,717 | Z41: 2,659 | AA41: 4.3% | AB41: 211 | AC41: =1+(AB41/COUNT($AB$3:AB$320)*10) -> 7.635220126 | AD41: 7 | AE41: 244 | AF41: 15.8% | AG41: 304 | AH41: 10.55974843 | AI41: 10 | AJ41: 52 | AK41: 100.0% | AL41: 291 | AM41: 10.1509434 | AN41: 10 | AO41: 2,006 | AP41: 3.9% | AQ41: 233 | AR41: 8.327044025 | AS41: 8 | AT41: 0 | AU41: 0.0% | AV41: 1 | AW41: 1.031446541 | AX41: 1 | AY41: 0 | AZ41: 0.0% | BA41: 1 | BB41: 1.031446541 | BC41: 1 | BD41: 0 | BE41: 0.0% | BF41: 1 | BG41: 1.031446541 | BH41: 1 | BI41: 177 | BJ41: 5.8% | BK41: 85 | BL41: 3.672955975 | BM41: 3 | BN41: 180 | BO41: 7.8% | BP41: 272 | BQ41: 9.553459119 | BR41: 9 | BT41: 64 | BU41: -6
A42: ='[1]Rapport 5'!A42 -> 71 | B42: ='[1]Rapport 5'!B42 -> WISSEMBOURG | C42: ='[1]Rapport 5'!C42 -> 4071 | D42: ='[1]Rapport 5'!D42 -> WISSEMBOURG | E42: ='[1]Rapport 5'!E42 -> 5060 | F42: ='[1]Rapport 5'!F42 -> HAGUENAU | G42: ='[1]Rapport 5'!G42 -> 262 | H42: ='[1]Rapport 5'!H42 -> BAS RHIN | I42: ='[1]Rapport 5'!I42 -> 3164.43 | J42: ='[1]Rapport 5'!J42 -> 143.97 | K42: ='[1]Rapport 5'!K42 -> 0 | L42: ='[1]Rapport 5'!L42 -> 40 | M42: ='[1]Rapport 5'!M42 -> 127438.44 | N42: ='[1]Rapport 5'!N42 -> 3243.07 | O42: ='[1]Rapport 5'!O42 -> 3697.75 | P42: ='[1]Rapport 5'!P42 -> 396.66 | Q42: ='[1]Rapport 5'!Q42 -> 0 | R42: ='[1]Rapport 5'!R42 -> 0 | S42: ='[1]Rapport 5'!S42 -> 308.22 | T42: ='[1]Rapport 5'!T42 -> 0 | U42: ='[1]Rapport 5'!U42 -> 9619.41 | V42: ='[1]Rapport 5'!V42 -> 2419.83 | W42: ='[1]Rapport 5'!W42 -> 8177.43 | X42: ='[1]Rapport 5'!X42 -> 264.7 | Y42: 152,406 | Z42: 6,508 | AA42: 4.3% | AB42: 205 | AC42: =1+(AB42/COUNT($AB$3:AB$320)*10) -> 7.446540881 | AD42: 7 | AE42: 144 | AF42: 4.5% | AG42: 188 | AH42: 6.911949686 | AI42: 6 | AJ42: 40 | AK42: 100.0% | AL42: 291 | AM42: 10.1509434 | AN42: 10 | AO42: 3,243 | AP42: 2.5% | AQ42: 106 | AR42: 4.333333333 | AS42: 4 | AT42: 397 | AU42: 10.7% | AV42: 254 | AW42: 8.987421384 | AX42: 8 | AY42: 0 | AZ42: 0.0% | BA42: 1 | BB42: 1.031446541 | BC42: 1 | BD42: 0 | BE42: 0.0% | BF42: 1 | BG42: 1.031446541 | BH42: 1 | BI42: 2,420 | BJ42: 25.2% | BK42: 290 | BL42: 10.11949686 | BM42: 10 | BN42: 265 | BO42: 3.2% | BP42: 169 | BQ42: 6.314465409 | BR42: 6 | BT42: 65 | BU42: -6
A43: ='[1]Rapport 5'!A43 -> 73 | B43: ='[1]Rapport 5'!B43 -> SCHWEIGHOUSE SUR MODER | C43: ='[1]Rapport 5'!C43 -> 4060 | D43: ='[1]Rapport 5'!D43 -> HAGUENAU HOUBLON | E43: ='[1]Rapport 5'!E43 -> 5060 | F43: ='[1]Rapport 5'!F43 -> HAGUENAU | G43: ='[1]Rapport 5'!G43 -> 262 | H43: ='[1]Rapport 5'!H43 -> BAS RHIN | I43: ='[1]Rapport 5'!I43 -> 2222.77 | J43: ='[1]Rapport 5'!J43 -> 213.47 | K43: ='[1]Rapport 5'!K43 -> 0 | L43: ='[1]Rapport 5'!L43 -> 0 | M43: ='[1]Rapport 5'!M43 -> 64195.95 | N43: ='[1]Rapport 5'!N43 -> 1156.87 | O43: ='[1]Rapport 5'!O43 -> 1630 | P43: ='[1]Rapport 5'!P43 -> 242 | Q43: ='[1]Rapport 5'!Q43 -> 0 | R43: ='[1]Rapport 5'!R43 -> 0 | S43: ='[1]Rapport 5'!S43 -> 153 | T43: ='[1]Rapport 5'!T43 -> 0 | U43: ='[1]Rapport 5'!U43 -> 3226.27 | V43: ='[1]Rapport 5'!V43 -> 1210.74 | W43: ='[1]Rapport 5'!W43 -> 2700.33 | X43: ='[1]Rapport 5'!X43 -> 70 | Y43: 74,128 | Z43: 2,893 | AA43: 3.9% | AB43: 176 | AC43: =1+(AB43/COUNT($AB$3:AB$320)*10) -> 6.534591195 | AD43: 6 | AE43: 213 | AF43: 9.6% | AG43: 271 | AH43: 9.522012579 | AI43: 9 | AJ43: 0 | AK43: 0.0% | AL43: 1 | AM43: 1.031446541 | AN43: 1 | AO43: 1,157 | AP43: 1.8% | AQ43: 45 | AR43: 2.41509434 | AS43: 2 | AT43: 242 | AU43: 14.8% | AV43: 284 | AW43: 9.93081761 | AX43: 9 | AY43: 0 | AZ43: 0.0% | BA43: 1 | BB43: 1.031446541 | BC43: 1 | BD43: 0 | BE43: 0.0% | BF43: 1 | BG43: 1.031446541 | BH43: 1 | BI43: 1,211 | BJ43: 37.5% | BK43: 312 | BL43: 10.81132075 | BM43: 10 | BN43: 70 | BO43: 2.6% | BP43: 142 | BQ43: 5.465408805 | BR43: 5 | BT43: 66 | BU43: -7
A44: ='[1]Rapport 5'!A44 -> 74 | B44: ='[1]Rapport 5'!B44 -> SOUFFLENHEIM | C44: ='[1]Rapport 5'!C44 -> 4057 | D44: ='[1]Rapport 5'!D44 -> BISCHWILLER | E44: ='[1]Rapport 5'!E44 -> 5060 | F44: ='[1]Rapport 5'!F44 -> HAGUENAU | G44: ='[1]Rapport 5'!G44 -> 262 | H44: ='[1]Rapport 5'!H44 -> BAS RHIN | I44: ='[1]Rapport 5'!I44 -> 1336.8 | J44: ='[1]Rapport 5'!J44 -> 108.17 | K44: ='[1]Rapport 5'!K44 -> 0 | L44: ='[1]Rapport 5'!L44 -> 0 | M44: ='[1]Rapport 5'!M44 -> 48383.91 | N44: ='[1]Rapport 5'!N44 -> 815.43 | O44: ='[1]Rapport 5'!O44 -> 1362 | P44: ='[1]Rapport 5'!P44 -> 0 | Q44: ='[1]Rapport 5'!Q44 -> 0 | R44: ='[1]Rapport 5'!R44 -> 0 | S44: ='[1]Rapport 5'!S44 -> 62 | T44: ='[1]Rapport 5'!T44 -> 0 | U44: ='[1]Rapport 5'!U44 -> 3129.87 | V44: ='[1]Rapport 5'!V44 -> 322.78 | W44: ='[1]Rapport 5'!W44 -> 2016.84 | X44: ='[1]Rapport 5'!X44 -> 28 | Y44: 56,291 | Z44: 1,274 | AA44: 2.3% | AB44: 37 | AC44: =1+(AB44/COUNT($AB$3:AB$320)*10) -> 2.163522013 | AD44: 2 | AE44: 108 | AF44: 8.1% | AG44: 257 | AH44: 9.081761006 | AI44: 9 | AJ44: 0 | AK44: 0.0% | AL44: 1 | AM44: 1.031446541 | AN44: 1 | AO44: 815 | AP44: 1.7% | AQ44: 38 | AR44: 2.194968553 | AS44: 2 | AT44: 0 | AU44: 0.0% | AV44: 1 | AW44: 1.031446541 | AX44: 1 | AY44: 0 | AZ44: 0.0% | BA44: 1 | BB44: 1.031446541 | BC44: 1 | BD44: 0 | BE44: 0.0% | BF44: 1 | BG44: 1.031446541 | BH44: 1 | BI44: 323 | BJ44: 10.3% | BK44: 159 | BL44: 6 | BM44: 6 | BN44: 28 | BO44: 1.4% | BP44: 83 | BQ44: 3.610062893 | BR44: 3 | BT44: 67 | BU44: -7
A45: ='[1]Rapport 5'!A45 -> 76 | B45: ='[1]Rapport 5'!B45 -> BETSCHDORF | C45: ='[1]Rapport 5'!C45 -> 4071 | D45: ='[1]Rapport 5'!D45 -> WISSEMBOURG | E45: ='[1]Rapport 5'!E45 -> 5060 | F45: ='[1]Rapport 5'!F45 -> HAGUENAU | G45: ='[1]Rapport 5'!G45 -> 262 | H45: ='[1]Rapport 5'!H45 -> BAS RHIN | I45: ='[1]Rapport 5'!I45 -> 1313.25 | J45: ='[1]Rapport 5'!J45 -> 147.34 | K45: ='[1]Rapport 5'!K45 -> 0 | L45: ='[1]Rapport 5'!L45 -> 0 | M45: ='[1]Rapport 5'!M45 -> 61432.72 | N45: ='[1]Rapport 5'!N45 -> 959.24 | O45: ='[1]Rapport 5'!O45 -> 2525.5 | P45: ='[1]Rapport 5'!P45 -> 0 | Q45: ='[1]Rapport 5'!Q45 -> 0 | R45: ='[1]Rapport 5'!R45 -> 0 | S45: ='[1]Rapport 5'!S45 -> 0 | T45: ='[1]Rapport 5'!T45 -> 0 | U45: ='[1]Rapport 5'!U45 -> 2629.04 | V45: ='[1]Rapport 5'!V45 -> 400 | W45: ='[1]Rapport 5'!W45 -> 3280.87 | X45: ='[1]Rapport 5'!X45 -> 116.08 | Y45: 71,181 | Z45: 1,623 | AA45: 2.3% | AB45: 39 | AC45: =1+(AB45/COUNT($AB$3:AB$320)*10) -> 2.226415094 | AD45: 2 | AE45: 147 | AF45: 11.2% | AG45: 282 | AH45: 9.867924528 | AI45: 9 | AJ45: 0 | AK45: 0.0% | AL45: 1 | AM45: 1.031446541 | AN45: 1 | AO45: 959 | AP45: 1.6% | AQ45: 27 | AR45: 1.849056604 | AS45: 1 | AT45: 0 | AU45: 0.0% | AV45: 1 | AW45: 1.031446541 | AX45: 1 | AY45: 0 | AZ45: 0.0% | BA45: 1 | BB45: 1.031446541 | BC45: 1 | BD45: 0 | BE45: 0.0% | BF45: 1 | BG45: 1.031446541 | BH45: 1 | BI45: 400 | BJ45: 15.2% | BK45: 230 | BL45: 8.232704403 | BM45: 8 | BN45: 116 | BO45: 3.5% | BP45: 182 | BQ45: 6.72327044 | BR45: 6 | BT45: 68 | BU45: -8
A46: ='[1]Rapport 5'!A46 -> 77 | B46: ='[1]Rapport 5'!B46 -> SELTZ | C46: ='[1]Rapport 5'!C46 -> 4071 | D46: ='[1]Rapport 5'!D46 -> WISSEMBOURG | E46: ='[1]Rapport 5'!E46 -> 5060 | F46: ='[1]Rapport 5'!F46 -> HAGUENAU | G46: ='[1]Rapport 5'!G46 -> 262 | H46: ='[1]Rapport 5'!H46 -> BAS RHIN | I46: ='[1]Rapport 5'!I46 -> 3362.6 | J46: ='[1]Rapport 5'!J46 -> 123.05 | K46: ='[1]Rapport 5'!K46 -> 0 | L46: ='[1]Rapport 5'!L46 -> 0 | M46: ='[1]Rapport 5'!M46 -> 85755.37 | N46: ='[1]Rapport 5'!N46 -> 2912.33 | O46: ='[1]Rapport 5'!O46 -> 3276.5 | P46: ='[1]Rapport 5'!P46 -> 245 | Q46: ='[1]Rapport 5'!Q46 -> 0 | R46: ='[1]Rapport 5'!R46 -> 0 | S46: ='[1]Rapport 5'!S46 -> 270 | T46: ='[1]Rapport 5'!T46 -> 0 | U46: ='[1]Rapport 5'!U46 -> 3265.97 | V46: ='[1]Rapport 5'!V46 -> 205.88 | W46: ='[1]Rapport 5'!W46 -> 4539.49 | X46: ='[1]Rapport 5'!X46 -> 113.81 | Y46: 100,470 | Z46: 3,600 | AA46: 3.6% | AB46: 133 | AC46: =1+(AB46/COUNT($AB$3:AB$320)*10) -> 5.182389937 | AD46: 5 | AE46: 123 | AF46: 3.7% | AG46: 142 | AH46: 5.465408805 | AI46: 5 | AJ46: 0 | AK46: 0.0% | AL46: 1 | AM46: 1.031446541 | AN46: 1 | AO46: 2,912 | AP46: 3.4% | AQ46: 200 | AR46: 7.289308176 | AS46: 7 | AT46: 245 | AU46: 7.5% | AV46: 227 | AW46: 8.13836478 | AX46: 8 | AY46: 0 | AZ46: 0.0% | BA46: 1 | BB46: 1.031446541 | BC46: 1 | BD46: 0 | BE46: 0.0% | BF46: 1 | BG46: 1.031446541 | BH46: 1 | BI46: 206 | BJ46: 6.3% | BK46: 95 | BL46: 3.987421384 | BM46: 3 | BN46: 114 | BO46: 2.5% | BP46: 135 | BQ46: 5.245283019 | BR46: 5 | BT46: 70 | BU46: -7
A47: ='[1]Rapport 5'!A47 -> 79 | B47: ='[1]Rapport 5'!B47 -> SOULTZ SOUS FORETS | C47: ='[1]Rapport 5'!C47 -> 4079 | D47: ='[1]Rapport 5'!D47 -> SOULTZ SOUS FORETS | E47: ='[1]Rapport 5'!E47 -> 5060 | F47: ='[1]Rapport 5'!F47 -> HAGUENAU | G47: ='[1]Rapport 5'!G47 -> 262 | H47: ='[1]Rapport 5'!H47 -> BAS RHIN | I47: ='[1]Rapport 5'!I47 -> 1748.86 | J47: ='[1]Rapport 5'!J47 -> 138.07 | K47: ='[1]Rapport 5'!K47 -> 0 | L47: ='[1]Rapport 5'!L47 -> 0 | M47: ='[1]Rapport 5'!M47 -> 62328.07 | N47: ='[1]Rapport 5'!N47 -> 2245.09 | O47: ='[1]Rapport 5'!O47 -> 1817 | P47: ='[1]Rapport 5'!P47 -> 0 | Q47: ='[1]Rapport 5'!Q47 -> 0 | R47: ='[1]Rapport 5'!R47 -> 0 | S47: ='[1]Rapport 5'!S47 -> 26 | T47: ='[1]Rapport 5'!T47 -> 0 | U47: ='[1]Rapport 5'!U47 -> 1965.74 | V47: ='[1]Rapport 5'!V47 -> 300.5 | W47: ='[1]Rapport 5'!W47 -> 2201.29 | X47: ='[1]Rapport 5'!X47 -> 147.36 | Y47: 70,087 | Z47: 2,831 | AA47: 4.0% | AB47: 188 | AC47: =1+(AB47/COUNT($AB$3:AB$320)*10) -> 6.911949686 | AD47: 6 | AE47: 138 | AF47: 7.9% | AG47: 253 | AH47: 8.955974843 | AI47: 8 | AJ47: 0 | AK47: 0.0% | AL47: 1 | AM47: 1.031446541 | AN47: 1 | AO47: 2,245 | AP47: 3.6% | AQ47: 214 | AR47: 7.729559748 | AS47: 7 | AT47: 0 | AU47: 0.0% | AV47: 1 | AW47: 1.031446541 | AX47: 1 | AY47: 0 | AZ47: 0.0% | BA47: 1 | BB47: 1.031446541 | BC47: 1 | BD47: 0 | BE47: 0.0% | BF47: 1 | BG47: 1.031446541 | BH47: 1 | BI47: 301 | BJ47: 15.3% | BK47: 231 | BL47: 8.264150943 | BM47: 8 | BN47: 147 | BO47: 6.7% | BP47: 258 | BQ47: 9.113207547 | BR47: 9 | BT47: 71 | BU47: -8
A48: ='[1]Rapport 5'!A48 -> 80 | B48: ='[1]Rapport 5'!B48 -> WOERTH | C48: ='[1]Rapport 5'!C48 -> 4080 | D48: ='[1]Rapport 5'!D48 -> WOERTH | E48: ='[1]Rapport 5'!E48 -> 5060 | F48: ='[1]Rapport 5'!F48 -> HAGUENAU | G48: ='[1]Rapport 5'!G48 -> 262 | H48: ='[1]Rapport 5'!H48 -> BAS RHIN | I48: ='[1]Rapport 5'!I48 -> 2382.68 | J48: ='[1]Rapport 5'!J48 -> 135.68 | K48: ='[1]Rapport 5'!K48 -> 0 | L48: ='[1]Rapport 5'!L48 -> 0 | M48: ='[1]Rapport 5'!M48 -> 64635.05 | N48: ='[1]Rapport 5'!N48 -> 2509.75 | O48: ='[1]Rapport 5'!O48 -> 3910.5 | P48: ='[1]Rapport 5'!P48 -> 358.5 | Q48: ='[1]Rapport 5'!Q48 -> 0 | R48: ='[1]Rapport 5'!R48 -> 0 | S48: ='[1]Rapport 5'!S48 -> 0 | T48: ='[1]Rapport 5'!T48 -> 0 | U48: ='[1]Rapport 5'!U48 -> 4734.15 | V48: ='[1]Rapport 5'!V48 -> 0 | W48: ='[1]Rapport 5'!W48 -> 2504.71 | X48: ='[1]Rapport 5'!X48 -> 84 | Y48: 78,167 | Z48: 3,088 | AA48: 4.0% | AB48: 180 | AC48: =1+(AB48/COUNT($AB$3:AB$320)*10) -> 6.660377358 | AD48: 6 | AE48: 136 | AF48: 5.7% | AG48: 220 | AH48: 7.918238994 | AI48: 7 | AJ48: 0 | AK48: 0.0% | AL48: 1 | AM48: 1.031446541 | AN48: 1 | AO48: 2,510 | AP48: 3.9% | AQ48: 236 | AR48: 8.421383648 | AS48: 8 | AT48: 359 | AU48: 9.2% | AV48: 240 | AW48: 8.547169811 | AX48: 8 | AY48: 0 | AZ48: 0.0% | BA48: 1 | BB48: 1.031446541 | BC48: 1 | BD48: 0 | BE48: 0.0% | BF48: 1 | BG48: 1.031446541 | BH48: 1 | BI48: 0 | BJ48: 0.0% | BK48: 1 | BL48: 1.031446541 | BM48: 1 | BN48: 84 | BO48: 3.4% | BP48: 171 | BQ48: 6.377358491 | BR48: 6 | BT48: 73 | BU48: -7
A49: ='[1]Rapport 5'!A49 -> 82 | B49: ='[1]Rapport 5'!B49 -> BOUXWILLER | C49: ='[1]Rapport 5'!C49 -> 4082 | D49: ='[1]Rapport 5'!D49 -> BOUXWILLER | E49: ='[1]Rapport 5'!E49 -> 5060 | F49: ='[1]Rapport 5'!F49 -> HAGUENAU | G49: ='[1]Rapport 5'!G49 -> 262 | H49: ='[1]Rapport 5'!H49 -> BAS RHIN | I49: ='[1]Rapport 5'!I49 -> 4938.55 | J49: ='[1]Rapport 5'!J49 -> 77.95 | K49: ='[1]Rapport 5'!K49 -> 0 | L49: ='[1]Rapport 5'!L49 -> 0 | M49: ='[1]Rapport 5'!M49 -> 103158.2 | N49: ='[1]Rapport 5'!N49 -> 2435.3 | O49: ='[1]Rapport 5'!O49 -> 5038.5 | P49: ='[1]Rapport 5'!P49 -> 1165 | Q49: ='[1]Rapport 5'!Q49 -> 0 | R49: ='[1]Rapport 5'!R49 -> 0 | S49: ='[1]Rapport 5'!S49 -> 111 | T49: ='[1]Rapport 5'!T49 -> 44 | U49: ='[1]Rapport 5'!U49 -> 4184.84 | V49: ='[1]Rapport 5'!V49 -> 1063.79 | W49: ='[1]Rapport 5'!W49 -> 2949.45 | X49: ='[1]Rapport 5'!X49 -> 83.95 | Y49: 120,381 | Z49: 4,870 | AA49: 4.0% | AB49: 189 | AC49: =1+(AB49/COUNT($AB$3:AB$320)*10) -> 6.943396226 | AD49: 6 | AE49: 78 | AF49: 1.6% | AG49: 41 | AH49: 2.289308176 | AI49: 2 | AJ49: 0 | AK49: 0.0% | AL49: 1 | AM49: 1.031446541 | AN49: 1 | AO49: 2,435 | AP49: 2.4% | AQ49: 87 | AR49: 3.735849057 | AS49: 3 | AT49: 1,165 | AU49: 23.1% | AV49: 304 | AW49: 10.55974843 | AX49: 10 | AY49: 0 | AZ49: 0.0% | BA49: 1 | BB49: 1.031446541 | BC49: 1 | BD49: 44 | BE49: 39.6% | BF49: 311 | BG49: 10.77987421 | BH49: 10 | BI49: 1,064 | BJ49: 25.4% | BK49: 291 | BL49: 10.1509434 | BM49: 10 | BN49: 84 | BO49: 2.8% | BP49: 155 | BQ49: 5.874213836 | BR49: 5 | BT49: 74 | BU49: -8
A50: ='[1]Rapport 5'!A50 -> 85 | B50: ='[1]Rapport 5'!B50 -> INGWILLER | C50: ='[1]Rapport 5'!C50 -> 4085 | D50: ='[1]Rapport 5'!D50 -> INGWILLER | E50: ='[1]Rapport 5'!E50 -> 5060 | F50: ='[1]Rapport 5'!F50 -> HAGUENAU | G50: ='[1]Rapport 5'!G50 -> 262 | H50: ='[1]Rapport 5'!H50 -> BAS RHIN | I50: ='[1]Rapport 5'!I50 -> 5274.15 | J50: ='[1]Rapport 5'!J50 -> 430.38 | K50: ='[1]Rapport 5'!K50 -> 0 | L50: ='[1]Rapport 5'!L50 -> 0 | M50: ='[1]Rapport 5'!M50 -> 133617.63 | N50: ='[1]Rapport 5'!N50 -> 4514.01 | O50: ='[1]Rapport 5'!O50 -> 8593.5 | P50: ='[1]Rapport 5'!P50 -> 407 | Q50: ='[1]Rapport 5'!Q50 -> 0 | R50: ='[1]Rapport 5'!R50 -> 0 | S50: ='[1]Rapport 5'!S50 -> 647.5 | T50: ='[1]Rapport 5'!T50 -> 56.5 | U50: ='[1]Rapport 5'!U50 -> 8782.93 | V50: ='[1]Rapport 5'!V50 -> 1216.47 | W50: ='[1]Rapport 5'!W50 -> 6146.56 | X50: ='[1]Rapport 5'!X50 -> 819.81 | Y50: 163,062 | Z50: 7,444 | AA50: 4.6% | AB50: 228 | AC50: =1+(AB50/COUNT($AB$3:AB$320)*10) -> 8.169811321 | AD50: 8 | AE50: 430 | AF50: 8.2% | AG50: 260 | AH50: 9.176100629 | AI50: 9 | AJ50: 0 | AK50: 0.0% | AL50: 1 | AM50: 1.031446541 | AN50: 1 | AO50: 4,514 | AP50: 3.4% | AQ50: 197 | AR50: 7.194968553 | AS50: 7 | AT50: 407 | AU50: 4.7% | AV50: 184 | AW50: 6.786163522 | AX50: 6 | AY50: 0 | AZ50: 0.0% | BA50: 1 | BB50: 1.031446541 | BC50: 1 | BD50: 57 | BE50: 8.7% | BF50: 272 | BG50: 9.553459119 | BH50: 9 | BI50: 1,216 | BJ50: 13.9% | BK50: 213 | BL50: 7.698113208 | BM50: 7 | BN50: 820 | BO50: 13.3% | BP50: 305 | BQ50: 10.59119497 | BR50: 10 | BT50: 76 | BU50: -9
A51: ='[1]Rapport 5'!A51 -> 86 | B51: ='[1]Rapport 5'!B51 -> WINGEN SUR MODER | C51: ='[1]Rapport 5'!C51 -> 4085 | D51: ='[1]Rapport 5'!D51 -> INGWILLER | E51: ='[1]Rapport 5'!E51 -> 5060 | F51: ='[1]Rapport 5'!F51 -> HAGUENAU | G51: ='[1]Rapport 5'!G51 -> 262 | H51: ='[1]Rapport 5'!H51 -> BAS RHIN | I51: ='[1]Rapport 5'!I51 -> 0 | J51: ='[1]Rapport 5'!J51 -> 0 | K51: ='[1]Rapport 5'!K51 -> 0 | L51: ='[1]Rapport 5'!L51 -> 0 | M51: ='[1]Rapport 5'!M51 -> 103.6 | N51: ='[1]Rapport 5'!N51 -> 24 | O51: ='[1]Rapport 5'!O51 -> 0 | P51: ='[1]Rapport 5'!P51 -> 0 | Q51: ='[1]Rapport 5'!Q51 -> 0 | R51: ='[1]Rapport 5'!R51 -> 0 | S51: ='[1]Rapport 5'!S51 -> 0 | T51: ='[1]Rapport 5'!T51 -> 0 | U51: ='[1]Rapport 5'!U51 -> 0 | V51: ='[1]Rapport 5'!V51 -> 0 | W51: ='[1]Rapport 5'!W51 -> 0 | X51: ='[1]Rapport 5'!X51 -> 0 | Y51: 104 | Z51: 24 | AA51: 23.2% | AB51: 318 | AC51: =1+(AB51/COUNT($AB$3:AB$320)*10) -> 11 | AD51: 10 | AE51: 0 | AF51: 0.0% | AG51: 1 | AH51: 1.031446541 | AI51: 1 | AJ51: 0 | AK51: 0.0% | AL51: 1 | AM51: 1.031446541 | AN51: 1 | AO51: 24 | AP51: 23.2% | AQ51: 318 | AR51: 11 | AS51: 10 | AT51: 0 | AU51: 0.0% | AV51: 1 | AW51: 1.031446541 | AX51: 1 | AY51: 0 | AZ51: 0.0% | BA51: 1 | BB51: 1.031446541 | BC51: 1 | BD51: 0 | BE51: 0.0% | BF51: 1 | BG51: 1.031446541 | BH51: 1 | BI51: 0 | BJ51: 0.0% | BK51: 1 | BL51: 1.031446541 | BM51: 1 | BN51: 0 | BO51: 0.0% | BP51: 1 | BQ51: 1.031446541 | BR51: 1 | BT51: 77 | BU51: -9
A52: ='[1]Rapport 5'!A52 -> 87 | B52: ='[1]Rapport 5'!B52 -> SAVERNE | C52: ='[1]Rapport 5'!C52 -> 4087 | D52: ='[1]Rapport 5'!D52 -> SAVERNE | E52: ='[1]Rapport 5'!E52 -> 5060 | F52: ='[1]Rapport 5'!F52 -> HAGUENAU | G52: ='[1]Rapport 5'!G52 -> 262 | H52: ='[1]Rapport 5'!H52 -> BAS RHIN | I52: ='[1]Rapport 5'!I52 -> 9145.87 | J52: ='[1]Rapport 5'!J52 -> 1036.1 | K52: ='[1]Rapport 5'!K52 -> 0 | L52: ='[1]Rapport 5'!L52 -> 0 | M52: ='[1]Rapport 5'!M52 -> 281380.65 | N52: ='[1]Rapport 5'!N52 -> 12998.23 | O52: ='[1]Rapport 5'!O52 -> 11242.5 | P52: ='[1]Rapport 5'!P52 -> 3741.5 | Q52: ='[1]Rapport 5'!Q52 -> 0 | R52: ='[1]Rapport 5'!R52 -> 0 | S52: ='[1]Rapport 5'!S52 -> 855.55 | T52: ='[1]Rapport 5'!T52 -> 0 | U52: ='[1]Rapport 5'!U52 -> 25545.18 | V52: ='[1]Rapport 5'!V52 -> 4415.94 | W52: ='[1]Rapport 5'!W52 -> 14633.74 | X52: ='[1]Rapport 5'!X52 -> 741.33 | Y52: 342,803 | Z52: 22,933 | AA52: 6.7% | AB52: 305 | AC52: =1+(AB52/COUNT($AB$3:AB$320)*10) -> 10.59119497 | AD52: 10 | AE52: 1,036 | AF52: 11.3% | AG52: 284 | AH52: 9.93081761 | AI52: 9 | AJ52: 0 | AK52: 0.0% | AL52: 1 | AM52: 1.031446541 | AN52: 1 | AO52: 12,998 | AP52: 4.6% | AQ52: 280 | AR52: 9.805031447 | AS52: 9 | AT52: 3,742 | AU52: 33.3% | AV52: 314 | AW52: 10.87421384 | AX52: 10 | AY52: 0 | AZ52: 0.0% | BA52: 1 | BB52: 1.031446541 | BC52: 1 | BD52: 0 | BE52: 0.0% | BF52: 1 | BG52: 1.031446541 | BH52: 1 | BI52: 4,416 | BJ52: 17.3% | BK52: 245 | BL52: 8.704402516 | BM52: 8 | BN52: 741 | BO52: 5.1% | BP52: 226 | BQ52: 8.106918239 | BR52: 8 | BT52: 78 | BU52: -9
A53: ='[1]Rapport 5'!A53 -> 92 | B53: ='[1]Rapport 5'!B53 -> HOCHFELDEN | C53: ='[1]Rapport 5'!C53 -> 4092 | D53: ='[1]Rapport 5'!D53 -> HOCHFELDEN | E53: ='[1]Rapport 5'!E53 -> 5060 | F53: ='[1]Rapport 5'!F53 -> HAGUENAU | G53: ='[1]Rapport 5'!G53 -> 262 | H53: ='[1]Rapport 5'!H53 -> BAS RHIN | I53: ='[1]Rapport 5'!I53 -> 2934.71 | J53: ='[1]Rapport 5'!J53 -> 109 | K53: ='[1]Rapport 5'!K53 -> 0 | L53: ='[1]Rapport 5'!L53 -> 0 | M53: ='[1]Rapport 5'!M53 -> 76251.29 | N53: ='[1]Rapport 5'!N53 -> 2380.51 | O53: ='[1]Rapport 5'!O53 -> 5484 | P53: ='[1]Rapport 5'!P53 -> 0 | Q53: ='[1]Rapport 5'!Q53 -> 0 | R53: ='[1]Rapport 5'!R53 -> 0 | S53: ='[1]Rapport 5'!S53 -> 311 | T53: ='[1]Rapport 5'!T53 -> 0 | U53: ='[1]Rapport 5'!U53 -> 5545.91 | V53: ='[1]Rapport 5'!V53 -> 646.3 | W53: ='[1]Rapport 5'!W53 -> 2337.94 | X53: ='[1]Rapport 5'!X53 -> 0 | Y53: 92,865 | Z53: 3,136 | AA53: 3.4% | AB53: 106 | AC53: =1+(AB53/COUNT($AB$3:AB$320)*10) -> 4.333333333 | AD53: 4 | AE53: 109 | AF53: 3.7% | AG53: 150 | AH53: 5.716981132 | AI53: 5 | AJ53: 0 | AK53: 0.0% | AL53: 1 | AM53: 1.031446541 | AN53: 1 | AO53: 2,381 | AP53: 3.1% | AQ53: 172 | AR53: 6.408805031 | AS53: 6 | AT53: 0 | AU53: 0.0% | AV53: 1 | AW53: 1.031446541 | AX53: 1 | AY53: 0 | AZ53: 0.0% | BA53: 1 | BB53: 1.031446541 | BC53: 1 | BD53: 0 | BE53: 0.0% | BF53: 1 | BG53: 1.031446541 | BH53: 1 | BI53: 646 | BJ53: 11.7% | BK53: 186 | BL53: 6.849056604 | BM53: 6 | BN53: 0 | BO53: 0.0% | BP53: 1 | BQ53: 1.031446541 | BR53: 1 | BT53: 79 | BU53: -13
A54: ='[1]Rapport 5'!A54 -> 93 | B54: ='[1]Rapport 5'!B54 -> MARMOUTIER | C54: ='[1]Rapport 5'!C54 -> 4087 | D54: ='[1]Rapport 5'!D54 -> SAVERNE | E54: ='[1]Rapport 5'!E54 -> 5060 | F54: ='[1]Rapport 5'!F54 -> HAGUENAU | G54: ='[1]Rapport 5'!G54 -> 262 | H54: ='[1]Rapport 5'!H54 -> BAS RHIN | I54: ='[1]Rapport 5'!I54 -> 53.1 | J54: ='[1]Rapport 5'!J54 -> 0 | K54: ='[1]Rapport 5'!K54 -> 0 | L54: ='[1]Rapport 5'!L54 -> 0 | M54: ='[1]Rapport 5'!M54 -> 435.31 | N54: ='[1]Rapport 5'!N54 -> 0 | O54: ='[1]Rapport 5'!O54 -> 0 | P54: ='[1]Rapport 5'!P54 -> 0 | Q54: ='[1]Rapport 5'!Q54 -> 0 | R54: ='[1]Rapport 5'!R54 -> 0 | S54: ='[1]Rapport 5'!S54 -> 0 | T54: ='[1]Rapport 5'!T54 -> 0 | U54: ='[1]Rapport 5'!U54 -> 0 | V54: ='[1]Rapport 5'!V54 -> 0 | W54: ='[1]Rapport 5'!W54 -> 0 | X54: ='[1]Rapport 5'!X54 -> 0 | Y54: 488 | Z54: 0 | AA54: 0.0% | AB54: 1 | AC54: =1+(AB54/COUNT($AB$3:AB$320)*10) -> 1.031446541 | AD54: 1 | AE54: 0 | AF54: 0.0% | AG54: 1 | AH54: 1.031446541 | AI54: 1 | AJ54: 0 | AK54: 0.0% | AL54: 1 | AM54: 1.031446541 | AN54: 1 | AO54: 0 | AP54: 0.0% | AQ54: 1 | AR54: 1.031446541 | AS54: 1 | AT54: 0 | AU54: 0.0% | AV54: 1 | AW54: 1.031446541 | AX54: 1 | AY54: 0 | AZ54: 0.0% | BA54: 1 | BB54: 1.031446541 | BC54: 1 | BD54: 0 | BE54: 0.0% | BF54: 1 | BG54: 1.031446541 | BH54: 1 | BI54: 0 | BJ54: 0.0% | BK54: 1 | BL54: 1.031446541 | BM54: 1 | BN54: 0 | BO54: 0.0% | BP54: 1 | BQ54: 1.031446541 | BR54: 1 | BT54: 80 | BU54: -13
A55: ='[1]Rapport 5'!A55 -> 95 | B55: ='[1]Rapport 5'!B55 -> SARRE UNION | C55: ='[1]Rapport 5'!C55 -> 4095 | D55: ='[1]Rapport 5'!D55 -> SARRE UNION | E55: ='[1]Rapport 5'!E55 -> 5060 | F55: ='[1]Rapport 5'!F55 -> HAGUENAU | G55: ='[1]Rapport 5'!G55 -> 262 | H55: ='[1]Rapport 5'!H55 -> BAS RHIN | I55: ='[1]Rapport 5'!I55 -> 5718.83 | J55: ='[1]Rapport 5'!J55 -> 102.55 | K55: ='[1]Rapport 5'!K55 -> 0 | L55: ='[1]Rapport 5'!L55 -> 0 | M55: ='[1]Rapport 5'!M55 -> 152454.73 | N55: ='[1]Rapport 5'!N55 -> 3950.47 | O55: ='[1]Rapport 5'!O55 -> 4374.2 | P55: ='[1]Rapport 5'!P55 -> 300.7 | Q55: ='[1]Rapport 5'!Q55 -> 1092.9 | R55: ='[1]Rapport 5'!R55 -> 0 | S55: ='[1]Rapport 5'!S55 -> 108.04 | T55: ='[1]Rapport 5'!T55 -> 0 | U55: ='[1]Rapport 5'!U55 -> 11240.67 | V55: ='[1]Rapport 5'!V55 -> 2020.85 | W55: ='[1]Rapport 5'!W55 -> 6969.03 | X55: ='[1]Rapport 5'!X55 -> 418.42 | Y55: 181,958 | Z55: 6,793 | AA55: 3.7% | AB55: 152 | AC55: =1+(AB55/COUNT($AB$3:AB$320)*10) -> 5.779874214 | AD55: 5 | AE55: 103 | AF55: 1.8% | AG55: 48 | AH55: 2.509433962 | AI55: 2 | AJ55: 0 | AK55: 0.0% | AL55: 1 | AM55: 1.031446541 | AN55: 1 | AO55: 3,950 | AP55: 2.6% | AQ55: 110 | AR55: 4.459119497 | AS55: 4 | AT55: 301 | AU55: 6.9% | AV55: 216 | AW55: 7.79245283 | AX55: 7 | AY55: 0 | AZ55: 0.0% | BA55: 1 | BB55: 1.031446541 | BC55: 1 | BD55: 0 | BE55: 0.0% | BF55: 1 | BG55: 1.031446541 | BH55: 1 | BI55: 2,021 | BJ55: 18.0% | BK55: 250 | BL55: 8.86163522 | BM55: 8 | BN55: 418 | BO55: 6.0% | BP55: 248 | BQ55: 8.798742138 | BR55: 8 | BT55: 82 | BU55: -13
A56: ='[1]Rapport 5'!A56 -> 101 | B56: ='[1]Rapport 5'!B56 -> SELESTAT CENTRE | C56: ='[1]Rapport 5'!C56 -> 4101 | D56: ='[1]Rapport 5'!D56 -> SELESTAT CENTRE | E56: ='[1]Rapport 5'!E56 -> 5101 | F56: ='[1]Rapport 5'!F56 -> SELESTAT | G56: ='[1]Rapport 5'!G56 -> 262 | H56: ='[1]Rapport 5'!H56 -> BAS RHIN | I56: ='[1]Rapport 5'!I56 -> 7228.72 | J56: ='[1]Rapport 5'!J56 -> 912.11 | K56: ='[1]Rapport 5'!K56 -> 0 | L56: ='[1]Rapport 5'!L56 -> 0 | M56: ='[1]Rapport 5'!M56 -> 309300.3 | N56: ='[1]Rapport 5'!N56 -> 8414.34 | O56: ='[1]Rapport 5'!O56 -> 14220 | P56: ='[1]Rapport 5'!P56 -> 691 | Q56: ='[1]Rapport 5'!Q56 -> 1538.06 | R56: ='[1]Rapport 5'!R56 -> 0 | S56: ='[1]Rapport 5'!S56 -> 1454.46 | T56: ='[1]Rapport 5'!T56 -> 44 | U56: ='[1]Rapport 5'!U56 -> 22540.49 | V56: ='[1]Rapport 5'!V56 -> 2474.8 | W56: ='[1]Rapport 5'!W56 -> 19276.75 | X56: ='[1]Rapport 5'!X56 -> 374.26 | Y56: 375,559 | Z56: 12,911 | AA56: 3.4% | AB56: 113 | AC56: =1+(AB56/COUNT($AB$3:AB$320)*10) -> 4.553459119 | AD56: 4 | AE56: 912 | AF56: 12.6% | AG56: 295 | AH56: 10.27672956 | AI56: 10 | AJ56: 0 | AK56: 0.0% | AL56: 1 | AM56: 1.031446541 | AN56: 1 | AO56: 8,414 | AP56: 2.7% | AQ56: 125 | AR56: 4.93081761 | AS56: 4 | AT56: 691 | AU56: 4.9% | AV56: 187 | AW56: 6.880503145 | AX56: 6 | AY56: 0 | AZ56: 0.0% | BA56: 1 | BB56: 1.031446541 | BC56: 1 | BD56: 44 | BE56: 3.0% | BF56: 243 | BG56: 8.641509434 | BH56: 8 | BI56: 2,475 | BJ56: 11.0% | BK56: 173 | BL56: 6.440251572 | BM56: 6 | BN56: 374 | BO56: 1.9% | BP56: 113 | BQ56: 4.553459119 | BR56: 4 | BT56: 85 | BU56: -16
A57: ='[1]Rapport 5'!A57 -> 104 | B57: ='[1]Rapport 5'!B57 -> ERSTEIN | C57: ='[1]Rapport 5'!C57 -> 4104 | D57: ='[1]Rapport 5'!D57 -> ERSTEIN | E57: ='[1]Rapport 5'!E57 -> 5101 | F57: ='[1]Rapport 5'!F57 -> SELESTAT | G57: ='[1]Rapport 5'!G57 -> 262 | H57: ='[1]Rapport 5'!H57 -> BAS RHIN | I57: ='[1]Rapport 5'!I57 -> 2755.53 | J57: ='[1]Rapport 5'!J57 -> 92.68 | K57: ='[1]Rapport 5'!K57 -> 0 | L57: ='[1]Rapport 5'!L57 -> 0 | M57: ='[1]Rapport 5'!M57 -> 151454.24 | N57: ='[1]Rapport 5'!N57 -> 3299.98 | O57: ='[1]Rapport 5'!O57 -> 4209.5 | P57: ='[1]Rapport 5'!P57 -> 57 | Q57: ='[1]Rapport 5'!Q57 -> 0 | R57: ='[1]Rapport 5'!R57 -> 0 | S57: ='[1]Rapport 5'!S57 -> 300 | T57: ='[1]Rapport 5'!T57 -> 0 | U57: ='[1]Rapport 5'!U57 -> 11969.47 | V57: ='[1]Rapport 5'!V57 -> 2725.94 | W57: ='[1]Rapport 5'!W57 -> 9254.32 | X57: ='[1]Rapport 5'!X57 -> 149.01 | Y57: 179,943 | Z57: 6,325 | AA57: 3.5% | AB57: 122 | AC57: =1+(AB57/COUNT($AB$3:AB$320)*10) -> 4.836477987 | AD57: 4 | AE57: 93 | AF57: 3.4% | AG57: 126 | AH57: 4.962264151 | AI57: 4 | AJ57: 0 | AK57: 0.0% | AL57: 1 | AM57: 1.031446541 | AN57: 1 | AO57: 3,300 | AP57: 2.2% | AQ57: 70 | AR57: 3.201257862 | AS57: 3 | AT57: 57 | AU57: 1.4% | AV57: 100 | AW57: 4.144654088 | AX57: 4 | AY57: 0 | AZ57: 0.0% | BA57: 1 | BB57: 1.031446541 | BC57: 1 | BD57: 0 | BE57: 0.0% | BF57: 1 | BG57: 1.031446541 | BH57: 1 | BI57: 2,726 | BJ57: 22.8% | BK57: 280 | BL57: 9.805031447 | BM57: 9 | BN57: 149 | BO57: 1.6% | BP57: 95 | BQ57: 3.987421384 | BR57: 3 | BT57: 86 | BU57: -18
A58: ='[1]Rapport 5'!A58 -> 107 | B58: ='[1]Rapport 5'!B58 -> VILLE | C58: ='[1]Rapport 5'!C58 -> 4107 | D58: ='[1]Rapport 5'!D58 -> VILLE | E58: ='[1]Rapport 5'!E58 -> 5101 | F58: ='[1]Rapport 5'!F58 -> SELESTAT | G58: ='[1]Rapport 5'!G58 -> 262 | H58: ='[1]Rapport 5'!H58 -> BAS RHIN | I58: ='[1]Rapport 5'!I58 -> 1549.28 | J58: ='[1]Rapport 5'!J58 -> 40.27 | K58: ='[1]Rapport 5'!K58 -> 0 | L58: ='[1]Rapport 5'!L58 -> 0 | M58: ='[1]Rapport 5'!M58 -> 74679.9 | N58: ='[1]Rapport 5'!N58 -> 1098.88 | O58: ='[1]Rapport 5'!O58 -> 4841 | P58: ='[1]Rapport 5'!P58 -> 0 | Q58: ='[1]Rapport 5'!Q58 -> 0 | R58: ='[1]Rapport 5'!R58 -> 0 | S58: ='[1]Rapport 5'!S58 -> 69 | T58: ='[1]Rapport 5'!T58 -> 0 | U58: ='[1]Rapport 5'!U58 -> 5035.36 | V58: ='[1]Rapport 5'!V58 -> 1315.14 | W58: ='[1]Rapport 5'!W58 -> 4294.81 | X58: ='[1]Rapport 5'!X58 -> 111.28 | Y58: 90,469 | Z58: 2,566 | AA58: 2.8% | AB58: 64 | AC58: =1+(AB58/COUNT($AB$3:AB$320)*10) -> 3.012578616 | AD58: 3 | AE58: 40 | AF58: 2.6% | AG58: 87 | AH58: 3.735849057 | AI58: 3 | AJ58: 0 | AK58: 0.0% | AL58: 1 | AM58: 1.031446541 | AN58: 1 | AO58: 1,099 | AP58: 1.5% | AQ58: 24 | AR58: 1.754716981 | AS58: 1 | AT58: 0 | AU58: 0.0% | AV58: 1 | AW58: 1.031446541 | AX58: 1 | AY58: 0 | AZ58: 0.0% | BA58: 1 | BB58: 1.031446541 | BC58: 1 | BD58: 0 | BE58: 0.0% | BF58: 1 | BG58: 1.031446541 | BH58: 1 | BI58: 1,315 | BJ58: 26.1% | BK58: 295 | BL58: 10.27672956 | BM58: 10 | BN58: 111 | BO58: 2.6% | BP58: 141 | BQ58: 5.433962264 | BR58: 5 | BT58: 87 | BU58: -20
A59: ='[1]Rapport 5'!A59 -> 108 | B59: ='[1]Rapport 5'!B59 -> CHATENOIS | C59: ='[1]Rapport 5'!C59 -> 4101 | D59: ='[1]Rapport 5'!D59 -> SELESTAT CENTRE | E59: ='[1]Rapport 5'!E59 -> 5101 | F59: ='[1]Rapport 5'!F59 -> SELESTAT | G59: ='[1]Rapport 5'!G59 -> 262 | H59: ='[1]Rapport 5'!H59 -> BAS RHIN | I59: ='[1]Rapport 5'!I59 -> 1357.05 | J59: ='[1]Rapport 5'!J59 -> 86.88 | K59: ='[1]Rapport 5'!K59 -> 0 | L59: ='[1]Rapport 5'!L59 -> 0 | M59: ='[1]Rapport 5'!M59 -> 52680.73 | N59: ='[1]Rapport 5'!N59 -> 1535.11 | O59: ='[1]Rapport 5'!O59 -> 3346 | P59: ='[1]Rapport 5'!P59 -> 50 | Q59: ='[1]Rapport 5'!Q59 -> 0 | R59: ='[1]Rapport 5'!R59 -> 0 | S59: ='[1]Rapport 5'!S59 -> 356.42 | T59: ='[1]Rapport 5'!T59 -> 0 | U59: ='[1]Rapport 5'!U59 -> 1686.2 | V59: ='[1]Rapport 5'!V59 -> 890.04 | W59: ='[1]Rapport 5'!W59 -> 3913.79 | X59: ='[1]Rapport 5'!X59 -> 44.93 | Y59: 63,340 | Z59: 2,607 | AA59: 4.1% | AB59: 194 | AC59: =1+(AB59/COUNT($AB$3:AB$320)*10) -> 7.100628931 | AD59: 7 | AE59: 87 | AF59: 6.4% | AG59: 235 | AH59: 8.389937107 | AI59: 8 | AJ59: 0 | AK59: 0.0% | AL59: 1 | AM59: 1.031446541 | AN59: 1 | AO59: 1,535 | AP59: 2.9% | AQ59: 154 | AR59: 5.842767296 | AS59: 5 | AT59: 50 | AU59: 1.5% | AV59: 101 | AW59: 4.176100629 | AX59: 4 | AY59: 0 | AZ59: 0.0% | BA59: 1 | BB59: 1.031446541 | BC59: 1 | BD59: 0 | BE59: 0.0% | BF59: 1 | BG59: 1.031446541 | BH59: 1 | BI59: 890 | BJ59: 52.8% | BK59: 316 | BL59: 10.93710692 | BM59: 10 | BN59: 45 | BO59: 1.1% | BP59: 68 | BQ59: 3.13836478 | BR59: 3 | BT59: 89 | BU59: -19
A60: ='[1]Rapport 5'!A60 -> 109 | B60: ='[1]Rapport 5'!B60 -> MARCKOLSHEIM | C60: ='[1]Rapport 5'!C60 -> 4109 | D60: ='[1]Rapport 5'!D60 -> MARCKOLSHEIM | E60: ='[1]Rapport 5'!E60 -> 5101 | F60: ='[1]Rapport 5'!F60 -> SELESTAT | G60: ='[1]Rapport 5'!G60 -> 262 | H60: ='[1]Rapport 5'!H60 -> BAS RHIN | I60: ='[1]Rapport 5'!I60 -> 3442.61 | J60: ='[1]Rapport 5'!J60 -> 1765.87 | K60: ='[1]Rapport 5'!K60 -> 0 | L60: ='[1]Rapport 5'!L60 -> 0 | M60: ='[1]Rapport 5'!M60 -> 101427.07 | N60: ='[1]Rapport 5'!N60 -> 1653.3 | O60: ='[1]Rapport 5'!O60 -> 3024 | P60: ='[1]Rapport 5'!P60 -> 62 | Q60: ='[1]Rapport 5'!Q60 -> 0 | R60: ='[1]Rapport 5'!R60 -> 0 | S60: ='[1]Rapport 5'!S60 -> 355 | T60: ='[1]Rapport 5'!T60 -> 0 | U60: ='[1]Rapport 5'!U60 -> 6002.71 | V60: ='[1]Rapport 5'!V60 -> 1900.37 | W60: ='[1]Rapport 5'!W60 -> 2884.54 | X60: ='[1]Rapport 5'!X60 -> 112.64 | Y60: 117,136 | Z60: 5,494 | AA60: 4.7% | AB60: 240 | AC60: =1+(AB60/COUNT($AB$3:AB$320)*10) -> 8.547169811 | AD60: 8 | AE60: 1,766 | AF60: 51.3% | AG60: 317 | AH60: 10.96855346 | AI60: 10 | AJ60: 0 | AK60: 0.0% | AL60: 1 | AM60: 1.031446541 | AN60: 1 | AO60: 1,653 | AP60: 1.6% | AQ60: 34 | AR60: 2.06918239 | AS60: 2 | AT60: 62 | AU60: 2.1% | AV60: 119 | AW60: 4.742138365 | AX60: 4 | AY60: 0 | AZ60: 0.0% | BA60: 1 | BB60: 1.031446541 | BC60: 1 | BD60: 0 | BE60: 0.0% | BF60: 1 | BG60: 1.031446541 | BH60: 1 | BI60: 1,900 | BJ60: 31.7% | BK60: 302 | BL60: 10.49685535 | BM60: 10 | BN60: 113 | BO60: 3.9% | BP60: 198 | BQ60: 7.226415094 | BR60: 7 | BT60: 92 | BU60: -17
A61: ='[1]Rapport 5'!A61 -> 111 | B61: ='[1]Rapport 5'!B61 -> BENFELD | C61: ='[1]Rapport 5'!C61 -> 4111 | D61: ='[1]Rapport 5'!D61 -> BENFELD | E61: ='[1]Rapport 5'!E61 -> 5101 | F61: ='[1]Rapport 5'!F61 -> SELESTAT | G61: ='[1]Rapport 5'!G61 -> 262 | H61: ='[1]Rapport 5'!H61 -> BAS RHIN | I61: ='[1]Rapport 5'!I61 -> 3585.46 | J61: ='[1]Rapport 5'!J61 -> 1719.82 | K61: ='[1]Rapport 5'!K61 -> 0 | L61: ='[1]Rapport 5'!L61 -> 0 | M61: ='[1]Rapport 5'!M61 -> 141473.62 | N61: ='[1]Rapport 5'!N61 -> 6751.82 | O61: ='[1]Rapport 5'!O61 -> 6373.5 | P61: ='[1]Rapport 5'!P61 -> 174.99 | Q61: ='[1]Rapport 5'!Q61 -> 0 | R61: ='[1]Rapport 5'!R61 -> 0 | S61: ='[1]Rapport 5'!S61 -> 246 | T61: ='[1]Rapport 5'!T61 -> 44 | U61: ='[1]Rapport 5'!U61 -> 7688.12 | V61: ='[1]Rapport 5'!V61 -> 2344.26 | W61: ='[1]Rapport 5'!W61 -> 7020.22 | X61: ='[1]Rapport 5'!X61 -> 242.45 | Y61: 166,387 | Z61: 11,277 | AA61: 6.8% | AB61: 306 | AC61: =1+(AB61/COUNT($AB$3:AB$320)*10) -> 10.62264151 | AD61: 10 | AE61: 1,720 | AF61: 48.0% | AG61: 316 | AH61: 10.93710692 | AI61: 10 | AJ61: 0 | AK61: 0.0% | AL61: 1 | AM61: 1.031446541 | AN61: 1 | AO61: 6,752 | AP61: 4.8% | AQ61: 284 | AR61: 9.93081761 | AS61: 9 | AT61: 175 | AU61: 2.7% | AV61: 134 | AW61: 5.213836478 | AX61: 5 | AY61: 0 | AZ61: 0.0% | BA61: 1 | BB61: 1.031446541 | BC61: 1 | BD61: 44 | BE61: 17.9% | BF61: 291 | BG61: 10.1509434 | BH61: 10 | BI61: 2,344 | BJ61: 30.5% | BK61: 300 | BL61: 10.43396226 | BM61: 10 | BN61: 242 | BO61: 3.5% | BP61: 177 | BQ61: 6.566037736 | BR61: 6 | BT61: 93 | BU61: -18
A62: ='[1]Rapport 5'!A62 -> 113 | B62: ='[1]Rapport 5'!B62 -> BARR | C62: ='[1]Rapport 5'!C62 -> 4113 | D62: ='[1]Rapport 5'!D62 -> BARR | E62: ='[1]Rapport 5'!E62 -> 5101 | F62: ='[1]Rapport 5'!F62 -> SELESTAT | G62: ='[1]Rapport 5'!G62 -> 262 | H62: ='[1]Rapport 5'!H62 -> BAS RHIN | I62: ='[1]Rapport 5'!I62 -> 2567.32 | J62: ='[1]Rapport 5'!J62 -> 116.33 | K62: ='[1]Rapport 5'!K62 -> 0 | L62: ='[1]Rapport 5'!L62 -> 0 | M62: ='[1]Rapport 5'!M62 -> 95591.62 | N62: ='[1]Rapport 5'!N62 -> 1526.56 | O62: ='[1]Rapport 5'!O62 -> 2666 | P62: ='[1]Rapport 5'!P62 -> 42.5 | Q62: ='[1]Rapport 5'!Q62 -> 0 | R62: ='[1]Rapport 5'!R62 -> 0 | S62: ='[1]Rapport 5'!S62 -> 585.3 | T62: ='[1]Rapport 5'!T62 -> 0 | U62: ='[1]Rapport 5'!U62 -> 6081.74 | V62: ='[1]Rapport 5'!V62 -> 924.44 | W62: ='[1]Rapport 5'!W62 -> 4917.3 | X62: ='[1]Rapport 5'!X62 -> 56 | Y62: 112,409 | Z62: 2,666 | AA62: 2.4% | AB62: 41 | AC62: =1+(AB62/COUNT($AB$3:AB$320)*10) -> 2.289308176 | AD62: 2 | AE62: 116 | AF62: 4.5% | AG62: 186 | AH62: 6.849056604 | AI62: 6 | AJ62: 0 | AK62: 0.0% | AL62: 1 | AM62: 1.031446541 | AN62: 1 | AO62: 1,527 | AP62: 1.6% | AQ62: 32 | AR62: 2.006289308 | AS62: 2 | AT62: 43 | AU62: 1.6% | AV62: 104 | AW62: 4.270440252 | AX62: 4 | AY62: 0 | AZ62: 0.0% | BA62: 1 | BB62: 1.031446541 | BC62: 1 | BD62: 0 | BE62: 0.0% | BF62: 1 | BG62: 1.031446541 | BH62: 1 | BI62: 924 | BJ62: 15.2% | BK62: 229 | BL62: 8.201257862 | BM62: 8 | BN62: 56 | BO62: 1.1% | BP62: 67 | BQ62: 3.106918239 | BR62: 3 | BT62: 95 | BU62: -18
A63: ='[1]Rapport 5'!A63 -> 116 | B63: ='[1]Rapport 5'!B63 -> MOLSHEIM | C63: ='[1]Rapport 5'!C63 -> 4116 | D63: ='[1]Rapport 5'!D63 -> MOLSHEIM | E63: ='[1]Rapport 5'!E63 -> 5101 | F63: ='[1]Rapport 5'!F63 -> SELESTAT | G63: ='[1]Rapport 5'!G63 -> 262 | H63: ='[1]Rapport 5'!H63 -> BAS RHIN | I63: ='[1]Rapport 5'!I63 -> 10404.09 | J63: ='[1]Rapport 5'!J63 -> 572.59 | K63: ='[1]Rapport 5'!K63 -> 0 | L63: ='[1]Rapport 5'!L63 -> 0 | M63: ='[1]Rapport 5'!M63 -> 200148.34 | N63: ='[1]Rapport 5'!N63 -> 8349.25 | O63: ='[1]Rapport 5'!O63 -> 8149.5 | P63: ='[1]Rapport 5'!P63 -> 140 | Q63: ='[1]Rapport 5'!Q63 -> 92.08 | R63: ='[1]Rapport 5'!R63 -> 0 | S63: ='[1]Rapport 5'!S63 -> 569.87 | T63: ='[1]Rapport 5'!T63 -> 31 | U63: ='[1]Rapport 5'!U63 -> 13898.83 | V63: ='[1]Rapport 5'!V63 -> 723.17 | W63: ='[1]Rapport 5'!W63 -> 9245.72 | X63: ='[1]Rapport 5'!X63 -> 298.59 | Y63: 242,508 | Z63: 10,115 | AA63: 4.2% | AB63: 198 | AC63: =1+(AB63/COUNT($AB$3:AB$320)*10) -> 7.226415094 | AD63: 7 | AE63: 573 | AF63: 5.5% | AG63: 214 | AH63: 7.729559748 | AI63: 7 | AJ63: 0 | AK63: 0.0% | AL63: 1 | AM63: 1.031446541 | AN63: 1 | AO63: 8,349 | AP63: 4.2% | AQ63: 258 | AR63: 9.113207547 | AS63: 9 | AT63: 140 | AU63: 1.7% | AV63: 110 | AW63: 4.459119497 | AX63: 4 | AY63: 0 | AZ63: 0.0% | BA63: 1 | BB63: 1.031446541 | BC63: 1 | BD63: 31 | BE63: 5.4% | BF63: 256 | BG63: 9.050314465 | BH63: 9 | BI63: 723 | BJ63: 5.2% | BK63: 75 | BL63: 3.358490566 | BM63: 3 | BN63: 299 | BO63: 3.2% | BP63: 166 | BQ63: 6.220125786 | BR63: 6 | BT63: 101 | BU63: -15
A64: ='[1]Rapport 5'!A64 -> 119 | B64: ='[1]Rapport 5'!B64 -> OBERNAI | C64: ='[1]Rapport 5'!C64 -> 4119 | D64: ='[1]Rapport 5'!D64 -> OBERNAI | E64: ='[1]Rapport 5'!E64 -> 5101 | F64: ='[1]Rapport 5'!F64 -> SELESTAT | G64: ='[1]Rapport 5'!G64 -> 262 | H64: ='[1]Rapport 5'!H64 -> BAS RHIN | I64: ='[1]Rapport 5'!I64 -> 4562.15 | J64: ='[1]Rapport 5'!J64 -> 517.24 | K64: ='[1]Rapport 5'!K64 -> 0 | L64: ='[1]Rapport 5'!L64 -> 36.66 | M64: ='[1]Rapport 5'!M64 -> 180295.86 | N64: ='[1]Rapport 5'!N64 -> 4811.44 | O64: ='[1]Rapport 5'!O64 -> 8330.5 | P64: ='[1]Rapport 5'!P64 -> 602.5 | Q64: ='[1]Rapport 5'!Q64 -> 0 | R64: ='[1]Rapport 5'!R64 -> 0 | S64: ='[1]Rapport 5'!S64 -> 343.2 | T64: ='[1]Rapport 5'!T64 -> 0 | U64: ='[1]Rapport 5'!U64 -> 12690.31 | V64: ='[1]Rapport 5'!V64 -> 1089.93 | W64: ='[1]Rapport 5'!W64 -> 11946.01 | X64: ='[1]Rapport 5'!X64 -> 206.2 | Y64: 218,168 | Z64: 7,264 | AA64: 3.3% | AB64: 103 | AC64: =1+(AB64/COUNT($AB$3:AB$320)*10) -> 4.238993711 | AD64: 4 | AE64: 517 | AF64: 11.3% | AG64: 285 | AH64: 9.962264151 | AI64: 9 | AJ64: 37 | AK64: 100.0% | AL64: 291 | AM64: 10.1509434 | AN64: 10 | AO64: 4,811 | AP64: 2.7% | AQ64: 121 | AR64: 4.805031447 | AS64: 4 | AT64: 603 | AU64: 7.2% | AV64: 223 | AW64: 8.012578616 | AX64: 8 | AY64: 0 | AZ64: 0.0% | BA64: 1 | BB64: 1.031446541 | BC64: 1 | BD64: 0 | BE64: 0.0% | BF64: 1 | BG64: 1.031446541 | BH64: 1 | BI64: 1,090 | BJ64: 8.6% | BK64: 133 | BL64: 5.182389937 | BM64: 5 | BN64: 206 | BO64: 1.7% | BP64: 102 | BQ64: 4.20754717 | BR64: 4 | BT64: 104 | BU64: -15
A65: ='[1]Rapport 5'!A65 -> 120 | B65: ='[1]Rapport 5'!B65 -> WASSELONNE | C65: ='[1]Rapport 5'!C65 -> 4120 | D65: ='[1]Rapport 5'!D65 -> WASSELONNE | E65: ='[1]Rapport 5'!E65 -> 5101 | F65: ='[1]Rapport 5'!F65 -> SELESTAT | G65: ='[1]Rapport 5'!G65 -> 262 | H65: ='[1]Rapport 5'!H65 -> BAS RHIN | I65: ='[1]Rapport 5'!I65 -> 4611.31 | J65: ='[1]Rapport 5'!J65 -> 788.2 | K65: ='[1]Rapport 5'!K65 -> 0 | L65: ='[1]Rapport 5'!L65 -> 136 | M65: ='[1]Rapport 5'!M65 -> 102255.42 | N65: ='[1]Rapport 5'!N65 -> 3682.33 | O65: ='[1]Rapport 5'!O65 -> 5155.5 | P65: ='[1]Rapport 5'!P65 -> 367 | Q65: ='[1]Rapport 5'!Q65 -> 0 | R65: ='[1]Rapport 5'!R65 -> 0 | S65: ='[1]Rapport 5'!S65 -> 228 | T65: ='[1]Rapport 5'!T65 -> 31 | U65: ='[1]Rapport 5'!U65 -> 8287.99 | V65: ='[1]Rapport 5'!V65 -> 1161.62 | W65: ='[1]Rapport 5'!W65 -> 4170.64 | X65: ='[1]Rapport 5'!X65 -> 65.3 | Y65: 124,709 | Z65: 6,231 | AA65: 5.0% | AB65: 258 | AC65: =1+(AB65/COUNT($AB$3:AB$320)*10) -> 9.113207547 | AD65: 9 | AE65: 788 | AF65: 17.1% | AG65: 305 | AH65: 10.59119497 | AI65: 10 | AJ65: 136 | AK65: 100.0% | AL65: 291 | AM65: 10.1509434 | AN65: 10 | AO65: 3,682 | AP65: 3.6% | AQ65: 213 | AR65: 7.698113208 | AS65: 7 | AT65: 367 | AU65: 7.1% | AV65: 220 | AW65: 7.918238994 | AX65: 7 | AY65: 0 | AZ65: 0.0% | BA65: 1 | BB65: 1.031446541 | BC65: 1 | BD65: 31 | BE65: 13.6% | BF65: 286 | BG65: 9.993710692 | BH65: 9 | BI65: 1,162 | BJ65: 14.0% | BK65: 215 | BL65: 7.761006289 | BM65: 7 | BN65: 65 | BO65: 1.6% | BP65: 91 | BQ65: 3.86163522 | BR65: 3 | BT65: 107 | BU65: -13
A66: ='[1]Rapport 5'!A66 -> 121 | B66: ='[1]Rapport 5'!B66 -> SCHIRMECK | C66: ='[1]Rapport 5'!C66 -> 4121 | D66: ='[1]Rapport 5'!D66 -> SCHIRMECK | E66: ='[1]Rapport 5'!E66 -> 5101 | F66: ='[1]Rapport 5'!F66 -> SELESTAT | G66: ='[1]Rapport 5'!G66 -> 262 | H66: ='[1]Rapport 5'!H66 -> BAS RHIN | I66: ='[1]Rapport 5'!I66 -> 3824.73 | J66: ='[1]Rapport 5'!J66 -> 119.52 | K66: ='[1]Rapport 5'!K66 -> 0 | L66: ='[1]Rapport 5'!L66 -> 0 | M66: ='[1]Rapport 5'!M66 -> 117000.47 | N66: ='[1]Rapport 5'!N66 -> 2131.4 | O66: ='[1]Rapport 5'!O66 -> 4734.5 | P66: ='[1]Rapport 5'!P66 -> 220 | Q66: ='[1]Rapport 5'!Q66 -> 0 | R66: ='[1]Rapport 5'!R66 -> 0 | S66: ='[1]Rapport 5'!S66 -> 478 | T66: ='[1]Rapport 5'!T66 -> 0 | U66: ='[1]Rapport 5'!U66 -> 8740.8 | V66: ='[1]Rapport 5'!V66 -> 1261.62 | W66: ='[1]Rapport 5'!W66 -> 2992.03 | X66: ='[1]Rapport 5'!X66 -> 133.42 | Y66: 137,771 | Z66: 3,866 | AA66: 2.8% | AB66: 61 | AC66: =1+(AB66/COUNT($AB$3:AB$320)*10) -> 2.918238994 | AD66: 2 | AE66: 120 | AF66: 3.1% | AG66: 112 | AH66: 4.522012579 | AI66: 4 | AJ66: 0 | AK66: 0.0% | AL66: 1 | AM66: 1.031446541 | AN66: 1 | AO66: 2,131 | AP66: 1.8% | AQ66: 46 | AR66: 2.446540881 | AS66: 2 | AT66: 220 | AU66: 4.6% | AV66: 181 | AW66: 6.691823899 | AX66: 6 | AY66: 0 | AZ66: 0.0% | BA66: 1 | BB66: 1.031446541 | BC66: 1 | BD66: 0 | BE66: 0.0% | BF66: 1 | BG66: 1.031446541 | BH66: 1 | BI66: 1,262 | BJ66: 14.4% | BK66: 219 | BL66: 7.886792453 | BM66: 7 | BN66: 133 | BO66: 4.5% | BP66: 218 | BQ66: 7.855345912 | BR66: 7 | BT66: 108 | BU66: -13
A67: ='[1]Rapport 5'!A67 -> 126 | B67: ='[1]Rapport 5'!B67 -> MUTZIG | C67: ='[1]Rapport 5'!C67 -> 4126 | D67: ='[1]Rapport 5'!D67 -> MUTZIG | E67: ='[1]Rapport 5'!E67 -> 5101 | F67: ='[1]Rapport 5'!F67 -> SELESTAT | G67: ='[1]Rapport 5'!G67 -> 262 | H67: ='[1]Rapport 5'!H67 -> BAS RHIN | I67: ='[1]Rapport 5'!I67 -> 4779.43 | J67: ='[1]Rapport 5'!J67 -> 266.07 | K67: ='[1]Rapport 5'!K67 -> 0 | L67: ='[1]Rapport 5'!L67 -> 0 | M67: ='[1]Rapport 5'!M67 -> 103701.13 | N67: ='[1]Rapport 5'!N67 -> 3253.71 | O67: ='[1]Rapport 5'!O67 -> 6348.5 | P67: ='[1]Rapport 5'!P67 -> 42 | Q67: ='[1]Rapport 5'!Q67 -> 0 | R67: ='[1]Rapport 5'!R67 -> 0 | S67: ='[1]Rapport 5'!S67 -> 75 | T67: ='[1]Rapport 5'!T67 -> 0 | U67: ='[1]Rapport 5'!U67 -> 5230.83 | V67: ='[1]Rapport 5'!V67 -> 962.95 | W67: ='[1]Rapport 5'!W67 -> 3939.68 | X67: ='[1]Rapport 5'!X67 -> 121.3 | Y67: 124,075 | Z67: 4,646 | AA67: 3.7% | AB67: =RANK(AA67,$AA$3:$AA$320,1) -> 153 | AC67: =1+(AB67/COUNT($AB$3:AB$320)*10) -> 5.811320755 | AD67: 5 | AE67: 266 | AF67: 5.6% | AG67: =RANK(AF67,$AF$3:$AF$320,1) -> 217 | AH67: =1+(AG67/COUNT($AG$3:$AG$320)*10) -> 7.823899371 | AI67: 7 | AJ67: 0 | AK67: 0.0% | AL67: =RANK(AK67,$AK$3:$AK$320,1) -> 1 | AM67: =1+(AL67/COUNT($AL$3:$AL$320)*10) -> 1.031446541 | AN67: 1 | AO67: 3,254 | AP67: 3.1% | AQ67: =RANK(AP67,$AP$3:$AP$320,1) -> 174 | AR67: =1+(AQ67/COUNT($AQ$3:$AQ$320)*10) -> 6.471698113 | AS67: 6 | AT67: 42 | AU67: 0.7% | AV67: =RANK(AU67,$AU$3:$AU$320,1) -> 84 | AW67: =1+(AV67/COUNT($AV$3:$AV$320)*10) -> 3.641509434 | AX67: 3 | AY67: 0 | AZ67: 0.0% | BA67: =RANK(AZ67,$AZ$3:$AZ$320,1) -> 1 | BB67: =1+(BA67/COUNT($BA$3:$BA$320)*10) -> 1.031446541 | BC67: 1 | BD67: 0 | BE67: 0.0% | BF67: =RANK(BE67,$BE$3:$BE$320,1) -> 1 | BG67: =1+(BF67/COUNT($BF$3:$BF$320)*10) -> 1.031446541 | BH67: 1 | BI67: 963 | BJ67: 18.4% | BK67: =RANK(BJ67,$BJ$3:$BJ$320,1) -> 252 | BL67: =1+(BK67/COUNT($BK$3:$BK$320)*10) -> 8.924528302 | BM67: 8 | BN67: 121 | BO67: 3.1% | BP67: =RANK(BO67,$BO$3:$BO$320,1) -> 159 | BQ67: =1+(BP67/COUNT($BP$3:$BP$320)*10) -> 6 | BR67: 6 | BT67: 109 | BU67: -17
A68: ='[1]Rapport 5'!A68 -> 127 | B68: ='[1]Rapport 5'!B68 -> ROSHEIM | C68: ='[1]Rapport 5'!C68 -> 4127 | D68: ='[1]Rapport 5'!D68 -> ROSHEIM | E68: ='[1]Rapport 5'!E68 -> 5101 | F68: ='[1]Rapport 5'!F68 -> SELESTAT | G68: ='[1]Rapport 5'!G68 -> 262 | H68: ='[1]Rapport 5'!H68 -> BAS RHIN | I68: ='[1]Rapport 5'!I68 -> 1698.14 | J68: ='[1]Rapport 5'!J68 -> 181.18 | K68: ='[1]Rapport 5'!K68 -> 0 | L68: ='[1]Rapport 5'!L68 -> 0 | M68: ='[1]Rapport 5'!M68 -> 68111.12 | N68: ='[1]Rapport 5'!N68 -> 1992.21 | O68: ='[1]Rapport 5'!O68 -> 3377.5 | P68: ='[1]Rapport 5'!P68 -> 200 | Q68: ='[1]Rapport 5'!Q68 -> 0 | R68: ='[1]Rapport 5'!R68 -> 0 | S68: ='[1]Rapport 5'!S68 -> 233 | T68: ='[1]Rapport 5'!T68 -> 41 | U68: ='[1]Rapport 5'!U68 -> 3338.14 | V68: ='[1]Rapport 5'!V68 -> 625.36 | W68: ='[1]Rapport 5'!W68 -> 2410.36 | X68: ='[1]Rapport 5'!X68 -> 14 | Y68: =+I68+K68+M68+O68+Q68+S68+U68+W68 -> 79,168 | Z68: =+J68+L68+N68+P68+R68+T68+V68+X68 -> 3,054 | AA68: =+Z68/Y68 -> 3.9% | AB68: 165 | AC68: =1+(AB68/COUNT($AB$3:AB$320)*10) -> 6.188679245 | AD68: =+IF(INT(AC68)=11,10,INT(AC68)) -> 6 | AE68: 181 | AF68: =+IF(ISERROR(AE68/I68),0,AE68/I68) -> 10.7% | AG68: 278 | AH68: 9.742138365 | AI68: 9 | AJ68: =+L68 -> 0 | AK68: =+IF(ISERROR(IF(AJ68=0,0,AJ68/K68)),1,IF(AJ68=0,0,AJ68/K68)) -> 0.0% | AL68: 1 | AM68: 1.031446541 | AN68: =+IF(INT(AM68)=11,10,INT(AM68)) -> 1 | AO68: =+N68 -> 1,992 | AP68: =+IF(ISERROR(IF(AO68=0,0,AO68/M68)),1,IF(AO68=0,0,AO68/M68)) -> 2.9% | AQ68: 158 | AR68: 5.968553459 | AS68: =+IF(INT(AR68)=11,10,INT(AR68)) -> 5 | AT68: 200 | AU68: 5.9% | AV68: 204 | AW68: 7.41509434 | AX68: 7 | AY68: 0 | AZ68: 0.0% | BA68: 1 | BB68: 1.031446541 | BC68: 1 | BD68: 41 | BE68: 17.6% | BF68: 290 | BG68: 10.11949686 | BH68: 10 | BI68: 625 | BJ68: 18.7% | BK68: 255 | BL68: 9.018867925 | BM68: 9 | BN68: 14 | BO68: 0.6% | BP68: 36 | BQ68: 2.132075472 | BR68: 2 | BT68: 110 | BU68: =+BT68-A68 -> -17
A69: ='[1]Rapport 5'!A69 -> 129 | B69: ='[1]Rapport 5'!B69 -> MARLENHEIM | C69: ='[1]Rapport 5'!C69 -> 4120 | D69: ='[1]Rapport 5'!D69 -> WASSELONNE | E69: ='[1]Rapport 5'!E69 -> 5101 | F69: ='[1]Rapport 5'!F69 -> SELESTAT | G69: ='[1]Rapport 5'!G69 -> 262 | H69: ='[1]Rapport 5'!H69 -> BAS RHIN | I69: ='[1]Rapport 5'!I69 -> 3179.08 | J69: ='[1]Rapport 5'!J69 -> 64.5 | K69: ='[1]Rapport 5'!K69 -> 0 | L69: ='[1]Rapport 5'!L69 -> 0 | M69: ='[1]Rapport 5'!M69 -> 67253.97 | N69: ='[1]Rapport 5'!N69 -> 1067.47 | O69: ='[1]Rapport 5'!O69 -> 2304 | P69: ='[1]Rapport 5'!P69 -> 0 | Q69: ='[1]Rapport 5'!Q69 -> 0 | R69: ='[1]Rapport 5'!R69 -> 0 | S69: ='[1]Rapport 5'!S69 -> 250 | T69: ='[1]Rapport 5'!T69 -> 0 | U69: ='[1]Rapport 5'!U69 -> 3108.83 | V69: ='[1]Rapport 5'!V69 -> 348.28 | W69: ='[1]Rapport 5'!W69 -> 4000.59 | X69: ='[1]Rapport 5'!X69 -> 218.59 | Y69: 80,096 | Z69: 1,699 | AA69: 2.1% | AB69: 26 | AC69: =1+(AB69/COUNT($AB$3:AB$320)*10) -> 1.817610063 | AD69: 1 | AE69: 65 | AF69: 2.0% | AG69: 58 | AH69: 2.823899371 | AI69: =+IF(INT(AH69)=11,10,INT(AH69)) -> 2 | AJ69: 0 | AK69: 0.0% | AL69: 1 | AM69: 1.031446541 | AN69: 1 | AO69: 1,067 | AP69: 1.6% | AQ69: 31 | AR69: 1.974842767 | AS69: 1 | AT69: =+P69 -> 0 | AU69: =+IF(ISERROR(IF(AT69=0,0,AT69/O69)),1,IF(AT69=0,0,AT69/O69)) -> 0.0% | AV69: 1 | AW69: 1.031446541 | AX69: =+IF(INT(AW69)=11,10,INT(AW69)) -> 1 | AY69: =+R69 -> 0 | AZ69: =+IF(ISERROR(IF(AY69=0,0,AY69/T69)),1,IF(AY69=0,0,AY69/T69)) -> 0.0% | BA69: 1 | BB69: 1.031446541 | BC69: =+IF(INT(BB69)=11,10,INT(BB69)) -> 1 | BD69: =+T69 -> 0 | BE69: =+IF(ISERROR(IF(BD69=0,0,BD69/S69)),1,IF(BD69=0,0,BD69/S69)) -> 0.0% | BF69: 1 | BG69: 1.031446541 | BH69: =+IF(INT(BG69)=11,10,INT(BG69)) -> 1 | BI69: =+V69 -> 348 | BJ69: =+IF(ISERROR(IF(BI69=0,0,BI69/U69)),1,IF(BI69=0,0,BI69/U69)) -> 11.2% | BK69: 178 | BL69: 6.597484277 | BM69: =+IF(INT(BL69)=11,10,INT(BL69)) -> 6 | BN69: =+X69 -> 219 | BO69: =+IF(ISERROR(IF(BN69=0,0,BN69/W69)),1,IF(BN69=0,0,BN69/W69)) -> 5.5% | BP69: 240 | BQ69: 8.547169811 | BR69: =+IF(INT(BQ69)=11,10,INT(BQ69)) -> 8 | BT69: 111 | BU69: -18
A70: ='[1]Rapport 5'!A70 -> 130 | B70: ='[1]Rapport 5'!B70 -> COLMAR REPUBLIQUE | C70: ='[1]Rapport 5'!C70 -> 4130 | D70: ='[1]Rapport 5'!D70 -> COLMAR REPUBLIQUE | E70: ='[1]Rapport 5'!E70 -> 5130 | F70: ='[1]Rapport 5'!F70 -> COLMAR | G70: ='[1]Rapport 5'!G70 -> 264 | H70: ='[1]Rapport 5'!H70 -> HAUT RHIN | I70: ='[1]Rapport 5'!I70 -> 8520.02 | J70: ='[1]Rapport 5'!J70 -> 294.62 | K70: ='[1]Rapport 5'!K70 -> 0 | L70: ='[1]Rapport 5'!L70 -> 0 | M70: ='[1]Rapport 5'!M70 -> 271265.58 | N70: ='[1]Rapport 5'!N70 -> 8379.72 | O70: ='[1]Rapport 5'!O70 -> 12464 | P70: ='[1]Rapport 5'!P70 -> 1276.68 | Q70: ='[1]Rapport 5'!Q70 -> 0 | R70: ='[1]Rapport 5'!R70 -> 0 | S70: ='[1]Rapport 5'!S70 -> 524.79 | T70: ='[1]Rapport 5'!T70 -> 0 | U70: ='[1]Rapport 5'!U70 -> 43332.56 | V70: ='[1]Rapport 5'!V70 -> 1999.78 | W70: ='[1]Rapport 5'!W70 -> 24640.23 | X70: ='[1]Rapport 5'!X70 -> 1098.66 | Y70: 360,747 | Z70: 13,049 | AA70: 3.6% | AB70: 139 | AC70: =1+(AB70/COUNT($AB$3:AB$320)*10) -> 5.371069182 | AD70: 5 | AE70: 295 | AF70: 3.5% | AG70: 133 | AH70: 5.182389937 | AI70: 5 | AJ70: 0 | AK70: 0.0% | AL70: 1 | AM70: 1.031446541 | AN70: 1 | AO70: 8,380 | AP70: 3.1% | AQ70: 170 | AR70: 6.34591195 | AS70: 6 | AT70: 1,277 | AU70: 10.2% | AV70: 252 | AW70: 8.924528302 | AX70: 8 | AY70: 0 | AZ70: 0.0% | BA70: 1 | BB70: 1.031446541 | BC70: 1 | BD70: 0 | BE70: 0.0% | BF70: 1 | BG70: 1.031446541 | BH70: 1 | BI70: 2,000 | BJ70: 4.6% | BK70: 63 | BL70: 2.981132075 | BM70: 2 | BN70: 1,099 | BO70: 4.5% | BP70: 217 | BQ70: 7.823899371 | BR70: 7 | BT70: 113 | BU70: -17
A71: ='[1]Rapport 5'!A71 -> 132 | B71: ='[1]Rapport 5'!B71 -> COLMAR MARAICHERS | C71: ='[1]Rapport 5'!C71 -> 4132 | D71: ='[1]Rapport 5'!D71 -> COLMAR MARAICHERS | E71: ='[1]Rapport 5'!E71 -> 5130 | F71: ='[1]Rapport 5'!F71 -> COLMAR | G71: ='[1]Rapport 5'!G71 -> 264 | H71: ='[1]Rapport 5'!H71 -> HAUT RHIN | I71: ='[1]Rapport 5'!I71 -> 6141.3 | J71: ='[1]Rapport 5'!J71 -> 325.25 | K71: ='[1]Rapport 5'!K71 -> 0 | L71: ='[1]Rapport 5'!L71 -> 0 | M71: ='[1]Rapport 5'!M71 -> 188459.62 | N71: ='[1]Rapport 5'!N71 -> 4578.33 | O71: ='[1]Rapport 5'!O71 -> 4161 | P71: ='[1]Rapport 5'!P71 -> 326 | Q71: ='[1]Rapport 5'!Q71 -> 0 | R71: ='[1]Rapport 5'!R71 -> 0 | S71: ='[1]Rapport 5'!S71 -> 467.1 | T71: ='[1]Rapport 5'!T71 -> 26 | U71: ='[1]Rapport 5'!U71 -> 17898.44 | V71: ='[1]Rapport 5'!V71 -> 1189 | W71: ='[1]Rapport 5'!W71 -> 10643.18 | X71: ='[1]Rapport 5'!X71 -> 69.42 | Y71: 227,771 | Z71: 6,514 | AA71: 2.9% | AB71: 65 | AC71: =1+(AB71/COUNT($AB$3:AB$320)*10) -> 3.044025157 | AD71: 3 | AE71: 325 | AF71: 5.3% | AG71: 209 | AH71: 7.572327044 | AI71: 7 | AJ71: 0 | AK71: 0.0% | AL71: 1 | AM71: 1.031446541 | AN71: 1 | AO71: 4,578 | AP71: 2.4% | AQ71: 94 | AR71: 3.955974843 | AS71: 3 | AT71: 326 | AU71: 7.8% | AV71: 229 | AW71: 8.201257862 | AX71: 8 | AY71: 0 | AZ71: 0.0% | BA71: 1 | BB71: 1.031446541 | BC71: 1 | BD71: 26 | BE71: 5.6% | BF71: 257 | BG71: 9.081761006 | BH71: 9 | BI71: 1,189 | BJ71: 6.6% | BK71: 103 | BL71: 4.238993711 | BM71: 4 | BN71: 69 | BO71: 0.7% | BP71: 39 | BQ71: 2.226415094 | BR71: 2 | BT71: 116 | BU71: -16
A72: ='[1]Rapport 5'!A72 -> 133 | B72: ='[1]Rapport 5'!B72 -> COLMAR VAUBAN | C72: ='[1]Rapport 5'!C72 -> 4133 | D72: ='[1]Rapport 5'!D72 -> COLMAR VAUBAN | E72: ='[1]Rapport 5'!E72 -> 5130 | F72: ='[1]Rapport 5'!F72 -> COLMAR | G72: ='[1]Rapport 5'!G72 -> 264 | H72: ='[1]Rapport 5'!H72 -> HAUT RHIN | I72: ='[1]Rapport 5'!I72 -> 0 | J72: ='[1]Rapport 5'!J72 -> 0 | K72: ='[1]Rapport 5'!K72 -> 0 | L72: ='[1]Rapport 5'!L72 -> 0 | M72: ='[1]Rapport 5'!M72 -> 11.8 | N72: ='[1]Rapport 5'!N72 -> 0 | O72: ='[1]Rapport 5'!O72 -> 0 | P72: ='[1]Rapport 5'!P72 -> 0 | Q72: ='[1]Rapport 5'!Q72 -> 0 | R72: ='[1]Rapport 5'!R72 -> 0 | S72: ='[1]Rapport 5'!S72 -> 0 | T72: ='[1]Rapport 5'!T72 -> 0 | U72: ='[1]Rapport 5'!U72 -> 0 | V72: ='[1]Rapport 5'!V72 -> 0 | W72: ='[1]Rapport 5'!W72 -> 0 | X72: ='[1]Rapport 5'!X72 -> 0 | Y72: 12 | Z72: 0 | AA72: 0.0% | AB72: 1 | AC72: =1+(AB72/COUNT($AB$3:AB$320)*10) -> 1.031446541 | AD72: 1 | AE72: 0 | AF72: 0.0% | AG72: 1 | AH72: 1.031446541 | AI72: 1 | AJ72: 0 | AK72: 0.0% | AL72: 1 | AM72: 1.031446541 | AN72: 1 | AO72: 0 | AP72: 0.0% | AQ72: 1 | AR72: 1.031446541 | AS72: 1 | AT72: 0 | AU72: 0.0% | AV72: 1 | AW72: 1.031446541 | AX72: 1 | AY72: 0 | AZ72: 0.0% | BA72: 1 | BB72: 1.031446541 | BC72: 1 | BD72: 0 | BE72: 0.0% | BF72: 1 | BG72: 1.031446541 | BH72: 1 | BI72: 0 | BJ72: 0.0% | BK72: 1 | BL72: 1.031446541 | BM72: 1 | BN72: 0 | BO72: 0.0% | BP72: 1 | BQ72: 1.031446541 | BR72: 1 | BT72: 119 | BU72: -14
A73: ='[1]Rapport 5'!A73 -> 134 | B73: ='[1]Rapport 5'!B73 -> COLMAR SAINT JOSEPH | C73: ='[1]Rapport 5'!C73 -> 4134 | D73: ='[1]Rapport 5'!D73 -> COLMAR SAINT JOSEPH | E73: ='[1]Rapport 5'!E73 -> 5130 | F73: ='[1]Rapport 5'!F73 -> COLMAR | G73: ='[1]Rapport 5'!G73 -> 264 | H73: ='[1]Rapport 5'!H73 -> HAUT RHIN | I73: ='[1]Rapport 5'!I73 -> 0 | J73: ='[1]Rapport 5'!J73 -> 0 | K73: ='[1]Rapport 5'!K73 -> 0 | L73: ='[1]Rapport 5'!L73 -> 0 | M73: ='[1]Rapport 5'!M73 -> 12.4 | N73: ='[1]Rapport 5'!N73 -> 0 | O73: ='[1]Rapport 5'!O73 -> 0 | P73: ='[1]Rapport 5'!P73 -> 0 | Q73: ='[1]Rapport 5'!Q73 -> 0 | R73: ='[1]Rapport 5'!R73 -> 0 | S73: ='[1]Rapport 5'!S73 -> 0 | T73: ='[1]Rapport 5'!T73 -> 0 | U73: ='[1]Rapport 5'!U73 -> 0 | V73: ='[1]Rapport 5'!V73 -> 0 | W73: ='[1]Rapport 5'!W73 -> 0 | X73: ='[1]Rapport 5'!X73 -> 0 | Y73: 12 | Z73: 0 | AA73: 0.0% | AB73: 1 | AC73: =1+(AB73/COUNT($AB$3:AB$320)*10) -> 1.031446541 | AD73: 1 | AE73: 0 | AF73: 0.0% | AG73: 1 | AH73: 1.031446541 | AI73: 1 | AJ73: 0 | AK73: 0.0% | AL73: 1 | AM73: 1.031446541 | AN73: 1 | AO73: 0 | AP73: 0.0% | AQ73: 1 | AR73: 1.031446541 | AS73: 1 | AT73: 0 | AU73: 0.0% | AV73: 1 | AW73: 1.031446541 | AX73: 1 | AY73: 0 | AZ73: 0.0% | BA73: 1 | BB73: 1.031446541 | BC73: 1 | BD73: 0 | BE73: 0.0% | BF73: 1 | BG73: 1.031446541 | BH73: 1 | BI73: 0 | BJ73: 0.0% | BK73: 1 | BL73: 1.031446541 | BM73: 1 | BN73: 0 | BO73: 0.0% | BP73: 1 | BQ73: 1.031446541 | BR73: 1 | BT73: 120 | BU73: -14
A74: ='[1]Rapport 5'!A74 -> 135 | B74: ='[1]Rapport 5'!B74 -> COLMAR SAINTE MARIE | C74: ='[1]Rapport 5'!C74 -> 4135 | D74: ='[1]Rapport 5'!D74 -> COLMAR SAINTE MARIE | E74: ='[1]Rapport 5'!E74 -> 5130 | F74: ='[1]Rapport 5'!F74 -> COLMAR | G74: ='[1]Rapport 5'!G74 -> 264 | H74: ='[1]Rapport 5'!H74 -> HAUT RHIN | I74: ='[1]Rapport 5'!I74 -> 9144.45 | J74: ='[1]Rapport 5'!J74 -> 198.86 | K74: ='[1]Rapport 5'!K74 -> 0 | L74: ='[1]Rapport 5'!L74 -> 0 | M74: ='[1]Rapport 5'!M74 -> 301949.01 | N74: ='[1]Rapport 5'!N74 -> 9227.05 | O74: ='[1]Rapport 5'!O74 -> 5882.5 | P74: ='[1]Rapport 5'!P74 -> 205 | Q74: ='[1]Rapport 5'!Q74 -> 0 | R74: ='[1]Rapport 5'!R74 -> 0 | S74: ='[1]Rapport 5'!S74 -> 2120.05 | T74: ='[1]Rapport 5'!T74 -> 176 | U74: ='[1]Rapport 5'!U74 -> 24481.08 | V74: ='[1]Rapport 5'!V74 -> 1834.77 | W74: ='[1]Rapport 5'!W74 -> 10929.58 | X74: ='[1]Rapport 5'!X74 -> 167.9 | Y74: 354,507 | Z74: 11,810 | AA74: 3.3% | AB74: 104 | AC74: =1+(AB74/COUNT($AB$3:AB$320)*10) -> 4.270440252 | AD74: 4 | AE74: 199 | AF74: 2.2% | AG74: 63 | AH74: 2.981132075 | AI74: 2 | AJ74: 0 | AK74: 0.0% | AL74: 1 | AM74: 1.031446541 | AN74: 1 | AO74: 9,227 | AP74: 3.1% | AQ74: 166 | AR74: 6.220125786 | AS74: 6 | AT74: 205 | AU74: 3.5% | AV74: 154 | AW74: 5.842767296 | AX74: 5 | AY74: 0 | AZ74: 0.0% | BA74: 1 | BB74: 1.031446541 | BC74: 1 | BD74: 176 | BE74: 8.3% | BF74: 268 | BG74: 9.427672956 | BH74: 9 | BI74: 1,835 | BJ74: 7.5% | BK74: 119 | BL74: 4.742138365 | BM74: 4 | BN74: 168 | BO74: 1.5% | BP74: 88 | BQ74: 3.767295597 | BR74: 3 | BT74: 121 | BU74: -14
A75: ='[1]Rapport 5'!A75 -> 139 | B75: ='[1]Rapport 5'!B75 -> INGERSHEIM | C75: ='[1]Rapport 5'!C75 -> 4139 | D75: ='[1]Rapport 5'!D75 -> INGERSHEIM | E75: ='[1]Rapport 5'!E75 -> 5130 | F75: ='[1]Rapport 5'!F75 -> COLMAR | G75: ='[1]Rapport 5'!G75 -> 264 | H75: ='[1]Rapport 5'!H75 -> HAUT RHIN | I75: ='[1]Rapport 5'!I75 -> 5408.94 | J75: ='[1]Rapport 5'!J75 -> 293.64 | K75: ='[1]Rapport 5'!K75 -> 0 | L75: ='[1]Rapport 5'!L75 -> 614.41 | M75: ='[1]Rapport 5'!M75 -> 148952.67 | N75: ='[1]Rapport 5'!N75 -> 3695.42 | O75: ='[1]Rapport 5'!O75 -> 5487.5 | P75: ='[1]Rapport 5'!P75 -> 327 | Q75: ='[1]Rapport 5'!Q75 -> 0 | R75: ='[1]Rapport 5'!R75 -> 0 | S75: ='[1]Rapport 5'!S75 -> 236 | T75: ='[1]Rapport 5'!T75 -> 0 | U75: ='[1]Rapport 5'!U75 -> 10562.63 | V75: ='[1]Rapport 5'!V75 -> 1208.09 | W75: ='[1]Rapport 5'!W75 -> 6099.25 | X75: ='[1]Rapport 5'!X75 -> 191.02 | Y75: 176,747 | Z75: 6,330 | AA75: 3.6% | AB75: 132 | AC75: =1+(AB75/COUNT($AB$3:AB$320)*10) -> 5.150943396 | AD75: 5 | AE75: 294 | AF75: 5.4% | AG75: 211 | AH75: 7.635220126 | AI75: 7 | AJ75: 614 | AK75: 100.0% | AL75: 291 | AM75: 10.1509434 | AN75: 10 | AO75: 3,695 | AP75: 2.5% | AQ75: 100 | AR75: 4.144654088 | AS75: 4 | AT75: 327 | AU75: 6.0% | AV75: 206 | AW75: 7.477987421 | AX75: 7 | AY75: 0 | AZ75: 0.0% | BA75: 1 | BB75: 1.031446541 | BC75: 1 | BD75: 0 | BE75: 0.0% | BF75: 1 | BG75: 1.031446541 | BH75: 1 | BI75: 1,208 | BJ75: 11.4% | BK75: 182 | BL75: 6.72327044 | BM75: 6 | BN75: 191 | BO75: 3.1% | BP75: 162 | BQ75: 6.094339623 | BR75: 6 | BT75: 126 | BU75: -13
A76: ='[1]Rapport 5'!A76 -> 140 | B76: ='[1]Rapport 5'!B76 -> WINTZENHEIM | C76: ='[1]Rapport 5'!C76 -> 4139 | D76: ='[1]Rapport 5'!D76 -> INGERSHEIM | E76: ='[1]Rapport 5'!E76 -> 5130 | F76: ='[1]Rapport 5'!F76 -> COLMAR | G76: ='[1]Rapport 5'!G76 -> 264 | H76: ='[1]Rapport 5'!H76 -> HAUT RHIN | I76: ='[1]Rapport 5'!I76 -> 3329.13 | J76: ='[1]Rapport 5'!J76 -> 127.2 | K76: ='[1]Rapport 5'!K76 -> 0 | L76: ='[1]Rapport 5'!L76 -> 50 | M76: ='[1]Rapport 5'!M76 -> 66674.49 | N76: ='[1]Rapport 5'!N76 -> 2589.19 | O76: ='[1]Rapport 5'!O76 -> 1802.5 | P76: ='[1]Rapport 5'!P76 -> 35 | Q76: ='[1]Rapport 5'!Q76 -> 0 | R76: ='[1]Rapport 5'!R76 -> 0 | S76: ='[1]Rapport 5'!S76 -> 65 | T76: ='[1]Rapport 5'!T76 -> 13 | U76: ='[1]Rapport 5'!U76 -> 6731.37 | V76: ='[1]Rapport 5'!V76 -> 386.67 | W76: ='[1]Rapport 5'!W76 -> 3446.45 | X76: ='[1]Rapport 5'!X76 -> 0 | Y76: 82,049 | Z76: 3,201 | AA76: 3.9% | AB76: 173 | AC76: =1+(AB76/COUNT($AB$3:AB$320)*10) -> 6.440251572 | AD76: 6 | AE76: 127 | AF76: 3.8% | AG76: 157 | AH76: 5.937106918 | AI76: 5 | AJ76: 50 | AK76: 100.0% | AL76: 291 | AM76: 10.1509434 | AN76: 10 | AO76: 2,589 | AP76: 3.9% | AQ76: 237 | AR76: 8.452830189 | AS76: 8 | AT76: 35 | AU76: 1.9% | AV76: 116 | AW76: 4.647798742 | AX76: 4 | AY76: 0 | AZ76: 0.0% | BA76: 1 | BB76: 1.031446541 | BC76: 1 | BD76: 13 | BE76: 20.0% | BF76: 293 | BG76: 10.21383648 | BH76: 10 | BI76: 387 | BJ76: 5.7% | BK76: 83 | BL76: 3.610062893 | BM76: 3 | BN76: 0 | BO76: 0.0% | BP76: 1 | BQ76: 1.031446541 | BR76: 1 | BT76: 127 | BU76: -13
A77: ='[1]Rapport 5'!A77 -> 141 | B77: ='[1]Rapport 5'!B77 -> HORBOURG WIHR | C77: ='[1]Rapport 5'!C77 -> 4141 | D77: ='[1]Rapport 5'!D77 -> HORBOURG WIHR | E77: ='[1]Rapport 5'!E77 -> 5130 | F77: ='[1]Rapport 5'!F77 -> COLMAR | G77: ='[1]Rapport 5'!G77 -> 264 | H77: ='[1]Rapport 5'!H77 -> HAUT RHIN | I77: ='[1]Rapport 5'!I77 -> 4464.54 | J77: ='[1]Rapport 5'!J77 -> 361.5 | K77: ='[1]Rapport 5'!K77 -> 0 | L77: ='[1]Rapport 5'!L77 -> 789.63 | M77: ='[1]Rapport 5'!M77 -> 132572.26 | N77: ='[1]Rapport 5'!N77 -> 6452 | O77: ='[1]Rapport 5'!O77 -> 4493.5 | P77: ='[1]Rapport 5'!P77 -> 319.4 | Q77: ='[1]Rapport 5'!Q77 -> 0 | R77: ='[1]Rapport 5'!R77 -> 0 | S77: ='[1]Rapport 5'!S77 -> 711.12 | T77: ='[1]Rapport 5'!T77 -> 13 | U77: ='[1]Rapport 5'!U77 -> 6467.94 | V77: ='[1]Rapport 5'!V77 -> 979.69 | W77: ='[1]Rapport 5'!W77 -> 8531.63 | X77: ='[1]Rapport 5'!X77 -> 1342.81 | Y77: 157,241 | Z77: 10,258 | AA77: 6.5% | AB77: 301 | AC77: =1+(AB77/COUNT($AB$3:AB$320)*10) -> 10.46540881 | AD77: 10 | AE77: 362 | AF77: 8.1% | AG77: 258 | AH77: 9.113207547 | AI77: 9 | AJ77: 790 | AK77: 100.0% | AL77: 291 | AM77: 10.1509434 | AN77: 10 | AO77: 6,452 | AP77: 4.9% | AQ77: 289 | AR77: 10.08805031 | AS77: 10 | AT77: 319 | AU77: 7.1% | AV77: 219 | AW77: 7.886792453 | AX77: 7 | AY77: 0 | AZ77: 0.0% | BA77: 1 | BB77: 1.031446541 | BC77: 1 | BD77: 13 | BE77: 1.8% | BF77: 238 | BG77: 8.48427673 | BH77: 8 | BI77: 980 | BJ77: 15.1% | BK77: 227 | BL77: 8.13836478 | BM77: 8 | BN77: 1,343 | BO77: 15.7% | BP77: 313 | BQ77: 10.8427673 | BR77: 10 | BT77: 129 | BU77: -12
A78: ='[1]Rapport 5'!A78 -> 143 | B78: ='[1]Rapport 5'!B78 -> MUNSTER | C78: ='[1]Rapport 5'!C78 -> 4143 | D78: ='[1]Rapport 5'!D78 -> MUNSTER | E78: ='[1]Rapport 5'!E78 -> 5130 | F78: ='[1]Rapport 5'!F78 -> COLMAR | G78: ='[1]Rapport 5'!G78 -> 264 | H78: ='[1]Rapport 5'!H78 -> HAUT RHIN | I78: ='[1]Rapport 5'!I78 -> 4983.75 | J78: ='[1]Rapport 5'!J78 -> 243.77 | K78: ='[1]Rapport 5'!K78 -> 0 | L78: ='[1]Rapport 5'!L78 -> 0 | M78: ='[1]Rapport 5'!M78 -> 179838.23 | N78: ='[1]Rapport 5'!N78 -> 5023.44 | O78: ='[1]Rapport 5'!O78 -> 11706 | P78: ='[1]Rapport 5'!P78 -> 393 | Q78: ='[1]Rapport 5'!Q78 -> 0 | R78: ='[1]Rapport 5'!R78 -> 0 | S78: ='[1]Rapport 5'!S78 -> 590 | T78: ='[1]Rapport 5'!T78 -> 75 | U78: ='[1]Rapport 5'!U78 -> 7917.1 | V78: ='[1]Rapport 5'!V78 -> 1118.62 | W78: ='[1]Rapport 5'!W78 -> 8506.57 | X78: ='[1]Rapport 5'!X78 -> 163.33 | Y78: 213,542 | Z78: 7,017 | AA78: 3.3% | AB78: 100 | AC78: =1+(AB78/COUNT($AB$3:AB$320)*10) -> 4.144654088 | AD78: 4 | AE78: 244 | AF78: 4.9% | AG78: 193 | AH78: 7.06918239 | AI78: 7 | AJ78: 0 | AK78: 0.0% | AL78: 1 | AM78: 1.031446541 | AN78: 1 | AO78: 5,023 | AP78: 2.8% | AQ78: 136 | AR78: 5.27672956 | AS78: 5 | AT78: 393 | AU78: 3.4% | AV78: 150 | AW78: 5.716981132 | AX78: 5 | AY78: 0 | AZ78: 0.0% | BA78: 1 | BB78: 1.031446541 | BC78: 1 | BD78: 75 | BE78: 12.7% | BF78: 284 | BG78: 9.93081761 | BH78: 9 | BI78: 1,119 | BJ78: 14.1% | BK78: 216 | BL78: 7.79245283 | BM78: 7 | BN78: 163 | BO78: 1.9% | BP78: 109 | BQ78: 4.427672956 | BR78: 4 | BT78: 130 | BU78: -13
A79: ='[1]Rapport 5'!A79 -> 144 | B79: ='[1]Rapport 5'!B79 -> RIBEAUVILLE | C79: ='[1]Rapport 5'!C79 -> 4144 | D79: ='[1]Rapport 5'!D79 -> RIBEAUVILLE | E79: ='[1]Rapport 5'!E79 -> 5130 | F79: ='[1]Rapport 5'!F79 -> COLMAR | G79: ='[1]Rapport 5'!G79 -> 264 | H79: ='[1]Rapport 5'!H79 -> HAUT RHIN | I79: ='[1]Rapport 5'!I79 -> 2087.16 | J79: ='[1]Rapport 5'!J79 -> 212.47 | K79: ='[1]Rapport 5'!K79 -> 0 | L79: ='[1]Rapport 5'!L79 -> 0 | M79: ='[1]Rapport 5'!M79 -> 83915.24 | N79: ='[1]Rapport 5'!N79 -> 2214.83 | O79: ='[1]Rapport 5'!O79 -> 3248.5 | P79: ='[1]Rapport 5'!P79 -> 0 | Q79: ='[1]Rapport 5'!Q79 -> 0 | R79: ='[1]Rapport 5'!R79 -> 0 | S79: ='[1]Rapport 5'!S79 -> 26 | T79: ='[1]Rapport 5'!T79 -> 0 | U79: ='[1]Rapport 5'!U79 -> 4270.4 | V79: ='[1]Rapport 5'!V79 -> 466.73 | W79: ='[1]Rapport 5'!W79 -> 6852.52 | X79: ='[1]Rapport 5'!X79 -> 191.42 | Y79: 100,400 | Z79: 3,085 | AA79: 3.1% | AB79: 84 | AC79: =1+(AB79/COUNT($AB$3:AB$320)*10) -> 3.641509434 | AD79: 3 | AE79: 212 | AF79: 10.2% | AG79: 277 | AH79: 9.710691824 | AI79: 9 | AJ79: 0 | AK79: 0.0% | AL79: 1 | AM79: 1.031446541 | AN79: 1 | AO79: 2,215 | AP79: 2.6% | AQ79: 115 | AR79: 4.616352201 | AS79: 4 | AT79: 0 | AU79: 0.0% | AV79: 1 | AW79: 1.031446541 | AX79: 1 | AY79: 0 | AZ79: 0.0% | BA79: 1 | BB79: 1.031446541 | BC79: 1 | BD79: 0 | BE79: 0.0% | BF79: 1 | BG79: 1.031446541 | BH79: 1 | BI79: 467 | BJ79: 10.9% | BK79: 172 | BL79: 6.408805031 | BM79: 6 | BN79: 191 | BO79: 2.8% | BP79: 149 | BQ79: 5.685534591 | BR79: 5 | BT79: 132 | BU79: -12
A80: ='[1]Rapport 5'!A80 -> 147 | B80: ='[1]Rapport 5'!B80 -> GUEBWILLER | C80: ='[1]Rapport 5'!C80 -> 4147 | D80: ='[1]Rapport 5'!D80 -> GUEBWILLER | E80: ='[1]Rapport 5'!E80 -> 5130 | F80: ='[1]Rapport 5'!F80 -> COLMAR | G80: ='[1]Rapport 5'!G80 -> 264 | H80: ='[1]Rapport 5'!H80 -> HAUT RHIN | I80: ='[1]Rapport 5'!I80 -> 6631.74 | J80: ='[1]Rapport 5'!J80 -> 282.76 | K80: ='[1]Rapport 5'!K80 -> 0 | L80: ='[1]Rapport 5'!L80 -> 0 | M80: ='[1]Rapport 5'!M80 -> 135431.99 | N80: ='[1]Rapport 5'!N80 -> 3098.15 | O80: ='[1]Rapport 5'!O80 -> 3346 | P80: ='[1]Rapport 5'!P80 -> 242.5 | Q80: ='[1]Rapport 5'!Q80 -> 0 | R80: ='[1]Rapport 5'!R80 -> 0 | S80: ='[1]Rapport 5'!S80 -> 109 | T80: ='[1]Rapport 5'!T80 -> 0 | U80: ='[1]Rapport 5'!U80 -> 8999.15 | V80: ='[1]Rapport 5'!V80 -> 962.69 | W80: ='[1]Rapport 5'!W80 -> 5568.39 | X80: ='[1]Rapport 5'!X80 -> 170.99 | Y80: 160,086 | Z80: 4,757 | AA80: 3.0% | AB80: 76 | AC80: =1+(AB80/COUNT($AB$3:AB$320)*10) -> 3.389937107 | AD80: 3 | AE80: 283 | AF80: 4.3% | AG80: 174 | AH80: 6.471698113 | AI80: 6 | AJ80: 0 | AK80: 0.0% | AL80: 1 | AM80: 1.031446541 | AN80: 1 | AO80: 3,098 | AP80: 2.3% | AQ80: 78 | AR80: 3.452830189 | AS80: 3 | AT80: 243 | AU80: 7.2% | AV80: 224 | AW80: 8.044025157 | AX80: 8 | AY80: 0 | AZ80: 0.0% | BA80: 1 | BB80: 1.031446541 | BC80: 1 | BD80: 0 | BE80: 0.0% | BF80: 1 | BG80: 1.031446541 | BH80: 1 | BI80: 963 | BJ80: 10.7% | BK80: 167 | BL80: 6.251572327 | BM80: 6 | BN80: 171 | BO80: 3.1% | BP80: 157 | BQ80: 5.937106918 | BR80: 5 | BT80: 133 | BU80: -14
A81: ='[1]Rapport 5'!A81 -> 148 | B81: ='[1]Rapport 5'!B81 -> ORBEY | C81: ='[1]Rapport 5'!C81 -> 4148 | D81: ='[1]Rapport 5'!D81 -> ORBEY | E81: ='[1]Rapport 5'!E81 -> 5130 | F81: ='[1]Rapport 5'!F81 -> COLMAR | G81: ='[1]Rapport 5'!G81 -> 264 | H81: ='[1]Rapport 5'!H81 -> HAUT RHIN | I81: ='[1]Rapport 5'!I81 -> 2147.8 | J81: ='[1]Rapport 5'!J81 -> 173.34 | K81: ='[1]Rapport 5'!K81 -> 0 | L81: ='[1]Rapport 5'!L81 -> 0 | M81: ='[1]Rapport 5'!M81 -> 105361.73 | N81: ='[1]Rapport 5'!N81 -> 3356.49 | O81: ='[1]Rapport 5'!O81 -> 2445 | P81: ='[1]Rapport 5'!P81 -> 235 | Q81: ='[1]Rapport 5'!Q81 -> 0 | R81: ='[1]Rapport 5'!R81 -> 0 | S81: ='[1]Rapport 5'!S81 -> 168 | T81: ='[1]Rapport 5'!T81 -> 0 | U81: ='[1]Rapport 5'!U81 -> 8315.08 | V81: ='[1]Rapport 5'!V81 -> 403.8 | W81: ='[1]Rapport 5'!W81 -> 4291.63 | X81: ='[1]Rapport 5'!X81 -> 162.6 | Y81: 122,729 | Z81: 4,331 | AA81: 3.5% | AB81: 123 | AC81: =1+(AB81/COUNT($AB$3:AB$320)*10) -> 4.867924528 | AD81: 4 | AE81: 173 | AF81: 8.1% | AG81: 256 | AH81: 9.050314465 | AI81: 9 | AJ81: 0 | AK81: 0.0% | AL81: 1 | AM81: 1.031446541 | AN81: 1 | AO81: 3,356 | AP81: 3.2% | AQ81: 178 | AR81: 6.597484277 | AS81: 6 | AT81: 235 | AU81: 9.6% | AV81: 247 | AW81: 8.767295597 | AX81: 8 | AY81: 0 | AZ81: 0.0% | BA81: 1 | BB81: 1.031446541 | BC81: 1 | BD81: 0 | BE81: 0.0% | BF81: 1 | BG81: 1.031446541 | BH81: 1 | BI81: 404 | BJ81: 4.9% | BK81: 67 | BL81: 3.106918239 | BM81: 3 | BN81: 163 | BO81: 3.8% | BP81: 193 | BQ81: 7.06918239 | BR81: 7 | BT81: 134 | BU81: -14
A82: ='[1]Rapport 5'!A82 -> 152 | B82: ='[1]Rapport 5'!B82 -> KAYSERSBERG | C82: ='[1]Rapport 5'!C82 -> 4148 | D82: ='[1]Rapport 5'!D82 -> ORBEY | E82: ='[1]Rapport 5'!E82 -> 5130 | F82: ='[1]Rapport 5'!F82 -> COLMAR | G82: ='[1]Rapport 5'!G82 -> 264 | H82: ='[1]Rapport 5'!H82 -> HAUT RHIN | I82: ='[1]Rapport 5'!I82 -> 971.91 | J82: ='[1]Rapport 5'!J82 -> 74.22 | K82: ='[1]Rapport 5'!K82 -> 0 | L82: ='[1]Rapport 5'!L82 -> 0 | M82: ='[1]Rapport 5'!M82 -> 49381.82 | N82: ='[1]Rapport 5'!N82 -> 1758.23 | O82: ='[1]Rapport 5'!O82 -> 1800.5 | P82: ='[1]Rapport 5'!P82 -> 0 | Q82: ='[1]Rapport 5'!Q82 -> 0 | R82: ='[1]Rapport 5'!R82 -> 0 | S82: ='[1]Rapport 5'!S82 -> 5 | T82: ='[1]Rapport 5'!T82 -> 0 | U82: ='[1]Rapport 5'!U82 -> 3612.32 | V82: ='[1]Rapport 5'!V82 -> 31.8 | W82: ='[1]Rapport 5'!W82 -> 2429.53 | X82: ='[1]Rapport 5'!X82 -> 28 | Y82: 58,201 | Z82: 1,892 | AA82: 3.3% | AB82: 94 | AC82: =1+(AB82/COUNT($AB$3:AB$320)*10) -> 3.955974843 | AD82: 3 | AE82: 74 | AF82: 7.6% | AG82: 250 | AH82: 8.86163522 | AI82: 8 | AJ82: 0 | AK82: 0.0% | AL82: 1 | AM82: 1.031446541 | AN82: 1 | AO82: 1,758 | AP82: 3.6% | AQ82: 212 | AR82: 7.666666667 | AS82: 7 | AT82: 0 | AU82: 0.0% | AV82: 1 | AW82: 1.031446541 | AX82: 1 | AY82: 0 | AZ82: 0.0% | BA82: 1 | BB82: 1.031446541 | BC82: 1 | BD82: 0 | BE82: 0.0% | BF82: 1 | BG82: 1.031446541 | BH82: 1 | BI82: 32 | BJ82: 0.9% | BK82: 20 | BL82: 1.628930818 | BM82: 1 | BN82: 28 | BO82: 1.2% | BP82: 70 | BQ82: 3.201257862 | BR82: 3 | BT82: 135 | BU82: -17
A83: ='[1]Rapport 5'!A83 -> 153 | B83: ='[1]Rapport 5'!B83 -> ROUFFACH | C83: ='[1]Rapport 5'!C83 -> 4153 | D83: ='[1]Rapport 5'!D83 -> ROUFFACH | E83: ='[1]Rapport 5'!E83 -> 5130 | F83: ='[1]Rapport 5'!F83 -> COLMAR | G83: ='[1]Rapport 5'!G83 -> 264 | H83: ='[1]Rapport 5'!H83 -> HAUT RHIN | I83: ='[1]Rapport 5'!I83 -> 3380.62 | J83: ='[1]Rapport 5'!J83 -> 274.15 | K83: ='[1]Rapport 5'!K83 -> 0 | L83: ='[1]Rapport 5'!L83 -> 0 | M83: ='[1]Rapport 5'!M83 -> 81857.4 | N83: ='[1]Rapport 5'!N83 -> 3311.24 | O83: ='[1]Rapport 5'!O83 -> 5026 | P83: ='[1]Rapport 5'!P83 -> 19 | Q83: ='[1]Rapport 5'!Q83 -> 0 | R83: ='[1]Rapport 5'!R83 -> 0 | S83: ='[1]Rapport 5'!S83 -> 468 | T83: ='[1]Rapport 5'!T83 -> 0 | U83: ='[1]Rapport 5'!U83 -> 7633.35 | V83: ='[1]Rapport 5'!V83 -> 708.88 | W83: ='[1]Rapport 5'!W83 -> 4730.81 | X83: ='[1]Rapport 5'!X83 -> 609.07 | Y83: 103,096 | Z83: 4,922 | AA83: 4.8% | AB83: 247 | AC83: =1+(AB83/COUNT($AB$3:AB$320)*10) -> 8.767295597 | AD83: 8 | AE83: 274 | AF83: 8.1% | AG83: 259 | AH83: 9.144654088 | AI83: 9 | AJ83: 0 | AK83: 0.0% | AL83: 1 | AM83: 1.031446541 | AN83: 1 | AO83: 3,311 | AP83: 4.0% | AQ83: 249 | AR83: 8.830188679 | AS83: 8 | AT83: 19 | AU83: 0.4% | AV83: 78 | AW83: 3.452830189 | AX83: 3 | AY83: 0 | AZ83: 0.0% | BA83: 1 | BB83: 1.031446541 | BC83: 1 | BD83: 0 | BE83: 0.0% | BF83: 1 | BG83: 1.031446541 | BH83: 1 | BI83: 709 | BJ83: 9.3% | BK83: 143 | BL83: 5.496855346 | BM83: 5 | BN83: 609 | BO83: 12.9% | BP83: 303 | BQ83: 10.52830189 | BR83: 10 | BT83: 139 | BU83: -14
A84: ='[1]Rapport 5'!A84 -> 156 | B84: ='[1]Rapport 5'!B84 -> SOULTZMATT | C84: ='[1]Rapport 5'!C84 -> 4153 | D84: ='[1]Rapport 5'!D84 -> ROUFFACH | E84: ='[1]Rapport 5'!E84 -> 5130 | F84: ='[1]Rapport 5'!F84 -> COLMAR | G84: ='[1]Rapport 5'!G84 -> 264 | H84: ='[1]Rapport 5'!H84 -> HAUT RHIN | I84: ='[1]Rapport 5'!I84 -> 2672.7 | J84: ='[1]Rapport 5'!J84 -> 141.28 | K84: ='[1]Rapport 5'!K84 -> 0 | L84: ='[1]Rapport 5'!L84 -> 0 | M84: ='[1]Rapport 5'!M84 -> 38163.7 | N84: ='[1]Rapport 5'!N84 -> 1712.48 | O84: ='[1]Rapport 5'!O84 -> 1025 | P84: ='[1]Rapport 5'!P84 -> 0 | Q84: ='[1]Rapport 5'!Q84 -> 0 | R84: ='[1]Rapport 5'!R84 -> 0 | S84: ='[1]Rapport 5'!S84 -> 98.6 | T84: ='[1]Rapport 5'!T84 -> 0 | U84: ='[1]Rapport 5'!U84 -> 1590.56 | V84: ='[1]Rapport 5'!V84 -> 392.5 | W84: ='[1]Rapport 5'!W84 -> 1656.49 | X84: ='[1]Rapport 5'!X84 -> 28 | Y84: 45,207 | Z84: 2,274 | AA84: 5.0% | AB84: 260 | AC84: =1+(AB84/COUNT($AB$3:AB$320)*10) -> 9.176100629 | AD84: 9 | AE84: =+J84 -> 141 | AF84: 5.3% | AG84: 208 | AH84: 7.540880503 | AI84: 7 | AJ84: 0 | AK84: 0.0% | AL84: 1 | AM84: 1.031446541 | AN84: 1 | AO84: 1,712 | AP84: 4.5% | AQ84: 271 | AR84: 9.522012579 | AS84: 9 | AT84: 0 | AU84: 0.0% | AV84: 1 | AW84: 1.031446541 | AX84: 1 | AY84: 0 | AZ84: 0.0% | BA84: 1 | BB84: 1.031446541 | BC84: 1 | BD84: 0 | BE84: 0.0% | BF84: 1 | BG84: 1.031446541 | BH84: 1 | BI84: 393 | BJ84: 24.7% | BK84: 286 | BL84: 9.993710692 | BM84: 9 | BN84: 28 | BO84: 1.7% | BP84: 100 | BQ84: 4.144654088 | BR84: 4 | BT84: 140 | BU84: -16
A85: ='[1]Rapport 5'!A85 -> 157 | B85: ='[1]Rapport 5'!B85 -> NEUF BRISACH | C85: ='[1]Rapport 5'!C85 -> 4157 | D85: ='[1]Rapport 5'!D85 -> NEUF BRISACH | E85: ='[1]Rapport 5'!E85 -> 5130 | F85: ='[1]Rapport 5'!F85 -> COLMAR | G85: ='[1]Rapport 5'!G85 -> 264 | H85: ='[1]Rapport 5'!H85 -> HAUT RHIN | I85: ='[1]Rapport 5'!I85 -> 4680.23 | J85: ='[1]Rapport 5'!J85 -> 232.76 | K85: ='[1]Rapport 5'!K85 -> 0 | L85: ='[1]Rapport 5'!L85 -> 0 | M85: ='[1]Rapport 5'!M85 -> 127908.12 | N85: ='[1]Rapport 5'!N85 -> 2467.53 | O85: ='[1]Rapport 5'!O85 -> 5647 | P85: ='[1]Rapport 5'!P85 -> 803 | Q85: ='[1]Rapport 5'!Q85 -> 0 | R85: ='[1]Rapport 5'!R85 -> 0 | S85: ='[1]Rapport 5'!S85 -> 88 | T85: ='[1]Rapport 5'!T85 -> 0 | U85: ='[1]Rapport 5'!U85 -> 5830.67 | V85: ='[1]Rapport 5'!V85 -> 2345.69 | W85: ='[1]Rapport 5'!W85 -> 7749.51 | X85: ='[1]Rapport 5'!X85 -> 65.3 | Y85: 151,904 | Z85: 5,914 | AA85: 3.9% | AB85: 170 | AC85: =1+(AB85/COUNT($AB$3:AB$320)*10) -> 6.34591195 | AD85: 6 | AE85: 233 | AF85: 5.0% | AG85: 195 | AH85: 7.132075472 | AI85: 7 | AJ85: 0 | AK85: 0.0% | AL85: 1 | AM85: 1.031446541 | AN85: 1 | AO85: 2,468 | AP85: 1.9% | AQ85: 54 | AR85: 2.698113208 | AS85: 2 | AT85: 803 | AU85: 14.2% | AV85: 278 | AW85: 9.742138365 | AX85: 9 | AY85: 0 | AZ85: 0.0% | BA85: 1 | BB85: 1.031446541 | BC85: 1 | BD85: 0 | BE85: 0.0% | BF85: 1 | BG85: 1.031446541 | BH85: 1 | BI85: 2,346 | BJ85: 40.2% | BK85: 314 | BL85: 10.87421384 | BM85: 10 | BN85: 65 | BO85: 0.8% | BP85: 52 | BQ85: 2.635220126 | BR85: 2 | BT85: 141 | BU85: -16
A86: ='[1]Rapport 5'!A86 -> 159 | B86: ='[1]Rapport 5'!B86 -> MUNTZENHEIM | C86: ='[1]Rapport 5'!C86 -> 4141 | D86: ='[1]Rapport 5'!D86 -> HORBOURG WIHR | E86: ='[1]Rapport 5'!E86 -> 5130 | F86: ='[1]Rapport 5'!F86 -> COLMAR | G86: ='[1]Rapport 5'!G86 -> 264 | H86: ='[1]Rapport 5'!H86 -> HAUT RHIN | I86: ='[1]Rapport 5'!I86 -> 3031.19 | J86: ='[1]Rapport 5'!J86 -> 203.18 | K86: ='[1]Rapport 5'!K86 -> 0 | L86: ='[1]Rapport 5'!L86 -> 0 | M86: ='[1]Rapport 5'!M86 -> 74523.62 | N86: ='[1]Rapport 5'!N86 -> 3223.61 | O86: ='[1]Rapport 5'!O86 -> 2487 | P86: ='[1]Rapport 5'!P86 -> 663.5 | Q86: ='[1]Rapport 5'!Q86 -> 0 | R86: ='[1]Rapport 5'!R86 -> 0 | S86: ='[1]Rapport 5'!S86 -> 39 | T86: ='[1]Rapport 5'!T86 -> 0 | U86: ='[1]Rapport 5'!U86 -> 2067 | V86: ='[1]Rapport 5'!V86 -> 221.24 | W86: ='[1]Rapport 5'!W86 -> 2154.6 | X86: ='[1]Rapport 5'!X86 -> 12 | Y86: 84,302 | Z86: 4,324 | AA86: 5.1% | AB86: 265 | AC86: =1+(AB86/COUNT($AB$3:AB$320)*10) -> 9.333333333 | AD86: 9 | AE86: 203 | AF86: 6.7% | AG86: 239 | AH86: 8.51572327 | AI86: 8 | AJ86: 0 | AK86: 0.0% | AL86: 1 | AM86: 1.031446541 | AN86: 1 | AO86: 3,224 | AP86: 4.3% | AQ86: 262 | AR86: 9.238993711 | AS86: 9 | AT86: 664 | AU86: 26.7% | AV86: 309 | AW86: 10.71698113 | AX86: 10 | AY86: 0 | AZ86: 0.0% | BA86: 1 | BB86: 1.031446541 | BC86: 1 | BD86: 0 | BE86: 0.0% | BF86: 1 | BG86: 1.031446541 | BH86: 1 | BI86: 221 | BJ86: 10.7% | BK86: 168 | BL86: 6.283018868 | BM86: 6 | BN86: 12 | BO86: 0.6% | BP86: 33 | BQ86: 2.037735849 | BR86: 2 | BT86: 143 | BU86: -16
A87: ='[1]Rapport 5'!A87 -> 160 | B87: ='[1]Rapport 5'!B87 -> SOULTZ | C87: ='[1]Rapport 5'!C87 -> 4147 | D87: ='[1]Rapport 5'!D87 -> GUEBWILLER | E87: ='[1]Rapport 5'!E87 -> 5130 | F87: ='[1]Rapport 5'!F87 -> COLMAR | G87: ='[1]Rapport 5'!G87 -> 264 | H87: ='[1]Rapport 5'!H87 -> HAUT RHIN | I87: ='[1]Rapport 5'!I87 -> 3157.49 | J87: ='[1]Rapport 5'!J87 -> 165.76 | K87: ='[1]Rapport 5'!K87 -> 0 | L87: ='[1]Rapport 5'!L87 -> 0 | M87: ='[1]Rapport 5'!M87 -> 71732.93 | N87: ='[1]Rapport 5'!N87 -> 3380.4 | O87: ='[1]Rapport 5'!O87 -> 3054.5 | P87: ='[1]Rapport 5'!P87 -> 388.02 | Q87: ='[1]Rapport 5'!Q87 -> 0 | R87: ='[1]Rapport 5'!R87 -> 0 | S87: ='[1]Rapport 5'!S87 -> 101 | T87: ='[1]Rapport 5'!T87 -> 26 | U87: ='[1]Rapport 5'!U87 -> 3017.79 | V87: ='[1]Rapport 5'!V87 -> 412.5 | W87: ='[1]Rapport 5'!W87 -> 3189.28 | X87: ='[1]Rapport 5'!X87 -> 317.81 | Y87: 84,253 | Z87: 4,690 | AA87: 5.6% | AB87: 282 | AC87: =1+(AB87/COUNT($AB$3:AB$320)*10) -> 9.867924528 | AD87: 9 | AE87: 166 | AF87: 5.2% | AG87: 206 | AH87: 7.477987421 | AI87: 7 | AJ87: 0 | AK87: 0.0% | AL87: 1 | AM87: 1.031446541 | AN87: 1 | AO87: 3,380 | AP87: 4.7% | AQ87: 283 | AR87: 9.899371069 | AS87: 9 | AT87: 388 | AU87: 12.7% | AV87: 267 | AW87: 9.396226415 | AX87: 9 | AY87: 0 | AZ87: 0.0% | BA87: 1 | BB87: 1.031446541 | BC87: 1 | BD87: 26 | BE87: 25.7% | BF87: 300 | BG87: 10.43396226 | BH87: 10 | BI87: 413 | BJ87: 13.7% | BK87: 209 | BL87: 7.572327044 | BM87: 7 | BN87: 318 | BO87: 10.0% | BP87: 285 | BQ87: 9.962264151 | BR87: 9 | BT87: 144 | BU87: -16
A88: ='[1]Rapport 5'!A88 -> 162 | B88: ='[1]Rapport 5'!B88 -> ENSISHEIM | C88: ='[1]Rapport 5'!C88 -> 4162 | D88: ='[1]Rapport 5'!D88 -> ENSISHEIM | E88: ='[1]Rapport 5'!E88 -> 5130 | F88: ='[1]Rapport 5'!F88 -> COLMAR | G88: ='[1]Rapport 5'!G88 -> 264 | H88: ='[1]Rapport 5'!H88 -> HAUT RHIN | I88: ='[1]Rapport 5'!I88 -> 4502.29 | J88: ='[1]Rapport 5'!J88 -> 187.16 | K88: ='[1]Rapport 5'!K88 -> 0 | L88: ='[1]Rapport 5'!L88 -> 0 | M88: ='[1]Rapport 5'!M88 -> 108404.37 | N88: ='[1]Rapport 5'!N88 -> 3104.64 | O88: ='[1]Rapport 5'!O88 -> 2632.5 | P88: ='[1]Rapport 5'!P88 -> 84 | Q88: ='[1]Rapport 5'!Q88 -> 0 | R88: ='[1]Rapport 5'!R88 -> 0 | S88: ='[1]Rapport 5'!S88 -> 310 | T88: ='[1]Rapport 5'!T88 -> 44 | U88: ='[1]Rapport 5'!U88 -> 4643.97 | V88: ='[1]Rapport 5'!V88 -> 987.65 | W88: ='[1]Rapport 5'!W88 -> 3505.34 | X88: ='[1]Rapport 5'!X88 -> 0 | Y88: 123,998 | Z88: 4,407 | AA88: 3.6% | AB88: 128 | AC88: =1+(AB88/COUNT($AB$3:AB$320)*10) -> 5.025157233 | AD88: 5 | AE88: 187 | AF88: 4.2% | AG88: 170 | AH88: 6.34591195 | AI88: 6 | AJ88: 0 | AK88: 0.0% | AL88: 1 | AM88: 1.031446541 | AN88: 1 | AO88: 3,105 | AP88: 2.9% | AQ88: 146 | AR88: 5.591194969 | AS88: 5 | AT88: 84 | AU88: 3.2% | AV88: 142 | AW88: 5.465408805 | AX88: 5 | AY88: 0 | AZ88: 0.0% | BA88: 1 | BB88: 1.031446541 | BC88: 1 | BD88: 44 | BE88: 14.2% | BF88: 287 | BG88: 10.02515723 | BH88: 10 | BI88: 988 | BJ88: 21.3% | BK88: 273 | BL88: 9.58490566 | BM88: 9 | BN88: 0 | BO88: 0.0% | BP88: 1 | BQ88: 1.031446541 | BR88: 1 | BT88: 147 | BU88: -15
A89: ='[1]Rapport 5'!A89 -> 163 | B89: ='[1]Rapport 5'!B89 -> PULVERSHEIM | C89: ='[1]Rapport 5'!C89 -> 4162 | D89: ='[1]Rapport 5'!D89 -> ENSISHEIM | E89: ='[1]Rapport 5'!E89 -> 5130 | F89: ='[1]Rapport 5'!F89 -> COLMAR | G89: ='[1]Rapport 5'!G89 -> 264 | H89: ='[1]Rapport 5'!H89 -> HAUT RHIN | I89: ='[1]Rapport 5'!I89 -> 2116.99 | J89: ='[1]Rapport 5'!J89 -> 74.95 | K89: ='[1]Rapport 5'!K89 -> 0 | L89: ='[1]Rapport 5'!L89 -> 0 | M89: ='[1]Rapport 5'!M89 -> 39073.12 | N89: ='[1]Rapport 5'!N89 -> 943.28 | O89: ='[1]Rapport 5'!O89 -> 542 | P89: ='[1]Rapport 5'!P89 -> 0 | Q89: ='[1]Rapport 5'!Q89 -> 0 | R89: ='[1]Rapport 5'!R89 -> 0 | S89: ='[1]Rapport 5'!S89 -> 46 | T89: ='[1]Rapport 5'!T89 -> 0 | U89: ='[1]Rapport 5'!U89 -> 1877.81 | V89: ='[1]Rapport 5'!V89 -> 0 | W89: ='[1]Rapport 5'!W89 -> 2379.59 | X89: ='[1]Rapport 5'!X89 -> 0 | Y89: 46,036 | Z89: 1,018 | AA89: 2.2% | AB89: 32 | AC89: =1+(AB89/COUNT($AB$3:AB$320)*10) -> 2.006289308 | AD89: 2 | AE89: 75 | AF89: 3.5% | AG89: 136 | AH89: 5.27672956 | AI89: 5 | AJ89: 0 | AK89: 0.0% | AL89: 1 | AM89: 1.031446541 | AN89: 1 | AO89: 943 | AP89: 2.4% | AQ89: 93 | AR89: 3.924528302 | AS89: 3 | AT89: 0 | AU89: 0.0% | AV89: 1 | AW89: 1.031446541 | AX89: 1 | AY89: 0 | AZ89: 0.0% | BA89: 1 | BB89: 1.031446541 | BC89: 1 | BD89: 0 | BE89: 0.0% | BF89: 1 | BG89: 1.031446541 | BH89: 1 | BI89: 0 | BJ89: 0.0% | BK89: 1 | BL89: 1.031446541 | BM89: 1 | BN89: 0 | BO89: 0.0% | BP89: 1 | BQ89: 1.031446541 | BR89: 1 | BT89: 148 | BU89: -15
A90: ='[1]Rapport 5'!A90 -> 164 | B90: ='[1]Rapport 5'!B90 -> SAINTE MARIE AUX MINES | C90: ='[1]Rapport 5'!C90 -> 4164 | D90: ='[1]Rapport 5'!D90 -> SAINTE MARIE AUX MINES | E90: ='[1]Rapport 5'!E90 -> 5130 | F90: ='[1]Rapport 5'!F90 -> COLMAR | G90: ='[1]Rapport 5'!G90 -> 264 | H90: ='[1]Rapport 5'!H90 -> HAUT RHIN | I90: ='[1]Rapport 5'!I90 -> 3850.3 | J90: ='[1]Rapport 5'!J90 -> 94.91 | K90: ='[1]Rapport 5'!K90 -> 0 | L90: ='[1]Rapport 5'!L90 -> 114.2 | M90: ='[1]Rapport 5'!M90 -> 92871.86 | N90: ='[1]Rapport 5'!N90 -> 1955.87 | O90: ='[1]Rapport 5'!O90 -> 2789 | P90: ='[1]Rapport 5'!P90 -> 85 | Q90: ='[1]Rapport 5'!Q90 -> 0 | R90: ='[1]Rapport 5'!R90 -> 0 | S90: ='[1]Rapport 5'!S90 -> 137 | T90: ='[1]Rapport 5'!T90 -> 0 | U90: ='[1]Rapport 5'!U90 -> 7785.33 | V90: ='[1]Rapport 5'!V90 -> 1070 | W90: ='[1]Rapport 5'!W90 -> 4520.54 | X90: ='[1]Rapport 5'!X90 -> 62.68 | Y90: 111,954 | Z90: 3,383 | AA90: 3.0% | AB90: 81 | AC90: =1+(AB90/COUNT($AB$3:AB$320)*10) -> 3.547169811 | AD90: 3 | AE90: 95 | AF90: 2.5% | AG90: 79 | AH90: 3.48427673 | AI90: 3 | AJ90: 114 | AK90: 100.0% | AL90: 291 | AM90: 10.1509434 | AN90: 10 | AO90: 1,956 | AP90: 2.1% | AQ90: 67 | AR90: 3.106918239 | AS90: 3 | AT90: 85 | AU90: 3.0% | AV90: 139 | AW90: 5.371069182 | AX90: 5 | AY90: 0 | AZ90: 0.0% | BA90: 1 | BB90: 1.031446541 | BC90: 1 | BD90: 0 | BE90: 0.0% | BF90: 1 | BG90: 1.031446541 | BH90: 1 | BI90: 1,070 | BJ90: 13.7% | BK90: 211 | BL90: 7.635220126 | BM90: 7 | BN90: 63 | BO90: 1.4% | BP90: 82 | BQ90: 3.578616352 | BR90: 3 | BT90: 152 | BU90: -12
A91: ='[1]Rapport 5'!A91 -> 170 | B91: ='[1]Rapport 5'!B91 -> MULHOUSE REUNION | C91: ='[1]Rapport 5'!C91 -> 4170 | D91: ='[1]Rapport 5'!D91 -> MULHOUSE REUNION | E91: ='[1]Rapport 5'!E91 -> 5169 | F91: ='[1]Rapport 5'!F91 -> MULHOUSE | G91: ='[1]Rapport 5'!G91 -> 264 | H91: ='[1]Rapport 5'!H91 -> HAUT RHIN | I91: ='[1]Rapport 5'!I91 -> 20682.06 | J91: ='[1]Rapport 5'!J91 -> 547.74 | K91: ='[1]Rapport 5'!K91 -> 0 | L91: ='[1]Rapport 5'!L91 -> 160 | M91: ='[1]Rapport 5'!M91 -> 426920.11 | N91: ='[1]Rapport 5'!N91 -> 11148.19 | O91: ='[1]Rapport 5'!O91 -> 14910.5 | P91: ='[1]Rapport 5'!P91 -> 486.84 | Q91: ='[1]Rapport 5'!Q91 -> 119.62 | R91: ='[1]Rapport 5'!R91 -> 0 | S91: ='[1]Rapport 5'!S91 -> 2223.77 | T91: ='[1]Rapport 5'!T91 -> 102.13 | U91: ='[1]Rapport 5'!U91 -> 40350.17 | V91: ='[1]Rapport 5'!V91 -> 1544.85 | W91: ='[1]Rapport 5'!W91 -> 18076.53 | X91: ='[1]Rapport 5'!X91 -> 627.43 | Y91: 523,283 | Z91: 14,617 | AA91: 2.8% | AB91: 60 | AC91: =1+(AB91/COUNT($AB$3:AB$320)*10) -> 2.886792453 | AD91: 2 | AE91: 548 | AF91: 2.6% | AG91: 91 | AH91: 3.86163522 | AI91: 3 | AJ91: 160 | AK91: 100.0% | AL91: 291 | AM91: 10.1509434 | AN91: 10 | AO91: 11,148 | AP91: 2.6% | AQ91: 114 | AR91: 4.58490566 | AS91: 4 | AT91: 487 | AU91: 3.3% | AV91: 148 | AW91: 5.65408805 | AX91: 5 | AY91: 0 | AZ91: 0.0% | BA91: 1 | BB91: 1.031446541 | BC91: 1 | BD91: 102 | BE91: 4.6% | BF91: 253 | BG91: 8.955974843 | BH91: 8 | BI91: 1,545 | BJ91: 3.8% | BK91: 53 | BL91: 2.666666667 | BM91: 2 | BN91: 627 | BO91: 3.5% | BP91: 178 | BQ91: 6.597484277 | BR91: 6 | BT91: 153 | BU91: -17
A92: ='[1]Rapport 5'!A93 -> 174 | B92: ='[1]Rapport 5'!B93 -> MULHOUSE DORNACH | C92: ='[1]Rapport 5'!C93 -> 4174 | D92: ='[1]Rapport 5'!D93 -> MULHOUSE DORNACH | E92: ='[1]Rapport 5'!E93 -> 5169 | F92: ='[1]Rapport 5'!F93 -> MULHOUSE | G92: ='[1]Rapport 5'!G93 -> 264 | H92: ='[1]Rapport 5'!H93 -> HAUT RHIN | I92: ='[1]Rapport 5'!I93 -> 6384.62 | J92: ='[1]Rapport 5'!J93 -> 131.95 | K92: ='[1]Rapport 5'!K93 -> 0 | L92: ='[1]Rapport 5'!L93 -> 0 | M92: ='[1]Rapport 5'!M93 -> 149505.22 | N92: ='[1]Rapport 5'!N93 -> 3510.52 | O92: ='[1]Rapport 5'!O93 -> 2353 | P92: ='[1]Rapport 5'!P93 -> 188.5 | Q92: ='[1]Rapport 5'!Q93 -> 0 | R92: ='[1]Rapport 5'!R93 -> 0 | S92: ='[1]Rapport 5'!S93 -> 509.78 | T92: ='[1]Rapport 5'!T93 -> 13 | U92: ='[1]Rapport 5'!U93 -> 11024.97 | V92: ='[1]Rapport 5'!V93 -> 1115.88 | W92: ='[1]Rapport 5'!W93 -> 4503.05 | X92: ='[1]Rapport 5'!X93 -> 158.66 | Y92: 174,281 | Z92: 5,119 | AA92: 2.9% | AB92: 74 | AC92: =1+(AB92/COUNT($AB$3:AB$320)*10) -> 3.327044025 | AD92: 3 | AE92: 132 | AF92: 2.1% | AG92: 60 | AH92: 2.886792453 | AI92: 2 | AJ92: 0 | AK92: 0.0% | AL92: 1 | AM92: 1.031446541 | AN92: 1 | AO92: 3,511 | AP92: 2.3% | AQ92: 84 | AR92: 3.641509434 | AS92: 3 | AT92: 189 | AU92: 8.0% | AV92: 231 | AW92: 8.264150943 | AX92: 8 | AY92: 0 | AZ92: 0.0% | BA92: 1 | BB92: 1.031446541 | BC92: 1 | BD92: 13 | BE92: 2.6% | BF92: 241 | BG92: 8.578616352 | BH92: 8 | BI92: 1,116 | BJ92: 10.1% | BK92: 155 | BL92: 5.874213836 | BM92: 5 | BN92: 159 | BO92: 3.5% | BP92: 181 | BQ92: 6.691823899 | BR92: 6 | BT92: 156 | BU92: -18
A93: ='[1]Rapport 5'!A94 -> 178 | B93: ='[1]Rapport 5'!B94 -> SAINT LOUIS | C93: ='[1]Rapport 5'!C94 -> 4178 | D93: ='[1]Rapport 5'!D94 -> SAINT LOUIS | E93: ='[1]Rapport 5'!E94 -> 5169 | F93: ='[1]Rapport 5'!F94 -> MULHOUSE | G93: ='[1]Rapport 5'!G94 -> 264 | H93: ='[1]Rapport 5'!H94 -> HAUT RHIN | I93: ='[1]Rapport 5'!I94 -> 9737.65 | J93: ='[1]Rapport 5'!J94 -> 952.28 | K93: ='[1]Rapport 5'!K94 -> 0 | L93: ='[1]Rapport 5'!L94 -> 0 | M93: ='[1]Rapport 5'!M94 -> 234286.24 | N93: ='[1]Rapport 5'!N94 -> 5494.01 | O93: ='[1]Rapport 5'!O94 -> 5312.5 | P93: ='[1]Rapport 5'!P94 -> 171.7 | Q93: ='[1]Rapport 5'!Q94 -> 0 | R93: ='[1]Rapport 5'!R94 -> 0 | S93: ='[1]Rapport 5'!S94 -> 1232.03 | T93: ='[1]Rapport 5'!T94 -> 72.16 | U93: ='[1]Rapport 5'!U94 -> 18347.98 | V93: ='[1]Rapport 5'!V94 -> 1011.51 | W93: ='[1]Rapport 5'!W94 -> 9335.47 | X93: ='[1]Rapport 5'!X94 -> 28 | Y93: 278,252 | Z93: 7,730 | AA93: 2.8% | AB93: 57 | AC93: =1+(AB93/COUNT($AB$3:AB$320)*10) -> 2.79245283 | AD93: 2 | AE93: 952 | AF93: 9.8% | AG93: 273 | AH93: 9.58490566 | AI93: 9 | AJ93: 0 | AK93: 0.0% | AL93: 1 | AM93: 1.031446541 | AN93: 1 | AO93: 5,494 | AP93: 2.3% | AQ93: 83 | AR93: 3.610062893 | AS93: 3 | AT93: 172 | AU93: 3.2% | AV93: 145 | AW93: 5.559748428 | AX93: 5 | AY93: 0 | AZ93: 0.0% | BA93: 1 | BB93: 1.031446541 | BC93: 1 | BD93: 72 | BE93: 5.9% | BF93: 259 | BG93: 9.144654088 | BH93: 9 | BI93: 1,012 | BJ93: 5.5% | BK93: 77 | BL93: 3.421383648 | BM93: 3 | BN93: 28 | BO93: 0.3% | BP93: 28 | BQ93: 1.880503145 | BR93: 1 | BT93: 157 | BU93: -21
A94: ='[1]Rapport 5'!A96 -> 180 | B94: ='[1]Rapport 5'!B96 -> RIEDISHEIM | C94: ='[1]Rapport 5'!C96 -> 4180 | D94: ='[1]Rapport 5'!D96 -> RIEDISHEIM | E94: ='[1]Rapport 5'!E96 -> 5169 | F94: ='[1]Rapport 5'!F96 -> MULHOUSE | G94: ='[1]Rapport 5'!G96 -> 264 | H94: ='[1]Rapport 5'!H96 -> HAUT RHIN | I94: ='[1]Rapport 5'!I96 -> 4392.63 | J94: ='[1]Rapport 5'!J96 -> 240.1 | K94: ='[1]Rapport 5'!K96 -> 0 | L94: ='[1]Rapport 5'!L96 -> 128.97 | M94: ='[1]Rapport 5'!M96 -> 111601.63 | N94: ='[1]Rapport 5'!N96 -> 3941.6 | O94: ='[1]Rapport 5'!O96 -> 2801.5 | P94: ='[1]Rapport 5'!P96 -> 250 | Q94: ='[1]Rapport 5'!Q96 -> 0 | R94: ='[1]Rapport 5'!R96 -> 0 | S94: ='[1]Rapport 5'!S96 -> 980.41 | T94: ='[1]Rapport 5'!T96 -> 13 | U94: ='[1]Rapport 5'!U96 -> 7371.55 | V94: ='[1]Rapport 5'!V96 -> 226.57 | W94: ='[1]Rapport 5'!W96 -> 8314.02 | X94: ='[1]Rapport 5'!X96 -> 552.9 | Y94: 135,462 | Z94: 5,353 | AA94: 4.0% | AB94: 181 | AC94: =1+(AB94/COUNT($AB$3:AB$320)*10) -> 6.691823899 | AD94: 6 | AE94: 240 | AF94: 5.5% | AG94: 213 | AH94: 7.698113208 | AI94: 7 | AJ94: 129 | AK94: 100.0% | AL94: 291 | AM94: 10.1509434 | AN94: 10 | AO94: 3,942 | AP94: 3.5% | AQ94: 211 | AR94: 7.635220126 | AS94: 7 | AT94: 250 | AU94: 8.9% | AV94: 239 | AW94: 8.51572327 | AX94: 8 | AY94: 0 | AZ94: 0.0% | BA94: 1 | BB94: 1.031446541 | BC94: 1 | BD94: 13 | BE94: 1.3% | BF94: 236 | BG94: 8.421383648 | BH94: 8 | BI94: 227 | BJ94: 3.1% | BK94: 38 | BL94: 2.194968553 | BM94: 2 | BN94: 553 | BO94: 6.7% | BP94: 257 | BQ94: 9.081761006 | BR94: 9 | BT94: 160 | BU94: -20
A95: ='[1]Rapport 5'!A97 -> 181 | B95: ='[1]Rapport 5'!B97 -> WITTELSHEIM | C95: ='[1]Rapport 5'!C97 -> 4181 | D95: ='[1]Rapport 5'!D97 -> WITTELSHEIM | E95: ='[1]Rapport 5'!E97 -> 5169 | F95: ='[1]Rapport 5'!F97 -> MULHOUSE | G95: ='[1]Rapport 5'!G97 -> 264 | H95: ='[1]Rapport 5'!H97 -> HAUT RHIN | I95: ='[1]Rapport 5'!I97 -> 6436.77 | J95: ='[1]Rapport 5'!J97 -> 240.31 | K95: ='[1]Rapport 5'!K97 -> 0 | L95: ='[1]Rapport 5'!L97 -> 0 | M95: ='[1]Rapport 5'!M97 -> 152246.68 | N95: ='[1]Rapport 5'!N97 -> 5199.46 | O95: ='[1]Rapport 5'!O97 -> 4219.5 | P95: ='[1]Rapport 5'!P97 -> 219 | Q95: ='[1]Rapport 5'!Q97 -> 0 | R95: ='[1]Rapport 5'!R97 -> 0 | S95: ='[1]Rapport 5'!S97 -> 114 | T95: ='[1]Rapport 5'!T97 -> 0 | U95: ='[1]Rapport 5'!U97 -> 7851.89 | V95: ='[1]Rapport 5'!V97 -> 752.74 | W95: ='[1]Rapport 5'!W97 -> 3967.14 | X95: ='[1]Rapport 5'!X97 -> 243.49 | Y95: 174,836 | Z95: 6,655 | AA95: 3.8% | AB95: 160 | AC95: =1+(AB95/COUNT($AB$3:AB$320)*10) -> 6.031446541 | AD95: 6 | AE95: 240 | AF95: 3.7% | AG95: 153 | AH95: 5.811320755 | AI95: 5 | AJ95: 0 | AK95: 0.0% | AL95: 1 | AM95: 1.031446541 | AN95: 1 | AO95: 5,199 | AP95: 3.4% | AQ95: 203 | AR95: 7.383647799 | AS95: 7 | AT95: 219 | AU95: 5.2% | AV95: 193 | AW95: 7.06918239 | AX95: 7 | AY95: 0 | AZ95: 0.0% | BA95: 1 | BB95: 1.031446541 | BC95: 1 | BD95: 0 | BE95: 0.0% | BF95: 1 | BG95: 1.031446541 | BH95: 1 | BI95: 753 | BJ95: 9.6% | BK95: 148 | BL95: 5.65408805 | BM95: 5 | BN95: 243 | BO95: 6.1% | BP95: 250 | BQ95: 8.86163522 | BR95: 8 | BT95: 162 | BU95: -19
A96: ='[1]Rapport 5'!A98 -> 183 | B96: ='[1]Rapport 5'!B98 -> WITTENHEIM | C96: ='[1]Rapport 5'!C98 -> 4183 | D96: ='[1]Rapport 5'!D98 -> WITTENHEIM | E96: ='[1]Rapport 5'!E98 -> 5169 | F96: ='[1]Rapport 5'!F98 -> MULHOUSE | G96: ='[1]Rapport 5'!G98 -> 264 | H96: ='[1]Rapport 5'!H98 -> HAUT RHIN | I96: ='[1]Rapport 5'!I98 -> 3160.09 | J96: ='[1]Rapport 5'!J98 -> 38.26 | K96: ='[1]Rapport 5'!K98 -> 0 | L96: ='[1]Rapport 5'!L98 -> 0 | M96: ='[1]Rapport 5'!M98 -> 97485.82 | N96: ='[1]Rapport 5'!N98 -> 1116.34 | O96: ='[1]Rapport 5'!O98 -> 3662 | P96: ='[1]Rapport 5'!P98 -> 0 | Q96: ='[1]Rapport 5'!Q98 -> 0 | R96: ='[1]Rapport 5'!R98 -> 0 | S96: ='[1]Rapport 5'!S98 -> 241 | T96: ='[1]Rapport 5'!T98 -> 0 | U96: ='[1]Rapport 5'!U98 -> 3677.78 | V96: ='[1]Rapport 5'!V98 -> 293.95 | W96: ='[1]Rapport 5'!W98 -> 4639.4 | X96: ='[1]Rapport 5'!X98 -> 0 | Y96: 112,866 | Z96: 1,449 | AA96: 1.3% | AB96: 11 | AC96: =1+(AB96/COUNT($AB$3:AB$320)*10) -> 1.34591195 | AD96: 1 | AE96: 38 | AF96: 1.2% | AG96: 28 | AH96: 1.880503145 | AI96: 1 | AJ96: 0 | AK96: 0.0% | AL96: 1 | AM96: 1.031446541 | AN96: 1 | AO96: 1,116 | AP96: 1.1% | AQ96: 12 | AR96: 1.377358491 | AS96: 1 | AT96: 0 | AU96: 0.0% | AV96: 1 | AW96: 1.031446541 | AX96: 1 | AY96: 0 | AZ96: 0.0% | BA96: 1 | BB96: 1.031446541 | BC96: 1 | BD96: 0 | BE96: 0.0% | BF96: 1 | BG96: 1.031446541 | BH96: 1 | BI96: 294 | BJ96: 8.0% | BK96: 124 | BL96: 4.899371069 | BM96: 4 | BN96: 0 | BO96: 0.0% | BP96: 1 | BQ96: 1.031446541 | BR96: 1 | BT96: 163 | BU96: -20
A97: ='[1]Rapport 5'!A99 -> 184 | B97: ='[1]Rapport 5'!B99 -> ILLZACH | C97: ='[1]Rapport 5'!C99 -> 4183 | D97: ='[1]Rapport 5'!D99 -> WITTENHEIM | E97: ='[1]Rapport 5'!E99 -> 5169 | F97: ='[1]Rapport 5'!F99 -> MULHOUSE | G97: ='[1]Rapport 5'!G99 -> 264 | H97: ='[1]Rapport 5'!H99 -> HAUT RHIN | I97: ='[1]Rapport 5'!I99 -> 5507.91 | J97: ='[1]Rapport 5'!J99 -> 235.05 | K97: ='[1]Rapport 5'!K99 -> 0 | L97: ='[1]Rapport 5'!L99 -> 0 | M97: ='[1]Rapport 5'!M99 -> 131616.93 | N97: ='[1]Rapport 5'!N99 -> 1906.8 | O97: ='[1]Rapport 5'!O99 -> 2828.5 | P97: ='[1]Rapport 5'!P99 -> 198.5 | Q97: ='[1]Rapport 5'!Q99 -> 0 | R97: ='[1]Rapport 5'!R99 -> 0 | S97: ='[1]Rapport 5'!S99 -> 684.74 | T97: ='[1]Rapport 5'!T99 -> 0 | U97: ='[1]Rapport 5'!U99 -> 6170.63 | V97: ='[1]Rapport 5'!V99 -> 395.55 | W97: ='[1]Rapport 5'!W99 -> 4645.06 | X97: ='[1]Rapport 5'!X99 -> 0 | Y97: 151,454 | Z97: 2,736 | AA97: 1.8% | AB97: 17 | AC97: =1+(AB97/COUNT($AB$3:AB$320)*10) -> 1.534591195 | AD97: 1 | AE97: 235 | AF97: 4.3% | AG97: 175 | AH97: 6.503144654 | AI97: 6 | AJ97: 0 | AK97: 0.0% | AL97: 1 | AM97: 1.031446541 | AN97: 1 | AO97: 1,907 | AP97: 1.4% | AQ97: 22 | AR97: 1.691823899 | AS97: 1 | AT97: 199 | AU97: 7.0% | AV97: 217 | AW97: 7.823899371 | AX97: 7 | AY97: 0 | AZ97: 0.0% | BA97: 1 | BB97: 1.031446541 | BC97: 1 | BD97: 0 | BE97: 0.0% | BF97: 1 | BG97: 1.031446541 | BH97: 1 | BI97: 396 | BJ97: 6.4% | BK97: 99 | BL97: 4.113207547 | BM97: 4 | BN97: 0 | BO97: 0.0% | BP97: 1 | BQ97: 1.031446541 | BR97: 1 | BT97: 164 | BU97: -20
A98: ='[1]Rapport 5'!A100 -> 185 | B98: ='[1]Rapport 5'!B100 -> RIXHEIM | C98: ='[1]Rapport 5'!C100 -> 4185 | D98: ='[1]Rapport 5'!D100 -> RIXHEIM | E98: ='[1]Rapport 5'!E100 -> 5169 | F98: ='[1]Rapport 5'!F100 -> MULHOUSE | G98: ='[1]Rapport 5'!G100 -> 264 | H98: ='[1]Rapport 5'!H100 -> HAUT RHIN | I98: ='[1]Rapport 5'!I100 -> 5845.57 | J98: ='[1]Rapport 5'!J100 -> 5244.8 | K98: ='[1]Rapport 5'!K100 -> 0 | L98: ='[1]Rapport 5'!L100 -> 0 | M98: ='[1]Rapport 5'!M100 -> 118597.63 | N98: ='[1]Rapport 5'!N100 -> 2401.43 | O98: ='[1]Rapport 5'!O100 -> 4907 | P98: ='[1]Rapport 5'!P100 -> 117.5 | Q98: ='[1]Rapport 5'!Q100 -> 0 | R98: ='[1]Rapport 5'!R100 -> 0 | S98: ='[1]Rapport 5'!S100 -> 328.48 | T98: ='[1]Rapport 5'!T100 -> 0 | U98: ='[1]Rapport 5'!U100 -> 7116.9 | V98: ='[1]Rapport 5'!V100 -> 50 | W98: ='[1]Rapport 5'!W100 -> 5699.04 | X98: ='[1]Rapport 5'!X100 -> 37.3 | Y98: 142,495 | Z98: 7,851 | AA98: 5.5% | AB98: 278 | AC98: =1+(AB98/COUNT($AB$3:AB$320)*10) -> 9.742138365 | AD98: 9 | AE98: =+J98 -> 5,245 | AF98: 89.7% | AG98: 318 | AH98: 11 | AI98: 10 | AJ98: 0 | AK98: 0.0% | AL98: 1 | AM98: 1.031446541 | AN98: 1 | AO98: 2,401 | AP98: 2.0% | AQ98: 63 | AR98: 2.981132075 | AS98: 2 | AT98: 118 | AU98: 2.4% | AV98: 126 | AW98: 4.962264151 | AX98: 4 | AY98: 0 | AZ98: 0.0% | BA98: 1 | BB98: 1.031446541 | BC98: 1 | BD98: 0 | BE98: 0.0% | BF98: 1 | BG98: 1.031446541 | BH98: 1 | BI98: 50 | BJ98: 0.7% | BK98: 19 | BL98: 1.597484277 | BM98: 1 | BN98: 37 | BO98: 0.7% | BP98: 40 | BQ98: 2.257861635 | BR98: 2 | BT98: 167 | BU98: -18
A99: ='[1]Rapport 5'!A101 -> 186 | B99: ='[1]Rapport 5'!B101 -> BRUNSTATT | C99: ='[1]Rapport 5'!C101 -> 4174 | D99: ='[1]Rapport 5'!D101 -> MULHOUSE DORNACH | E99: ='[1]Rapport 5'!E101 -> 5169 | F99: ='[1]Rapport 5'!F101 -> MULHOUSE | G99: ='[1]Rapport 5'!G101 -> 264 | H99: ='[1]Rapport 5'!H101 -> HAUT RHIN | I99: ='[1]Rapport 5'!I101 -> 3350.61 | J99: ='[1]Rapport 5'!J101 -> 123.08 | K99: ='[1]Rapport 5'!K101 -> 0 | L99: ='[1]Rapport 5'!L101 -> 15 | M99: ='[1]Rapport 5'!M101 -> 84825.55 | N99: ='[1]Rapport 5'!N101 -> 2766.16 | O99: ='[1]Rapport 5'!O101 -> 3121.5 | P99: ='[1]Rapport 5'!P101 -> 0 | Q99: ='[1]Rapport 5'!Q101 -> 0 | R99: ='[1]Rapport 5'!R101 -> 0 | S99: ='[1]Rapport 5'!S101 -> 555 | T99: ='[1]Rapport 5'!T101 -> 0 | U99: ='[1]Rapport 5'!U101 -> 4587.66 | V99: ='[1]Rapport 5'!V101 -> 304.42 | W99: ='[1]Rapport 5'!W101 -> 4918.74 | X99: ='[1]Rapport 5'!X101 -> 372.24 | Y99: 101,359 | Z99: 3,581 | AA99: 3.5% | AB99: 125 | AC99: =1+(AB99/COUNT($AB$3:AB$320)*10) -> 4.93081761 | AD99: 4 | AE99: 123 | AF99: 3.7% | AG99: 144 | AH99: 5.528301887 | AI99: 5 | AJ99: 15 | AK99: 100.0% | AL99: 291 | AM99: 10.1509434 | AN99: 10 | AO99: 2,766 | AP99: 3.3% | AQ99: 187 | AR99: 6.880503145 | AS99: 6 | AT99: 0 | AU99: 0.0% | AV99: 1 | AW99: 1.031446541 | AX99: 1 | AY99: 0 | AZ99: 0.0% | BA99: 1 | BB99: 1.031446541 | BC99: 1 | BD99: 0 | BE99: 0.0% | BF99: 1 | BG99: 1.031446541 | BH99: 1 | BI99: 304 | BJ99: 6.6% | BK99: 102 | BL99: 4.20754717 | BM99: 4 | BN99: 372 | BO99: 7.6% | BP99: 270 | BQ99: 9.490566038 | BR99: 9 | BT99: 169 | BU99: -17
A100: ='[1]Rapport 5'!A102 -> 188 | B100: ='[1]Rapport 5'!B102 -> PFASTATT | C100: ='[1]Rapport 5'!C102 -> 4188 | D100: ='[1]Rapport 5'!D102 -> PFASTATT | E100: ='[1]Rapport 5'!E102 -> 5169 | F100: ='[1]Rapport 5'!F102 -> MULHOUSE | G100: ='[1]Rapport 5'!G102 -> 264 | H100: ='[1]Rapport 5'!H102 -> HAUT RHIN | I100: ='[1]Rapport 5'!I102 -> 7031.96 | J100: ='[1]Rapport 5'!J102 -> 453.38 | K100: ='[1]Rapport 5'!K102 -> 0 | L100: ='[1]Rapport 5'!L102 -> 0 | M100: ='[1]Rapport 5'!M102 -> 148220.17 | N100: ='[1]Rapport 5'!N102 -> 7323.14 | O100: ='[1]Rapport 5'!O102 -> 3911.5 | P100: ='[1]Rapport 5'!P102 -> 1570.92 | Q100: ='[1]Rapport 5'!Q102 -> 0 | R100: ='[1]Rapport 5'!R102 -> 0 | S100: ='[1]Rapport 5'!S102 -> 695.1 | T100: ='[1]Rapport 5'!T102 -> 6.76 | U100: ='[1]Rapport 5'!U102 -> 12479.54 | V100: ='[1]Rapport 5'!V102 -> 610.62 | W100: ='[1]Rapport 5'!W102 -> 5813.29 | X100: ='[1]Rapport 5'!X102 -> 140 | Y100: 178,152 | Z100: 10,105 | AA100: 5.7% | AB100: 284 | AC100: =1+(AB100/COUNT($AB$3:AB$320)*10) -> 9.93081761 | AD100: 9 | AE100: 453 | AF100: 6.4% | AG100: 236 | AH100: 8.421383648 | AI100: 8 | AJ100: 0 | AK100: 0.0% | AL100: 1 | AM100: 1.031446541 | AN100: 1 | AO100: 7,323 | AP100: 4.9% | AQ100: 292 | AR100: 10.18238994 | AS100: 10 | AT100: 1,571 | AU100: 40.2% | AV100: 316 | AW100: 10.93710692 | AX100: 10 | AY100: 0 | AZ100: 0.0% | BA100: 1 | BB100: 1.031446541 | BC100: 1 | BD100: 7 | BE100: 1.0% | BF100: 235 | BG100: 8.389937107 | BH100: 8 | BI100: 611 | BJ100: 4.9% | BK100: 68 | BL100: 3.13836478 | BM100: 3 | BN100: 140 | BO100: 2.4% | BP100: 129 | BQ100: 5.056603774 | BR100: 5 | BT100: 170 | BU100: -18
A101: ='[1]Rapport 5'!A103 -> 189 | B101: ='[1]Rapport 5'!B103 -> ALTKIRCH | C101: ='[1]Rapport 5'!C103 -> 4189 | D101: ='[1]Rapport 5'!D103 -> ALTKIRCH | E101: ='[1]Rapport 5'!E103 -> 5169 | F101: ='[1]Rapport 5'!F103 -> MULHOUSE | G101: ='[1]Rapport 5'!G103 -> 264 | H101: ='[1]Rapport 5'!H103 -> HAUT RHIN | I101: ='[1]Rapport 5'!I103 -> 4813.3 | J101: ='[1]Rapport 5'!J103 -> 521.13 | K101: ='[1]Rapport 5'!K103 -> 0 | L101: ='[1]Rapport 5'!L103 -> 0 | M101: ='[1]Rapport 5'!M103 -> 113926.51 | N101: ='[1]Rapport 5'!N103 -> 6711.1 | O101: ='[1]Rapport 5'!O103 -> 2692 | P101: ='[1]Rapport 5'!P103 -> 303.54 | Q101: ='[1]Rapport 5'!Q103 -> 0 | R101: ='[1]Rapport 5'!R103 -> 0 | S101: ='[1]Rapport 5'!S103 -> 344.56 | T101: ='[1]Rapport 5'!T103 -> 150 | U101: ='[1]Rapport 5'!U103 -> 8562.73 | V101: ='[1]Rapport 5'!V103 -> 1712.31 | W101: ='[1]Rapport 5'!W103 -> 9453.67 | X101: ='[1]Rapport 5'!X103 -> 2332.33 | Y101: 139,793 | Z101: 11,730 | AA101: 8.4% | AB101: 317 | AC101: =1+(AB101/COUNT($AB$3:AB$320)*10) -> 10.96855346 | AD101: 10 | AE101: 521 | AF101: 10.8% | AG101: 280 | AH101: 9.805031447 | AI101: 9 | AJ101: 0 | AK101: 0.0% | AL101: 1 | AM101: 1.031446541 | AN101: 1 | AO101: 6,711 | AP101: 5.9% | AQ101: 309 | AR101: 10.71698113 | AS101: 10 | AT101: 304 | AU101: 11.3% | AV101: 257 | AW101: 9.081761006 | AX101: 9 | AY101: 0 | AZ101: 0.0% | BA101: 1 | BB101: 1.031446541 | BC101: 1 | BD101: 150 | BE101: 43.5% | BF101: 312 | BG101: 10.81132075 | BH101: 10 | BI101: 1,712 | BJ101: 20.0% | BK101: 262 | BL101: 9.238993711 | BM101: 9 | BN101: 2,332 | BO101: 24.7% | BP101: 317 | BQ101: 10.96855346 | BR101: 10 | BT101: 174 | BU101: -15
A102: ='[1]Rapport 5'!A104 -> 191 | B102: ='[1]Rapport 5'!B104 -> FERRETTE | C102: ='[1]Rapport 5'!C104 -> 4189 | D102: ='[1]Rapport 5'!D104 -> ALTKIRCH | E102: ='[1]Rapport 5'!E104 -> 5169 | F102: ='[1]Rapport 5'!F104 -> MULHOUSE | G102: ='[1]Rapport 5'!G104 -> 264 | H102: ='[1]Rapport 5'!H104 -> HAUT RHIN | I102: ='[1]Rapport 5'!I104 -> 2611.18 | J102: ='[1]Rapport 5'!J104 -> 95.05 | K102: ='[1]Rapport 5'!K104 -> 0 | L102: ='[1]Rapport 5'!L104 -> 0 | M102: ='[1]Rapport 5'!M104 -> 33433.03 | N102: ='[1]Rapport 5'!N104 -> 1374.09 | O102: ='[1]Rapport 5'!O104 -> 2508.5 | P102: ='[1]Rapport 5'!P104 -> 0 | Q102: ='[1]Rapport 5'!Q104 -> 0 | R102: ='[1]Rapport 5'!R104 -> 0 | S102: ='[1]Rapport 5'!S104 -> 55.58 | T102: ='[1]Rapport 5'!T104 -> 0 | U102: ='[1]Rapport 5'!U104 -> 2434.77 | V102: ='[1]Rapport 5'!V104 -> 62.05 | W102: ='[1]Rapport 5'!W104 -> 1468.31 | X102: ='[1]Rapport 5'!X104 -> 359.54 | Y102: 42,511 | Z102: 1,891 | AA102: 4.4% | AB102: 218 | AC102: =1+(AB102/COUNT($AB$3:AB$320)*10) -> 7.855345912 | AD102: 7 | AE102: 95 | AF102: 3.6% | AG102: 141 | AH102: 5.433962264 | AI102: 5 | AJ102: 0 | AK102: 0.0% | AL102: 1 | AM102: 1.031446541 | AN102: 1 | AO102: 1,374 | AP102: 4.1% | AQ102: 253 | AR102: 8.955974843 | AS102: 8 | AT102: 0 | AU102: 0.0% | AV102: 1 | AW102: 1.031446541 | AX102: 1 | AY102: 0 | AZ102: 0.0% | BA102: 1 | BB102: 1.031446541 | BC102: 1 | BD102: 0 | BE102: 0.0% | BF102: 1 | BG102: 1.031446541 | BH102: 1 | BI102: 62 | BJ102: 2.5% | BK102: 34 | BL102: 2.06918239 | BM102: 2 | BN102: 360 | BO102: 24.5% | BP102: 316 | BQ102: 10.93710692 | BR102: 10 | BT102: 178 | BU102: -13
A103: ='[1]Rapport 5'!A105 -> 192 | B103: ='[1]Rapport 5'!B105 -> SEPPOIS LE BAS | C103: ='[1]Rapport 5'!C105 -> 4189 | D103: ='[1]Rapport 5'!D105 -> ALTKIRCH | E103: ='[1]Rapport 5'!E105 -> 5169 | F103: ='[1]Rapport 5'!F105 -> MULHOUSE | G103: ='[1]Rapport 5'!G105 -> 264 | H103: ='[1]Rapport 5'!H105 -> HAUT RHIN | I103: ='[1]Rapport 5'!I105 -> 2742.33 | J103: ='[1]Rapport 5'!J105 -> 21.94 | K103: ='[1]Rapport 5'!K105 -> 0 | L103: ='[1]Rapport 5'!L105 -> 0 | M103: ='[1]Rapport 5'!M105 -> 39210.15 | N103: ='[1]Rapport 5'!N105 -> 557.63 | O103: ='[1]Rapport 5'!O105 -> 3573 | P103: ='[1]Rapport 5'!P105 -> 0 | Q103: ='[1]Rapport 5'!Q105 -> 0 | R103: ='[1]Rapport 5'!R105 -> 0 | S103: ='[1]Rapport 5'!S105 -> 166 | T103: ='[1]Rapport 5'!T105 -> 0 | U103: ='[1]Rapport 5'!U105 -> 1509.76 | V103: ='[1]Rapport 5'!V105 -> 110 | W103: ='[1]Rapport 5'!W105 -> 952.17 | X103: ='[1]Rapport 5'!X105 -> 0 | Y103: 48,153 | Z103: 690 | AA103: 1.4% | AB103: 12 | AC103: =1+(AB103/COUNT($AB$3:AB$320)*10) -> 1.377358491 | AD103: 1 | AE103: 22 | AF103: 0.8% | AG103: 17 | AH103: 1.534591195 | AI103: 1 | AJ103: 0 | AK103: 0.0% | AL103: 1 | AM103: 1.031446541 | AN103: 1 | AO103: 558 | AP103: 1.4% | AQ103: 20 | AR103: 1.628930818 | AS103: 1 | AT103: 0 | AU103: 0.0% | AV103: 1 | AW103: 1.031446541 | AX103: 1 | AY103: 0 | AZ103: 0.0% | BA103: 1 | BB103: 1.031446541 | BC103: 1 | BD103: 0 | BE103: 0.0% | BF103: 1 | BG103: 1.031446541 | BH103: 1 | BI103: 110 | BJ103: 7.3% | BK103: 113 | BL103: 4.553459119 | BM103: 4 | BN103: 0 | BO103: 0.0% | BP103: 1 | BQ103: 1.031446541 | BR103: 1 | BT103: 179 | BU103: -13
A104: ='[1]Rapport 5'!A106 -> 193 | B104: ='[1]Rapport 5'!B106 -> DANNEMARIE | C104: ='[1]Rapport 5'!C106 -> 4189 | D104: ='[1]Rapport 5'!D106 -> ALTKIRCH | E104: ='[1]Rapport 5'!E106 -> 5169 | F104: ='[1]Rapport 5'!F106 -> MULHOUSE | G104: ='[1]Rapport 5'!G106 -> 264 | H104: ='[1]Rapport 5'!H106 -> HAUT RHIN | I104: ='[1]Rapport 5'!I106 -> 4412.06 | J104: ='[1]Rapport 5'!J106 -> 176.15 | K104: ='[1]Rapport 5'!K106 -> 0 | L104: ='[1]Rapport 5'!L106 -> 0 | M104: ='[1]Rapport 5'!M106 -> 81950.01 | N104: ='[1]Rapport 5'!N106 -> 4103.47 | O104: ='[1]Rapport 5'!O106 -> 2743 | P104: ='[1]Rapport 5'!P106 -> 1839 | Q104: ='[1]Rapport 5'!Q106 -> 0 | R104: ='[1]Rapport 5'!R106 -> 0 | S104: ='[1]Rapport 5'!S106 -> 65 | T104: ='[1]Rapport 5'!T106 -> 0 | U104: ='[1]Rapport 5'!U106 -> 3174.01 | V104: ='[1]Rapport 5'!V106 -> 638.32 | W104: ='[1]Rapport 5'!W106 -> 3558.19 | X104: ='[1]Rapport 5'!X106 -> 361.15 | Y104: 95,902 | Z104: 7,118 | AA104: 7.4% | AB104: 314 | AC104: =1+(AB104/COUNT($AB$3:AB$320)*10) -> 10.87421384 | AD104: 10 | AE104: 176 | AF104: 4.0% | AG104: 163 | AH104: 6.125786164 | AI104: 6 | AJ104: 0 | AK104: 0.0% | AL104: 1 | AM104: 1.031446541 | AN104: 1 | AO104: 4,103 | AP104: 5.0% | AQ104: 295 | AR104: 10.27672956 | AS104: 10 | AT104: 1,839 | AU104: 67.0% | AV104: 317 | AW104: 10.96855346 | AX104: 10 | AY104: 0 | AZ104: 0.0% | BA104: 1 | BB104: 1.031446541 | BC104: 1 | BD104: 0 | BE104: 0.0% | BF104: 1 | BG104: 1.031446541 | BH104: 1 | BI104: 638 | BJ104: 20.1% | BK104: 264 | BL104: 9.301886792 | BM104: 9 | BN104: 361 | BO104: 10.1% | BP104: 289 | BQ104: 10.08805031 | BR104: 10 | BT104: 180 | BU104: -13
A105: ='[1]Rapport 5'!A107 -> 194 | B105: ='[1]Rapport 5'!B107 -> THANN | C105: ='[1]Rapport 5'!C107 -> 4194 | D105: ='[1]Rapport 5'!D107 -> THANN | E105: ='[1]Rapport 5'!E107 -> 5169 | F105: ='[1]Rapport 5'!F107 -> MULHOUSE | G105: ='[1]Rapport 5'!G107 -> 264 | H105: ='[1]Rapport 5'!H107 -> HAUT RHIN | I105: ='[1]Rapport 5'!I107 -> 7835.13 | J105: ='[1]Rapport 5'!J107 -> 421.79 | K105: ='[1]Rapport 5'!K107 -> 0 | L105: ='[1]Rapport 5'!L107 -> 0 | M105: ='[1]Rapport 5'!M107 -> 172245.8 | N105: ='[1]Rapport 5'!N107 -> 8548.82 | O105: ='[1]Rapport 5'!O107 -> 7573.5 | P105: ='[1]Rapport 5'!P107 -> 873.5 | Q105: ='[1]Rapport 5'!Q107 -> 0 | R105: ='[1]Rapport 5'!R107 -> 0 | S105: ='[1]Rapport 5'!S107 -> 785.12 | T105: ='[1]Rapport 5'!T107 -> 18.25 | U105: ='[1]Rapport 5'!U107 -> 17358.15 | V105: ='[1]Rapport 5'!V107 -> 2615.86 | W105: ='[1]Rapport 5'!W107 -> 7231.12 | X105: ='[1]Rapport 5'!X107 -> 500.76 | Y105: 213,029 | Z105: 12,979 | AA105: 6.1% | AB105: 295 | AC105: =1+(AB105/COUNT($AB$3:AB$320)*10) -> 10.27672956 | AD105: 10 | AE105: 422 | AF105: 5.4% | AG105: 210 | AH105: 7.603773585 | AI105: 7 | AJ105: 0 | AK105: 0.0% | AL105: 1 | AM105: 1.031446541 | AN105: 1 | AO105: 8,549 | AP105: 5.0% | AQ105: 293 | AR105: 10.21383648 | AS105: 10 | AT105: 874 | AU105: 11.5% | AV105: 260 | AW105: 9.176100629 | AX105: 9 | AY105: 0 | AZ105: 0.0% | BA105: 1 | BB105: 1.031446541 | BC105: 1 | BD105: 18 | BE105: 2.3% | BF105: 240 | BG105: 8.547169811 | BH105: 8 | BI105: 2,616 | BJ105: 15.1% | BK105: 226 | BL105: 8.106918239 | BM105: 8 | BN105: 501 | BO105: 6.9% | BP105: 262 | BQ105: 9.238993711 | BR105: 9 | BT105: 181 | BU105: -13
A106: ='[1]Rapport 5'!A108 -> 195 | B106: ='[1]Rapport 5'!B108 -> CERNAY | C106: ='[1]Rapport 5'!C108 -> 4195 | D106: ='[1]Rapport 5'!D108 -> CERNAY | E106: ='[1]Rapport 5'!E108 -> 5169 | F106: ='[1]Rapport 5'!F108 -> MULHOUSE | G106: ='[1]Rapport 5'!G108 -> 264 | H106: ='[1]Rapport 5'!H108 -> HAUT RHIN | I106: ='[1]Rapport 5'!I108 -> 6020.03 | J106: ='[1]Rapport 5'!J108 -> 71.03 | K106: ='[1]Rapport 5'!K108 -> 0 | L106: ='[1]Rapport 5'!L108 -> 0 | M106: ='[1]Rapport 5'!M108 -> 131193.72 | N106: ='[1]Rapport 5'!N108 -> 2477.64 | O106: ='[1]Rapport 5'!O108 -> 3878.5 | P106: ='[1]Rapport 5'!P108 -> 395 | Q106: ='[1]Rapport 5'!Q108 -> 0 | R106: ='[1]Rapport 5'!R108 -> 0 | S106: ='[1]Rapport 5'!S108 -> 448.88 | T106: ='[1]Rapport 5'!T108 -> 51.07 | U106: ='[1]Rapport 5'!U108 -> 7217.59 | V106: ='[1]Rapport 5'!V108 -> 187.21 | W106: ='[1]Rapport 5'!W108 -> 4098.99 | X106: ='[1]Rapport 5'!X108 -> 37.3 | Y106: 152,858 | Z106: 3,219 | AA106: 2.1% | AB106: 25 | AC106: =1+(AB106/COUNT($AB$3:AB$320)*10) -> 1.786163522 | AD106: 1 | AE106: 71 | AF106: 1.2% | AG106: 27 | AH106: 1.849056604 | AI106: 1 | AJ106: 0 | AK106: 0.0% | AL106: 1 | AM106: 1.031446541 | AN106: 1 | AO106: 2,478 | AP106: 1.9% | AQ106: 50 | AR106: 2.572327044 | AS106: 2 | AT106: 395 | AU106: 10.2% | AV106: 251 | AW106: 8.893081761 | AX106: 8 | AY106: 0 | AZ106: 0.0% | BA106: 1 | BB106: 1.031446541 | BC106: 1 | BD106: 51 | BE106: 11.4% | BF106: 282 | BG106: 9.867924528 | BH106: 9 | BI106: 187 | BJ106: 2.6% | BK106: 36 | BL106: 2.132075472 | BM106: 2 | BN106: 37 | BO106: 0.9% | BP106: 59 | BQ106: 2.855345912 | BR106: 2 | BT106: 183 | BU106: -12
A107: ='[1]Rapport 5'!A109 -> 196 | B107: ='[1]Rapport 5'!B109 -> MASEVAUX | C107: ='[1]Rapport 5'!C109 -> 4194 | D107: ='[1]Rapport 5'!D109 -> THANN | E107: ='[1]Rapport 5'!E109 -> 5169 | F107: ='[1]Rapport 5'!F109 -> MULHOUSE | G107: ='[1]Rapport 5'!G109 -> 264 | H107: ='[1]Rapport 5'!H109 -> HAUT RHIN | I107: ='[1]Rapport 5'!I109 -> 4207.14 | J107: ='[1]Rapport 5'!J109 -> 97.48 | K107: ='[1]Rapport 5'!K109 -> 0 | L107: ='[1]Rapport 5'!L109 -> 0 | M107: ='[1]Rapport 5'!M109 -> 71428.57 | N107: ='[1]Rapport 5'!N109 -> 2623.01 | O107: ='[1]Rapport 5'!O109 -> 2076 | P107: ='[1]Rapport 5'!P109 -> 0 | Q107: ='[1]Rapport 5'!Q109 -> 0 | R107: ='[1]Rapport 5'!R109 -> 0 | S107: ='[1]Rapport 5'!S109 -> 57 | T107: ='[1]Rapport 5'!T109 -> 0 | U107: ='[1]Rapport 5'!U109 -> 5881.98 | V107: ='[1]Rapport 5'!V109 -> 942.43 | W107: ='[1]Rapport 5'!W109 -> 2605.68 | X107: ='[1]Rapport 5'!X109 -> 334.5 | Y107: 86,256 | Z107: 3,997 | AA107: 4.6% | AB107: 237 | AC107: =1+(AB107/COUNT($AB$3:AB$320)*10) -> 8.452830189 | AD107: 8 | AE107: 97 | AF107: 2.3% | AG107: 70 | AH107: 3.201257862 | AI107: 3 | AJ107: 0 | AK107: 0.0% | AL107: 1 | AM107: 1.031446541 | AN107: 1 | AO107: 2,623 | AP107: 3.7% | AQ107: 217 | AR107: 7.823899371 | AS107: 7 | AT107: 0 | AU107: 0.0% | AV107: 1 | AW107: 1.031446541 | AX107: 1 | AY107: 0 | AZ107: 0.0% | BA107: 1 | BB107: 1.031446541 | BC107: 1 | BD107: 0 | BE107: 0.0% | BF107: 1 | BG107: 1.031446541 | BH107: 1 | BI107: 942 | BJ107: 16.0% | BK107: 237 | BL107: 8.452830189 | BM107: 8 | BN107: 335 | BO107: 12.8% | BP107: 302 | BQ107: 10.49685535 | BR107: 10 | BT107: 184 | BU107: -12
A108: ='[1]Rapport 5'!A110 -> 198 | B108: ='[1]Rapport 5'!B110 -> SAINT AMARIN | C108: ='[1]Rapport 5'!C110 -> 4194 | D108: ='[1]Rapport 5'!D110 -> THANN | E108: ='[1]Rapport 5'!E110 -> 5169 | F108: ='[1]Rapport 5'!F110 -> MULHOUSE | G108: ='[1]Rapport 5'!G110 -> 264 | H108: ='[1]Rapport 5'!H110 -> HAUT RHIN | I108: ='[1]Rapport 5'!I110 -> 1790.74 | J108: ='[1]Rapport 5'!J110 -> 173.89 | K108: ='[1]Rapport 5'!K110 -> 0 | L108: ='[1]Rapport 5'!L110 -> 0 | M108: ='[1]Rapport 5'!M110 -> 61402.69 | N108: ='[1]Rapport 5'!N110 -> 2420.1 | O108: ='[1]Rapport 5'!O110 -> 2718.75 | P108: ='[1]Rapport 5'!P110 -> 0 | Q108: ='[1]Rapport 5'!Q110 -> 0 | R108: ='[1]Rapport 5'!R110 -> 0 | S108: ='[1]Rapport 5'!S110 -> 57 | T108: ='[1]Rapport 5'!T110 -> 0 | U108: ='[1]Rapport 5'!U110 -> 4268.15 | V108: ='[1]Rapport 5'!V110 -> 271.5 | W108: ='[1]Rapport 5'!W110 -> 2331.62 | X108: ='[1]Rapport 5'!X110 -> 56 | Y108: 72,569 | Z108: 2,921 | AA108: 4.0% | AB108: 184 | AC108: =1+(AB108/COUNT($AB$3:AB$320)*10) -> 6.786163522 | AD108: 6 | AE108: 174 | AF108: 9.7% | AG108: 272 | AH108: 9.553459119 | AI108: 9 | AJ108: 0 | AK108: 0.0% | AL108: 1 | AM108: 1.031446541 | AN108: 1 | AO108: 2,420 | AP108: 3.9% | AQ108: 241 | AR108: 8.578616352 | AS108: 8 | AT108: 0 | AU108: 0.0% | AV108: 1 | AW108: 1.031446541 | AX108: 1 | AY108: 0 | AZ108: 0.0% | BA108: 1 | BB108: 1.031446541 | BC108: 1 | BD108: 0 | BE108: 0.0% | BF108: 1 | BG108: 1.031446541 | BH108: 1 | BI108: 272 | BJ108: 6.4% | BK108: 98 | BL108: 4.081761006 | BM108: 4 | BN108: 56 | BO108: 2.4% | BP108: 128 | BQ108: 5.025157233 | BR108: 5 | BT108: 185 | BU108: -13
A109: ='[1]Rapport 5'!A111 -> 5800 | B109: ='[1]Rapport 5'!B111 -> EXPERTS DIRECT | C109: ='[1]Rapport 5'!C111 -> 405800 | D109: ='[1]Rapport 5'!D111 -> EXPERTS DIRECT | E109: ='[1]Rapport 5'!E111 -> 5800 | F109: ='[1]Rapport 5'!F111 -> EXPERTS DIRECT | G109: ='[1]Rapport 5'!G111 -> 269 | H109: ='[1]Rapport 5'!H111 -> BANQUE DIGITALE | I109: ='[1]Rapport 5'!I111 -> 89238.13 | J109: ='[1]Rapport 5'!J111 -> 1821.32 | K109: ='[1]Rapport 5'!K111 -> 0 | L109: ='[1]Rapport 5'!L111 -> 60 | M109: ='[1]Rapport 5'!M111 -> 897646.38 | N109: ='[1]Rapport 5'!N111 -> 14161.52 | O109: ='[1]Rapport 5'!O111 -> 3794 | P109: ='[1]Rapport 5'!P111 -> 0 | Q109: ='[1]Rapport 5'!Q111 -> 0 | R109: ='[1]Rapport 5'!R111 -> 0 | S109: ='[1]Rapport 5'!S111 -> 865 | T109: ='[1]Rapport 5'!T111 -> 0 | U109: ='[1]Rapport 5'!U111 -> 90844.8 | V109: ='[1]Rapport 5'!V111 -> 1258.07 | W109: ='[1]Rapport 5'!W111 -> 2523.76 | X109: ='[1]Rapport 5'!X111 -> 0 | Y109: 1,084,912 | Z109: 17,301 | AA109: 1.6% | AB109: 16 | AC109: =1+(AB109/COUNT($AB$3:AB$320)*10) -> 1.503144654 | AD109: 1 | AE109: =+J109 -> 1,821 | AF109: 2.0% | AG109: 59 | AH109: 2.855345912 | AI109: 2 | AJ109: 60 | AK109: 100.0% | AL109: 291 | AM109: 10.1509434 | AN109: 10 | AO109: 14,162 | AP109: 1.6% | AQ109: 30 | AR109: 1.943396226 | AS109: 1 | AT109: 0 | AU109: 0.0% | AV109: 1 | AW109: 1.031446541 | AX109: 1 | AY109: 0 | AZ109: 0.0% | BA109: 1 | BB109: 1.031446541 | BC109: 1 | BD109: 0 | BE109: 0.0% | BF109: 1 | BG109: 1.031446541 | BH109: 1 | BI109: 1,258 | BJ109: 1.4% | BK109: 24 | BL109: 1.754716981 | BM109: 1 | BN109: 0 | BO109: 0.0% | BP109: 1 | BQ109: 1.031446541 | BR109: 1 | BT109: 186 | BU109: -5614
A110: ='[1]Rapport 5'!A112 -> 8801 | B110: ='[1]Rapport 5'!B112 -> CHARLEVILLE JEAN JAURES | C110: ='[1]Rapport 5'!C112 -> 408801 | D110: ='[1]Rapport 5'!D112 -> CHARLEVILLE JEAN JAURES | E110: ='[1]Rapport 5'!E112 -> 2 | F110: ='[1]Rapport 5'!F112 -> CHARLEVILLE MEZIERES | G110: ='[1]Rapport 5'!G112 -> 30 | H110: ='[1]Rapport 5'!H112 -> MARNE ARDENNES | I110: ='[1]Rapport 5'!I112 -> 12497.66 | J110: ='[1]Rapport 5'!J112 -> 837.07 | K110: ='[1]Rapport 5'!K112 -> 0 | L110: ='[1]Rapport 5'!L112 -> 0 | M110: ='[1]Rapport 5'!M112 -> 317621.28 | N110: ='[1]Rapport 5'!N112 -> 12394.57 | O110: ='[1]Rapport 5'!O112 -> 11657 | P110: ='[1]Rapport 5'!P112 -> 980.27 | Q110: ='[1]Rapport 5'!Q112 -> 236.49 | R110: ='[1]Rapport 5'!R112 -> 0 | S110: ='[1]Rapport 5'!S112 -> 621.52 | T110: ='[1]Rapport 5'!T112 -> 26 | U110: ='[1]Rapport 5'!U112 -> 37213.83 | V110: ='[1]Rapport 5'!V112 -> 2580.09 | W110: ='[1]Rapport 5'!W112 -> 19660.77 | X110: ='[1]Rapport 5'!X112 -> 604.75 | Y110: 399,509 | Z110: 17,423 | AA110: 4.4% | AB110: 213 | AC110: =1+(AB110/COUNT($AB$3:AB$320)*10) -> 7.698113208 | AD110: 7 | AE110: 837 | AF110: 6.7% | AG110: 238 | AH110: 8.48427673 | AI110: 8 | AJ110: 0 | AK110: 0.0% | AL110: 1 | AM110: 1.031446541 | AN110: 1 | AO110: 12,395 | AP110: 3.9% | AQ110: 238 | AR110: 8.48427673 | AS110: 8 | AT110: 980 | AU110: 8.4% | AV110: 234 | AW110: 8.358490566 | AX110: 8 | AY110: 0 | AZ110: 0.0% | BA110: 1 | BB110: 1.031446541 | BC110: 1 | BD110: 26 | BE110: 4.2% | BF110: 252 | BG110: 8.924528302 | BH110: 8 | BI110: 2,580 | BJ110: 6.9% | BK110: 106 | BL110: 4.333333333 | BM110: 4 | BN110: 605 | BO110: 3.1% | BP110: 158 | BQ110: 5.968553459 | BR110: 5 | BT110: 187 | BU110: -8614
A111: ='[1]Rapport 5'!A113 -> 8802 | B111: ='[1]Rapport 5'!B113 -> CHARLEVILLE NEVERS | C111: ='[1]Rapport 5'!C113 -> 508802 | D111: ='[1]Rapport 5'!D113 -> CHARLEVILLE NEVERS | E111: ='[1]Rapport 5'!E113 -> 2 | F111: ='[1]Rapport 5'!F113 -> CHARLEVILLE MEZIERES | G111: ='[1]Rapport 5'!G113 -> 30 | H111: ='[1]Rapport 5'!H113 -> MARNE ARDENNES | I111: ='[1]Rapport 5'!I113 -> 5190.39 | J111: ='[1]Rapport 5'!J113 -> 282.72 | K111: ='[1]Rapport 5'!K113 -> 0 | L111: ='[1]Rapport 5'!L113 -> 0 | M111: ='[1]Rapport 5'!M113 -> 99039.77 | N111: ='[1]Rapport 5'!N113 -> 2841.26 | O111: ='[1]Rapport 5'!O113 -> 6119 | P111: ='[1]Rapport 5'!P113 -> 28.5 | Q111: ='[1]Rapport 5'!Q113 -> 0 | R111: ='[1]Rapport 5'!R113 -> 0 | S111: ='[1]Rapport 5'!S113 -> 101 | T111: ='[1]Rapport 5'!T113 -> 31 | U111: ='[1]Rapport 5'!U113 -> 7068.78 | V111: ='[1]Rapport 5'!V113 -> 683.74 | W111: ='[1]Rapport 5'!W113 -> 4899.31 | X111: ='[1]Rapport 5'!X113 -> 37.3 | Y111: 122,418 | Z111: 3,905 | AA111: 3.2% | AB111: 88 | AC111: =1+(AB111/COUNT($AB$3:AB$320)*10) -> 3.767295597 | AD111: 3 | AE111: 283 | AF111: 5.4% | AG111: 212 | AH111: 7.666666667 | AI111: 7 | AJ111: 0 | AK111: 0.0% | AL111: 1 | AM111: 1.031446541 | AN111: 1 | AO111: 2,841 | AP111: 2.9% | AQ111: 148 | AR111: 5.65408805 | AS111: 5 | AT111: 29 | AU111: 0.5% | AV111: 81 | AW111: 3.547169811 | AX111: 3 | AY111: 0 | AZ111: 0.0% | BA111: 1 | BB111: 1.031446541 | BC111: 1 | BD111: 31 | BE111: 30.7% | BF111: 306 | BG111: 10.62264151 | BH111: 10 | BI111: 684 | BJ111: 9.7% | BK111: 150 | BL111: 5.716981132 | BM111: 5 | BN111: 37 | BO111: 0.8% | BP111: 46 | BQ111: 2.446540881 | BR111: 2 | BT111: 188 | BU111: -8614
A112: ='[1]Rapport 5'!A114 -> 8806 | B112: ='[1]Rapport 5'!B114 -> SEDAN | C112: ='[1]Rapport 5'!C114 -> 408806 | D112: ='[1]Rapport 5'!D114 -> SEDAN | E112: ='[1]Rapport 5'!E114 -> 2 | F112: ='[1]Rapport 5'!F114 -> CHARLEVILLE MEZIERES | G112: ='[1]Rapport 5'!G114 -> 30 | H112: ='[1]Rapport 5'!H114 -> MARNE ARDENNES | I112: ='[1]Rapport 5'!I114 -> 11856.87 | J112: ='[1]Rapport 5'!J114 -> 500.29 | K112: ='[1]Rapport 5'!K114 -> 0 | L112: ='[1]Rapport 5'!L114 -> 0 | M112: ='[1]Rapport 5'!M114 -> 306888.75 | N112: ='[1]Rapport 5'!N114 -> 8614.76 | O112: ='[1]Rapport 5'!O114 -> 10232.25 | P112: ='[1]Rapport 5'!P114 -> 457.5 | Q112: ='[1]Rapport 5'!Q114 -> 0 | R112: ='[1]Rapport 5'!R114 -> 0 | S112: ='[1]Rapport 5'!S114 -> 311 | T112: ='[1]Rapport 5'!T114 -> 0 | U112: ='[1]Rapport 5'!U114 -> 31009.6 | V112: ='[1]Rapport 5'!V114 -> 3558.72 | W112: ='[1]Rapport 5'!W114 -> 16767.97 | X112: ='[1]Rapport 5'!X114 -> 542.15 | Y112: 377,066 | Z112: 13,673 | AA112: 3.6% | AB112: 141 | AC112: =1+(AB112/COUNT($AB$3:AB$320)*10) -> 5.433962264 | AD112: 5 | AE112: 500 | AF112: 4.2% | AG112: 173 | AH112: 6.440251572 | AI112: 6 | AJ112: 0 | AK112: 0.0% | AL112: 1 | AM112: 1.031446541 | AN112: 1 | AO112: 8,615 | AP112: 2.8% | AQ112: 140 | AR112: 5.402515723 | AS112: 5 | AT112: 458 | AU112: 4.5% | AV112: 178 | AW112: 6.597484277 | AX112: 6 | AY112: 0 | AZ112: 0.0% | BA112: 1 | BB112: 1.031446541 | BC112: 1 | BD112: 0 | BE112: 0.0% | BF112: 1 | BG112: 1.031446541 | BH112: 1 | BI112: 3,559 | BJ112: 11.5% | BK112: 184 | BL112: 6.786163522 | BM112: 6 | BN112: 542 | BO112: 3.2% | BP112: 168 | BQ112: 6.283018868 | BR112: 6 | BT112: 189 | BU112: -8617
A113: ='[1]Rapport 5'!A115 -> 8815 | B113: ='[1]Rapport 5'!B115 -> CARIGNAN | C113: ='[1]Rapport 5'!C115 -> 508815 | D113: ='[1]Rapport 5'!D115 -> CARIGNAN | E113: ='[1]Rapport 5'!E115 -> 2 | F113: ='[1]Rapport 5'!F115 -> CHARLEVILLE MEZIERES | G113: ='[1]Rapport 5'!G115 -> 30 | H113: ='[1]Rapport 5'!H115 -> MARNE ARDENNES | I113: ='[1]Rapport 5'!I115 -> 5368.25 | J113: ='[1]Rapport 5'!J115 -> 102.58 | K113: ='[1]Rapport 5'!K115 -> 0 | L113: ='[1]Rapport 5'!L115 -> 0 | M113: ='[1]Rapport 5'!M115 -> 112451.32 | N113: ='[1]Rapport 5'!N115 -> 1946 | O113: ='[1]Rapport 5'!O115 -> 4009 | P113: ='[1]Rapport 5'!P115 -> 0 | Q113: ='[1]Rapport 5'!Q115 -> 0 | R113: ='[1]Rapport 5'!R115 -> 0 | S113: ='[1]Rapport 5'!S115 -> 96.5 | T113: ='[1]Rapport 5'!T115 -> 0 | U113: ='[1]Rapport 5'!U115 -> 7788.65 | V113: ='[1]Rapport 5'!V115 -> 656.03 | W113: ='[1]Rapport 5'!W115 -> 3656.97 | X113: ='[1]Rapport 5'!X115 -> 37.3 | Y113: 133,371 | Z113: 2,742 | AA113: 2.1% | AB113: 24 | AC113: =1+(AB113/COUNT($AB$3:AB$320)*10) -> 1.754716981 | AD113: 1 | AE113: 103 | AF113: 1.9% | AG113: 53 | AH113: 2.666666667 | AI113: 2 | AJ113: 0 | AK113: 0.0% | AL113: 1 | AM113: 1.031446541 | AN113: 1 | AO113: 1,946 | AP113: 1.7% | AQ113: 43 | AR113: 2.352201258 | AS113: 2 | AT113: 0 | AU113: 0.0% | AV113: 1 | AW113: 1.031446541 | AX113: 1 | AY113: 0 | AZ113: 0.0% | BA113: 1 | BB113: 1.031446541 | BC113: 1 | BD113: 0 | BE113: 0.0% | BF113: 1 | BG113: 1.031446541 | BH113: 1 | BI113: 656 | BJ113: 8.4% | BK113: 131 | BL113: 5.119496855 | BM113: 5 | BN113: 37 | BO113: 1.0% | BP113: 64 | BQ113: 3.012578616 | BR113: 3 | BT113: 191 | BU113: -8624
A114: ='[1]Rapport 5'!A116 -> 8817 | B114: ='[1]Rapport 5'!B116 -> CHARLEVILLE MOHON | C114: ='[1]Rapport 5'!C116 -> 508817 | D114: ='[1]Rapport 5'!D116 -> CHARLEVILLE MOHON | E114: ='[1]Rapport 5'!E116 -> 2 | F114: ='[1]Rapport 5'!F116 -> CHARLEVILLE MEZIERES | G114: ='[1]Rapport 5'!G116 -> 30 | H114: ='[1]Rapport 5'!H116 -> MARNE ARDENNES | I114: ='[1]Rapport 5'!I116 -> 5198.21 | J114: ='[1]Rapport 5'!J116 -> 40.14 | K114: ='[1]Rapport 5'!K116 -> 0 | L114: ='[1]Rapport 5'!L116 -> 0 | M114: ='[1]Rapport 5'!M116 -> 109226.46 | N114: ='[1]Rapport 5'!N116 -> 1755.81 | O114: ='[1]Rapport 5'!O116 -> 2052 | P114: ='[1]Rapport 5'!P116 -> 0 | Q114: ='[1]Rapport 5'!Q116 -> 0 | R114: ='[1]Rapport 5'!R116 -> 0 | S114: ='[1]Rapport 5'!S116 -> 0 | T114: ='[1]Rapport 5'!T116 -> 0 | U114: ='[1]Rapport 5'!U116 -> 8794.84 | V114: ='[1]Rapport 5'!V116 -> 413.07 | W114: ='[1]Rapport 5'!W116 -> 2630.8 | X114: ='[1]Rapport 5'!X116 -> 102.6 | Y114: 127,902 | Z114: 2,312 | AA114: 1.8% | AB114: 18 | AC114: =1+(AB114/COUNT($AB$3:AB$320)*10) -> 1.566037736 | AD114: 1 | AE114: 40 | AF114: 0.8% | AG114: 15 | AH114: 1.471698113 | AI114: 1 | AJ114: 0 | AK114: 0.0% | AL114: 1 | AM114: 1.031446541 | AN114: 1 | AO114: 1,756 | AP114: 1.6% | AQ114: 33 | AR114: 2.037735849 | AS114: 2 | AT114: 0 | AU114: 0.0% | AV114: 1 | AW114: 1.031446541 | AX114: 1 | AY114: 0 | AZ114: 0.0% | BA114: 1 | BB114: 1.031446541 | BC114: 1 | BD114: 0 | BE114: 0.0% | BF114: 1 | BG114: 1.031446541 | BH114: 1 | BI114: 413 | BJ114: 4.7% | BK114: 65 | BL114: 3.044025157 | BM114: 3 | BN114: 103 | BO114: 3.9% | BP114: 196 | BQ114: 7.163522013 | BR114: 7 | BT114: 192 | BU114: -8625
A115: ='[1]Rapport 5'!A117 -> 8819 | B115: ='[1]Rapport 5'!B117 -> MOUZON | C115: ='[1]Rapport 5'!C117 -> 508819 | D115: ='[1]Rapport 5'!D117 -> MOUZON | E115: ='[1]Rapport 5'!E117 -> 2 | F115: ='[1]Rapport 5'!F117 -> CHARLEVILLE MEZIERES | G115: ='[1]Rapport 5'!G117 -> 30 | H115: ='[1]Rapport 5'!H117 -> MARNE ARDENNES | I115: ='[1]Rapport 5'!I117 -> 5860.31 | J115: ='[1]Rapport 5'!J117 -> 703.93 | K115: ='[1]Rapport 5'!K117 -> 0 | L115: ='[1]Rapport 5'!L117 -> 0 | M115: ='[1]Rapport 5'!M117 -> 86444.57 | N115: ='[1]Rapport 5'!N117 -> 2810.87 | O115: ='[1]Rapport 5'!O117 -> 1565.5 | P115: ='[1]Rapport 5'!P117 -> 42.5 | Q115: ='[1]Rapport 5'!Q117 -> 0 | R115: ='[1]Rapport 5'!R117 -> 0 | S115: ='[1]Rapport 5'!S117 -> 78 | T115: ='[1]Rapport 5'!T117 -> 26 | U115: ='[1]Rapport 5'!U117 -> 5244.56 | V115: ='[1]Rapport 5'!V117 -> 756.11 | W115: ='[1]Rapport 5'!W117 -> 4111.39 | X115: ='[1]Rapport 5'!X117 -> 60 | Y115: 103,304 | Z115: 4,399 | AA115: 4.3% | AB115: 204 | AC115: =1+(AB115/COUNT($AB$3:AB$320)*10) -> 7.41509434 | AD115: 7 | AE115: 704 | AF115: 12.0% | AG115: 293 | AH115: 10.21383648 | AI115: 10 | AJ115: 0 | AK115: 0.0% | AL115: 1 | AM115: 1.031446541 | AN115: 1 | AO115: 2,811 | AP115: 3.3% | AQ115: 184 | AR115: 6.786163522 | AS115: 6 | AT115: 43 | AU115: 2.7% | AV115: 133 | AW115: 5.182389937 | AX115: 5 | AY115: 0 | AZ115: 0.0% | BA115: 1 | BB115: 1.031446541 | BC115: 1 | BD115: 26 | BE115: 33.3% | BF115: 309 | BG115: 10.71698113 | BH115: 10 | BI115: 756 | BJ115: 14.4% | BK115: 218 | BL115: 7.855345912 | BM115: 7 | BN115: 60 | BO115: 1.5% | BP115: 85 | BQ115: 3.672955975 | BR115: 3 | BT115: 193 | BU115: -8626
A116: ='[1]Rapport 5'!A118 -> 8820 | B116: ='[1]Rapport 5'!B118 -> VOUZIERS | C116: ='[1]Rapport 5'!C118 -> 508820 | D116: ='[1]Rapport 5'!D118 -> VOUZIERS | E116: ='[1]Rapport 5'!E118 -> 2 | F116: ='[1]Rapport 5'!F118 -> CHARLEVILLE MEZIERES | G116: ='[1]Rapport 5'!G118 -> 30 | H116: ='[1]Rapport 5'!H118 -> MARNE ARDENNES | I116: ='[1]Rapport 5'!I118 -> 4323.78 | J116: ='[1]Rapport 5'!J118 -> 307.51 | K116: ='[1]Rapport 5'!K118 -> 0 | L116: ='[1]Rapport 5'!L118 -> 0 | M116: ='[1]Rapport 5'!M118 -> 89426.94 | N116: ='[1]Rapport 5'!N118 -> 3563.45 | O116: ='[1]Rapport 5'!O118 -> 3958.5 | P116: ='[1]Rapport 5'!P118 -> 136 | Q116: ='[1]Rapport 5'!Q118 -> 0 | R116: ='[1]Rapport 5'!R118 -> 0 | S116: ='[1]Rapport 5'!S118 -> 0 | T116: ='[1]Rapport 5'!T118 -> 0 | U116: ='[1]Rapport 5'!U118 -> 5999.24 | V116: ='[1]Rapport 5'!V118 -> 1693.13 | W116: ='[1]Rapport 5'!W118 -> 6005.57 | X116: ='[1]Rapport 5'!X118 -> 334.26 | Y116: 109,714 | Z116: 6,034 | AA116: 5.5% | AB116: 277 | AC116: =1+(AB116/COUNT($AB$3:AB$320)*10) -> 9.710691824 | AD116: 9 | AE116: 308 | AF116: 7.1% | AG116: 245 | AH116: 8.704402516 | AI116: 8 | AJ116: 0 | AK116: 0.0% | AL116: 1 | AM116: 1.031446541 | AN116: 1 | AO116: 3,563 | AP116: 4.0% | AQ116: 244 | AR116: 8.672955975 | AS116: 8 | AT116: 136 | AU116: 3.4% | AV116: 153 | AW116: 5.811320755 | AX116: 5 | AY116: 0 | AZ116: 0.0% | BA116: 1 | BB116: 1.031446541 | BC116: 1 | BD116: 0 | BE116: 0.0% | BF116: 1 | BG116: 1.031446541 | BH116: 1 | BI116: 1,693 | BJ116: 28.2% | BK116: 297 | BL116: 10.33962264 | BM116: 10 | BN116: 334 | BO116: 5.6% | BP116: 241 | BQ116: 8.578616352 | BR116: 8 | BT116: 194 | BU116: -8626
A117: ='[1]Rapport 5'!A119 -> 8822 | B117: ='[1]Rapport 5'!B119 -> CHARLEVILLE MEZIERES | C117: ='[1]Rapport 5'!C119 -> 408822 | D117: ='[1]Rapport 5'!D119 -> CHARLEVILLE MEZIERES | E117: ='[1]Rapport 5'!E119 -> 2 | F117: ='[1]Rapport 5'!F119 -> CHARLEVILLE MEZIERES | G117: ='[1]Rapport 5'!G119 -> 30 | H117: ='[1]Rapport 5'!H119 -> MARNE ARDENNES | I117: ='[1]Rapport 5'!I119 -> 6502.32 | J117: ='[1]Rapport 5'!J119 -> 283 | K117: ='[1]Rapport 5'!K119 -> 0 | L117: ='[1]Rapport 5'!L119 -> 0 | M117: ='[1]Rapport 5'!M119 -> 141843.42 | N117: ='[1]Rapport 5'!N119 -> 3977.39 | O117: ='[1]Rapport 5'!O119 -> 4699.5 | P117: ='[1]Rapport 5'!P119 -> 0 | Q117: ='[1]Rapport 5'!Q119 -> 0 | R117: ='[1]Rapport 5'!R119 -> 0 | S117: ='[1]Rapport 5'!S119 -> 145 | T117: ='[1]Rapport 5'!T119 -> 0 | U117: ='[1]Rapport 5'!U119 -> 10803.98 | V117: ='[1]Rapport 5'!V119 -> 2535.98 | W117: ='[1]Rapport 5'!W119 -> 5326.49 | X117: ='[1]Rapport 5'!X119 -> 282.5 | Y117: 169,321 | Z117: 7,079 | AA117: 4.2% | AB117: 200 | AC117: =1+(AB117/COUNT($AB$3:AB$320)*10) -> 7.289308176 | AD117: 7 | AE117: 283 | AF117: 4.4% | AG117: 177 | AH117: 6.566037736 | AI117: 6 | AJ117: 0 | AK117: 0.0% | AL117: 1 | AM117: 1.031446541 | AN117: 1 | AO117: 3,977 | AP117: 2.8% | AQ117: 139 | AR117: 5.371069182 | AS117: 5 | AT117: 0 | AU117: 0.0% | AV117: 1 | AW117: 1.031446541 | AX117: 1 | AY117: 0 | AZ117: 0.0% | BA117: 1 | BB117: 1.031446541 | BC117: 1 | BD117: 0 | BE117: 0.0% | BF117: 1 | BG117: 1.031446541 | BH117: 1 | BI117: 2,536 | BJ117: 23.5% | BK117: 283 | BL117: 9.899371069 | BM117: 9 | BN117: 283 | BO117: 5.3% | BP117: 231 | BQ117: 8.264150943 | BR117: 8 | BT117: 195 | BU117: -8627
A118: ='[1]Rapport 5'!A120 -> 8833 | B118: ='[1]Rapport 5'!B120 -> VILLERS SEMEUSE CORA | C118: ='[1]Rapport 5'!C120 -> 508833 | D118: ='[1]Rapport 5'!D120 -> VILLERS SEMEUSE CORA | E118: ='[1]Rapport 5'!E120 -> 2 | F118: ='[1]Rapport 5'!F120 -> CHARLEVILLE MEZIERES | G118: ='[1]Rapport 5'!G120 -> 30 | H118: ='[1]Rapport 5'!H120 -> MARNE ARDENNES | I118: ='[1]Rapport 5'!I120 -> 8286.65 | J118: ='[1]Rapport 5'!J120 -> 545.8 | K118: ='[1]Rapport 5'!K120 -> 0 | L118: ='[1]Rapport 5'!L120 -> 0 | M118: ='[1]Rapport 5'!M120 -> 157076.42 | N118: ='[1]Rapport 5'!N120 -> 5116.54 | O118: ='[1]Rapport 5'!O120 -> 6251 | P118: ='[1]Rapport 5'!P120 -> 42 | Q118: ='[1]Rapport 5'!Q120 -> 0 | R118: ='[1]Rapport 5'!R120 -> 0 | S118: ='[1]Rapport 5'!S120 -> 156 | T118: ='[1]Rapport 5'!T120 -> 0 | U118: ='[1]Rapport 5'!U120 -> 7729.25 | V118: ='[1]Rapport 5'!V120 -> 453.72 | W118: ='[1]Rapport 5'!W120 -> 4260.71 | X118: ='[1]Rapport 5'!X120 -> 120.09 | Y118: 183,760 | Z118: 6,278 | AA118: 3.4% | AB118: 111 | AC118: =1+(AB118/COUNT($AB$3:AB$320)*10) -> 4.490566038 | AD118: 4 | AE118: 546 | AF118: 6.6% | AG118: 237 | AH118: 8.452830189 | AI118: 8 | AJ118: 0 | AK118: 0.0% | AL118: 1 | AM118: 1.031446541 | AN118: 1 | AO118: 5,117 | AP118: 3.3% | AQ118: 186 | AR118: 6.849056604 | AS118: 6 | AT118: 42 | AU118: 0.7% | AV118: 86 | AW118: 3.704402516 | AX118: 3 | AY118: 0 | AZ118: 0.0% | BA118: 1 | BB118: 1.031446541 | BC118: 1 | BD118: 0 | BE118: 0.0% | BF118: 1 | BG118: 1.031446541 | BH118: 1 | BI118: 454 | BJ118: 5.9% | BK118: 88 | BL118: 3.767295597 | BM118: 3 | BN118: 120 | BO118: 2.8% | BP118: 151 | BQ118: 5.748427673 | BR118: 5 | BT118: 196 | BU118: -8637
A119: ='[1]Rapport 5'!A121 -> 8839 | B119: ='[1]Rapport 5'!B121 -> GIVET | C119: ='[1]Rapport 5'!C121 -> 508839 | D119: ='[1]Rapport 5'!D121 -> GIVET | E119: ='[1]Rapport 5'!E121 -> 2 | F119: ='[1]Rapport 5'!F121 -> CHARLEVILLE MEZIERES | G119: ='[1]Rapport 5'!G121 -> 30 | H119: ='[1]Rapport 5'!H121 -> MARNE ARDENNES | I119: ='[1]Rapport 5'!I121 -> 3799.14 | J119: ='[1]Rapport 5'!J121 -> 129.18 | K119: ='[1]Rapport 5'!K121 -> 0 | L119: ='[1]Rapport 5'!L121 -> 0 | M119: ='[1]Rapport 5'!M121 -> 95957.97 | N119: ='[1]Rapport 5'!N121 -> 3119.07 | O119: ='[1]Rapport 5'!O121 -> 4762.5 | P119: ='[1]Rapport 5'!P121 -> 57 | Q119: ='[1]Rapport 5'!Q121 -> 0 | R119: ='[1]Rapport 5'!R121 -> 0 | S119: ='[1]Rapport 5'!S121 -> 0 | T119: ='[1]Rapport 5'!T121 -> 0 | U119: ='[1]Rapport 5'!U121 -> 5569.67 | V119: ='[1]Rapport 5'!V121 -> 599.39 | W119: ='[1]Rapport 5'!W121 -> 4764.71 | X119: ='[1]Rapport 5'!X121 -> 28 | Y119: 114,854 | Z119: 3,933 | AA119: 3.4% | AB119: 112 | AC119: =1+(AB119/COUNT($AB$3:AB$320)*10) -> 4.522012579 | AD119: 4 | AE119: =+J119 -> 129 | AF119: 3.4% | AG119: 129 | AH119: 5.056603774 | AI119: 5 | AJ119: 0 | AK119: 0.0% | AL119: 1 | AM119: 1.031446541 | AN119: 1 | AO119: 3,119 | AP119: 3.3% | AQ119: 183 | AR119: 6.754716981 | AS119: 6 | AT119: 57 | AU119: 1.2% | AV119: 98 | AW119: 4.081761006 | AX119: 4 | AY119: 0 | AZ119: 0.0% | BA119: 1 | BB119: 1.031446541 | BC119: 1 | BD119: 0 | BE119: 0.0% | BF119: 1 | BG119: 1.031446541 | BH119: 1 | BI119: 599 | BJ119: 10.8% | BK119: 170 | BL119: 6.34591195 | BM119: 6 | BN119: 28 | BO119: 0.6% | BP119: 37 | BQ119: 2.163522013 | BR119: 2 | BT119: 198 | BU119: -8641
A120: ='[1]Rapport 5'!A122 -> 8840 | B120: ='[1]Rapport 5'!B122 -> RETHEL | C120: ='[1]Rapport 5'!C122 -> 408840 | D120: ='[1]Rapport 5'!D122 -> RETHEL | E120: ='[1]Rapport 5'!E122 -> 2 | F120: ='[1]Rapport 5'!F122 -> CHARLEVILLE MEZIERES | G120: ='[1]Rapport 5'!G122 -> 30 | H120: ='[1]Rapport 5'!H122 -> MARNE ARDENNES | I120: ='[1]Rapport 5'!I122 -> 6961.79 | J120: ='[1]Rapport 5'!J122 -> 202.06 | K120: ='[1]Rapport 5'!K122 -> 0 | L120: ='[1]Rapport 5'!L122 -> 51 | M120: ='[1]Rapport 5'!M122 -> 181817.15 | N120: ='[1]Rapport 5'!N122 -> 3589.22 | O120: ='[1]Rapport 5'!O122 -> 3485 | P120: ='[1]Rapport 5'!P122 -> 85 | Q120: ='[1]Rapport 5'!Q122 -> 0 | R120: ='[1]Rapport 5'!R122 -> 0 | S120: ='[1]Rapport 5'!S122 -> 154 | T120: ='[1]Rapport 5'!T122 -> 0 | U120: ='[1]Rapport 5'!U122 -> 12899.98 | V120: ='[1]Rapport 5'!V122 -> 1332.42 | W120: ='[1]Rapport 5'!W122 -> 10210.92 | X120: ='[1]Rapport 5'!X122 -> 98.65 | Y120: 215,529 | Z120: 5,358 | AA120: 2.5% | AB120: 47 | AC120: =1+(AB120/COUNT($AB$3:AB$320)*10) -> 2.477987421 | AD120: 2 | AE120: =+J120 -> 202 | AF120: 2.9% | AG120: 104 | AH120: 4.270440252 | AI120: 4 | AJ120: 51 | AK120: 100.0% | AL120: 291 | AM120: 10.1509434 | AN120: 10 | AO120: 3,589 | AP120: 2.0% | AQ120: 58 | AR120: 2.823899371 | AS120: 2 | AT120: 85 | AU120: 2.4% | AV120: 128 | AW120: 5.025157233 | AX120: 5 | AY120: 0 | AZ120: 0.0% | BA120: 1 | BB120: 1.031446541 | BC120: 1 | BD120: 0 | BE120: 0.0% | BF120: 1 | BG120: 1.031446541 | BH120: 1 | BI120: 1,332 | BJ120: 10.3% | BK120: 160 | BL120: 6.031446541 | BM120: 6 | BN120: 99 | BO120: 1.0% | BP120: 62 | BQ120: 2.949685535 | BR120: 2 | BT120: 5800 | BU120: -3040
A121: ='[1]Rapport 5'!A123 -> 8860 | B121: ='[1]Rapport 5'!B123 -> ROCROI | C121: ='[1]Rapport 5'!C123 -> 508860 | D121: ='[1]Rapport 5'!D123 -> ROCROI | E121: ='[1]Rapport 5'!E123 -> 2 | F121: ='[1]Rapport 5'!F123 -> CHARLEVILLE MEZIERES | G121: ='[1]Rapport 5'!G123 -> 30 | H121: ='[1]Rapport 5'!H123 -> MARNE ARDENNES | I121: ='[1]Rapport 5'!I123 -> 6065.58 | J121: ='[1]Rapport 5'!J123 -> 204.83 | K121: ='[1]Rapport 5'!K123 -> 0 | L121: ='[1]Rapport 5'!L123 -> 0 | M121: ='[1]Rapport 5'!M123 -> 112264.2 | N121: ='[1]Rapport 5'!N123 -> 1561.76 | O121: ='[1]Rapport 5'!O123 -> 3512.5 | P121: ='[1]Rapport 5'!P123 -> 180 | Q121: ='[1]Rapport 5'!Q123 -> 0 | R121: ='[1]Rapport 5'!R123 -> 0 | S121: ='[1]Rapport 5'!S123 -> 53 | T121: ='[1]Rapport 5'!T123 -> 0 | U121: ='[1]Rapport 5'!U123 -> 8554.3 | V121: ='[1]Rapport 5'!V123 -> 294.09 | W121: ='[1]Rapport 5'!W123 -> 6217.45 | X121: ='[1]Rapport 5'!X123 -> 767.1 | Y121: 136,667 | Z121: 3,008 | AA121: 2.2% | AB121: 30 | AC121: =1+(AB121/COUNT($AB$3:AB$320)*10) -> 1.943396226 | AD121: 1 | AE121: =+J121 -> 205 | AF121: 3.4% | AG121: 127 | AH121: 4.993710692 | AI121: 4 | AJ121: 0 | AK121: 0.0% | AL121: 1 | AM121: 1.031446541 | AN121: 1 | AO121: 1,562 | AP121: 1.4% | AQ121: 17 | AR121: 1.534591195 | AS121: 1 | AT121: 180 | AU121: 5.1% | AV121: 191 | AW121: 7.006289308 | AX121: 7 | AY121: 0 | AZ121: 0.0% | BA121: 1 | BB121: 1.031446541 | BC121: 1 | BD121: 0 | BE121: 0.0% | BF121: 1 | BG121: 1.031446541 | BH121: 1 | BI121: 294 | BJ121: 3.4% | BK121: 45 | BL121: 2.41509434 | BM121: 2 | BN121: 767 | BO121: 12.3% | BP121: 298 | BQ121: 10.37106918 | BR121: 10 | BT121: 8801 | BU121: -59
A122: ='[1]Rapport 5'!A124 -> 8862 | B122: ='[1]Rapport 5'!B124 -> REVIN | C122: ='[1]Rapport 5'!C124 -> 408862 | D122: ='[1]Rapport 5'!D124 -> REVIN | E122: ='[1]Rapport 5'!E124 -> 2 | F122: ='[1]Rapport 5'!F124 -> CHARLEVILLE MEZIERES | G122: ='[1]Rapport 5'!G124 -> 30 | H122: ='[1]Rapport 5'!H124 -> MARNE ARDENNES | I122: ='[1]Rapport 5'!I124 -> 7719.82 | J122: ='[1]Rapport 5'!J124 -> 101.25 | K122: ='[1]Rapport 5'!K124 -> 0 | L122: ='[1]Rapport 5'!L124 -> 0 | M122: ='[1]Rapport 5'!M124 -> 142201.89 | N122: ='[1]Rapport 5'!N124 -> 3587.48 | O122: ='[1]Rapport 5'!O124 -> 4086 | P122: ='[1]Rapport 5'!P124 -> 42 | Q122: ='[1]Rapport 5'!Q124 -> 0 | R122: ='[1]Rapport 5'!R124 -> 0 | S122: ='[1]Rapport 5'!S124 -> 976.48 | T122: ='[1]Rapport 5'!T124 -> 0 | U122: ='[1]Rapport 5'!U124 -> 14138.61 | V122: ='[1]Rapport 5'!V124 -> 998.5 | W122: ='[1]Rapport 5'!W124 -> 6578.05 | X122: ='[1]Rapport 5'!X124 -> 56 | Y122: 175,701 | Z122: 4,785 | AA122: 2.7% | AB122: 55 | AC122: =1+(AB122/COUNT($AB$3:AB$320)*10) -> 2.729559748 | AD122: 2 | AE122: 101 | AF122: 1.3% | AG122: 31 | AH122: 1.974842767 | AI122: 1 | AJ122: 0 | AK122: 0.0% | AL122: 1 | AM122: 1.031446541 | AN122: 1 | AO122: 3,587 | AP122: 2.5% | AQ122: 103 | AR122: 4.238993711 | AS122: 4 | AT122: 42 | AU122: 1.0% | AV122: 94 | AW122: 3.955974843 | AX122: 3 | AY122: 0 | AZ122: 0.0% | BA122: 1 | BB122: 1.031446541 | BC122: 1 | BD122: 0 | BE122: 0.0% | BF122: 1 | BG122: 1.031446541 | BH122: 1 | BI122: 999 | BJ122: 7.1% | BK122: 108 | BL122: 4.396226415 | BM122: 4 | BN122: 56 | BO122: 0.9% | BP122: 53 | BQ122: 2.666666667 | BR122: 2 | BT122: 8802 | BU122: -60
A123: ='[1]Rapport 5'!A125 -> 10510 | B123: ='[1]Rapport 5'!B125 -> TROYES GAMBETTA | C123: ='[1]Rapport 5'!C125 -> 410510 | D123: ='[1]Rapport 5'!D125 -> TROYES GAMBETTA | E123: ='[1]Rapport 5'!E125 -> 14 | F123: ='[1]Rapport 5'!F125 -> TROYES | G123: ='[1]Rapport 5'!G125 -> 50 | H123: ='[1]Rapport 5'!H125 -> AUBE HAUTE MARNE | I123: ='[1]Rapport 5'!I125 -> 18768.63 | J123: ='[1]Rapport 5'!J125 -> 418.2 | K123: ='[1]Rapport 5'!K125 -> 0 | L123: ='[1]Rapport 5'!L125 -> 21.55 | M123: ='[1]Rapport 5'!M125 -> 310395.11 | N123: ='[1]Rapport 5'!N125 -> 8047.61 | O123: ='[1]Rapport 5'!O125 -> 11484.5 | P123: ='[1]Rapport 5'!P125 -> 1350.5 | Q123: ='[1]Rapport 5'!Q125 -> 0 | R123: ='[1]Rapport 5'!R125 -> 0 | S123: ='[1]Rapport 5'!S125 -> 427.35 | T123: ='[1]Rapport 5'!T125 -> 0 | U123: ='[1]Rapport 5'!U125 -> 51158.15 | V123: ='[1]Rapport 5'!V125 -> 2847.87 | W123: ='[1]Rapport 5'!W125 -> 19109.31 | X123: ='[1]Rapport 5'!X125 -> 657.09 | Y123: 411,343 | Z123: 13,343 | AA123: 3.2% | AB123: 93 | AC123: =1+(AB123/COUNT($AB$3:AB$320)*10) -> 3.924528302 | AD123: 3 | AE123: 418 | AF123: 2.2% | AG123: 66 | AH123: 3.075471698 | AI123: 3 | AJ123: 22 | AK123: 100.0% | AL123: 291 | AM123: 10.1509434 | AN123: 10 | AO123: 8,048 | AP123: 2.6% | AQ123: 111 | AR123: 4.490566038 | AS123: 4 | AT123: 1,351 | AU123: 11.8% | AV123: 261 | AW123: 9.20754717 | AX123: 9 | AY123: 0 | AZ123: 0.0% | BA123: 1 | BB123: 1.031446541 | BC123: 1 | BD123: 0 | BE123: 0.0% | BF123: 1 | BG123: 1.031446541 | BH123: 1 | BI123: 2,848 | BJ123: 5.6% | BK123: 78 | BL123: 3.452830189 | BM123: 3 | BN123: 657 | BO123: 3.4% | BP123: 176 | BQ123: 6.534591195 | BR123: 6 | BT123: 8806 | BU123: -1704
A124: ='[1]Rapport 5'!A126 -> 10511 | B124: ='[1]Rapport 5'!B126 -> TROYES BROSSOLETTE | C124: ='[1]Rapport 5'!C126 -> 510511 | D124: ='[1]Rapport 5'!D126 -> TROYES BROSSOLETTE | E124: ='[1]Rapport 5'!E126 -> 14 | F124: ='[1]Rapport 5'!F126 -> TROYES | G124: ='[1]Rapport 5'!G126 -> 50 | H124: ='[1]Rapport 5'!H126 -> AUBE HAUTE MARNE | I124: ='[1]Rapport 5'!I126 -> 4547.93 | J124: ='[1]Rapport 5'!J126 -> 240.25 | K124: ='[1]Rapport 5'!K126 -> 0 | L124: ='[1]Rapport 5'!L126 -> 0 | M124: ='[1]Rapport 5'!M126 -> 95446.96 | N124: ='[1]Rapport 5'!N126 -> 3124.22 | O124: ='[1]Rapport 5'!O126 -> 3395.5 | P124: ='[1]Rapport 5'!P126 -> 170 | Q124: ='[1]Rapport 5'!Q126 -> 0 | R124: ='[1]Rapport 5'!R126 -> 0 | S124: ='[1]Rapport 5'!S126 -> 104 | T124: ='[1]Rapport 5'!T126 -> 0 | U124: ='[1]Rapport 5'!U126 -> 10587.57 | V124: ='[1]Rapport 5'!V126 -> 366.15 | W124: ='[1]Rapport 5'!W126 -> 3795.18 | X124: ='[1]Rapport 5'!X126 -> 155.93 | Y124: 117,877 | Z124: 4,057 | AA124: 3.4% | AB124: 114 | AC124: =1+(AB124/COUNT($AB$3:AB$320)*10) -> 4.58490566 | AD124: 4 | AE124: 240 | AF124: 5.3% | AG124: 207 | AH124: 7.509433962 | AI124: 7 | AJ124: 0 | AK124: 0.0% | AL124: 1 | AM124: 1.031446541 | AN124: 1 | AO124: 3,124 | AP124: 3.3% | AQ124: 189 | AR124: 6.943396226 | AS124: 6 | AT124: 170 | AU124: 5.0% | AV124: 189 | AW124: 6.943396226 | AX124: 6 | AY124: 0 | AZ124: 0.0% | BA124: 1 | BB124: 1.031446541 | BC124: 1 | BD124: 0 | BE124: 0.0% | BF124: 1 | BG124: 1.031446541 | BH124: 1 | BI124: 366 | BJ124: 3.5% | BK124: 47 | BL124: 2.477987421 | BM124: 2 | BN124: 156 | BO124: 4.1% | BP124: 202 | BQ124: 7.352201258 | BR124: 7 | BT124: 8814 | BU124: -1697
A125: ='[1]Rapport 5'!A127 -> 10512 | B125: ='[1]Rapport 5'!B127 -> TROYES ZOLA | C125: ='[1]Rapport 5'!C127 -> 410512 | D125: ='[1]Rapport 5'!D127 -> TROYES ZOLA | E125: ='[1]Rapport 5'!E127 -> 14 | F125: ='[1]Rapport 5'!F127 -> TROYES | G125: ='[1]Rapport 5'!G127 -> 50 | H125: ='[1]Rapport 5'!H127 -> AUBE HAUTE MARNE | I125: ='[1]Rapport 5'!I127 -> 9163.75 | J125: ='[1]Rapport 5'!J127 -> 357.32 | K125: ='[1]Rapport 5'!K127 -> 0 | L125: ='[1]Rapport 5'!L127 -> 0 | M125: ='[1]Rapport 5'!M127 -> 162096.23 | N125: ='[1]Rapport 5'!N127 -> 5279.12 | O125: ='[1]Rapport 5'!O127 -> 5104 | P125: ='[1]Rapport 5'!P127 -> 219 | Q125: ='[1]Rapport 5'!Q127 -> 0 | R125: ='[1]Rapport 5'!R127 -> 0 | S125: ='[1]Rapport 5'!S127 -> 270 | T125: ='[1]Rapport 5'!T127 -> 18 | U125: ='[1]Rapport 5'!U127 -> 10644.16 | V125: ='[1]Rapport 5'!V127 -> 611.27 | W125: ='[1]Rapport 5'!W127 -> 6352.28 | X125: ='[1]Rapport 5'!X127 -> 96.42 | Y125: 193,630 | Z125: 6,581 | AA125: 3.4% | AB125: 108 | AC125: =1+(AB125/COUNT($AB$3:AB$320)*10) -> 4.396226415 | AD125: 4 | AE125: 357 | AF125: 3.9% | AG125: 159 | AH125: 6 | AI125: 6 | AJ125: 0 | AK125: 0.0% | AL125: 1 | AM125: 1.031446541 | AN125: 1 | AO125: 5,279 | AP125: 3.3% | AQ125: 185 | AR125: 6.817610063 | AS125: 6 | AT125: 219 | AU125: 4.3% | AV125: 175 | AW125: 6.503144654 | AX125: 6 | AY125: 0 | AZ125: 0.0% | BA125: 1 | BB125: 1.031446541 | BC125: 1 | BD125: 18 | BE125: 6.7% | BF125: 263 | BG125: 9.270440252 | BH125: 9 | BI125: 611 | BJ125: 5.7% | BK125: 82 | BL125: 3.578616352 | BM125: 3 | BN125: 96 | BO125: 1.5% | BP125: 87 | BQ125: 3.735849057 | BR125: 3 | BT125: 8815 | BU125: -1697
A126: ='[1]Rapport 5'!A128 -> 10513 | B126: ='[1]Rapport 5'!B128 -> TROYES 1ER MAI | C126: ='[1]Rapport 5'!C128 -> 510513 | D126: ='[1]Rapport 5'!D128 -> TROYES 1ER MAI | E126: ='[1]Rapport 5'!E128 -> 14 | F126: ='[1]Rapport 5'!F128 -> TROYES | G126: ='[1]Rapport 5'!G128 -> 50 | H126: ='[1]Rapport 5'!H128 -> AUBE HAUTE MARNE | I126: ='[1]Rapport 5'!I128 -> 8561.77 | J126: ='[1]Rapport 5'!J128 -> 271.17 | K126: ='[1]Rapport 5'!K128 -> 0 | L126: ='[1]Rapport 5'!L128 -> 0 | M126: ='[1]Rapport 5'!M128 -> 161859.12 | N126: ='[1]Rapport 5'!N128 -> 4355.7 | O126: ='[1]Rapport 5'!O128 -> 4428 | P126: ='[1]Rapport 5'!P128 -> 0 | Q126: ='[1]Rapport 5'!Q128 -> 0 | R126: ='[1]Rapport 5'!R128 -> 0 | S126: ='[1]Rapport 5'!S128 -> 244 | T126: ='[1]Rapport 5'!T128 -> 0 | U126: ='[1]Rapport 5'!U128 -> 15846.5 | V126: ='[1]Rapport 5'!V128 -> 358.68 | W126: ='[1]Rapport 5'!W128 -> 5259.64 | X126: ='[1]Rapport 5'!X128 -> 57.31 | Y126: 196,199 | Z126: 5,043 | AA126: 2.6% | AB126: 52 | AC126: =1+(AB126/COUNT($AB$3:AB$320)*10) -> 2.635220126 | AD126: 2 | AE126: 271 | AF126: 3.2% | AG126: 113 | AH126: 4.553459119 | AI126: 4 | AJ126: 0 | AK126: 0.0% | AL126: 1 | AM126: 1.031446541 | AN126: 1 | AO126: 4,356 | AP126: 2.7% | AQ126: 124 | AR126: 4.899371069 | AS126: 4 | AT126: 0 | AU126: 0.0% | AV126: 1 | AW126: 1.031446541 | AX126: 1 | AY126: 0 | AZ126: 0.0% | BA126: 1 | BB126: 1.031446541 | BC126: 1 | BD126: 0 | BE126: 0.0% | BF126: 1 | BG126: 1.031446541 | BH126: 1 | BI126: 359 | BJ126: 2.3% | BK126: 32 | BL126: 2.006289308 | BM126: 2 | BN126: 57 | BO126: 1.1% | BP126: 66 | BQ126: 3.075471698 | BR126: 3 | BT126: 8817 | BU126: -1696
A127: ='[1]Rapport 5'!A129 -> 10520 | B127: ='[1]Rapport 5'!B129 -> SAINT ANDRE LES VERGERS | C127: ='[1]Rapport 5'!C129 -> 510520 | D127: ='[1]Rapport 5'!D129 -> SAINT ANDRE LES VERGERS | E127: ='[1]Rapport 5'!E129 -> 14 | F127: ='[1]Rapport 5'!F129 -> TROYES | G127: ='[1]Rapport 5'!G129 -> 50 | H127: ='[1]Rapport 5'!H129 -> AUBE HAUTE MARNE | I127: ='[1]Rapport 5'!I129 -> 6871.25 | J127: ='[1]Rapport 5'!J129 -> 160.58 | K127: ='[1]Rapport 5'!K129 -> 0 | L127: ='[1]Rapport 5'!L129 -> 0 | M127: ='[1]Rapport 5'!M129 -> 142109.93 | N127: ='[1]Rapport 5'!N129 -> 4081.42 | O127: ='[1]Rapport 5'!O129 -> 7472.5 | P127: ='[1]Rapport 5'!P129 -> 0 | Q127: ='[1]Rapport 5'!Q129 -> 0 | R127: ='[1]Rapport 5'!R129 -> 0 | S127: ='[1]Rapport 5'!S129 -> 250 | T127: ='[1]Rapport 5'!T129 -> 18 | U127: ='[1]Rapport 5'!U129 -> 14062.17 | V127: ='[1]Rapport 5'!V129 -> 790.11 | W127: ='[1]Rapport 5'!W129 -> 10545.37 | X127: ='[1]Rapport 5'!X129 -> 216.49 | Y127: 181,311 | Z127: 5,267 | AA127: 2.9% | AB127: 69 | AC127: =1+(AB127/COUNT($AB$3:AB$320)*10) -> 3.169811321 | AD127: 3 | AE127: 161 | AF127: 2.3% | AG127: 71 | AH127: 3.232704403 | AI127: 3 | AJ127: 0 | AK127: 0.0% | AL127: 1 | AM127: 1.031446541 | AN127: 1 | AO127: 4,081 | AP127: 2.9% | AQ127: 149 | AR127: 5.685534591 | AS127: 5 | AT127: 0 | AU127: 0.0% | AV127: 1 | AW127: 1.031446541 | AX127: 1 | AY127: 0 | AZ127: 0.0% | BA127: 1 | BB127: 1.031446541 | BC127: 1 | BD127: 18 | BE127: 7.2% | BF127: 267 | BG127: 9.396226415 | BH127: 9 | BI127: 790 | BJ127: 5.6% | BK127: 80 | BL127: 3.51572327 | BM127: 3 | BN127: 216 | BO127: 2.1% | BP127: 120 | BQ127: 4.773584906 | BR127: 4 | BT127: 8819 | BU127: -1701
A128: ='[1]Rapport 5'!A130 -> 10521 | B128: ='[1]Rapport 5'!B130 -> SAINTE SAVINE | C128: ='[1]Rapport 5'!C130 -> 410521 | D128: ='[1]Rapport 5'!D130 -> SAINTE SAVINE | E128: ='[1]Rapport 5'!E130 -> 14 | F128: ='[1]Rapport 5'!F130 -> TROYES | G128: ='[1]Rapport 5'!G130 -> 50 | H128: ='[1]Rapport 5'!H130 -> AUBE HAUTE MARNE | I128: ='[1]Rapport 5'!I130 -> 8317.47 | J128: ='[1]Rapport 5'!J130 -> 314.09 | K128: ='[1]Rapport 5'!K130 -> 0 | L128: ='[1]Rapport 5'!L130 -> 0 | M128: ='[1]Rapport 5'!M130 -> 175866.55 | N128: ='[1]Rapport 5'!N130 -> 6596.26 | O128: ='[1]Rapport 5'!O130 -> 5894 | P128: ='[1]Rapport 5'!P130 -> 734 | Q128: ='[1]Rapport 5'!Q130 -> 0 | R128: ='[1]Rapport 5'!R130 -> 0 | S128: ='[1]Rapport 5'!S130 -> 52 | T128: ='[1]Rapport 5'!T130 -> 0 | U128: ='[1]Rapport 5'!U130 -> 13455.79 | V128: ='[1]Rapport 5'!V130 -> 1344.69 | W128: ='[1]Rapport 5'!W130 -> 10881.58 | X128: ='[1]Rapport 5'!X130 -> 794.29 | Y128: 214,467 | Z128: =+J128+L128+N128+P128+R128+T128+V128+X128 -> 9,783 | AA128: =+Z128/Y128 -> 4.6% | AB128: 227 | AC128: =1+(AB128/COUNT($AB$3:AB$320)*10) -> 8.13836478 | AD128: 8 | AE128: 314 | AF128: 3.8% | AG128: 156 | AH128: 5.905660377 | AI128: 5 | AJ128: 0 | AK128: 0.0% | AL128: 1 | AM128: 1.031446541 | AN128: 1 | AO128: 6,596 | AP128: 3.8% | AQ128: 225 | AR128: 8.075471698 | AS128: 8 | AT128: 734 | AU128: 12.5% | AV128: 264 | AW128: 9.301886792 | AX128: 9 | AY128: 0 | AZ128: 0.0% | BA128: 1 | BB128: 1.031446541 | BC128: 1 | BD128: 0 | BE128: 0.0% | BF128: 1 | BG128: 1.031446541 | BH128: 1 | BI128: 1,345 | BJ128: 10.0% | BK128: 154 | BL128: 5.842767296 | BM128: 5 | BN128: 794 | BO128: 7.3% | BP128: 267 | BQ128: 9.396226415 | BR128: 9 | BT128: 8820 | BU128: -1701
A129: ='[1]Rapport 5'!A131 -> 10522 | B129: ='[1]Rapport 5'!B131 -> TROYES CHARTREUX | C129: ='[1]Rapport 5'!C131 -> 510522 | D129: ='[1]Rapport 5'!D131 -> TROYES CHARTREUX | E129: ='[1]Rapport 5'!E131 -> 14 | F129: ='[1]Rapport 5'!F131 -> TROYES | G129: ='[1]Rapport 5'!G131 -> 50 | H129: ='[1]Rapport 5'!H131 -> AUBE HAUTE MARNE | I129: ='[1]Rapport 5'!I131 -> 5149.01 | J129: ='[1]Rapport 5'!J131 -> 208.82 | K129: ='[1]Rapport 5'!K131 -> 0 | L129: ='[1]Rapport 5'!L131 -> 0 | M129: ='[1]Rapport 5'!M131 -> 101298.75 | N129: ='[1]Rapport 5'!N131 -> 4210.64 | O129: ='[1]Rapport 5'!O131 -> 3194 | P129: ='[1]Rapport 5'!P131 -> 50 | Q129: ='[1]Rapport 5'!Q131 -> 0 | R129: ='[1]Rapport 5'!R131 -> 0 | S129: ='[1]Rapport 5'!S131 -> 56 | T129: ='[1]Rapport 5'!T131 -> 0 | U129: ='[1]Rapport 5'!U131 -> 10964.27 | V129: ='[1]Rapport 5'!V131 -> 523.75 | W129: ='[1]Rapport 5'!W131 -> 4644.74 | X129: ='[1]Rapport 5'!X131 -> 56 | Y129: 125,307 | Z129: 5,049 | AA129: 4.0% | AB129: 185 | AC129: =1+(AB129/COUNT($AB$3:AB$320)*10) -> 6.817610063 | AD129: =+IF(INT(AC129)=11,10,INT(AC129)) -> 6 | AE129: 209 | AF129: 4.1% | AG129: 167 | AH129: 6.251572327 | AI129: 6 | AJ129: 0 | AK129: 0.0% | AL129: 1 | AM129: 1.031446541 | AN129: 1 | AO129: 4,211 | AP129: 4.2% | AQ129: 256 | AR129: 9.050314465 | AS129: 9 | AT129: 50 | AU129: 1.6% | AV129: 103 | AW129: 4.238993711 | AX129: 4 | AY129: 0 | AZ129: 0.0% | BA129: 1 | BB129: 1.031446541 | BC129: 1 | BD129: 0 | BE129: 0.0% | BF129: 1 | BG129: 1.031446541 | BH129: 1 | BI129: 524 | BJ129: 4.8% | BK129: 66 | BL129: 3.075471698 | BM129: 3 | BN129: 56 | BO129: 1.2% | BP129: 72 | BQ129: 3.264150943 | BR129: 3 | BT129: 8822 | BU129: -1700
A130: ='[1]Rapport 5'!A132 -> 10523 | B130: ='[1]Rapport 5'!B132 -> LA CHAPELLE ST LUC | C130: ='[1]Rapport 5'!C132 -> 510523 | D130: ='[1]Rapport 5'!D132 -> LA CHAPELLE ST LUC | E130: ='[1]Rapport 5'!E132 -> 14 | F130: ='[1]Rapport 5'!F132 -> TROYES | G130: ='[1]Rapport 5'!G132 -> 50 | H130: ='[1]Rapport 5'!H132 -> AUBE HAUTE MARNE | I130: ='[1]Rapport 5'!I132 -> 9698.76 | J130: ='[1]Rapport 5'!J132 -> 565.33 | K130: ='[1]Rapport 5'!K132 -> 0 | L130: ='[1]Rapport 5'!L132 -> 0 | M130: ='[1]Rapport 5'!M132 -> 159176.74 | N130: ='[1]Rapport 5'!N132 -> 6055.7 | O130: ='[1]Rapport 5'!O132 -> 2086 | P130: ='[1]Rapport 5'!P132 -> 38 | Q130: ='[1]Rapport 5'!Q132 -> 0 | R130: ='[1]Rapport 5'!R132 -> 0 | S130: ='[1]Rapport 5'!S132 -> 385.74 | T130: ='[1]Rapport 5'!T132 -> 0 | U130: ='[1]Rapport 5'!U132 -> 15378.24 | V130: ='[1]Rapport 5'!V132 -> 489.75 | W130: ='[1]Rapport 5'!W132 -> 5546.59 | X130: ='[1]Rapport 5'!X132 -> 107.19 | Y130: =+I130+K130+M130+O130+Q130+S130+U130+W130 -> 192,272 | Z130: 7,256 | AA130: 3.8% | AB130: 156 | AC130: =1+(AB130/COUNT($AB$3:AB$320)*10) -> 5.905660377 | AD130: 5 | AE130: 565 | AF130: =+IF(ISERROR(AE130/I130),0,AE130/I130) -> 5.8% | AG130: 225 | AH130: 8.075471698 | AI130: =+IF(INT(AH130)=11,10,INT(AH130)) -> 8 | AJ130: =+L130 -> 0 | AK130: =+IF(ISERROR(IF(AJ130=0,0,AJ130/K130)),1,IF(AJ130=0,0,AJ130/K130)) -> 0.0% | AL130: 1 | AM130: 1.031446541 | AN130: =+IF(INT(AM130)=11,10,INT(AM130)) -> 1 | AO130: =+N130 -> 6,056 | AP130: =+IF(ISERROR(IF(AO130=0,0,AO130/M130)),1,IF(AO130=0,0,AO130/M130)) -> 3.8% | AQ130: 229 | AR130: 8.201257862 | AS130: =+IF(INT(AR130)=11,10,INT(AR130)) -> 8 | AT130: 38 | AU130: 1.8% | AV130: 113 | AW130: 4.553459119 | AX130: 4 | AY130: 0 | AZ130: 0.0% | BA130: 1 | BB130: 1.031446541 | BC130: 1 | BD130: 0 | BE130: 0.0% | BF130: 1 | BG130: 1.031446541 | BH130: 1 | BI130: 490 | BJ130: 3.2% | BK130: 41 | BL130: 2.289308176 | BM130: 2 | BN130: 107 | BO130: 1.9% | BP130: 111 | BQ130: 4.490566038 | BR130: 4 | BT130: 8833 | BU130: =+BT130-A130 -> -1690
A131: ='[1]Rapport 5'!A133 -> 10524 | B131: ='[1]Rapport 5'!B133 -> SAINT JULIEN LES VILLAS | C131: ='[1]Rapport 5'!C133 -> 410524 | D131: ='[1]Rapport 5'!D133 -> SAINT JULIEN LES VILLAS | E131: ='[1]Rapport 5'!E133 -> 14 | F131: ='[1]Rapport 5'!F133 -> TROYES | G131: ='[1]Rapport 5'!G133 -> 50 | H131: ='[1]Rapport 5'!H133 -> AUBE HAUTE MARNE | I131: ='[1]Rapport 5'!I133 -> 11235.98 | J131: ='[1]Rapport 5'!J133 -> 399.77 | K131: ='[1]Rapport 5'!K133 -> 0 | L131: ='[1]Rapport 5'!L133 -> 0 | M131: ='[1]Rapport 5'!M133 -> 210645.46 | N131: ='[1]Rapport 5'!N133 -> 5972.26 | O131: ='[1]Rapport 5'!O133 -> 8624.5 | P131: ='[1]Rapport 5'!P133 -> 2573.86 | Q131: ='[1]Rapport 5'!Q133 -> 139.99 | R131: ='[1]Rapport 5'!R133 -> 0 | S131: ='[1]Rapport 5'!S133 -> 153 | T131: ='[1]Rapport 5'!T133 -> 0 | U131: ='[1]Rapport 5'!U133 -> 14330.7 | V131: ='[1]Rapport 5'!V133 -> 1649.41 | W131: ='[1]Rapport 5'!W133 -> 10005.98 | X131: ='[1]Rapport 5'!X133 -> 180 | Y131: 255,136 | Z131: 10,775 | AA131: 4.2% | AB131: =RANK(AA131,$AA$3:$AA$320,1) -> 202 | AC131: =1+(AB131/COUNT($AB$3:AB$320)*10) -> 7.352201258 | AD131: 7 | AE131: 400 | AF131: 3.6% | AG131: =RANK(AF131,$AF$3:$AF$320,1) -> 138 | AH131: =1+(AG131/COUNT($AG$3:$AG$320)*10) -> 5.339622642 | AI131: 5 | AJ131: 0 | AK131: 0.0% | AL131: =RANK(AK131,$AK$3:$AK$320,1) -> 1 | AM131: =1+(AL131/COUNT($AL$3:$AL$320)*10) -> 1.031446541 | AN131: 1 | AO131: 5,972 | AP131: 2.8% | AQ131: =RANK(AP131,$AP$3:$AP$320,1) -> 141 | AR131: =1+(AQ131/COUNT($AQ$3:$AQ$320)*10) -> 5.433962264 | AS131: 5 | AT131: =+P131 -> 2,574 | AU131: =+IF(ISERROR(IF(AT131=0,0,AT131/O131)),1,IF(AT131=0,0,AT131/O131)) -> 29.8% | AV131: =RANK(AU131,$AU$3:$AU$320,1) -> 313 | AW131: =1+(AV131/COUNT($AV$3:$AV$320)*10) -> 10.8427673 | AX131: =+IF(INT(AW131)=11,10,INT(AW131)) -> 10 | AY131: =+R131 -> 0 | AZ131: =+IF(ISERROR(IF(AY131=0,0,AY131/T131)),1,IF(AY131=0,0,AY131/T131)) -> 0.0% | BA131: =RANK(AZ131,$AZ$3:$AZ$320,1) -> 1 | BB131: =1+(BA131/COUNT($BA$3:$BA$320)*10) -> 1.031446541 | BC131: =+IF(INT(BB131)=11,10,INT(BB131)) -> 1 | BD131: =+T131 -> 0 | BE131: =+IF(ISERROR(IF(BD131=0,0,BD131/S131)),1,IF(BD131=0,0,BD131/S131)) -> 0.0% | BF131: =RANK(BE131,$BE$3:$BE$320,1) -> 1 | BG131: =1+(BF131/COUNT($BF$3:$BF$320)*10) -> 1.031446541 | BH131: =+IF(INT(BG131)=11,10,INT(BG131)) -> 1 | BI131: =+V131 -> 1,649 | BJ131: =+IF(ISERROR(IF(BI131=0,0,BI131/U131)),1,IF(BI131=0,0,BI131/U131)) -> 11.5% | BK131: =RANK(BJ131,$BJ$3:$BJ$320,1) -> 185 | BL131: =1+(BK131/COUNT($BK$3:$BK$320)*10) -> 6.817610063 | BM131: =+IF(INT(BL131)=11,10,INT(BL131)) -> 6 | BN131: =+X131 -> 180 | BO131: =+IF(ISERROR(IF(BN131=0,0,BN131/W131)),1,IF(BN131=0,0,BN131/W131)) -> 1.8% | BP131: =RANK(BO131,$BO$3:$BO$320,1) -> 103 | BQ131: =1+(BP131/COUNT($BP$3:$BP$320)*10) -> 4.238993711 | BR131: =+IF(INT(BQ131)=11,10,INT(BQ131)) -> 4 | BT131: 8839 | BU131: -1685
